Workbook

Sheet Inicial
A1: Opções de Entrada
O2: TRUE
O3: TRUE
O4: FALSE
A5: Cálculo CME | O5: FALSE
F6: Python: | O6: FALSE
F7: Caminho MDI: | O7: TRUE
O8: FALSE
A9: Cenários de Geração Eólica | O9: TRUE
O10: FALSE
A11: Preencher abaixo fatores de carga | O11: FALSE
A12: 0.553281221 | B12: 0.164783851 | C12: 0.161924889 | D12: 0.075435325 | E12: 0.015742438 | F12: 0.010862397 | G12: 0.017969878 | H12: 0 | I12: 0 | J12: 0 | K12: 0 | L12: 0 | M12: 0 | N12: 0 | O12: TRUE
A14: Opções de Execução
A17: Subsistemas (>= 100 p/ Fictícios)
A18: 1 | B18: 2 | C18: 3 | D18: 4 | E18: 5 | F18: 6 | G18: 7 | H18: 8 | I18: 9 | J18: 10 | K18: 11 | L18: 100 | M18: 200 | N18: 300
A19: SUDESTE | B19: SUL | C19: NORDESTE | D19: NORTE | E19: ITAIPU | F19: AC RO | G19: MAN AP BV | H19: B. MONTE | I19: T. PIRES | J19: PARANA | K19: TAPAJOS | L19: IVAIPORA | M19: IMPERATRIZ | N19: XINGU
A20: Opções de Validade Temporal e Intercâmbio
A22: Ano de Entrada da Restrição | D22: 2023 | O22: FALSE
O23: FALSE
A24: Preencher abaixo % de autossuficiência para cada subsistema
A25: 0 | B25: 0 | C25: 0 | D25: 0 | E25: 0 | F25: 0 | G25: 0 | H25: 0 | I25: 0 | J25: 0 | K25: 0 | L25: 0 | M25: 0 | N25: 0

Sheet GERAL
H1: Crítica | I1: Hidrologia | J1: Ano | K1: Probabilidade | M1: #
B2: DADOS DE ENTRADA GERAIS | F2: DADOS PARA SIMULAÇÃO | H2: Sim | I2: 1 | J2: 1955 | K2: 0.1147582375 | M2: =(J2-1932)*$G$11 -> 4416
F3: Inicio da Simulação | G3: 2021-01-01 | H3: Sim | I3: 2 | J3: 1935 | K3: 0.1142031055 | M3: =(J3-1932)*$G$11 -> 576
C4: ao ano | D4: ao mês | F4: Final da Simulação | G4: 2036-12-31 | H4: Sim | I4: 3 | J4: 1995 | K4: 0.1136592246 | M4: 12096
B5: Taxa de Desconto | C5: 0.08 | D5: =(1+C5)^(1/12)-1 -> 0.00643403011 | F5: Numero de Meses | G5: =YEAR(G4)*12-YEAR(G3)*12+MONTH(G4)-MONTH(G3)+1 -> 192 | H5: Sim | I5: 4 | J5: 1940 | K5: 0.1136592246 | M5: 1536
F6: Número de Hidrologias | G6: 10 | H6: Sim | I6: 5 | J6: 2005 | K6: 0.1126595949 | M6: 14016
B7: Cambio | C7: 5.2 | F7: Horas no mês | G7: 730.5 | H7: Nao | I7: 6 | J7: 2000 | K7: 0.0973092628 | M7: 13056
B8: Pen. restrição de capacidade | C8: 5219240 | F8: Período Min. p/ Expan. T | G8: 91 | H8: Nao | I8: 7 | J8: 1971 | K8: 0.09509482468 | M8: 7488
B9: Restrição de Potência | C9: 0.04 | F9: Número de Series de Vento | G9: 1 | H9: Nao | I9: 8 | J9: 2006 | K9: 0.08749513922 | M9: 14208
B10: Custo de Armazenamento (R$/MWh) | C10: 0 | F10: Número de Subsistemas | G10: 14 | H10: Nao | I10: 9 | J10: 2014 | K10: 0.07632343733 | M10: 15744
B11: Penalidade GHMin (R$/MWh) | C11: 5225764.05 | F11: Número de Meses Hidrologia | G11: 192 | H11: Nao | I11: 10 | J11: 1975 | K11: 0.07483794889 | M11: 8256
F12: Número de Anos Pós | G12: 0
B14: Projetos
B15: Tipo | C15: Vida em anos | D15: Investimento R$/kW | E15: Encargos R$/kW.ano | F15: Custo de Investimento em R$/kW/mês | G15: O&M Anual em R$/kW.ano | H15: O&M + Encargos Mensal em R$/kW/mês | I15: Custo Mensal R$/kW/mês | J15: CVU (R$/MWh) | K15: Inflexibilidade (% Potência Disponivel) | L15: Inflexibilidade (% Potencia Nominal) | M15: Emissão (t equivalente/MWh) | N15: Data mais Cedo (Ano) | O15: JDC | P15: TEIF | Q15: IP
B16: Hidro | C16: 30
B17: Fotovoltaica 1 | C17: 25 | D17: 2800 | E17: 130 | F17: =-PMT($D$5,12*C17,D17*(1+O17),,1) -> 21.77823048 | G17: 50 | H17: =PMT($D$5,12,-$G17-E17) -> 15.63469317 | I17: =F17+H17 -> 37.41292365 | N17: 2024 | O17: 0.039
B18: Fotovoltaica 2 | C18: 25 | D18: 3300 | E18: 135 | F18: =-PMT($D$5,12*C18,D18*(1+O18),,1) -> 25.66720021 | G18: 50 | H18: =PMT($D$5,12,-$G18-E18) -> 16.0689902 | I18: =F18+H18 -> 41.73619041 | N18: 2024 | O18: 0.039
B19: Fotovoltaica 3 | C19: 25 | D19: 3800 | E19: 140 | F19: =-PMT($D$5,12*C19,D19*(1+O19),,1) -> 29.55616994 | G19: 50 | H19: 16.50328723 | I19: 46.05945717 | N19: 2024 | O19: 0.039
B20: Fotovoltaica 4 | C20: 25 | D20: 4500 | E20: 145 | F20: 35.00072756 | G20: 50 | H20: 16.93758426 | I20: 51.93831183 | N20: 2024 | O20: 0.039
B21: Fotovoltaica Desconto | C21: 20 | D21: 2400 | E21: 140 | F21: =-PMT($D$5,12*C21,D21*(1+O21),,1) -> 20.29574651 | G21: 40 | H21: =PMT($D$5,12,-$G21-E21) -> 15.63469317 | I21: =F21+H21 -> 35.93043968 | N21: 2040 | O21: 0.039
B22: Eólica 1 | C22: 20 | D22: 3800 | E22: 145 | F22: 32.90814979 | G22: 90 | H22: =PMT($D$5,12,-$G22-E22) -> 20.41196052 | I22: =F22+H22 -> 53.32011031 | N22: 2024 | O22: 0.064
B23: Eólica 2 | C23: 20 | D23: 4200 | E23: 150 | F23: 36.37216555 | G23: 90 | H23: =PMT($D$5,12,-$G23-E23) -> 20.84625756 | I23: =F23+H23 -> 57.21842311 | N23: 2024 | O23: 0.064
B24: Eólica 3 | C24: 20 | D24: 4500 | E24: 150 | F24: 38.97017738 | G24: 90 | H24: 20.84625756 | I24: 59.81643494 | N24: 2024 | O24: 0.064
B25: Eólica 4 | C25: 20 | D25: 5000 | E25: 155 | F25: 43.30019709 | G25: 90 | H25: 21.28055459 | I25: 64.58075168 | N25: 2024 | O25: 0.064
B26: Eólica Offshore | C26: 20 | D26: 10300 | E26: 415 | F26: =-PMT($D$5,12*C26,D26*(1+O26),,1) -> 93.55772659 | G26: 360 | H26: =PMT($D$5,12,-$G26-E26) -> 67.31604003 | I26: =F26+H26 -> 160.8737666 | N26: 2027 | O26: 0.116
B27: Biomassa (Bagaço de Cana) 1 | C27: 20 | D27: 3000 | E27: 140 | F27: =-PMT($D$5,12*C27,D27*(1+O27),,1) -> 25.98011825 | G27: 90 | H27: 19.97766349 | I27: 45.95778174 | J27: 0 | K27: =MIN(L27,L27/((1-P27/100)*(1-Q27/100))) -> 0 | L27: 0 | M27: 0 | N27: 2024 | O27: 0.064 | P27: 2.38 | Q27: 4.6
B28: Biomassa (Bagaço de Cana) 2 | C28: 20 | D28: 4000 | E28: 145 | F28: =-PMT($D$5,12*C28,D28*(1+O28),,1) -> 34.64015767 | G28: 90 | H28: 20.41196052 | I28: 55.05211819 | J28: 0 | K28: =MIN(L28,L28/((1-P28/100)*(1-Q28/100))) -> 0 | L28: 0 | M28: 0 | N28: 2024 | O28: 0.064 | P28: 2.38 | Q28: 4.6
B29: Biomassa (Bagaço de Cana) 3 | C29: 20 | D29: 5000 | E29: 155 | F29: 43.30019709 | G29: 90 | H29: 21.28055459 | I29: 64.58075168 | J29: 0 | K29: 0 | L29: 0 | M29: 0 | N29: 2024 | O29: 0.064 | P29: 2.38 | Q29: 4.6
B30: GNL 100% Flexível | C30: 20 | D30: 4300 | E30: 250 | F30: 39.05808003 | G30: 160 | H30: 35.61235666 | I30: 74.67043669 | J30: 380 | K30: 0 | L30: =IF(K30*((1-P30/100)*(1-Q30/100))>1,1,K30*((1-P30/100)*(1-Q30/100))) -> 0 | N30: 2026 | O30: 0.116 | P30: 2.5 | Q30: 2.5
B31: GNL 30% Inflexível (Sazonal) | C31: 20 | D31: 4300 | E31: 250 | F31: 39.05808003 | G31: 160 | H31: 35.61235666 | I31: 74.67043669 | J31: 300 | K31: 0.3 | L31: =IF(K31*((1-P31/100)*(1-Q31/100))>1,1,K31*((1-P31/100)*(1-Q31/100))) -> 0.2851875 | N31: 2026 | O31: 0.116 | P31: 2.5 | Q31: 2.5
B32: GN Ciclo Simples - 100% Flexível | C32: 20 | D32: 3600 | E32: 220 | F32: 31.41054899 | G32: 80 | H32: 26.05782195 | I32: 57.46837093 | J32: 600 | K32: 0 | L32: 0 | N32: 2026 | O32: 0.072 | P32: 2.5 | Q32: 2.5
B33: Gás Nacional - 70% Inflexível (flat) | C33: 20 | D33: 5300 | E33: 280 | F33: 48.14135446 | G33: 150 | H33: 37.34954479 | I33: 85.49089925 | J33: 200 | K33: 0.3 | L33: 0.2851875 | N33: 2026 | O33: 0.116 | P33: 2.5 | Q33: 2.5
B34: Gás Nacional - 100% Inflexível (flat) | C34: 20 | D34: 5300 | E34: 280 | F34: 48.14135446 | G34: 150 | H34: =PMT($D$5,12,-$G34-E34) -> 37.34954479 | I34: 85.49089925 | J34: 250 | K34: 1 | L34: 0.950625 | N34: 2026 | O34: 0.116 | P34: 2.5 | Q34: 2.5
B35: Carvão Nacional | C35: 25 | D35: 10300 | E35: 595 | F35: 87.82334201 | G35: 160 | H35: 65.5788519 | I35: 153.4021939 | J35: 130 | K35: 0.5 | L35: =IF(K35*((1-P35/100)*(1-Q35/100))>1,1,K35*((1-P35/100)*(1-Q35/100))) -> 0.45125 | M35: 1.099 | N35: 2024 | O35: 0.139 | P35: 5 | Q35: 5
B36: PCH CAPEX BAIXO | C36: 30 | D36: 6000 | E36: 140 | F36: 45.69891353 | G36: 90 | H36: 19.97766349 | I36: 65.67657702 | N36: 2024 | O36: 0.073 | P36: 0 | Q36: 0
B37: PCH CAPEX MEDIO | C37: 30 | D37: 8000 | E37: 150 | F37: =-PMT($D$5,12*C37,D37*(1+O37),,1) -> 60.9318847 | G37: 90 | H37: 20.84625756 | I37: 81.77814226 | N37: 2024 | O37: 0.073 | P37: 0 | Q37: 0
B38: PCH CAPEX ALTO | C38: 30 | D38: 11000 | E38: 180 | F38: =-PMT($D$5,12*C38,D38*(1+O38),,1) -> 83.78134146 | G38: 90 | H38: 23.45203975 | I38: 107.2333812 | N38: 2024 | O38: 0.073 | P38: 0 | Q38: 0
B39: Nuclear | C39: 30 | D39: 25800 | E39: 660 | F39: 218.8479657 | G39: 520 | H39: 102.4940997 | I39: 321.3420653 | J39: 46 | L39: 1 | M39: 0 | N39: 2031 | O39: 0.195 | P39: 1.5 | Q39: 7.5
B40: UHR - Reversível | C40: 30 | D40: 6500 | E40: 330 | F40: 51.49113369 | G40: 70 | H40: 34.74376259 | I40: 86.23489629 | N40: 2028 | O40: 0.116 | P40: 0 | Q40: 0
B41: Biomassa (Cavaco) | C41: 20 | D41: 6000 | E41: 170 | F41: 54.06013328 | G41: 120 | H41: 25.18922788 | I41: 79.24936116 | J41: 200 | L41: 0.3 | N41: 2024 | O41: 0.107 | P41: 5 | Q41: 5
B42: Bateria - Íon Lítio (3h) | C42: 20 | D42: 6200 | E42: 250 | F42: =-PMT($D$5,12*C42,D42*(1+O42),,1) -> 52.4306785 | G42: 60 | H42: 26.92641601 | I42: 79.35709451 | N42: 2026 | O42: 0.039 | P42: 0 | Q42: 0
B43: Biogas (Digestor-Res. Veget) | C43: 20 | D43: 8000 | E43: 205 | F43: =-PMT($D$5,12*C43,D43*(1+O43),,1) -> 69.28031534 | G43: 480 | H43: =PMT($D$5,12,-$G43-E43) -> 59.49869344 | I43: =F43+H43 -> 128.7790088 | J43: 0.001 | K43: 0 | L43: =IF(K43*((1-P43/100)*(1-Q43/100))>1,1,K43*((1-P43/100)*(1-Q43/100))) -> 0 | M43: 0.337 | N43: 2024 | O43: 0.064 | P43: 1.4 | Q43: 2.5
B44: Fim de Contrato GN | C44: 20 | D44: =0.4*D30 -> 1720 | E44: 170 | F44: =-PMT($D$5,12*C44,D44*(1+O44),,1) -> 15.00726229 | G44: 160 | H44: =PMT($D$5,12,-$G44-E44) -> 28.66360414 | I44: 43.67086643 | K44: =IF(L44/((1-P44/100)*(1-Q44/100))>1,1,L44/((1-P44/100)*(1-Q44/100))) -> 0 | L44: 0 | M44: 0.337 | N44: 2021 | O44: 0.072 | P44: 10.68 | Q44: 6.5
B45: Fim de Contrato Carvão | C45: 20 | D45: =D35*0.4 -> 4120 | E45: 230 | F45: =-PMT($D$5,12*C45,D45*(1+O45),,1) -> 35.94762828 | G45: 160 | H45: =PMT($D$5,12,-$G45-E45) -> 33.87516853 | I45: =F45+H45 -> 69.82279681 | K45: =IF(L45/((1-P45/100)*(1-Q45/100))>1,1,L45/((1-P45/100)*(1-Q45/100))) -> 0 | L45: 0 | M45: 0.337 | N45: 2021 | O45: 0.072 | P45: 10.68 | Q45: 6.5
B46: Fotovoltaica flutuante | C46: 25 | D46: 5000 | E46: 150 | F46: =-PMT($D$5,12*C46,D46*(1+O46),,1) -> 38.88969729 | G46: 65 | H46: =PMT($D$5,12,-$G46-E46) -> 18.67477239 | I46: =F46+H46 -> 57.56446969 | N46: 2024 | O46: 0.039
B47: RSU (Resíduos Sólidos Urbanos) | C47: 20 | D47: 23000 | E47: 845 | F47: 208.9153118 | G47: 920 | H47: 153.3068524 | I47: 362.2221643 | N47: 2024 | O47: 0.116
B48: Resposta da Demanda A | C48: 20 | E48: 47.65 | F48: 0 | G48: 5 | H48: 4.573147751 | I48: 4.573147751 | J48: 464.3 | K48: =IF(L48/((1-P48/100)*(1-Q48/100))>1,1,L48/((1-P48/100)*(1-Q48/100))) -> 0 | L48: 0 | M48: 0 | N48: 2024 | O48: 0
B49: Resposta da Demanda B | C49: 20 | E49: 39.26 | F49: 0 | G49: 5 | H49: 3.844397331 | I49: 3.844397331 | J49: 1182.33 | K49: =IF(L49/((1-P49/100)*(1-Q49/100))>1,1,L49/((1-P49/100)*(1-Q49/100))) -> 0 | L49: 0 | M49: 0 | N49: 2024 | O49: 0
B50: Resposta da Demanda C | C50: 20 | E50: 150.92 | F50: 0 | G50: 5 | H50: 13.54311866 | I50: 13.54311866 | J50: 1024.014248 | K50: 0 | L50: 0 | M50: 0 | N50: 2024 | O50: 0

Sheet Intercambios
A1: Patamares | B1: DE | C1: PARA | D1: 2021-01-01 | E1: 2021-02-01 | F1: 2021-03-01 | G1: 2021-04-01 | H1: 2021-05-01 | I1: 2021-06-01 | J1: 2021-07-01 | K1: 2021-08-01 | L1: 2021-09-01 | M1: 2021-10-01 | N1: 2021-11-01 | O1: 2021-12-01 | P1: 2022-01-01 | Q1: 2022-02-01 | R1: 2022-03-01 | S1: 2022-04-01 | T1: 2022-05-01 | U1: 2022-06-01 | V1: 2022-07-01 | W1: 2022-08-01 | X1: 2022-09-01 | Y1: 2022-10-01 | Z1: 2022-11-01 | AA1: 2022-12-01 | AB1: 2023-01-01 | AC1: 2023-02-01 | AD1: 2023-03-01 | AE1: 2023-04-01 | AF1: 2023-05-01 | AG1: 2023-06-01 | AH1: 2023-07-01 | AI1: 2023-08-01 | AJ1: 2023-09-01 | AK1: 2023-10-01 | AL1: 2023-11-01 | AM1: 2023-12-01 | AN1: 2024-01-01 | AO1: 2024-02-01 | AP1: 2024-03-01 | AQ1: 2024-04-01 | AR1: 2024-05-01 | AS1: 2024-06-01 | AT1: 2024-07-01 | AU1: 2024-08-01 | AV1: 2024-09-01 | AW1: 2024-10-01 | AX1: 2024-11-01 | AY1: 2024-12-01 | AZ1: 2025-01-01 | BA1: 2025-02-01 | BB1: 2025-03-01 | BC1: 2025-04-01 | BD1: 2025-05-01 | BE1: 2025-06-01 | BF1: 2025-07-01 | BG1: 2025-08-01 | BH1: 2025-09-01 | BI1: 2025-10-01 | BJ1: 2025-11-01 | BK1: 2025-12-01 | BL1: 2026-01-01 | BM1: 2026-02-01 | BN1: 2026-03-01 | BO1: 2026-04-01 | BP1: 2026-05-01 | BQ1: 2026-06-01 | BR1: 2026-07-01 | BS1: 2026-08-01 | BT1: 2026-09-01 | BU1: 2026-10-01 | BV1: 2026-11-01 | BW1: 2026-12-01 | BX1: 2027-01-01 | BY1: 2027-02-01 | BZ1: 2027-03-01 | CA1: 2027-04-01 | CB1: 2027-05-01 | CC1: 2027-06-01 | CD1: 2027-07-01 | CE1: 2027-08-01 | CF1: 2027-09-01 | CG1: 2027-10-01 | CH1: 2027-11-01 | CI1: 2027-12-01 | CJ1: 2028-01-01 | CK1: 2028-02-01 | CL1: 2028-03-01 | CM1: 2028-04-01 | CN1: 2028-05-01 | CO1: 2028-06-01 | CP1: 2028-07-01 | CQ1: 2028-08-01 | CR1: 2028-09-01 | CS1: 2028-10-01 | CT1: 2028-11-01 | CU1: 2028-12-01 | CV1: 2029-01-01 | CW1: 2029-02-01 | CX1: 2029-03-01 | CY1: 2029-04-01 | CZ1: 2029-05-01 | DA1: 2029-06-01 | DB1: 2029-07-01 | DC1: 2029-08-01 | DD1: 2029-09-01 | DE1: 2029-10-01 | DF1: 2029-11-01 | DG1: 2029-12-01 | DH1: 2030-01-01 | DI1: 2030-02-01 | DJ1: 2030-03-01 | DK1: 2030-04-01 | DL1: 2030-05-01 | DM1: 2030-06-01 | DN1: 2030-07-01 | DO1: 2030-08-01 | DP1: 2030-09-01 | DQ1: 2030-10-01 | DR1: 2030-11-01 | DS1: 2030-12-01 | DT1: 2031-01-01 | DU1: 2031-02-01 | DV1: 2031-03-01 | DW1: 2031-04-01 | DX1: 2031-05-01 | DY1: 2031-06-01 | DZ1: 2031-07-01 | EA1: 2031-08-01 | EB1: 2031-09-01 | EC1: 2031-10-01 | ED1: 2031-11-01 | EE1: 2031-12-01 | EF1: 2032-01-01 | EG1: 2032-02-01 | EH1: 2032-03-01 | EI1: 2032-04-01 | EJ1: 2032-05-01 | EK1: 2032-06-01 | EL1: 2032-07-01 | EM1: 2032-08-01 | EN1: 2032-09-01 | EO1: 2032-10-01 | EP1: 2032-11-01 | EQ1: 2032-12-01 | ER1: 2033-01-01 | ES1: 2033-02-01 | ET1: 2033-03-01 | EU1: 2033-04-01 | EV1: 2033-05-01 | EW1: 2033-06-01 | EX1: 2033-07-01 | EY1: 2033-08-01 | EZ1: 2033-09-01 | FA1: 2033-10-01 | FB1: 2033-11-01 | FC1: 2033-12-01 | FD1: 2034-01-01 | FE1: 2034-02-01 | FF1: 2034-03-01 | FG1: 2034-04-01 | FH1: 2034-05-01 | FI1: 2034-06-01 | FJ1: 2034-07-01 | FK1: 2034-08-01 | FL1: 2034-09-01 | FM1: 2034-10-01 | FN1: 2034-11-01 | FO1: 2034-12-01 | FP1: 2035-01-01 | FQ1: 2035-02-01 | FR1: 2035-03-01 | FS1: 2035-04-01 | FT1: 2035-05-01 | FU1: 2035-06-01 | FV1: 2035-07-01 | FW1: 2035-08-01 | FX1: 2035-09-01 | FY1: 2035-10-01 | FZ1: 2035-11-01 | GA1: 2035-12-01 | GB1: 1936-01-01 | GC1: 1936-02-01 | GD1: 1936-03-01 | GE1: 1936-04-01 | GF1: 1936-05-01 | GG1: 1936-06-01 | GH1: 1936-07-01 | GI1: 1936-08-01 | GJ1: 1936-09-01 | GK1: 1936-10-01 | GL1: 1936-11-01 | GM1: 1936-12-01
A2: 1 | B2: 1 | C2: 2 | D2: 6300 | E2: 6300 | F2: 6300 | G2: 6300 | H2: 6300 | I2: 6300 | J2: 6300 | K2: 6300 | L2: 6300 | M2: 6300 | N2: 6300 | O2: 6300 | P2: 6300 | Q2: 6300 | R2: 6300 | S2: 6300 | T2: 6300 | U2: 6600 | V2: 6600 | W2: 6600 | X2: 6600 | Y2: 6600 | Z2: 6600 | AA2: 6600 | AB2: 6600 | AC2: 6600 | AD2: 6600 | AE2: 6600 | AF2: 6600 | AG2: 6600 | AH2: 6600 | AI2: 6600 | AJ2: 6600 | AK2: 6600 | AL2: 6600 | AM2: 6600 | AN2: 6600 | AO2: 6600 | AP2: 6600 | AQ2: 6600 | AR2: 6600 | AS2: 6600 | AT2: 6600 | AU2: 6600 | AV2: 6600 | AW2: 6600 | AX2: 6600 | AY2: 6600 | AZ2: 6600 | BA2: 6600 | BB2: 6600 | BC2: 6600 | BD2: 6600 | BE2: 6600 | BF2: 6600 | BG2: 6600 | BH2: 6600 | BI2: 6600 | BJ2: 6600 | BK2: 6600 | BL2: 6600 | BM2: 6600 | BN2: 6600 | BO2: 6600 | BP2: 6600 | BQ2: 6600 | BR2: 6600 | BS2: 6600 | BT2: 6600 | BU2: 6600 | BV2: 6600 | BW2: 6600 | BX2: 8400 | BY2: 8400 | BZ2: 8400 | CA2: 8400 | CB2: 8400 | CC2: 8400 | CD2: 8400 | CE2: 8400 | CF2: 8400 | CG2: 8400 | CH2: 8400 | CI2: 8400 | CJ2: 8400 | CK2: 8400 | CL2: 8400 | CM2: 8400 | CN2: 8400 | CO2: 8400 | CP2: 8400 | CQ2: 8400 | CR2: 8400 | CS2: 8400 | CT2: 8400 | CU2: 8400 | CV2: 8400 | CW2: 8400 | CX2: 8400 | CY2: 8400 | CZ2: 8400 | DA2: 8400 | DB2: 8400 | DC2: 8400 | DD2: 8400 | DE2: 8400 | DF2: 8400 | DG2: 8400 | DH2: 8400 | DI2: 8400 | DJ2: 8400 | DK2: 8400 | DL2: 8400 | DM2: 8400 | DN2: 8400 | DO2: 8400 | DP2: 8400 | DQ2: 8400 | DR2: 8400 | DS2: 8400 | DT2: 8400 | DU2: 8400 | DV2: 8400 | DW2: 8400 | DX2: 8400 | DY2: 8400 | DZ2: 8400 | EA2: 8400 | EB2: 8400 | EC2: 8400 | ED2: 8400 | EE2: 8400 | EF2: 8400 | EG2: 8400 | EH2: 8400 | EI2: 8400 | EJ2: 8400 | EK2: 8400 | EL2: 8400 | EM2: 8400 | EN2: 8400 | EO2: 8400 | EP2: 8400 | EQ2: 8400 | ER2: 8400 | ES2: 8400 | ET2: 8400 | EU2: 8400 | EV2: 8400 | EW2: 8400 | EX2: 8400 | EY2: 8400 | EZ2: 8400 | FA2: 8400 | FB2: 8400 | FC2: 8400 | FD2: 8400 | FE2: 8400 | FF2: 8400 | FG2: 8400 | FH2: 8400 | FI2: 8400 | FJ2: 8400 | FK2: 8400 | FL2: 8400 | FM2: 8400 | FN2: 8400 | FO2: 8400 | FP2: 8400 | FQ2: 8400 | FR2: 8400 | FS2: 8400 | FT2: 8400 | FU2: 8400 | FV2: 8400 | FW2: 8400 | FX2: 8400 | FY2: 8400 | FZ2: 8400 | GA2: 8400 | GB2: 8400 | GC2: 8400 | GD2: 8400 | GE2: 8400 | GF2: 8400 | GG2: 8400 | GH2: 8400 | GI2: 8400 | GJ2: 8400 | GK2: 8400 | GL2: 8400 | GM2: 8400
A3: 2 | B3: 1 | C3: 2 | D3: 6300 | E3: 6300 | F3: 6300 | G3: 6300 | H3: 6300 | I3: 6300 | J3: 6300 | K3: 6300 | L3: 6300 | M3: 6300 | N3: 6300 | O3: 6300 | P3: 6300 | Q3: 6300 | R3: 6300 | S3: 6300 | T3: 6300 | U3: 6600 | V3: 6600 | W3: 6600 | X3: 6600 | Y3: 6600 | Z3: 6600 | AA3: 6600 | AB3: 6600 | AC3: 6600 | AD3: 6600 | AE3: 6600 | AF3: 6600 | AG3: 6600 | AH3: 6600 | AI3: 6600 | AJ3: 6600 | AK3: 6600 | AL3: 6600 | AM3: 6600 | AN3: 6600 | AO3: 6600 | AP3: 6600 | AQ3: 6600 | AR3: 6600 | AS3: 6600 | AT3: 6600 | AU3: 6600 | AV3: 6600 | AW3: 6600 | AX3: 6600 | AY3: 6600 | AZ3: 6600 | BA3: 6600 | BB3: 6600 | BC3: 6600 | BD3: 6600 | BE3: 6600 | BF3: 6600 | BG3: 6600 | BH3: 6600 | BI3: 6600 | BJ3: 6600 | BK3: 6600 | BL3: 6600 | BM3: 6600 | BN3: 6600 | BO3: 6600 | BP3: 6600 | BQ3: 6600 | BR3: 6600 | BS3: 6600 | BT3: 6600 | BU3: 6600 | BV3: 6600 | BW3: 6600 | BX3: 8400 | BY3: 8400 | BZ3: 8400 | CA3: 8400 | CB3: 8400 | CC3: 8400 | CD3: 8400 | CE3: 8400 | CF3: 8400 | CG3: 8400 | CH3: 8400 | CI3: 8400 | CJ3: 8400 | CK3: 8400 | CL3: 8400 | CM3: 8400 | CN3: 8400 | CO3: 8400 | CP3: 8400 | CQ3: 8400 | CR3: 8400 | CS3: 8400 | CT3: 8400 | CU3: 8400 | CV3: 8400 | CW3: 8400 | CX3: 8400 | CY3: 8400 | CZ3: 8400 | DA3: 8400 | DB3: 8400 | DC3: 8400 | DD3: 8400 | DE3: 8400 | DF3: 8400 | DG3: 8400 | DH3: 8400 | DI3: 8400 | DJ3: 8400 | DK3: 8400 | DL3: 8400 | DM3: 8400 | DN3: 8400 | DO3: 8400 | DP3: 8400 | DQ3: 8400 | DR3: 8400 | DS3: 8400 | DT3: 8400 | DU3: 8400 | DV3: 8400 | DW3: 8400 | DX3: 8400 | DY3: 8400 | DZ3: 8400 | EA3: 8400 | EB3: 8400 | EC3: 8400 | ED3: 8400 | EE3: 8400 | EF3: 8400 | EG3: 8400 | EH3: 8400 | EI3: 8400 | EJ3: 8400 | EK3: 8400 | EL3: 8400 | EM3: 8400 | EN3: 8400 | EO3: 8400 | EP3: 8400 | EQ3: 8400 | ER3: 8400 | ES3: 8400 | ET3: 8400 | EU3: 8400 | EV3: 8400 | EW3: 8400 | EX3: 8400 | EY3: 8400 | EZ3: 8400 | FA3: 8400 | FB3: 8400 | FC3: 8400 | FD3: 8400 | FE3: 8400 | FF3: 8400 | FG3: 8400 | FH3: 8400 | FI3: 8400 | FJ3: 8400 | FK3: 8400 | FL3: 8400 | FM3: 8400 | FN3: 8400 | FO3: 8400 | FP3: 8400 | FQ3: 8400 | FR3: 8400 | FS3: 8400 | FT3: 8400 | FU3: 8400 | FV3: 8400 | FW3: 8400 | FX3: 8400 | FY3: 8400 | FZ3: 8400 | GA3: 8400 | GB3: 8400 | GC3: 8400 | GD3: 8400 | GE3: 8400 | GF3: 8400 | GG3: 8400 | GH3: 8400 | GI3: 8400 | GJ3: 8400 | GK3: 8400 | GL3: 8400 | GM3: 8400
A4: 3 | B4: 1 | C4: 2 | D4: 6300 | E4: 6300 | F4: 6300 | G4: 6300 | H4: 6300 | I4: 6300 | J4: 6300 | K4: 6300 | L4: 6300 | M4: 6300 | N4: 6300 | O4: 6300 | P4: 6300 | Q4: 6300 | R4: 6300 | S4: 6300 | T4: 6300 | U4: 6600 | V4: 6600 | W4: 6600 | X4: 6600 | Y4: 6600 | Z4: 6600 | AA4: 6600 | AB4: 6600 | AC4: 6600 | AD4: 6600 | AE4: 6600 | AF4: 6600 | AG4: 6600 | AH4: 6600 | AI4: 6600 | AJ4: 6600 | AK4: 6600 | AL4: 6600 | AM4: 6600 | AN4: 6600 | AO4: 6600 | AP4: 6600 | AQ4: 6600 | AR4: 6600 | AS4: 6600 | AT4: 6600 | AU4: 6600 | AV4: 6600 | AW4: 6600 | AX4: 6600 | AY4: 6600 | AZ4: 6600 | BA4: 6600 | BB4: 6600 | BC4: 6600 | BD4: 6600 | BE4: 6600 | BF4: 6600 | BG4: 6600 | BH4: 6600 | BI4: 6600 | BJ4: 6600 | BK4: 6600 | BL4: 6600 | BM4: 6600 | BN4: 6600 | BO4: 6600 | BP4: 6600 | BQ4: 6600 | BR4: 6600 | BS4: 6600 | BT4: 6600 | BU4: 6600 | BV4: 6600 | BW4: 6600 | BX4: 8400 | BY4: 8400 | BZ4: 8400 | CA4: 8400 | CB4: 8400 | CC4: 8400 | CD4: 8400 | CE4: 8400 | CF4: 8400 | CG4: 8400 | CH4: 8400 | CI4: 8400 | CJ4: 8400 | CK4: 8400 | CL4: 8400 | CM4: 8400 | CN4: 8400 | CO4: 8400 | CP4: 8400 | CQ4: 8400 | CR4: 8400 | CS4: 8400 | CT4: 8400 | CU4: 8400 | CV4: 8400 | CW4: 8400 | CX4: 8400 | CY4: 8400 | CZ4: 8400 | DA4: 8400 | DB4: 8400 | DC4: 8400 | DD4: 8400 | DE4: 8400 | DF4: 8400 | DG4: 8400 | DH4: 8400 | DI4: 8400 | DJ4: 8400 | DK4: 8400 | DL4: 8400 | DM4: 8400 | DN4: 8400 | DO4: 8400 | DP4: 8400 | DQ4: 8400 | DR4: 8400 | DS4: 8400 | DT4: 8400 | DU4: 8400 | DV4: 8400 | DW4: 8400 | DX4: 8400 | DY4: 8400 | DZ4: 8400 | EA4: 8400 | EB4: 8400 | EC4: 8400 | ED4: 8400 | EE4: 8400 | EF4: 8400 | EG4: 8400 | EH4: 8400 | EI4: 8400 | EJ4: 8400 | EK4: 8400 | EL4: 8400 | EM4: 8400 | EN4: 8400 | EO4: 8400 | EP4: 8400 | EQ4: 8400 | ER4: 8400 | ES4: 8400 | ET4: 8400 | EU4: 8400 | EV4: 8400 | EW4: 8400 | EX4: 8400 | EY4: 8400 | EZ4: 8400 | FA4: 8400 | FB4: 8400 | FC4: 8400 | FD4: 8400 | FE4: 8400 | FF4: 8400 | FG4: 8400 | FH4: 8400 | FI4: 8400 | FJ4: 8400 | FK4: 8400 | FL4: 8400 | FM4: 8400 | FN4: 8400 | FO4: 8400 | FP4: 8400 | FQ4: 8400 | FR4: 8400 | FS4: 8400 | FT4: 8400 | FU4: 8400 | FV4: 8400 | FW4: 8400 | FX4: 8400 | FY4: 8400 | FZ4: 8400 | GA4: 8400 | GB4: 8400 | GC4: 8400 | GD4: 8400 | GE4: 8400 | GF4: 8400 | GG4: 8400 | GH4: 8400 | GI4: 8400 | GJ4: 8400 | GK4: 8400 | GL4: 8400 | GM4: 8400
A5: 4 | B5: 1 | C5: 2 | D5: 6200 | E5: 6200 | F5: 6200 | G5: 6200 | H5: 6200 | I5: 6200 | J5: 6200 | K5: 6200 | L5: 6200 | M5: 6200 | N5: 6200 | O5: 6200 | P5: 6200 | Q5: 6200 | R5: 6200 | S5: 6200 | T5: 6200 | U5: 6300 | V5: 6300 | W5: 6300 | X5: 6300 | Y5: 6300 | Z5: 6300 | AA5: 6300 | AB5: 6300 | AC5: 6300 | AD5: 6300 | AE5: 6300 | AF5: 6300 | AG5: 6300 | AH5: 6300 | AI5: 6300 | AJ5: 6300 | AK5: 6300 | AL5: 6300 | AM5: 6300 | AN5: 6300 | AO5: 6300 | AP5: 6300 | AQ5: 6300 | AR5: 6300 | AS5: 6300 | AT5: 6300 | AU5: 6300 | AV5: 6300 | AW5: 6300 | AX5: 6300 | AY5: 6300 | AZ5: 6300 | BA5: 6300 | BB5: 6300 | BC5: 6300 | BD5: 6300 | BE5: 6300 | BF5: 6300 | BG5: 6300 | BH5: 6300 | BI5: 6300 | BJ5: 6300 | BK5: 6300 | BL5: 6300 | BM5: 6300 | BN5: 6300 | BO5: 6300 | BP5: 6300 | BQ5: 6300 | BR5: 6300 | BS5: 6300 | BT5: 6300 | BU5: 6300 | BV5: 6300 | BW5: 6300 | BX5: 8000 | BY5: 8000 | BZ5: 8000 | CA5: 8000 | CB5: 8000 | CC5: 8000 | CD5: 8000 | CE5: 8000 | CF5: 8000 | CG5: 8000 | CH5: 8000 | CI5: 8000 | CJ5: 8000 | CK5: 8000 | CL5: 8000 | CM5: 8000 | CN5: 8000 | CO5: 8000 | CP5: 8000 | CQ5: 8000 | CR5: 8000 | CS5: 8000 | CT5: 8000 | CU5: 8000 | CV5: 8000 | CW5: 8000 | CX5: 8000 | CY5: 8000 | CZ5: 8000 | DA5: 8000 | DB5: 8000 | DC5: 8000 | DD5: 8000 | DE5: 8000 | DF5: 8000 | DG5: 8000 | DH5: 8000 | DI5: 8000 | DJ5: 8000 | DK5: 8000 | DL5: 8000 | DM5: 8000 | DN5: 8000 | DO5: 8000 | DP5: 8000 | DQ5: 8000 | DR5: 8000 | DS5: 8000 | DT5: 8000 | DU5: 8000 | DV5: 8000 | DW5: 8000 | DX5: 8000 | DY5: 8000 | DZ5: 8000 | EA5: 8000 | EB5: 8000 | EC5: 8000 | ED5: 8000 | EE5: 8000 | EF5: 8000 | EG5: 8000 | EH5: 8000 | EI5: 8000 | EJ5: 8000 | EK5: 8000 | EL5: 8000 | EM5: 8000 | EN5: 8000 | EO5: 8000 | EP5: 8000 | EQ5: 8000 | ER5: 8000 | ES5: 8000 | ET5: 8000 | EU5: 8000 | EV5: 8000 | EW5: 8000 | EX5: 8000 | EY5: 8000 | EZ5: 8000 | FA5: 8000 | FB5: 8000 | FC5: 8000 | FD5: 8000 | FE5: 8000 | FF5: 8000 | FG5: 8000 | FH5: 8000 | FI5: 8000 | FJ5: 8000 | FK5: 8000 | FL5: 8000 | FM5: 8000 | FN5: 8000 | FO5: 8000 | FP5: 8000 | FQ5: 8000 | FR5: 8000 | FS5: 8000 | FT5: 8000 | FU5: 8000 | FV5: 8000 | FW5: 8000 | FX5: 8000 | FY5: 8000 | FZ5: 8000 | GA5: 8000 | GB5: 8000 | GC5: 8000 | GD5: 8000 | GE5: 8000 | GF5: 8000 | GG5: 8000 | GH5: 8000 | GI5: 8000 | GJ5: 8000 | GK5: 8000 | GL5: 8000 | GM5: 8000
A6: 1 | B6: 1 | C6: 3 | D6: 2000 | E6: 2000 | F6: 2000 | G6: 2000 | H6: 2000 | I6: 3300 | J6: 3300 | K6: 3300 | L6: 3300 | M6: 3300 | N6: 3300 | O6: 3300 | P6: 3300 | Q6: 3300 | R6: 3300 | S6: 3300 | T6: 3300 | U6: 4200 | V6: 4200 | W6: 4200 | X6: 4200 | Y6: 4200 | Z6: 4200 | AA6: 4200 | AB6: 4200 | AC6: 4200 | AD6: 4200 | AE6: 4200 | AF6: 4200 | AG6: 4200 | AH6: 4200 | AI6: 4200 | AJ6: 4200 | AK6: 6000 | AL6: 6000 | AM6: 6000 | AN6: 6000 | AO6: 6000 | AP6: 6000 | AQ6: 6000 | AR6: 6000 | AS6: 6000 | AT6: 6000 | AU6: 6000 | AV6: 6000 | AW6: 6000 | AX6: 6000 | AY6: 6000 | AZ6: 6000 | BA6: 6000 | BB6: 6000 | BC6: 6000 | BD6: 6000 | BE6: 6000 | BF6: 6000 | BG6: 6000 | BH6: 6000 | BI6: 6000 | BJ6: 6000 | BK6: 6000 | BL6: 6000 | BM6: 6000 | BN6: 6000 | BO6: 7000 | BP6: 7000 | BQ6: 7000 | BR6: 7000 | BS6: 7000 | BT6: 7000 | BU6: 7000 | BV6: 7000 | BW6: 7000 | BX6: 7000 | BY6: 7000 | BZ6: 7000 | CA6: 7000 | CB6: 7000 | CC6: 7000 | CD6: 7000 | CE6: 7000 | CF6: 7000 | CG6: 7000 | CH6: 7000 | CI6: 7000 | CJ6: 7000 | CK6: 7000 | CL6: 7000 | CM6: 7000 | CN6: 7000 | CO6: 7000 | CP6: 7000 | CQ6: 7000 | CR6: 7000 | CS6: 7000 | CT6: 7000 | CU6: 7000 | CV6: 7000 | CW6: 7000 | CX6: 7000 | CY6: 7000 | CZ6: 7000 | DA6: 7000 | DB6: 7000 | DC6: 7000 | DD6: 7000 | DE6: 7000 | DF6: 7000 | DG6: 7000 | DH6: 7000 | DI6: 7000 | DJ6: 7000 | DK6: 7000 | DL6: 7000 | DM6: 7000 | DN6: 7000 | DO6: 7000 | DP6: 7000 | DQ6: 7000 | DR6: 7000 | DS6: 7000 | DT6: 7000 | DU6: 7000 | DV6: 7000 | DW6: 7000 | DX6: 7000 | DY6: 7000 | DZ6: 7000 | EA6: 7000 | EB6: 7000 | EC6: 7000 | ED6: 7000 | EE6: 7000 | EF6: 7000 | EG6: 7000 | EH6: 7000 | EI6: 7000 | EJ6: 7000 | EK6: 7000 | EL6: 7000 | EM6: 7000 | EN6: 7000 | EO6: 7000 | EP6: 7000 | EQ6: 7000 | ER6: 7000 | ES6: 7000 | ET6: 7000 | EU6: 7000 | EV6: 7000 | EW6: 7000 | EX6: 7000 | EY6: 7000 | EZ6: 7000 | FA6: 7000 | FB6: 7000 | FC6: 7000 | FD6: 7000 | FE6: 7000 | FF6: 7000 | FG6: 7000 | FH6: 7000 | FI6: 7000 | FJ6: 7000 | FK6: 7000 | FL6: 7000 | FM6: 7000 | FN6: 7000 | FO6: 7000 | FP6: 7000 | FQ6: 7000 | FR6: 7000 | FS6: 7000 | FT6: 7000 | FU6: 7000 | FV6: 7000 | FW6: 7000 | FX6: 7000 | FY6: 7000 | FZ6: 7000 | GA6: 7000 | GB6: 7000 | GC6: 7000 | GD6: 7000 | GE6: 7000 | GF6: 7000 | GG6: 7000 | GH6: 7000 | GI6: 7000 | GJ6: 7000 | GK6: 7000 | GL6: 7000 | GM6: 7000
A7: 2 | B7: 1 | C7: 3 | D7: 2000 | E7: 2000 | F7: 2000 | G7: 2000 | H7: 2000 | I7: 3300 | J7: 3300 | K7: 3300 | L7: 3300 | M7: 3300 | N7: 3300 | O7: 3300 | P7: 3300 | Q7: 3300 | R7: 3300 | S7: 3300 | T7: 3300 | U7: 4200 | V7: 4200 | W7: 4200 | X7: 4200 | Y7: 4200 | Z7: 4200 | AA7: 4200 | AB7: 4200 | AC7: 4200 | AD7: 4200 | AE7: 4200 | AF7: 4200 | AG7: 4200 | AH7: 4200 | AI7: 4200 | AJ7: 4200 | AK7: 6000 | AL7: 6000 | AM7: 6000 | AN7: 6000 | AO7: 6000 | AP7: 6000 | AQ7: 6000 | AR7: 6000 | AS7: 6000 | AT7: 6000 | AU7: 6000 | AV7: 6000 | AW7: 6000 | AX7: 6000 | AY7: 6000 | AZ7: 6000 | BA7: 6000 | BB7: 6000 | BC7: 6000 | BD7: 6000 | BE7: 6000 | BF7: 6000 | BG7: 6000 | BH7: 6000 | BI7: 6000 | BJ7: 6000 | BK7: 6000 | BL7: 6000 | BM7: 6000 | BN7: 6000 | BO7: 7000 | BP7: 7000 | BQ7: 7000 | BR7: 7000 | BS7: 7000 | BT7: 7000 | BU7: 7000 | BV7: 7000 | BW7: 7000 | BX7: 7000 | BY7: 7000 | BZ7: 7000 | CA7: 7000 | CB7: 7000 | CC7: 7000 | CD7: 7000 | CE7: 7000 | CF7: 7000 | CG7: 7000 | CH7: 7000 | CI7: 7000 | CJ7: 7000 | CK7: 7000 | CL7: 7000 | CM7: 7000 | CN7: 7000 | CO7: 7000 | CP7: 7000 | CQ7: 7000 | CR7: 7000 | CS7: 7000 | CT7: 7000 | CU7: 7000 | CV7: 7000 | CW7: 7000 | CX7: 7000 | CY7: 7000 | CZ7: 7000 | DA7: 7000 | DB7: 7000 | DC7: 7000 | DD7: 7000 | DE7: 7000 | DF7: 7000 | DG7: 7000 | DH7: 7000 | DI7: 7000 | DJ7: 7000 | DK7: 7000 | DL7: 7000 | DM7: 7000 | DN7: 7000 | DO7: 7000 | DP7: 7000 | DQ7: 7000 | DR7: 7000 | DS7: 7000 | DT7: 7000 | DU7: 7000 | DV7: 7000 | DW7: 7000 | DX7: 7000 | DY7: 7000 | DZ7: 7000 | EA7: 7000 | EB7: 7000 | EC7: 7000 | ED7: 7000 | EE7: 7000 | EF7: 7000 | EG7: 7000 | EH7: 7000 | EI7: 7000 | EJ7: 7000 | EK7: 7000 | EL7: 7000 | EM7: 7000 | EN7: 7000 | EO7: 7000 | EP7: 7000 | EQ7: 7000 | ER7: 7000 | ES7: 7000 | ET7: 7000 | EU7: 7000 | EV7: 7000 | EW7: 7000 | EX7: 7000 | EY7: 7000 | EZ7: 7000 | FA7: 7000 | FB7: 7000 | FC7: 7000 | FD7: 7000 | FE7: 7000 | FF7: 7000 | FG7: 7000 | FH7: 7000 | FI7: 7000 | FJ7: 7000 | FK7: 7000 | FL7: 7000 | FM7: 7000 | FN7: 7000 | FO7: 7000 | FP7: 7000 | FQ7: 7000 | FR7: 7000 | FS7: 7000 | FT7: 7000 | FU7: 7000 | FV7: 7000 | FW7: 7000 | FX7: 7000 | FY7: 7000 | FZ7: 7000 | GA7: 7000 | GB7: 7000 | GC7: 7000 | GD7: 7000 | GE7: 7000 | GF7: 7000 | GG7: 7000 | GH7: 7000 | GI7: 7000 | GJ7: 7000 | GK7: 7000 | GL7: 7000 | GM7: 7000
A8: 3 | B8: 1 | C8: 3 | D8: 2000 | E8: 2000 | F8: 2000 | G8: 2000 | H8: 2000 | I8: 3300 | J8: 3300 | K8: 3300 | L8: 3300 | M8: 3300 | N8: 3300 | O8: 3300 | P8: 3300 | Q8: 3300 | R8: 3300 | S8: 3300 | T8: 3300 | U8: 4200 | V8: 4200 | W8: 4200 | X8: 4200 | Y8: 4200 | Z8: 4200 | AA8: 4200 | AB8: 4200 | AC8: 4200 | AD8: 4200 | AE8: 4200 | AF8: 4200 | AG8: 4200 | AH8: 4200 | AI8: 4200 | AJ8: 4200 | AK8: 6000 | AL8: 6000 | AM8: 6000 | AN8: 6000 | AO8: 6000 | AP8: 6000 | AQ8: 6000 | AR8: 6000 | AS8: 6000 | AT8: 6000 | AU8: 6000 | AV8: 6000 | AW8: 6000 | AX8: 6000 | AY8: 6000 | AZ8: 6000 | BA8: 6000 | BB8: 6000 | BC8: 6000 | BD8: 6000 | BE8: 6000 | BF8: 6000 | BG8: 6000 | BH8: 6000 | BI8: 6000 | BJ8: 6000 | BK8: 6000 | BL8: 6000 | BM8: 6000 | BN8: 6000 | BO8: 7000 | BP8: 7000 | BQ8: 7000 | BR8: 7000 | BS8: 7000 | BT8: 7000 | BU8: 7000 | BV8: 7000 | BW8: 7000 | BX8: 7000 | BY8: 7000 | BZ8: 7000 | CA8: 7000 | CB8: 7000 | CC8: 7000 | CD8: 7000 | CE8: 7000 | CF8: 7000 | CG8: 7000 | CH8: 7000 | CI8: 7000 | CJ8: 7000 | CK8: 7000 | CL8: 7000 | CM8: 7000 | CN8: 7000 | CO8: 7000 | CP8: 7000 | CQ8: 7000 | CR8: 7000 | CS8: 7000 | CT8: 7000 | CU8: 7000 | CV8: 7000 | CW8: 7000 | CX8: 7000 | CY8: 7000 | CZ8: 7000 | DA8: 7000 | DB8: 7000 | DC8: 7000 | DD8: 7000 | DE8: 7000 | DF8: 7000 | DG8: 7000 | DH8: 7000 | DI8: 7000 | DJ8: 7000 | DK8: 7000 | DL8: 7000 | DM8: 7000 | DN8: 7000 | DO8: 7000 | DP8: 7000 | DQ8: 7000 | DR8: 7000 | DS8: 7000 | DT8: 7000 | DU8: 7000 | DV8: 7000 | DW8: 7000 | DX8: 7000 | DY8: 7000 | DZ8: 7000 | EA8: 7000 | EB8: 7000 | EC8: 7000 | ED8: 7000 | EE8: 7000 | EF8: 7000 | EG8: 7000 | EH8: 7000 | EI8: 7000 | EJ8: 7000 | EK8: 7000 | EL8: 7000 | EM8: 7000 | EN8: 7000 | EO8: 7000 | EP8: 7000 | EQ8: 7000 | ER8: 7000 | ES8: 7000 | ET8: 7000 | EU8: 7000 | EV8: 7000 | EW8: 7000 | EX8: 7000 | EY8: 7000 | EZ8: 7000 | FA8: 7000 | FB8: 7000 | FC8: 7000 | FD8: 7000 | FE8: 7000 | FF8: 7000 | FG8: 7000 | FH8: 7000 | FI8: 7000 | FJ8: 7000 | FK8: 7000 | FL8: 7000 | FM8: 7000 | FN8: 7000 | FO8: 7000 | FP8: 7000 | FQ8: 7000 | FR8: 7000 | FS8: 7000 | FT8: 7000 | FU8: 7000 | FV8: 7000 | FW8: 7000 | FX8: 7000 | FY8: 7000 | FZ8: 7000 | GA8: 7000 | GB8: 7000 | GC8: 7000 | GD8: 7000 | GE8: 7000 | GF8: 7000 | GG8: 7000 | GH8: 7000 | GI8: 7000 | GJ8: 7000 | GK8: 7000 | GL8: 7000 | GM8: 7000
A9: 4 | B9: 1 | C9: 3 | D9: 2000 | E9: 2000 | F9: 2000 | G9: 2000 | H9: 2000 | I9: 3300 | J9: 3300 | K9: 3300 | L9: 3300 | M9: 3300 | N9: 3300 | O9: 3300 | P9: 3300 | Q9: 3300 | R9: 3300 | S9: 3300 | T9: 3300 | U9: 4400 | V9: 4400 | W9: 4400 | X9: 4400 | Y9: 4400 | Z9: 4400 | AA9: 4400 | AB9: 4400 | AC9: 4400 | AD9: 4400 | AE9: 4400 | AF9: 4400 | AG9: 4400 | AH9: 4400 | AI9: 4400 | AJ9: 4400 | AK9: 6000 | AL9: 6000 | AM9: 6000 | AN9: 6000 | AO9: 6000 | AP9: 6000 | AQ9: 6000 | AR9: 6000 | AS9: 6000 | AT9: 6000 | AU9: 6000 | AV9: 6000 | AW9: 6000 | AX9: 6000 | AY9: 6000 | AZ9: 6000 | BA9: 6000 | BB9: 6000 | BC9: 6000 | BD9: 6000 | BE9: 6000 | BF9: 6000 | BG9: 6000 | BH9: 6000 | BI9: 6000 | BJ9: 6000 | BK9: 6000 | BL9: 6000 | BM9: 6000 | BN9: 6000 | BO9: 7000 | BP9: 7000 | BQ9: 7000 | BR9: 7000 | BS9: 7000 | BT9: 7000 | BU9: 7000 | BV9: 7000 | BW9: 7000 | BX9: 7000 | BY9: 7000 | BZ9: 7000 | CA9: 7000 | CB9: 7000 | CC9: 7000 | CD9: 7000 | CE9: 7000 | CF9: 7000 | CG9: 7000 | CH9: 7000 | CI9: 7000 | CJ9: 7000 | CK9: 7000 | CL9: 7000 | CM9: 7000 | CN9: 7000 | CO9: 7000 | CP9: 7000 | CQ9: 7000 | CR9: 7000 | CS9: 7000 | CT9: 7000 | CU9: 7000 | CV9: 7000 | CW9: 7000 | CX9: 7000 | CY9: 7000 | CZ9: 7000 | DA9: 7000 | DB9: 7000 | DC9: 7000 | DD9: 7000 | DE9: 7000 | DF9: 7000 | DG9: 7000 | DH9: 7000 | DI9: 7000 | DJ9: 7000 | DK9: 7000 | DL9: 7000 | DM9: 7000 | DN9: 7000 | DO9: 7000 | DP9: 7000 | DQ9: 7000 | DR9: 7000 | DS9: 7000 | DT9: 7000 | DU9: 7000 | DV9: 7000 | DW9: 7000 | DX9: 7000 | DY9: 7000 | DZ9: 7000 | EA9: 7000 | EB9: 7000 | EC9: 7000 | ED9: 7000 | EE9: 7000 | EF9: 7000 | EG9: 7000 | EH9: 7000 | EI9: 7000 | EJ9: 7000 | EK9: 7000 | EL9: 7000 | EM9: 7000 | EN9: 7000 | EO9: 7000 | EP9: 7000 | EQ9: 7000 | ER9: 7000 | ES9: 7000 | ET9: 7000 | EU9: 7000 | EV9: 7000 | EW9: 7000 | EX9: 7000 | EY9: 7000 | EZ9: 7000 | FA9: 7000 | FB9: 7000 | FC9: 7000 | FD9: 7000 | FE9: 7000 | FF9: 7000 | FG9: 7000 | FH9: 7000 | FI9: 7000 | FJ9: 7000 | FK9: 7000 | FL9: 7000 | FM9: 7000 | FN9: 7000 | FO9: 7000 | FP9: 7000 | FQ9: 7000 | FR9: 7000 | FS9: 7000 | FT9: 7000 | FU9: 7000 | FV9: 7000 | FW9: 7000 | FX9: 7000 | FY9: 7000 | FZ9: 7000 | GA9: 7000 | GB9: 7000 | GC9: 7000 | GD9: 7000 | GE9: 7000 | GF9: 7000 | GG9: 7000 | GH9: 7000 | GI9: 7000 | GJ9: 7000 | GK9: 7000 | GL9: 7000 | GM9: 7000
A10: 1 | B10: 1 | C10: 5 | D10: 0 | E10: 0 | F10: 0 | G10: 0 | H10: 0 | I10: 0 | J10: 0 | K10: 0 | L10: 0 | M10: 0 | N10: 0 | O10: 0 | P10: 0 | Q10: 0 | R10: 0 | S10: 0 | T10: 0 | U10: 0 | V10: 0 | W10: 0 | X10: 0 | Y10: 0 | Z10: 0 | AA10: 0 | AB10: 0 | AC10: 0 | AD10: 0 | AE10: 0 | AF10: 0 | AG10: 0 | AH10: 0 | AI10: 0 | AJ10: 0 | AK10: 0 | AL10: 0 | AM10: 0 | AN10: 0 | AO10: 0 | AP10: 0 | AQ10: 0 | AR10: 0 | AS10: 0 | AT10: 0 | AU10: 0 | AV10: 0 | AW10: 0 | AX10: 0 | AY10: 0 | AZ10: 0 | BA10: 0 | BB10: 0 | BC10: 0 | BD10: 0 | BE10: 0 | BF10: 0 | BG10: 0 | BH10: 0 | BI10: 0 | BJ10: 0 | BK10: 0 | BL10: 0 | BM10: 0 | BN10: 0 | BO10: 0 | BP10: 0 | BQ10: 0 | BR10: 0 | BS10: 0 | BT10: 0 | BU10: 0 | BV10: 0 | BW10: 0 | BX10: 0 | BY10: 0 | BZ10: 0 | CA10: 0 | CB10: 0 | CC10: 0 | CD10: 0 | CE10: 0 | CF10: 0 | CG10: 0 | CH10: 0 | CI10: 0 | CJ10: 0 | CK10: 0 | CL10: 0 | CM10: 0 | CN10: 0 | CO10: 0 | CP10: 0 | CQ10: 0 | CR10: 0 | CS10: 0 | CT10: 0 | CU10: 0 | CV10: 0 | CW10: 0 | CX10: 0 | CY10: 0 | CZ10: 0 | DA10: 0 | DB10: 0 | DC10: 0 | DD10: 0 | DE10: 0 | DF10: 0 | DG10: 0 | DH10: 0 | DI10: 0 | DJ10: 0 | DK10: 0 | DL10: 0 | DM10: 0 | DN10: 0 | DO10: 0 | DP10: 0 | DQ10: 0 | DR10: 0 | DS10: 0 | DT10: 0 | DU10: 0 | DV10: 0 | DW10: 0 | DX10: 0 | DY10: 0 | DZ10: 0 | EA10: 0 | EB10: 0 | EC10: 0 | ED10: 0 | EE10: 0 | EF10: 0 | EG10: 0 | EH10: 0 | EI10: 0 | EJ10: 0 | EK10: 0 | EL10: 0 | EM10: 0 | EN10: 0 | EO10: 0 | EP10: 0 | EQ10: 0 | ER10: 0 | ES10: 0 | ET10: 0 | EU10: 0 | EV10: 0 | EW10: 0 | EX10: 0 | EY10: 0 | EZ10: 0 | FA10: 0 | FB10: 0 | FC10: 0 | FD10: 0 | FE10: 0 | FF10: 0 | FG10: 0 | FH10: 0 | FI10: 0 | FJ10: 0 | FK10: 0 | FL10: 0 | FM10: 0 | FN10: 0 | FO10: 0 | FP10: 0 | FQ10: 0 | FR10: 0 | FS10: 0 | FT10: 0 | FU10: 0 | FV10: 0 | FW10: 0 | FX10: 0 | FY10: 0 | FZ10: 0 | GA10: 0 | GB10: 0 | GC10: 0 | GD10: 0 | GE10: 0 | GF10: 0 | GG10: 0 | GH10: 0 | GI10: 0 | GJ10: 0 | GK10: 0 | GL10: 0 | GM10: 0
A11: 2 | B11: 1 | C11: 5 | D11: 0 | E11: 0 | F11: 0 | G11: 0 | H11: 0 | I11: 0 | J11: 0 | K11: 0 | L11: 0 | M11: 0 | N11: 0 | O11: 0 | P11: 0 | Q11: 0 | R11: 0 | S11: 0 | T11: 0 | U11: 0 | V11: 0 | W11: 0 | X11: 0 | Y11: 0 | Z11: 0 | AA11: 0 | AB11: 0 | AC11: 0 | AD11: 0 | AE11: 0 | AF11: 0 | AG11: 0 | AH11: 0 | AI11: 0 | AJ11: 0 | AK11: 0 | AL11: 0 | AM11: 0 | AN11: 0 | AO11: 0 | AP11: 0 | AQ11: 0 | AR11: 0 | AS11: 0 | AT11: 0 | AU11: 0 | AV11: 0 | AW11: 0 | AX11: 0 | AY11: 0 | AZ11: 0 | BA11: 0 | BB11: 0 | BC11: 0 | BD11: 0 | BE11: 0 | BF11: 0 | BG11: 0 | BH11: 0 | BI11: 0 | BJ11: 0 | BK11: 0 | BL11: 0 | BM11: 0 | BN11: 0 | BO11: 0 | BP11: 0 | BQ11: 0 | BR11: 0 | BS11: 0 | BT11: 0 | BU11: 0 | BV11: 0 | BW11: 0 | BX11: 0 | BY11: 0 | BZ11: 0 | CA11: 0 | CB11: 0 | CC11: 0 | CD11: 0 | CE11: 0 | CF11: 0 | CG11: 0 | CH11: 0 | CI11: 0 | CJ11: 0 | CK11: 0 | CL11: 0 | CM11: 0 | CN11: 0 | CO11: 0 | CP11: 0 | CQ11: 0 | CR11: 0 | CS11: 0 | CT11: 0 | CU11: 0 | CV11: 0 | CW11: 0 | CX11: 0 | CY11: 0 | CZ11: 0 | DA11: 0 | DB11: 0 | DC11: 0 | DD11: 0 | DE11: 0 | DF11: 0 | DG11: 0 | DH11: 0 | DI11: 0 | DJ11: 0 | DK11: 0 | DL11: 0 | DM11: 0 | DN11: 0 | DO11: 0 | DP11: 0 | DQ11: 0 | DR11: 0 | DS11: 0 | DT11: 0 | DU11: 0 | DV11: 0 | DW11: 0 | DX11: 0 | DY11: 0 | DZ11: 0 | EA11: 0 | EB11: 0 | EC11: 0 | ED11: 0 | EE11: 0 | EF11: 0 | EG11: 0 | EH11: 0 | EI11: 0 | EJ11: 0 | EK11: 0 | EL11: 0 | EM11: 0 | EN11: 0 | EO11: 0 | EP11: 0 | EQ11: 0 | ER11: 0 | ES11: 0 | ET11: 0 | EU11: 0 | EV11: 0 | EW11: 0 | EX11: 0 | EY11: 0 | EZ11: 0 | FA11: 0 | FB11: 0 | FC11: 0 | FD11: 0 | FE11: 0 | FF11: 0 | FG11: 0 | FH11: 0 | FI11: 0 | FJ11: 0 | FK11: 0 | FL11: 0 | FM11: 0 | FN11: 0 | FO11: 0 | FP11: 0 | FQ11: 0 | FR11: 0 | FS11: 0 | FT11: 0 | FU11: 0 | FV11: 0 | FW11: 0 | FX11: 0 | FY11: 0 | FZ11: 0 | GA11: 0 | GB11: 0 | GC11: 0 | GD11: 0 | GE11: 0 | GF11: 0 | GG11: 0 | GH11: 0 | GI11: 0 | GJ11: 0 | GK11: 0 | GL11: 0 | GM11: 0
A12: 3 | B12: 1 | C12: 5 | D12: 0 | E12: 0 | F12: 0 | G12: 0 | H12: 0 | I12: 0 | J12: 0 | K12: 0 | L12: 0 | M12: 0 | N12: 0 | O12: 0 | P12: 0 | Q12: 0 | R12: 0 | S12: 0 | T12: 0 | U12: 0 | V12: 0 | W12: 0 | X12: 0 | Y12: 0 | Z12: 0 | AA12: 0 | AB12: 0 | AC12: 0 | AD12: 0 | AE12: 0 | AF12: 0 | AG12: 0 | AH12: 0 | AI12: 0 | AJ12: 0 | AK12: 0 | AL12: 0 | AM12: 0 | AN12: 0 | AO12: 0 | AP12: 0 | AQ12: 0 | AR12: 0 | AS12: 0 | AT12: 0 | AU12: 0 | AV12: 0 | AW12: 0 | AX12: 0 | AY12: 0 | AZ12: 0 | BA12: 0 | BB12: 0 | BC12: 0 | BD12: 0 | BE12: 0 | BF12: 0 | BG12: 0 | BH12: 0 | BI12: 0 | BJ12: 0 | BK12: 0 | BL12: 0 | BM12: 0 | BN12: 0 | BO12: 0 | BP12: 0 | BQ12: 0 | BR12: 0 | BS12: 0 | BT12: 0 | BU12: 0 | BV12: 0 | BW12: 0 | BX12: 0 | BY12: 0 | BZ12: 0 | CA12: 0 | CB12: 0 | CC12: 0 | CD12: 0 | CE12: 0 | CF12: 0 | CG12: 0 | CH12: 0 | CI12: 0 | CJ12: 0 | CK12: 0 | CL12: 0 | CM12: 0 | CN12: 0 | CO12: 0 | CP12: 0 | CQ12: 0 | CR12: 0 | CS12: 0 | CT12: 0 | CU12: 0 | CV12: 0 | CW12: 0 | CX12: 0 | CY12: 0 | CZ12: 0 | DA12: 0 | DB12: 0 | DC12: 0 | DD12: 0 | DE12: 0 | DF12: 0 | DG12: 0 | DH12: 0 | DI12: 0 | DJ12: 0 | DK12: 0 | DL12: 0 | DM12: 0 | DN12: 0 | DO12: 0 | DP12: 0 | DQ12: 0 | DR12: 0 | DS12: 0 | DT12: 0 | DU12: 0 | DV12: 0 | DW12: 0 | DX12: 0 | DY12: 0 | DZ12: 0 | EA12: 0 | EB12: 0 | EC12: 0 | ED12: 0 | EE12: 0 | EF12: 0 | EG12: 0 | EH12: 0 | EI12: 0 | EJ12: 0 | EK12: 0 | EL12: 0 | EM12: 0 | EN12: 0 | EO12: 0 | EP12: 0 | EQ12: 0 | ER12: 0 | ES12: 0 | ET12: 0 | EU12: 0 | EV12: 0 | EW12: 0 | EX12: 0 | EY12: 0 | EZ12: 0 | FA12: 0 | FB12: 0 | FC12: 0 | FD12: 0 | FE12: 0 | FF12: 0 | FG12: 0 | FH12: 0 | FI12: 0 | FJ12: 0 | FK12: 0 | FL12: 0 | FM12: 0 | FN12: 0 | FO12: 0 | FP12: 0 | FQ12: 0 | FR12: 0 | FS12: 0 | FT12: 0 | FU12: 0 | FV12: 0 | FW12: 0 | FX12: 0 | FY12: 0 | FZ12: 0 | GA12: 0 | GB12: 0 | GC12: 0 | GD12: 0 | GE12: 0 | GF12: 0 | GG12: 0 | GH12: 0 | GI12: 0 | GJ12: 0 | GK12: 0 | GL12: 0 | GM12: 0
A13: 4 | B13: 1 | C13: 5 | D13: 0 | E13: 0 | F13: 0 | G13: 0 | H13: 0 | I13: 0 | J13: 0 | K13: 0 | L13: 0 | M13: 0 | N13: 0 | O13: 0 | P13: 0 | Q13: 0 | R13: 0 | S13: 0 | T13: 0 | U13: 0 | V13: 0 | W13: 0 | X13: 0 | Y13: 0 | Z13: 0 | AA13: 0 | AB13: 0 | AC13: 0 | AD13: 0 | AE13: 0 | AF13: 0 | AG13: 0 | AH13: 0 | AI13: 0 | AJ13: 0 | AK13: 0 | AL13: 0 | AM13: 0 | AN13: 0 | AO13: 0 | AP13: 0 | AQ13: 0 | AR13: 0 | AS13: 0 | AT13: 0 | AU13: 0 | AV13: 0 | AW13: 0 | AX13: 0 | AY13: 0 | AZ13: 0 | BA13: 0 | BB13: 0 | BC13: 0 | BD13: 0 | BE13: 0 | BF13: 0 | BG13: 0 | BH13: 0 | BI13: 0 | BJ13: 0 | BK13: 0 | BL13: 0 | BM13: 0 | BN13: 0 | BO13: 0 | BP13: 0 | BQ13: 0 | BR13: 0 | BS13: 0 | BT13: 0 | BU13: 0 | BV13: 0 | BW13: 0 | BX13: 0 | BY13: 0 | BZ13: 0 | CA13: 0 | CB13: 0 | CC13: 0 | CD13: 0 | CE13: 0 | CF13: 0 | CG13: 0 | CH13: 0 | CI13: 0 | CJ13: 0 | CK13: 0 | CL13: 0 | CM13: 0 | CN13: 0 | CO13: 0 | CP13: 0 | CQ13: 0 | CR13: 0 | CS13: 0 | CT13: 0 | CU13: 0 | CV13: 0 | CW13: 0 | CX13: 0 | CY13: 0 | CZ13: 0 | DA13: 0 | DB13: 0 | DC13: 0 | DD13: 0 | DE13: 0 | DF13: 0 | DG13: 0 | DH13: 0 | DI13: 0 | DJ13: 0 | DK13: 0 | DL13: 0 | DM13: 0 | DN13: 0 | DO13: 0 | DP13: 0 | DQ13: 0 | DR13: 0 | DS13: 0 | DT13: 0 | DU13: 0 | DV13: 0 | DW13: 0 | DX13: 0 | DY13: 0 | DZ13: 0 | EA13: 0 | EB13: 0 | EC13: 0 | ED13: 0 | EE13: 0 | EF13: 0 | EG13: 0 | EH13: 0 | EI13: 0 | EJ13: 0 | EK13: 0 | EL13: 0 | EM13: 0 | EN13: 0 | EO13: 0 | EP13: 0 | EQ13: 0 | ER13: 0 | ES13: 0 | ET13: 0 | EU13: 0 | EV13: 0 | EW13: 0 | EX13: 0 | EY13: 0 | EZ13: 0 | FA13: 0 | FB13: 0 | FC13: 0 | FD13: 0 | FE13: 0 | FF13: 0 | FG13: 0 | FH13: 0 | FI13: 0 | FJ13: 0 | FK13: 0 | FL13: 0 | FM13: 0 | FN13: 0 | FO13: 0 | FP13: 0 | FQ13: 0 | FR13: 0 | FS13: 0 | FT13: 0 | FU13: 0 | FV13: 0 | FW13: 0 | FX13: 0 | FY13: 0 | FZ13: 0 | GA13: 0 | GB13: 0 | GC13: 0 | GD13: 0 | GE13: 0 | GF13: 0 | GG13: 0 | GH13: 0 | GI13: 0 | GJ13: 0 | GK13: 0 | GL13: 0 | GM13: 0
A14: 1 | B14: 1 | C14: 6 | D14: 440 | E14: 440 | F14: 440 | G14: 440 | H14: 440 | I14: 440 | J14: 440 | K14: 440 | L14: 440 | M14: 440 | N14: 440 | O14: 440 | P14: 440 | Q14: 440 | R14: 440 | S14: 440 | T14: 440 | U14: 440 | V14: 440 | W14: 440 | X14: 440 | Y14: 440 | Z14: 440 | AA14: 440 | AB14: 440 | AC14: 440 | AD14: 440 | AE14: 440 | AF14: 440 | AG14: 440 | AH14: 440 | AI14: 440 | AJ14: 440 | AK14: 440 | AL14: 440 | AM14: 440 | AN14: 440 | AO14: 440 | AP14: 440 | AQ14: 440 | AR14: 440 | AS14: 440 | AT14: 440 | AU14: 440 | AV14: 440 | AW14: 440 | AX14: 440 | AY14: 440 | AZ14: 440 | BA14: 440 | BB14: 440 | BC14: 440 | BD14: 440 | BE14: 440 | BF14: 440 | BG14: 440 | BH14: 440 | BI14: 440 | BJ14: 440 | BK14: 440 | BL14: 440 | BM14: 440 | BN14: 440 | BO14: 440 | BP14: 440 | BQ14: 440 | BR14: 440 | BS14: 440 | BT14: 440 | BU14: 440 | BV14: 440 | BW14: 440 | BX14: 440 | BY14: 440 | BZ14: 440 | CA14: 440 | CB14: 440 | CC14: 440 | CD14: 440 | CE14: 440 | CF14: 440 | CG14: 440 | CH14: 440 | CI14: 440 | CJ14: 440 | CK14: 440 | CL14: 440 | CM14: 440 | CN14: 440 | CO14: 440 | CP14: 440 | CQ14: 440 | CR14: 440 | CS14: 440 | CT14: 440 | CU14: 440 | CV14: 440 | CW14: 440 | CX14: 440 | CY14: 440 | CZ14: 440 | DA14: 440 | DB14: 440 | DC14: 440 | DD14: 440 | DE14: 440 | DF14: 440 | DG14: 440 | DH14: 440 | DI14: 440 | DJ14: 440 | DK14: 440 | DL14: 440 | DM14: 440 | DN14: 440 | DO14: 440 | DP14: 440 | DQ14: 440 | DR14: 440 | DS14: 440 | DT14: 440 | DU14: 440 | DV14: 440 | DW14: 440 | DX14: 440 | DY14: 440 | DZ14: 440 | EA14: 440 | EB14: 440 | EC14: 440 | ED14: 440 | EE14: 440 | EF14: 440 | EG14: 440 | EH14: 440 | EI14: 440 | EJ14: 440 | EK14: 440 | EL14: 440 | EM14: 440 | EN14: 440 | EO14: 440 | EP14: 440 | EQ14: 440 | ER14: 440 | ES14: 440 | ET14: 440 | EU14: 440 | EV14: 440 | EW14: 440 | EX14: 440 | EY14: 440 | EZ14: 440 | FA14: 440 | FB14: 440 | FC14: 440 | FD14: 440 | FE14: 440 | FF14: 440 | FG14: 440 | FH14: 440 | FI14: 440 | FJ14: 440 | FK14: 440 | FL14: 440 | FM14: 440 | FN14: 440 | FO14: 440 | FP14: 440 | FQ14: 440 | FR14: 440 | FS14: 440 | FT14: 440 | FU14: 440 | FV14: 440 | FW14: 440 | FX14: 440 | FY14: 440 | FZ14: 440 | GA14: 440 | GB14: 440 | GC14: 440 | GD14: 440 | GE14: 440 | GF14: 440 | GG14: 440 | GH14: 440 | GI14: 440 | GJ14: 440 | GK14: 440 | GL14: 440 | GM14: 440
A15: 2 | B15: 1 | C15: 6 | D15: 440 | E15: 440 | F15: 440 | G15: 440 | H15: 440 | I15: 440 | J15: 440 | K15: 440 | L15: 440 | M15: 440 | N15: 440 | O15: 440 | P15: 440 | Q15: 440 | R15: 440 | S15: 440 | T15: 440 | U15: 440 | V15: 440 | W15: 440 | X15: 440 | Y15: 440 | Z15: 440 | AA15: 440 | AB15: 440 | AC15: 440 | AD15: 440 | AE15: 440 | AF15: 440 | AG15: 440 | AH15: 440 | AI15: 440 | AJ15: 440 | AK15: 440 | AL15: 440 | AM15: 440 | AN15: 440 | AO15: 440 | AP15: 440 | AQ15: 440 | AR15: 440 | AS15: 440 | AT15: 440 | AU15: 440 | AV15: 440 | AW15: 440 | AX15: 440 | AY15: 440 | AZ15: 440 | BA15: 440 | BB15: 440 | BC15: 440 | BD15: 440 | BE15: 440 | BF15: 440 | BG15: 440 | BH15: 440 | BI15: 440 | BJ15: 440 | BK15: 440 | BL15: 440 | BM15: 440 | BN15: 440 | BO15: 440 | BP15: 440 | BQ15: 440 | BR15: 440 | BS15: 440 | BT15: 440 | BU15: 440 | BV15: 440 | BW15: 440 | BX15: 440 | BY15: 440 | BZ15: 440 | CA15: 440 | CB15: 440 | CC15: 440 | CD15: 440 | CE15: 440 | CF15: 440 | CG15: 440 | CH15: 440 | CI15: 440 | CJ15: 440 | CK15: 440 | CL15: 440 | CM15: 440 | CN15: 440 | CO15: 440 | CP15: 440 | CQ15: 440 | CR15: 440 | CS15: 440 | CT15: 440 | CU15: 440 | CV15: 440 | CW15: 440 | CX15: 440 | CY15: 440 | CZ15: 440 | DA15: 440 | DB15: 440 | DC15: 440 | DD15: 440 | DE15: 440 | DF15: 440 | DG15: 440 | DH15: 440 | DI15: 440 | DJ15: 440 | DK15: 440 | DL15: 440 | DM15: 440 | DN15: 440 | DO15: 440 | DP15: 440 | DQ15: 440 | DR15: 440 | DS15: 440 | DT15: 440 | DU15: 440 | DV15: 440 | DW15: 440 | DX15: 440 | DY15: 440 | DZ15: 440 | EA15: 440 | EB15: 440 | EC15: 440 | ED15: 440 | EE15: 440 | EF15: 440 | EG15: 440 | EH15: 440 | EI15: 440 | EJ15: 440 | EK15: 440 | EL15: 440 | EM15: 440 | EN15: 440 | EO15: 440 | EP15: 440 | EQ15: 440 | ER15: 440 | ES15: 440 | ET15: 440 | EU15: 440 | EV15: 440 | EW15: 440 | EX15: 440 | EY15: 440 | EZ15: 440 | FA15: 440 | FB15: 440 | FC15: 440 | FD15: 440 | FE15: 440 | FF15: 440 | FG15: 440 | FH15: 440 | FI15: 440 | FJ15: 440 | FK15: 440 | FL15: 440 | FM15: 440 | FN15: 440 | FO15: 440 | FP15: 440 | FQ15: 440 | FR15: 440 | FS15: 440 | FT15: 440 | FU15: 440 | FV15: 440 | FW15: 440 | FX15: 440 | FY15: 440 | FZ15: 440 | GA15: 440 | GB15: 440 | GC15: 440 | GD15: 440 | GE15: 440 | GF15: 440 | GG15: 440 | GH15: 440 | GI15: 440 | GJ15: 440 | GK15: 440 | GL15: 440 | GM15: 440
A16: 3 | B16: 1 | C16: 6 | D16: 440 | E16: 440 | F16: 440 | G16: 440 | H16: 440 | I16: 440 | J16: 440 | K16: 440 | L16: 440 | M16: 440 | N16: 440 | O16: 440 | P16: 440 | Q16: 440 | R16: 440 | S16: 440 | T16: 440 | U16: 440 | V16: 440 | W16: 440 | X16: 440 | Y16: 440 | Z16: 440 | AA16: 440 | AB16: 440 | AC16: 440 | AD16: 440 | AE16: 440 | AF16: 440 | AG16: 440 | AH16: 440 | AI16: 440 | AJ16: 440 | AK16: 440 | AL16: 440 | AM16: 440 | AN16: 440 | AO16: 440 | AP16: 440 | AQ16: 440 | AR16: 440 | AS16: 440 | AT16: 440 | AU16: 440 | AV16: 440 | AW16: 440 | AX16: 440 | AY16: 440 | AZ16: 440 | BA16: 440 | BB16: 440 | BC16: 440 | BD16: 440 | BE16: 440 | BF16: 440 | BG16: 440 | BH16: 440 | BI16: 440 | BJ16: 440 | BK16: 440 | BL16: 440 | BM16: 440 | BN16: 440 | BO16: 440 | BP16: 440 | BQ16: 440 | BR16: 440 | BS16: 440 | BT16: 440 | BU16: 440 | BV16: 440 | BW16: 440 | BX16: 440 | BY16: 440 | BZ16: 440 | CA16: 440 | CB16: 440 | CC16: 440 | CD16: 440 | CE16: 440 | CF16: 440 | CG16: 440 | CH16: 440 | CI16: 440 | CJ16: 440 | CK16: 440 | CL16: 440 | CM16: 440 | CN16: 440 | CO16: 440 | CP16: 440 | CQ16: 440 | CR16: 440 | CS16: 440 | CT16: 440 | CU16: 440 | CV16: 440 | CW16: 440 | CX16: 440 | CY16: 440 | CZ16: 440 | DA16: 440 | DB16: 440 | DC16: 440 | DD16: 440 | DE16: 440 | DF16: 440 | DG16: 440 | DH16: 440 | DI16: 440 | DJ16: 440 | DK16: 440 | DL16: 440 | DM16: 440 | DN16: 440 | DO16: 440 | DP16: 440 | DQ16: 440 | DR16: 440 | DS16: 440 | DT16: 440 | DU16: 440 | DV16: 440 | DW16: 440 | DX16: 440 | DY16: 440 | DZ16: 440 | EA16: 440 | EB16: 440 | EC16: 440 | ED16: 440 | EE16: 440 | EF16: 440 | EG16: 440 | EH16: 440 | EI16: 440 | EJ16: 440 | EK16: 440 | EL16: 440 | EM16: 440 | EN16: 440 | EO16: 440 | EP16: 440 | EQ16: 440 | ER16: 440 | ES16: 440 | ET16: 440 | EU16: 440 | EV16: 440 | EW16: 440 | EX16: 440 | EY16: 440 | EZ16: 440 | FA16: 440 | FB16: 440 | FC16: 440 | FD16: 440 | FE16: 440 | FF16: 440 | FG16: 440 | FH16: 440 | FI16: 440 | FJ16: 440 | FK16: 440 | FL16: 440 | FM16: 440 | FN16: 440 | FO16: 440 | FP16: 440 | FQ16: 440 | FR16: 440 | FS16: 440 | FT16: 440 | FU16: 440 | FV16: 440 | FW16: 440 | FX16: 440 | FY16: 440 | FZ16: 440 | GA16: 440 | GB16: 440 | GC16: 440 | GD16: 440 | GE16: 440 | GF16: 440 | GG16: 440 | GH16: 440 | GI16: 440 | GJ16: 440 | GK16: 440 | GL16: 440 | GM16: 440
A17: 4 | B17: 1 | C17: 6 | D17: 440 | E17: 440 | F17: 440 | G17: 440 | H17: 440 | I17: 440 | J17: 440 | K17: 440 | L17: 440 | M17: 440 | N17: 440 | O17: 440 | P17: 440 | Q17: 440 | R17: 440 | S17: 440 | T17: 440 | U17: 440 | V17: 440 | W17: 440 | X17: 440 | Y17: 440 | Z17: 440 | AA17: 440 | AB17: 440 | AC17: 440 | AD17: 440 | AE17: 440 | AF17: 440 | AG17: 440 | AH17: 440 | AI17: 440 | AJ17: 440 | AK17: 440 | AL17: 440 | AM17: 440 | AN17: 440 | AO17: 440 | AP17: 440 | AQ17: 440 | AR17: 440 | AS17: 440 | AT17: 440 | AU17: 440 | AV17: 440 | AW17: 440 | AX17: 440 | AY17: 440 | AZ17: 440 | BA17: 440 | BB17: 440 | BC17: 440 | BD17: 440 | BE17: 440 | BF17: 440 | BG17: 440 | BH17: 440 | BI17: 440 | BJ17: 440 | BK17: 440 | BL17: 440 | BM17: 440 | BN17: 440 | BO17: 440 | BP17: 440 | BQ17: 440 | BR17: 440 | BS17: 440 | BT17: 440 | BU17: 440 | BV17: 440 | BW17: 440 | BX17: 440 | BY17: 440 | BZ17: 440 | CA17: 440 | CB17: 440 | CC17: 440 | CD17: 440 | CE17: 440 | CF17: 440 | CG17: 440 | CH17: 440 | CI17: 440 | CJ17: 440 | CK17: 440 | CL17: 440 | CM17: 440 | CN17: 440 | CO17: 440 | CP17: 440 | CQ17: 440 | CR17: 440 | CS17: 440 | CT17: 440 | CU17: 440 | CV17: 440 | CW17: 440 | CX17: 440 | CY17: 440 | CZ17: 440 | DA17: 440 | DB17: 440 | DC17: 440 | DD17: 440 | DE17: 440 | DF17: 440 | DG17: 440 | DH17: 440 | DI17: 440 | DJ17: 440 | DK17: 440 | DL17: 440 | DM17: 440 | DN17: 440 | DO17: 440 | DP17: 440 | DQ17: 440 | DR17: 440 | DS17: 440 | DT17: 440 | DU17: 440 | DV17: 440 | DW17: 440 | DX17: 440 | DY17: 440 | DZ17: 440 | EA17: 440 | EB17: 440 | EC17: 440 | ED17: 440 | EE17: 440 | EF17: 440 | EG17: 440 | EH17: 440 | EI17: 440 | EJ17: 440 | EK17: 440 | EL17: 440 | EM17: 440 | EN17: 440 | EO17: 440 | EP17: 440 | EQ17: 440 | ER17: 440 | ES17: 440 | ET17: 440 | EU17: 440 | EV17: 440 | EW17: 440 | EX17: 440 | EY17: 440 | EZ17: 440 | FA17: 440 | FB17: 440 | FC17: 440 | FD17: 440 | FE17: 440 | FF17: 440 | FG17: 440 | FH17: 440 | FI17: 440 | FJ17: 440 | FK17: 440 | FL17: 440 | FM17: 440 | FN17: 440 | FO17: 440 | FP17: 440 | FQ17: 440 | FR17: 440 | FS17: 440 | FT17: 440 | FU17: 440 | FV17: 440 | FW17: 440 | FX17: 440 | FY17: 440 | FZ17: 440 | GA17: 440 | GB17: 440 | GC17: 440 | GD17: 440 | GE17: 440 | GF17: 440 | GG17: 440 | GH17: 440 | GI17: 440 | GJ17: 440 | GK17: 440 | GL17: 440 | GM17: 440
A18: 1 | B18: 1 | C18: 9 | D18: 0 | E18: 0 | F18: 0 | G18: 0 | H18: 0 | I18: 0 | J18: 0 | K18: 0 | L18: 0 | M18: 0 | N18: 0 | O18: 0 | P18: 0 | Q18: 0 | R18: 0 | S18: 0 | T18: 0 | U18: 0 | V18: 0 | W18: 0 | X18: 0 | Y18: 0 | Z18: 0 | AA18: 0 | AB18: 0 | AC18: 0 | AD18: 0 | AE18: 0 | AF18: 0 | AG18: 0 | AH18: 0 | AI18: 0 | AJ18: 0 | AK18: 0 | AL18: 0 | AM18: 0 | AN18: 0 | AO18: 0 | AP18: 0 | AQ18: 0 | AR18: 0 | AS18: 0 | AT18: 0 | AU18: 0 | AV18: 0 | AW18: 0 | AX18: 0 | AY18: 0 | AZ18: 0 | BA18: 0 | BB18: 0 | BC18: 0 | BD18: 0 | BE18: 0 | BF18: 0 | BG18: 0 | BH18: 0 | BI18: 0 | BJ18: 0 | BK18: 0 | BL18: 0 | BM18: 0 | BN18: 0 | BO18: 0 | BP18: 0 | BQ18: 0 | BR18: 0 | BS18: 0 | BT18: 0 | BU18: 0 | BV18: 0 | BW18: 0 | BX18: 0 | BY18: 0 | BZ18: 0 | CA18: 0 | CB18: 0 | CC18: 0 | CD18: 0 | CE18: 0 | CF18: 0 | CG18: 0 | CH18: 0 | CI18: 0 | CJ18: 0 | CK18: 0 | CL18: 0 | CM18: 0 | CN18: 0 | CO18: 0 | CP18: 0 | CQ18: 0 | CR18: 0 | CS18: 0 | CT18: 0 | CU18: 0 | CV18: 0 | CW18: 0 | CX18: 0 | CY18: 0 | CZ18: 0 | DA18: 0 | DB18: 0 | DC18: 0 | DD18: 0 | DE18: 0 | DF18: 0 | DG18: 0 | DH18: 0 | DI18: 0 | DJ18: 0 | DK18: 0 | DL18: 0 | DM18: 0 | DN18: 0 | DO18: 0 | DP18: 0 | DQ18: 0 | DR18: 0 | DS18: 0 | DT18: 0 | DU18: 0 | DV18: 0 | DW18: 0 | DX18: 0 | DY18: 0 | DZ18: 0 | EA18: 0 | EB18: 0 | EC18: 0 | ED18: 0 | EE18: 0 | EF18: 0 | EG18: 0 | EH18: 0 | EI18: 0 | EJ18: 0 | EK18: 0 | EL18: 0 | EM18: 0 | EN18: 0 | EO18: 0 | EP18: 0 | EQ18: 0 | ER18: 0 | ES18: 0 | ET18: 0 | EU18: 0 | EV18: 0 | EW18: 0 | EX18: 0 | EY18: 0 | EZ18: 0 | FA18: 0 | FB18: 0 | FC18: 0 | FD18: 0 | FE18: 0 | FF18: 0 | FG18: 0 | FH18: 0 | FI18: 0 | FJ18: 0 | FK18: 0 | FL18: 0 | FM18: 0 | FN18: 0 | FO18: 0 | FP18: 0 | FQ18: 0 | FR18: 0 | FS18: 0 | FT18: 0 | FU18: 0 | FV18: 0 | FW18: 0 | FX18: 0 | FY18: 0 | FZ18: 0 | GA18: 0 | GB18: 0 | GC18: 0 | GD18: 0 | GE18: 0 | GF18: 0 | GG18: 0 | GH18: 0 | GI18: 0 | GJ18: 0 | GK18: 0 | GL18: 0 | GM18: 0
A19: 2 | B19: 1 | C19: 9 | D19: 0 | E19: 0 | F19: 0 | G19: 0 | H19: 0 | I19: 0 | J19: 0 | K19: 0 | L19: 0 | M19: 0 | N19: 0 | O19: 0 | P19: 0 | Q19: 0 | R19: 0 | S19: 0 | T19: 0 | U19: 0 | V19: 0 | W19: 0 | X19: 0 | Y19: 0 | Z19: 0 | AA19: 0 | AB19: 0 | AC19: 0 | AD19: 0 | AE19: 0 | AF19: 0 | AG19: 0 | AH19: 0 | AI19: 0 | AJ19: 0 | AK19: 0 | AL19: 0 | AM19: 0 | AN19: 0 | AO19: 0 | AP19: 0 | AQ19: 0 | AR19: 0 | AS19: 0 | AT19: 0 | AU19: 0 | AV19: 0 | AW19: 0 | AX19: 0 | AY19: 0 | AZ19: 0 | BA19: 0 | BB19: 0 | BC19: 0 | BD19: 0 | BE19: 0 | BF19: 0 | BG19: 0 | BH19: 0 | BI19: 0 | BJ19: 0 | BK19: 0 | BL19: 0 | BM19: 0 | BN19: 0 | BO19: 0 | BP19: 0 | BQ19: 0 | BR19: 0 | BS19: 0 | BT19: 0 | BU19: 0 | BV19: 0 | BW19: 0 | BX19: 0 | BY19: 0 | BZ19: 0 | CA19: 0 | CB19: 0 | CC19: 0 | CD19: 0 | CE19: 0 | CF19: 0 | CG19: 0 | CH19: 0 | CI19: 0 | CJ19: 0 | CK19: 0 | CL19: 0 | CM19: 0 | CN19: 0 | CO19: 0 | CP19: 0 | CQ19: 0 | CR19: 0 | CS19: 0 | CT19: 0 | CU19: 0 | CV19: 0 | CW19: 0 | CX19: 0 | CY19: 0 | CZ19: 0 | DA19: 0 | DB19: 0 | DC19: 0 | DD19: 0 | DE19: 0 | DF19: 0 | DG19: 0 | DH19: 0 | DI19: 0 | DJ19: 0 | DK19: 0 | DL19: 0 | DM19: 0 | DN19: 0 | DO19: 0 | DP19: 0 | DQ19: 0 | DR19: 0 | DS19: 0 | DT19: 0 | DU19: 0 | DV19: 0 | DW19: 0 | DX19: 0 | DY19: 0 | DZ19: 0 | EA19: 0 | EB19: 0 | EC19: 0 | ED19: 0 | EE19: 0 | EF19: 0 | EG19: 0 | EH19: 0 | EI19: 0 | EJ19: 0 | EK19: 0 | EL19: 0 | EM19: 0 | EN19: 0 | EO19: 0 | EP19: 0 | EQ19: 0 | ER19: 0 | ES19: 0 | ET19: 0 | EU19: 0 | EV19: 0 | EW19: 0 | EX19: 0 | EY19: 0 | EZ19: 0 | FA19: 0 | FB19: 0 | FC19: 0 | FD19: 0 | FE19: 0 | FF19: 0 | FG19: 0 | FH19: 0 | FI19: 0 | FJ19: 0 | FK19: 0 | FL19: 0 | FM19: 0 | FN19: 0 | FO19: 0 | FP19: 0 | FQ19: 0 | FR19: 0 | FS19: 0 | FT19: 0 | FU19: 0 | FV19: 0 | FW19: 0 | FX19: 0 | FY19: 0 | FZ19: 0 | GA19: 0 | GB19: 0 | GC19: 0 | GD19: 0 | GE19: 0 | GF19: 0 | GG19: 0 | GH19: 0 | GI19: 0 | GJ19: 0 | GK19: 0 | GL19: 0 | GM19: 0
A20: 3 | B20: 1 | C20: 9 | D20: 0 | E20: 0 | F20: 0 | G20: 0 | H20: 0 | I20: 0 | J20: 0 | K20: 0 | L20: 0 | M20: 0 | N20: 0 | O20: 0 | P20: 0 | Q20: 0 | R20: 0 | S20: 0 | T20: 0 | U20: 0 | V20: 0 | W20: 0 | X20: 0 | Y20: 0 | Z20: 0 | AA20: 0 | AB20: 0 | AC20: 0 | AD20: 0 | AE20: 0 | AF20: 0 | AG20: 0 | AH20: 0 | AI20: 0 | AJ20: 0 | AK20: 0 | AL20: 0 | AM20: 0 | AN20: 0 | AO20: 0 | AP20: 0 | AQ20: 0 | AR20: 0 | AS20: 0 | AT20: 0 | AU20: 0 | AV20: 0 | AW20: 0 | AX20: 0 | AY20: 0 | AZ20: 0 | BA20: 0 | BB20: 0 | BC20: 0 | BD20: 0 | BE20: 0 | BF20: 0 | BG20: 0 | BH20: 0 | BI20: 0 | BJ20: 0 | BK20: 0 | BL20: 0 | BM20: 0 | BN20: 0 | BO20: 0 | BP20: 0 | BQ20: 0 | BR20: 0 | BS20: 0 | BT20: 0 | BU20: 0 | BV20: 0 | BW20: 0 | BX20: 0 | BY20: 0 | BZ20: 0 | CA20: 0 | CB20: 0 | CC20: 0 | CD20: 0 | CE20: 0 | CF20: 0 | CG20: 0 | CH20: 0 | CI20: 0 | CJ20: 0 | CK20: 0 | CL20: 0 | CM20: 0 | CN20: 0 | CO20: 0 | CP20: 0 | CQ20: 0 | CR20: 0 | CS20: 0 | CT20: 0 | CU20: 0 | CV20: 0 | CW20: 0 | CX20: 0 | CY20: 0 | CZ20: 0 | DA20: 0 | DB20: 0 | DC20: 0 | DD20: 0 | DE20: 0 | DF20: 0 | DG20: 0 | DH20: 0 | DI20: 0 | DJ20: 0 | DK20: 0 | DL20: 0 | DM20: 0 | DN20: 0 | DO20: 0 | DP20: 0 | DQ20: 0 | DR20: 0 | DS20: 0 | DT20: 0 | DU20: 0 | DV20: 0 | DW20: 0 | DX20: 0 | DY20: 0 | DZ20: 0 | EA20: 0 | EB20: 0 | EC20: 0 | ED20: 0 | EE20: 0 | EF20: 0 | EG20: 0 | EH20: 0 | EI20: 0 | EJ20: 0 | EK20: 0 | EL20: 0 | EM20: 0 | EN20: 0 | EO20: 0 | EP20: 0 | EQ20: 0 | ER20: 0 | ES20: 0 | ET20: 0 | EU20: 0 | EV20: 0 | EW20: 0 | EX20: 0 | EY20: 0 | EZ20: 0 | FA20: 0 | FB20: 0 | FC20: 0 | FD20: 0 | FE20: 0 | FF20: 0 | FG20: 0 | FH20: 0 | FI20: 0 | FJ20: 0 | FK20: 0 | FL20: 0 | FM20: 0 | FN20: 0 | FO20: 0 | FP20: 0 | FQ20: 0 | FR20: 0 | FS20: 0 | FT20: 0 | FU20: 0 | FV20: 0 | FW20: 0 | FX20: 0 | FY20: 0 | FZ20: 0 | GA20: 0 | GB20: 0 | GC20: 0 | GD20: 0 | GE20: 0 | GF20: 0 | GG20: 0 | GH20: 0 | GI20: 0 | GJ20: 0 | GK20: 0 | GL20: 0 | GM20: 0
A21: 4 | B21: 1 | C21: 9 | D21: 0 | E21: 0 | F21: 0 | G21: 0 | H21: 0 | I21: 0 | J21: 0 | K21: 0 | L21: 0 | M21: 0 | N21: 0 | O21: 0 | P21: 0 | Q21: 0 | R21: 0 | S21: 0 | T21: 0 | U21: 0 | V21: 0 | W21: 0 | X21: 0 | Y21: 0 | Z21: 0 | AA21: 0 | AB21: 0 | AC21: 0 | AD21: 0 | AE21: 0 | AF21: 0 | AG21: 0 | AH21: 0 | AI21: 0 | AJ21: 0 | AK21: 0 | AL21: 0 | AM21: 0 | AN21: 0 | AO21: 0 | AP21: 0 | AQ21: 0 | AR21: 0 | AS21: 0 | AT21: 0 | AU21: 0 | AV21: 0 | AW21: 0 | AX21: 0 | AY21: 0 | AZ21: 0 | BA21: 0 | BB21: 0 | BC21: 0 | BD21: 0 | BE21: 0 | BF21: 0 | BG21: 0 | BH21: 0 | BI21: 0 | BJ21: 0 | BK21: 0 | BL21: 0 | BM21: 0 | BN21: 0 | BO21: 0 | BP21: 0 | BQ21: 0 | BR21: 0 | BS21: 0 | BT21: 0 | BU21: 0 | BV21: 0 | BW21: 0 | BX21: 0 | BY21: 0 | BZ21: 0 | CA21: 0 | CB21: 0 | CC21: 0 | CD21: 0 | CE21: 0 | CF21: 0 | CG21: 0 | CH21: 0 | CI21: 0 | CJ21: 0 | CK21: 0 | CL21: 0 | CM21: 0 | CN21: 0 | CO21: 0 | CP21: 0 | CQ21: 0 | CR21: 0 | CS21: 0 | CT21: 0 | CU21: 0 | CV21: 0 | CW21: 0 | CX21: 0 | CY21: 0 | CZ21: 0 | DA21: 0 | DB21: 0 | DC21: 0 | DD21: 0 | DE21: 0 | DF21: 0 | DG21: 0 | DH21: 0 | DI21: 0 | DJ21: 0 | DK21: 0 | DL21: 0 | DM21: 0 | DN21: 0 | DO21: 0 | DP21: 0 | DQ21: 0 | DR21: 0 | DS21: 0 | DT21: 0 | DU21: 0 | DV21: 0 | DW21: 0 | DX21: 0 | DY21: 0 | DZ21: 0 | EA21: 0 | EB21: 0 | EC21: 0 | ED21: 0 | EE21: 0 | EF21: 0 | EG21: 0 | EH21: 0 | EI21: 0 | EJ21: 0 | EK21: 0 | EL21: 0 | EM21: 0 | EN21: 0 | EO21: 0 | EP21: 0 | EQ21: 0 | ER21: 0 | ES21: 0 | ET21: 0 | EU21: 0 | EV21: 0 | EW21: 0 | EX21: 0 | EY21: 0 | EZ21: 0 | FA21: 0 | FB21: 0 | FC21: 0 | FD21: 0 | FE21: 0 | FF21: 0 | FG21: 0 | FH21: 0 | FI21: 0 | FJ21: 0 | FK21: 0 | FL21: 0 | FM21: 0 | FN21: 0 | FO21: 0 | FP21: 0 | FQ21: 0 | FR21: 0 | FS21: 0 | FT21: 0 | FU21: 0 | FV21: 0 | FW21: 0 | FX21: 0 | FY21: 0 | FZ21: 0 | GA21: 0 | GB21: 0 | GC21: 0 | GD21: 0 | GE21: 0 | GF21: 0 | GG21: 0 | GH21: 0 | GI21: 0 | GJ21: 0 | GK21: 0 | GL21: 0 | GM21: 0
A22: 1 | B22: 1 | C22: 10 | D22: 99999 | E22: 99999 | F22: 99999 | G22: 99999 | H22: 99999 | I22: 99999 | J22: 99999 | K22: 99999 | L22: 99999 | M22: 99999 | N22: 99999 | O22: 99999 | P22: 99999 | Q22: 99999 | R22: 99999 | S22: 99999 | T22: 99999 | U22: 99999 | V22: 99999 | W22: 99999 | X22: 99999 | Y22: 99999 | Z22: 99999 | AA22: 99999 | AB22: 99999 | AC22: 99999 | AD22: 99999 | AE22: 99999 | AF22: 99999 | AG22: 99999 | AH22: 99999 | AI22: 99999 | AJ22: 99999 | AK22: 99999 | AL22: 99999 | AM22: 99999 | AN22: 99999 | AO22: 99999 | AP22: 99999 | AQ22: 99999 | AR22: 99999 | AS22: 99999 | AT22: 99999 | AU22: 99999 | AV22: 99999 | AW22: 99999 | AX22: 99999 | AY22: 99999 | AZ22: 99999 | BA22: 99999 | BB22: 99999 | BC22: 99999 | BD22: 99999 | BE22: 99999 | BF22: 99999 | BG22: 99999 | BH22: 99999 | BI22: 99999 | BJ22: 99999 | BK22: 99999 | BL22: 99999 | BM22: 99999 | BN22: 99999 | BO22: 99999 | BP22: 99999 | BQ22: 99999 | BR22: 99999 | BS22: 99999 | BT22: 99999 | BU22: 99999 | BV22: 99999 | BW22: 99999 | BX22: 99999 | BY22: 99999 | BZ22: 99999 | CA22: 99999 | CB22: 99999 | CC22: 99999 | CD22: 99999 | CE22: 99999 | CF22: 99999 | CG22: 99999 | CH22: 99999 | CI22: 99999 | CJ22: 99999 | CK22: 99999 | CL22: 99999 | CM22: 99999 | CN22: 99999 | CO22: 99999 | CP22: 99999 | CQ22: 99999 | CR22: 99999 | CS22: 99999 | CT22: 99999 | CU22: 99999 | CV22: 99999 | CW22: 99999 | CX22: 99999 | CY22: 99999 | CZ22: 99999 | DA22: 99999 | DB22: 99999 | DC22: 99999 | DD22: 99999 | DE22: 99999 | DF22: 99999 | DG22: 99999 | DH22: 99999 | DI22: 99999 | DJ22: 99999 | DK22: 99999 | DL22: 99999 | DM22: 99999 | DN22: 99999 | DO22: 99999 | DP22: 99999 | DQ22: 99999 | DR22: 99999 | DS22: 99999 | DT22: 99999 | DU22: 99999 | DV22: 99999 | DW22: 99999 | DX22: 99999 | DY22: 99999 | DZ22: 99999 | EA22: 99999 | EB22: 99999 | EC22: 99999 | ED22: 99999 | EE22: 99999 | EF22: 99999 | EG22: 99999 | EH22: 99999 | EI22: 99999 | EJ22: 99999 | EK22: 99999 | EL22: 99999 | EM22: 99999 | EN22: 99999 | EO22: 99999 | EP22: 99999 | EQ22: 99999 | ER22: 99999 | ES22: 99999 | ET22: 99999 | EU22: 99999 | EV22: 99999 | EW22: 99999 | EX22: 99999 | EY22: 99999 | EZ22: 99999 | FA22: 99999 | FB22: 99999 | FC22: 99999 | FD22: 99999 | FE22: 99999 | FF22: 99999 | FG22: 99999 | FH22: 99999 | FI22: 99999 | FJ22: 99999 | FK22: 99999 | FL22: 99999 | FM22: 99999 | FN22: 99999 | FO22: 99999 | FP22: 99999 | FQ22: 99999 | FR22: 99999 | FS22: 99999 | FT22: 99999 | FU22: 99999 | FV22: 99999 | FW22: 99999 | FX22: 99999 | FY22: 99999 | FZ22: 99999 | GA22: 99999 | GB22: 99999 | GC22: 99999 | GD22: 99999 | GE22: 99999 | GF22: 99999 | GG22: 99999 | GH22: 99999 | GI22: 99999 | GJ22: 99999 | GK22: 99999 | GL22: 99999 | GM22: 99999
A23: 2 | B23: 1 | C23: 10 | D23: 99999 | E23: 99999 | F23: 99999 | G23: 99999 | H23: 99999 | I23: 99999 | J23: 99999 | K23: 99999 | L23: 99999 | M23: 99999 | N23: 99999 | O23: 99999 | P23: 99999 | Q23: 99999 | R23: 99999 | S23: 99999 | T23: 99999 | U23: 99999 | V23: 99999 | W23: 99999 | X23: 99999 | Y23: 99999 | Z23: 99999 | AA23: 99999 | AB23: 99999 | AC23: 99999 | AD23: 99999 | AE23: 99999 | AF23: 99999 | AG23: 99999 | AH23: 99999 | AI23: 99999 | AJ23: 99999 | AK23: 99999 | AL23: 99999 | AM23: 99999 | AN23: 99999 | AO23: 99999 | AP23: 99999 | AQ23: 99999 | AR23: 99999 | AS23: 99999 | AT23: 99999 | AU23: 99999 | AV23: 99999 | AW23: 99999 | AX23: 99999 | AY23: 99999 | AZ23: 99999 | BA23: 99999 | BB23: 99999 | BC23: 99999 | BD23: 99999 | BE23: 99999 | BF23: 99999 | BG23: 99999 | BH23: 99999 | BI23: 99999 | BJ23: 99999 | BK23: 99999 | BL23: 99999 | BM23: 99999 | BN23: 99999 | BO23: 99999 | BP23: 99999 | BQ23: 99999 | BR23: 99999 | BS23: 99999 | BT23: 99999 | BU23: 99999 | BV23: 99999 | BW23: 99999 | BX23: 99999 | BY23: 99999 | BZ23: 99999 | CA23: 99999 | CB23: 99999 | CC23: 99999 | CD23: 99999 | CE23: 99999 | CF23: 99999 | CG23: 99999 | CH23: 99999 | CI23: 99999 | CJ23: 99999 | CK23: 99999 | CL23: 99999 | CM23: 99999 | CN23: 99999 | CO23: 99999 | CP23: 99999 | CQ23: 99999 | CR23: 99999 | CS23: 99999 | CT23: 99999 | CU23: 99999 | CV23: 99999 | CW23: 99999 | CX23: 99999 | CY23: 99999 | CZ23: 99999 | DA23: 99999 | DB23: 99999 | DC23: 99999 | DD23: 99999 | DE23: 99999 | DF23: 99999 | DG23: 99999 | DH23: 99999 | DI23: 99999 | DJ23: 99999 | DK23: 99999 | DL23: 99999 | DM23: 99999 | DN23: 99999 | DO23: 99999 | DP23: 99999 | DQ23: 99999 | DR23: 99999 | DS23: 99999 | DT23: 99999 | DU23: 99999 | DV23: 99999 | DW23: 99999 | DX23: 99999 | DY23: 99999 | DZ23: 99999 | EA23: 99999 | EB23: 99999 | EC23: 99999 | ED23: 99999 | EE23: 99999 | EF23: 99999 | EG23: 99999 | EH23: 99999 | EI23: 99999 | EJ23: 99999 | EK23: 99999 | EL23: 99999 | EM23: 99999 | EN23: 99999 | EO23: 99999 | EP23: 99999 | EQ23: 99999 | ER23: 99999 | ES23: 99999 | ET23: 99999 | EU23: 99999 | EV23: 99999 | EW23: 99999 | EX23: 99999 | EY23: 99999 | EZ23: 99999 | FA23: 99999 | FB23: 99999 | FC23: 99999 | FD23: 99999 | FE23: 99999 | FF23: 99999 | FG23: 99999 | FH23: 99999 | FI23: 99999 | FJ23: 99999 | FK23: 99999 | FL23: 99999 | FM23: 99999 | FN23: 99999 | FO23: 99999 | FP23: 99999 | FQ23: 99999 | FR23: 99999 | FS23: 99999 | FT23: 99999 | FU23: 99999 | FV23: 99999 | FW23: 99999 | FX23: 99999 | FY23: 99999 | FZ23: 99999 | GA23: 99999 | GB23: 99999 | GC23: 99999 | GD23: 99999 | GE23: 99999 | GF23: 99999 | GG23: 99999 | GH23: 99999 | GI23: 99999 | GJ23: 99999 | GK23: 99999 | GL23: 99999 | GM23: 99999
A24: 3 | B24: 1 | C24: 10 | D24: 99999 | E24: 99999 | F24: 99999 | G24: 99999 | H24: 99999 | I24: 99999 | J24: 99999 | K24: 99999 | L24: 99999 | M24: 99999 | N24: 99999 | O24: 99999 | P24: 99999 | Q24: 99999 | R24: 99999 | S24: 99999 | T24: 99999 | U24: 99999 | V24: 99999 | W24: 99999 | X24: 99999 | Y24: 99999 | Z24: 99999 | AA24: 99999 | AB24: 99999 | AC24: 99999 | AD24: 99999 | AE24: 99999 | AF24: 99999 | AG24: 99999 | AH24: 99999 | AI24: 99999 | AJ24: 99999 | AK24: 99999 | AL24: 99999 | AM24: 99999 | AN24: 99999 | AO24: 99999 | AP24: 99999 | AQ24: 99999 | AR24: 99999 | AS24: 99999 | AT24: 99999 | AU24: 99999 | AV24: 99999 | AW24: 99999 | AX24: 99999 | AY24: 99999 | AZ24: 99999 | BA24: 99999 | BB24: 99999 | BC24: 99999 | BD24: 99999 | BE24: 99999 | BF24: 99999 | BG24: 99999 | BH24: 99999 | BI24: 99999 | BJ24: 99999 | BK24: 99999 | BL24: 99999 | BM24: 99999 | BN24: 99999 | BO24: 99999 | BP24: 99999 | BQ24: 99999 | BR24: 99999 | BS24: 99999 | BT24: 99999 | BU24: 99999 | BV24: 99999 | BW24: 99999 | BX24: 99999 | BY24: 99999 | BZ24: 99999 | CA24: 99999 | CB24: 99999 | CC24: 99999 | CD24: 99999 | CE24: 99999 | CF24: 99999 | CG24: 99999 | CH24: 99999 | CI24: 99999 | CJ24: 99999 | CK24: 99999 | CL24: 99999 | CM24: 99999 | CN24: 99999 | CO24: 99999 | CP24: 99999 | CQ24: 99999 | CR24: 99999 | CS24: 99999 | CT24: 99999 | CU24: 99999 | CV24: 99999 | CW24: 99999 | CX24: 99999 | CY24: 99999 | CZ24: 99999 | DA24: 99999 | DB24: 99999 | DC24: 99999 | DD24: 99999 | DE24: 99999 | DF24: 99999 | DG24: 99999 | DH24: 99999 | DI24: 99999 | DJ24: 99999 | DK24: 99999 | DL24: 99999 | DM24: 99999 | DN24: 99999 | DO24: 99999 | DP24: 99999 | DQ24: 99999 | DR24: 99999 | DS24: 99999 | DT24: 99999 | DU24: 99999 | DV24: 99999 | DW24: 99999 | DX24: 99999 | DY24: 99999 | DZ24: 99999 | EA24: 99999 | EB24: 99999 | EC24: 99999 | ED24: 99999 | EE24: 99999 | EF24: 99999 | EG24: 99999 | EH24: 99999 | EI24: 99999 | EJ24: 99999 | EK24: 99999 | EL24: 99999 | EM24: 99999 | EN24: 99999 | EO24: 99999 | EP24: 99999 | EQ24: 99999 | ER24: 99999 | ES24: 99999 | ET24: 99999 | EU24: 99999 | EV24: 99999 | EW24: 99999 | EX24: 99999 | EY24: 99999 | EZ24: 99999 | FA24: 99999 | FB24: 99999 | FC24: 99999 | FD24: 99999 | FE24: 99999 | FF24: 99999 | FG24: 99999 | FH24: 99999 | FI24: 99999 | FJ24: 99999 | FK24: 99999 | FL24: 99999 | FM24: 99999 | FN24: 99999 | FO24: 99999 | FP24: 99999 | FQ24: 99999 | FR24: 99999 | FS24: 99999 | FT24: 99999 | FU24: 99999 | FV24: 99999 | FW24: 99999 | FX24: 99999 | FY24: 99999 | FZ24: 99999 | GA24: 99999 | GB24: 99999 | GC24: 99999 | GD24: 99999 | GE24: 99999 | GF24: 99999 | GG24: 99999 | GH24: 99999 | GI24: 99999 | GJ24: 99999 | GK24: 99999 | GL24: 99999 | GM24: 99999
A25: 4 | B25: 1 | C25: 10 | D25: 99999 | E25: 99999 | F25: 99999 | G25: 99999 | H25: 99999 | I25: 99999 | J25: 99999 | K25: 99999 | L25: 99999 | M25: 99999 | N25: 99999 | O25: 99999 | P25: 99999 | Q25: 99999 | R25: 99999 | S25: 99999 | T25: 99999 | U25: 99999 | V25: 99999 | W25: 99999 | X25: 99999 | Y25: 99999 | Z25: 99999 | AA25: 99999 | AB25: 99999 | AC25: 99999 | AD25: 99999 | AE25: 99999 | AF25: 99999 | AG25: 99999 | AH25: 99999 | AI25: 99999 | AJ25: 99999 | AK25: 99999 | AL25: 99999 | AM25: 99999 | AN25: 99999 | AO25: 99999 | AP25: 99999 | AQ25: 99999 | AR25: 99999 | AS25: 99999 | AT25: 99999 | AU25: 99999 | AV25: 99999 | AW25: 99999 | AX25: 99999 | AY25: 99999 | AZ25: 99999 | BA25: 99999 | BB25: 99999 | BC25: 99999 | BD25: 99999 | BE25: 99999 | BF25: 99999 | BG25: 99999 | BH25: 99999 | BI25: 99999 | BJ25: 99999 | BK25: 99999 | BL25: 99999 | BM25: 99999 | BN25: 99999 | BO25: 99999 | BP25: 99999 | BQ25: 99999 | BR25: 99999 | BS25: 99999 | BT25: 99999 | BU25: 99999 | BV25: 99999 | BW25: 99999 | BX25: 99999 | BY25: 99999 | BZ25: 99999 | CA25: 99999 | CB25: 99999 | CC25: 99999 | CD25: 99999 | CE25: 99999 | CF25: 99999 | CG25: 99999 | CH25: 99999 | CI25: 99999 | CJ25: 99999 | CK25: 99999 | CL25: 99999 | CM25: 99999 | CN25: 99999 | CO25: 99999 | CP25: 99999 | CQ25: 99999 | CR25: 99999 | CS25: 99999 | CT25: 99999 | CU25: 99999 | CV25: 99999 | CW25: 99999 | CX25: 99999 | CY25: 99999 | CZ25: 99999 | DA25: 99999 | DB25: 99999 | DC25: 99999 | DD25: 99999 | DE25: 99999 | DF25: 99999 | DG25: 99999 | DH25: 99999 | DI25: 99999 | DJ25: 99999 | DK25: 99999 | DL25: 99999 | DM25: 99999 | DN25: 99999 | DO25: 99999 | DP25: 99999 | DQ25: 99999 | DR25: 99999 | DS25: 99999 | DT25: 99999 | DU25: 99999 | DV25: 99999 | DW25: 99999 | DX25: 99999 | DY25: 99999 | DZ25: 99999 | EA25: 99999 | EB25: 99999 | EC25: 99999 | ED25: 99999 | EE25: 99999 | EF25: 99999 | EG25: 99999 | EH25: 99999 | EI25: 99999 | EJ25: 99999 | EK25: 99999 | EL25: 99999 | EM25: 99999 | EN25: 99999 | EO25: 99999 | EP25: 99999 | EQ25: 99999 | ER25: 99999 | ES25: 99999 | ET25: 99999 | EU25: 99999 | EV25: 99999 | EW25: 99999 | EX25: 99999 | EY25: 99999 | EZ25: 99999 | FA25: 99999 | FB25: 99999 | FC25: 99999 | FD25: 99999 | FE25: 99999 | FF25: 99999 | FG25: 99999 | FH25: 99999 | FI25: 99999 | FJ25: 99999 | FK25: 99999 | FL25: 99999 | FM25: 99999 | FN25: 99999 | FO25: 99999 | FP25: 99999 | FQ25: 99999 | FR25: 99999 | FS25: 99999 | FT25: 99999 | FU25: 99999 | FV25: 99999 | FW25: 99999 | FX25: 99999 | FY25: 99999 | FZ25: 99999 | GA25: 99999 | GB25: 99999 | GC25: 99999 | GD25: 99999 | GE25: 99999 | GF25: 99999 | GG25: 99999 | GH25: 99999 | GI25: 99999 | GJ25: 99999 | GK25: 99999 | GL25: 99999 | GM25: 99999
A26: 1 | B26: 1 | C26: 11 | D26: 0 | E26: 0 | F26: 0 | G26: 0 | H26: 0 | I26: 0 | J26: 0 | K26: 0 | L26: 0 | M26: 0 | N26: 0 | O26: 0 | P26: 0 | Q26: 0 | R26: 0 | S26: 0 | T26: 0 | U26: 0 | V26: 0 | W26: 0 | X26: 0 | Y26: 0 | Z26: 0 | AA26: 0 | AB26: 0 | AC26: 0 | AD26: 0 | AE26: 0 | AF26: 0 | AG26: 0 | AH26: 0 | AI26: 0 | AJ26: 0 | AK26: 0 | AL26: 0 | AM26: 0 | AN26: 0 | AO26: 0 | AP26: 0 | AQ26: 0 | AR26: 0 | AS26: 0 | AT26: 0 | AU26: 0 | AV26: 0 | AW26: 0 | AX26: 0 | AY26: 0 | AZ26: 0 | BA26: 0 | BB26: 0 | BC26: 0 | BD26: 0 | BE26: 0 | BF26: 0 | BG26: 0 | BH26: 0 | BI26: 0 | BJ26: 0 | BK26: 0 | BL26: 0 | BM26: 0 | BN26: 0 | BO26: 0 | BP26: 0 | BQ26: 0 | BR26: 0 | BS26: 0 | BT26: 0 | BU26: 0 | BV26: 0 | BW26: 0 | BX26: 0 | BY26: 0 | BZ26: 0 | CA26: 0 | CB26: 0 | CC26: 0 | CD26: 0 | CE26: 0 | CF26: 0 | CG26: 0 | CH26: 0 | CI26: 0 | CJ26: 0 | CK26: 0 | CL26: 0 | CM26: 0 | CN26: 0 | CO26: 0 | CP26: 0 | CQ26: 0 | CR26: 0 | CS26: 0 | CT26: 0 | CU26: 0 | CV26: 0 | CW26: 0 | CX26: 0 | CY26: 0 | CZ26: 0 | DA26: 0 | DB26: 0 | DC26: 0 | DD26: 0 | DE26: 0 | DF26: 0 | DG26: 0 | DH26: 0 | DI26: 0 | DJ26: 0 | DK26: 0 | DL26: 0 | DM26: 0 | DN26: 0 | DO26: 0 | DP26: 0 | DQ26: 0 | DR26: 0 | DS26: 0 | DT26: 0 | DU26: 0 | DV26: 0 | DW26: 0 | DX26: 0 | DY26: 0 | DZ26: 0 | EA26: 0 | EB26: 0 | EC26: 0 | ED26: 0 | EE26: 0 | EF26: 0 | EG26: 0 | EH26: 0 | EI26: 0 | EJ26: 0 | EK26: 0 | EL26: 0 | EM26: 0 | EN26: 0 | EO26: 0 | EP26: 0 | EQ26: 0 | ER26: 0 | ES26: 0 | ET26: 0 | EU26: 0 | EV26: 0 | EW26: 0 | EX26: 0 | EY26: 0 | EZ26: 0 | FA26: 0 | FB26: 0 | FC26: 0 | FD26: 0 | FE26: 0 | FF26: 0 | FG26: 0 | FH26: 0 | FI26: 0 | FJ26: 0 | FK26: 0 | FL26: 0 | FM26: 0 | FN26: 0 | FO26: 0 | FP26: 0 | FQ26: 0 | FR26: 0 | FS26: 0 | FT26: 0 | FU26: 0 | FV26: 0 | FW26: 0 | FX26: 0 | FY26: 0 | FZ26: 0 | GA26: 0 | GB26: 0 | GC26: 0 | GD26: 0 | GE26: 0 | GF26: 0 | GG26: 0 | GH26: 0 | GI26: 0 | GJ26: 0 | GK26: 0 | GL26: 0 | GM26: 0
A27: 2 | B27: 1 | C27: 11 | D27: 0 | E27: 0 | F27: 0 | G27: 0 | H27: 0 | I27: 0 | J27: 0 | K27: 0 | L27: 0 | M27: 0 | N27: 0 | O27: 0 | P27: 0 | Q27: 0 | R27: 0 | S27: 0 | T27: 0 | U27: 0 | V27: 0 | W27: 0 | X27: 0 | Y27: 0 | Z27: 0 | AA27: 0 | AB27: 0 | AC27: 0 | AD27: 0 | AE27: 0 | AF27: 0 | AG27: 0 | AH27: 0 | AI27: 0 | AJ27: 0 | AK27: 0 | AL27: 0 | AM27: 0 | AN27: 0 | AO27: 0 | AP27: 0 | AQ27: 0 | AR27: 0 | AS27: 0 | AT27: 0 | AU27: 0 | AV27: 0 | AW27: 0 | AX27: 0 | AY27: 0 | AZ27: 0 | BA27: 0 | BB27: 0 | BC27: 0 | BD27: 0 | BE27: 0 | BF27: 0 | BG27: 0 | BH27: 0 | BI27: 0 | BJ27: 0 | BK27: 0 | BL27: 0 | BM27: 0 | BN27: 0 | BO27: 0 | BP27: 0 | BQ27: 0 | BR27: 0 | BS27: 0 | BT27: 0 | BU27: 0 | BV27: 0 | BW27: 0 | BX27: 0 | BY27: 0 | BZ27: 0 | CA27: 0 | CB27: 0 | CC27: 0 | CD27: 0 | CE27: 0 | CF27: 0 | CG27: 0 | CH27: 0 | CI27: 0 | CJ27: 0 | CK27: 0 | CL27: 0 | CM27: 0 | CN27: 0 | CO27: 0 | CP27: 0 | CQ27: 0 | CR27: 0 | CS27: 0 | CT27: 0 | CU27: 0 | CV27: 0 | CW27: 0 | CX27: 0 | CY27: 0 | CZ27: 0 | DA27: 0 | DB27: 0 | DC27: 0 | DD27: 0 | DE27: 0 | DF27: 0 | DG27: 0 | DH27: 0 | DI27: 0 | DJ27: 0 | DK27: 0 | DL27: 0 | DM27: 0 | DN27: 0 | DO27: 0 | DP27: 0 | DQ27: 0 | DR27: 0 | DS27: 0 | DT27: 0 | DU27: 0 | DV27: 0 | DW27: 0 | DX27: 0 | DY27: 0 | DZ27: 0 | EA27: 0 | EB27: 0 | EC27: 0 | ED27: 0 | EE27: 0 | EF27: 0 | EG27: 0 | EH27: 0 | EI27: 0 | EJ27: 0 | EK27: 0 | EL27: 0 | EM27: 0 | EN27: 0 | EO27: 0 | EP27: 0 | EQ27: 0 | ER27: 0 | ES27: 0 | ET27: 0 | EU27: 0 | EV27: 0 | EW27: 0 | EX27: 0 | EY27: 0 | EZ27: 0 | FA27: 0 | FB27: 0 | FC27: 0 | FD27: 0 | FE27: 0 | FF27: 0 | FG27: 0 | FH27: 0 | FI27: 0 | FJ27: 0 | FK27: 0 | FL27: 0 | FM27: 0 | FN27: 0 | FO27: 0 | FP27: 0 | FQ27: 0 | FR27: 0 | FS27: 0 | FT27: 0 | FU27: 0 | FV27: 0 | FW27: 0 | FX27: 0 | FY27: 0 | FZ27: 0 | GA27: 0 | GB27: 0 | GC27: 0 | GD27: 0 | GE27: 0 | GF27: 0 | GG27: 0 | GH27: 0 | GI27: 0 | GJ27: 0 | GK27: 0 | GL27: 0 | GM27: 0
A28: 3 | B28: 1 | C28: 11 | D28: 0 | E28: 0 | F28: 0 | G28: 0 | H28: 0 | I28: 0 | J28: 0 | K28: 0 | L28: 0 | M28: 0 | N28: 0 | O28: 0 | P28: 0 | Q28: 0 | R28: 0 | S28: 0 | T28: 0 | U28: 0 | V28: 0 | W28: 0 | X28: 0 | Y28: 0 | Z28: 0 | AA28: 0 | AB28: 0 | AC28: 0 | AD28: 0 | AE28: 0 | AF28: 0 | AG28: 0 | AH28: 0 | AI28: 0 | AJ28: 0 | AK28: 0 | AL28: 0 | AM28: 0 | AN28: 0 | AO28: 0 | AP28: 0 | AQ28: 0 | AR28: 0 | AS28: 0 | AT28: 0 | AU28: 0 | AV28: 0 | AW28: 0 | AX28: 0 | AY28: 0 | AZ28: 0 | BA28: 0 | BB28: 0 | BC28: 0 | BD28: 0 | BE28: 0 | BF28: 0 | BG28: 0 | BH28: 0 | BI28: 0 | BJ28: 0 | BK28: 0 | BL28: 0 | BM28: 0 | BN28: 0 | BO28: 0 | BP28: 0 | BQ28: 0 | BR28: 0 | BS28: 0 | BT28: 0 | BU28: 0 | BV28: 0 | BW28: 0 | BX28: 0 | BY28: 0 | BZ28: 0 | CA28: 0 | CB28: 0 | CC28: 0 | CD28: 0 | CE28: 0 | CF28: 0 | CG28: 0 | CH28: 0 | CI28: 0 | CJ28: 0 | CK28: 0 | CL28: 0 | CM28: 0 | CN28: 0 | CO28: 0 | CP28: 0 | CQ28: 0 | CR28: 0 | CS28: 0 | CT28: 0 | CU28: 0 | CV28: 0 | CW28: 0 | CX28: 0 | CY28: 0 | CZ28: 0 | DA28: 0 | DB28: 0 | DC28: 0 | DD28: 0 | DE28: 0 | DF28: 0 | DG28: 0 | DH28: 0 | DI28: 0 | DJ28: 0 | DK28: 0 | DL28: 0 | DM28: 0 | DN28: 0 | DO28: 0 | DP28: 0 | DQ28: 0 | DR28: 0 | DS28: 0 | DT28: 0 | DU28: 0 | DV28: 0 | DW28: 0 | DX28: 0 | DY28: 0 | DZ28: 0 | EA28: 0 | EB28: 0 | EC28: 0 | ED28: 0 | EE28: 0 | EF28: 0 | EG28: 0 | EH28: 0 | EI28: 0 | EJ28: 0 | EK28: 0 | EL28: 0 | EM28: 0 | EN28: 0 | EO28: 0 | EP28: 0 | EQ28: 0 | ER28: 0 | ES28: 0 | ET28: 0 | EU28: 0 | EV28: 0 | EW28: 0 | EX28: 0 | EY28: 0 | EZ28: 0 | FA28: 0 | FB28: 0 | FC28: 0 | FD28: 0 | FE28: 0 | FF28: 0 | FG28: 0 | FH28: 0 | FI28: 0 | FJ28: 0 | FK28: 0 | FL28: 0 | FM28: 0 | FN28: 0 | FO28: 0 | FP28: 0 | FQ28: 0 | FR28: 0 | FS28: 0 | FT28: 0 | FU28: 0 | FV28: 0 | FW28: 0 | FX28: 0 | FY28: 0 | FZ28: 0 | GA28: 0 | GB28: 0 | GC28: 0 | GD28: 0 | GE28: 0 | GF28: 0 | GG28: 0 | GH28: 0 | GI28: 0 | GJ28: 0 | GK28: 0 | GL28: 0 | GM28: 0
A29: 4 | B29: 1 | C29: 11 | D29: 0 | E29: 0 | F29: 0 | G29: 0 | H29: 0 | I29: 0 | J29: 0 | K29: 0 | L29: 0 | M29: 0 | N29: 0 | O29: 0 | P29: 0 | Q29: 0 | R29: 0 | S29: 0 | T29: 0 | U29: 0 | V29: 0 | W29: 0 | X29: 0 | Y29: 0 | Z29: 0 | AA29: 0 | AB29: 0 | AC29: 0 | AD29: 0 | AE29: 0 | AF29: 0 | AG29: 0 | AH29: 0 | AI29: 0 | AJ29: 0 | AK29: 0 | AL29: 0 | AM29: 0 | AN29: 0 | AO29: 0 | AP29: 0 | AQ29: 0 | AR29: 0 | AS29: 0 | AT29: 0 | AU29: 0 | AV29: 0 | AW29: 0 | AX29: 0 | AY29: 0 | AZ29: 0 | BA29: 0 | BB29: 0 | BC29: 0 | BD29: 0 | BE29: 0 | BF29: 0 | BG29: 0 | BH29: 0 | BI29: 0 | BJ29: 0 | BK29: 0 | BL29: 0 | BM29: 0 | BN29: 0 | BO29: 0 | BP29: 0 | BQ29: 0 | BR29: 0 | BS29: 0 | BT29: 0 | BU29: 0 | BV29: 0 | BW29: 0 | BX29: 0 | BY29: 0 | BZ29: 0 | CA29: 0 | CB29: 0 | CC29: 0 | CD29: 0 | CE29: 0 | CF29: 0 | CG29: 0 | CH29: 0 | CI29: 0 | CJ29: 0 | CK29: 0 | CL29: 0 | CM29: 0 | CN29: 0 | CO29: 0 | CP29: 0 | CQ29: 0 | CR29: 0 | CS29: 0 | CT29: 0 | CU29: 0 | CV29: 0 | CW29: 0 | CX29: 0 | CY29: 0 | CZ29: 0 | DA29: 0 | DB29: 0 | DC29: 0 | DD29: 0 | DE29: 0 | DF29: 0 | DG29: 0 | DH29: 0 | DI29: 0 | DJ29: 0 | DK29: 0 | DL29: 0 | DM29: 0 | DN29: 0 | DO29: 0 | DP29: 0 | DQ29: 0 | DR29: 0 | DS29: 0 | DT29: 0 | DU29: 0 | DV29: 0 | DW29: 0 | DX29: 0 | DY29: 0 | DZ29: 0 | EA29: 0 | EB29: 0 | EC29: 0 | ED29: 0 | EE29: 0 | EF29: 0 | EG29: 0 | EH29: 0 | EI29: 0 | EJ29: 0 | EK29: 0 | EL29: 0 | EM29: 0 | EN29: 0 | EO29: 0 | EP29: 0 | EQ29: 0 | ER29: 0 | ES29: 0 | ET29: 0 | EU29: 0 | EV29: 0 | EW29: 0 | EX29: 0 | EY29: 0 | EZ29: 0 | FA29: 0 | FB29: 0 | FC29: 0 | FD29: 0 | FE29: 0 | FF29: 0 | FG29: 0 | FH29: 0 | FI29: 0 | FJ29: 0 | FK29: 0 | FL29: 0 | FM29: 0 | FN29: 0 | FO29: 0 | FP29: 0 | FQ29: 0 | FR29: 0 | FS29: 0 | FT29: 0 | FU29: 0 | FV29: 0 | FW29: 0 | FX29: 0 | FY29: 0 | FZ29: 0 | GA29: 0 | GB29: 0 | GC29: 0 | GD29: 0 | GE29: 0 | GF29: 0 | GG29: 0 | GH29: 0 | GI29: 0 | GJ29: 0 | GK29: 0 | GL29: 0 | GM29: 0
A30: 1 | B30: 1 | C30: 12 | D30: 0 | E30: 0 | F30: 0 | G30: 0 | H30: 0 | I30: 0 | J30: 0 | K30: 0 | L30: 0 | M30: 0 | N30: 0 | O30: 0 | P30: 0 | Q30: 0 | R30: 0 | S30: 0 | T30: 0 | U30: 0 | V30: 0 | W30: 0 | X30: 0 | Y30: 0 | Z30: 0 | AA30: 0 | AB30: 0 | AC30: 0 | AD30: 0 | AE30: 0 | AF30: 0 | AG30: 0 | AH30: 0 | AI30: 0 | AJ30: 0 | AK30: 0 | AL30: 0 | AM30: 0 | AN30: 0 | AO30: 0 | AP30: 0 | AQ30: 0 | AR30: 0 | AS30: 0 | AT30: 0 | AU30: 0 | AV30: 0 | AW30: 0 | AX30: 0 | AY30: 0 | AZ30: 0 | BA30: 0 | BB30: 0 | BC30: 0 | BD30: 0 | BE30: 0 | BF30: 0 | BG30: 0 | BH30: 0 | BI30: 0 | BJ30: 0 | BK30: 0 | BL30: 0 | BM30: 0 | BN30: 0 | BO30: 0 | BP30: 0 | BQ30: 0 | BR30: 0 | BS30: 0 | BT30: 0 | BU30: 0 | BV30: 0 | BW30: 0 | BX30: 0 | BY30: 0 | BZ30: 0 | CA30: 0 | CB30: 0 | CC30: 0 | CD30: 0 | CE30: 0 | CF30: 0 | CG30: 0 | CH30: 0 | CI30: 0 | CJ30: 0 | CK30: 0 | CL30: 0 | CM30: 0 | CN30: 0 | CO30: 0 | CP30: 0 | CQ30: 0 | CR30: 0 | CS30: 0 | CT30: 0 | CU30: 0 | CV30: 0 | CW30: 0 | CX30: 0 | CY30: 0 | CZ30: 0 | DA30: 0 | DB30: 0 | DC30: 0 | DD30: 0 | DE30: 0 | DF30: 0 | DG30: 0 | DH30: 0 | DI30: 0 | DJ30: 0 | DK30: 0 | DL30: 0 | DM30: 0 | DN30: 0 | DO30: 0 | DP30: 0 | DQ30: 0 | DR30: 0 | DS30: 0 | DT30: 0 | DU30: 0 | DV30: 0 | DW30: 0 | DX30: 0 | DY30: 0 | DZ30: 0 | EA30: 0 | EB30: 0 | EC30: 0 | ED30: 0 | EE30: 0 | EF30: 0 | EG30: 0 | EH30: 0 | EI30: 0 | EJ30: 0 | EK30: 0 | EL30: 0 | EM30: 0 | EN30: 0 | EO30: 0 | EP30: 0 | EQ30: 0 | ER30: 0 | ES30: 0 | ET30: 0 | EU30: 0 | EV30: 0 | EW30: 0 | EX30: 0 | EY30: 0 | EZ30: 0 | FA30: 0 | FB30: 0 | FC30: 0 | FD30: 0 | FE30: 0 | FF30: 0 | FG30: 0 | FH30: 0 | FI30: 0 | FJ30: 0 | FK30: 0 | FL30: 0 | FM30: 0 | FN30: 0 | FO30: 0 | FP30: 0 | FQ30: 0 | FR30: 0 | FS30: 0 | FT30: 0 | FU30: 0 | FV30: 0 | FW30: 0 | FX30: 0 | FY30: 0 | FZ30: 0 | GA30: 0 | GB30: 0 | GC30: 0 | GD30: 0 | GE30: 0 | GF30: 0 | GG30: 0 | GH30: 0 | GI30: 0 | GJ30: 0 | GK30: 0 | GL30: 0 | GM30: 0
A31: 2 | B31: 1 | C31: 12 | D31: 0 | E31: 0 | F31: 0 | G31: 0 | H31: 0 | I31: 0 | J31: 0 | K31: 0 | L31: 0 | M31: 0 | N31: 0 | O31: 0 | P31: 0 | Q31: 0 | R31: 0 | S31: 0 | T31: 0 | U31: 0 | V31: 0 | W31: 0 | X31: 0 | Y31: 0 | Z31: 0 | AA31: 0 | AB31: 0 | AC31: 0 | AD31: 0 | AE31: 0 | AF31: 0 | AG31: 0 | AH31: 0 | AI31: 0 | AJ31: 0 | AK31: 0 | AL31: 0 | AM31: 0 | AN31: 0 | AO31: 0 | AP31: 0 | AQ31: 0 | AR31: 0 | AS31: 0 | AT31: 0 | AU31: 0 | AV31: 0 | AW31: 0 | AX31: 0 | AY31: 0 | AZ31: 0 | BA31: 0 | BB31: 0 | BC31: 0 | BD31: 0 | BE31: 0 | BF31: 0 | BG31: 0 | BH31: 0 | BI31: 0 | BJ31: 0 | BK31: 0 | BL31: 0 | BM31: 0 | BN31: 0 | BO31: 0 | BP31: 0 | BQ31: 0 | BR31: 0 | BS31: 0 | BT31: 0 | BU31: 0 | BV31: 0 | BW31: 0 | BX31: 0 | BY31: 0 | BZ31: 0 | CA31: 0 | CB31: 0 | CC31: 0 | CD31: 0 | CE31: 0 | CF31: 0 | CG31: 0 | CH31: 0 | CI31: 0 | CJ31: 0 | CK31: 0 | CL31: 0 | CM31: 0 | CN31: 0 | CO31: 0 | CP31: 0 | CQ31: 0 | CR31: 0 | CS31: 0 | CT31: 0 | CU31: 0 | CV31: 0 | CW31: 0 | CX31: 0 | CY31: 0 | CZ31: 0 | DA31: 0 | DB31: 0 | DC31: 0 | DD31: 0 | DE31: 0 | DF31: 0 | DG31: 0 | DH31: 0 | DI31: 0 | DJ31: 0 | DK31: 0 | DL31: 0 | DM31: 0 | DN31: 0 | DO31: 0 | DP31: 0 | DQ31: 0 | DR31: 0 | DS31: 0 | DT31: 0 | DU31: 0 | DV31: 0 | DW31: 0 | DX31: 0 | DY31: 0 | DZ31: 0 | EA31: 0 | EB31: 0 | EC31: 0 | ED31: 0 | EE31: 0 | EF31: 0 | EG31: 0 | EH31: 0 | EI31: 0 | EJ31: 0 | EK31: 0 | EL31: 0 | EM31: 0 | EN31: 0 | EO31: 0 | EP31: 0 | EQ31: 0 | ER31: 0 | ES31: 0 | ET31: 0 | EU31: 0 | EV31: 0 | EW31: 0 | EX31: 0 | EY31: 0 | EZ31: 0 | FA31: 0 | FB31: 0 | FC31: 0 | FD31: 0 | FE31: 0 | FF31: 0 | FG31: 0 | FH31: 0 | FI31: 0 | FJ31: 0 | FK31: 0 | FL31: 0 | FM31: 0 | FN31: 0 | FO31: 0 | FP31: 0 | FQ31: 0 | FR31: 0 | FS31: 0 | FT31: 0 | FU31: 0 | FV31: 0 | FW31: 0 | FX31: 0 | FY31: 0 | FZ31: 0 | GA31: 0 | GB31: 0 | GC31: 0 | GD31: 0 | GE31: 0 | GF31: 0 | GG31: 0 | GH31: 0 | GI31: 0 | GJ31: 0 | GK31: 0 | GL31: 0 | GM31: 0
A32: 3 | B32: 1 | C32: 12 | D32: 0 | E32: 0 | F32: 0 | G32: 0 | H32: 0 | I32: 0 | J32: 0 | K32: 0 | L32: 0 | M32: 0 | N32: 0 | O32: 0 | P32: 0 | Q32: 0 | R32: 0 | S32: 0 | T32: 0 | U32: 0 | V32: 0 | W32: 0 | X32: 0 | Y32: 0 | Z32: 0 | AA32: 0 | AB32: 0 | AC32: 0 | AD32: 0 | AE32: 0 | AF32: 0 | AG32: 0 | AH32: 0 | AI32: 0 | AJ32: 0 | AK32: 0 | AL32: 0 | AM32: 0 | AN32: 0 | AO32: 0 | AP32: 0 | AQ32: 0 | AR32: 0 | AS32: 0 | AT32: 0 | AU32: 0 | AV32: 0 | AW32: 0 | AX32: 0 | AY32: 0 | AZ32: 0 | BA32: 0 | BB32: 0 | BC32: 0 | BD32: 0 | BE32: 0 | BF32: 0 | BG32: 0 | BH32: 0 | BI32: 0 | BJ32: 0 | BK32: 0 | BL32: 0 | BM32: 0 | BN32: 0 | BO32: 0 | BP32: 0 | BQ32: 0 | BR32: 0 | BS32: 0 | BT32: 0 | BU32: 0 | BV32: 0 | BW32: 0 | BX32: 0 | BY32: 0 | BZ32: 0 | CA32: 0 | CB32: 0 | CC32: 0 | CD32: 0 | CE32: 0 | CF32: 0 | CG32: 0 | CH32: 0 | CI32: 0 | CJ32: 0 | CK32: 0 | CL32: 0 | CM32: 0 | CN32: 0 | CO32: 0 | CP32: 0 | CQ32: 0 | CR32: 0 | CS32: 0 | CT32: 0 | CU32: 0 | CV32: 0 | CW32: 0 | CX32: 0 | CY32: 0 | CZ32: 0 | DA32: 0 | DB32: 0 | DC32: 0 | DD32: 0 | DE32: 0 | DF32: 0 | DG32: 0 | DH32: 0 | DI32: 0 | DJ32: 0 | DK32: 0 | DL32: 0 | DM32: 0 | DN32: 0 | DO32: 0 | DP32: 0 | DQ32: 0 | DR32: 0 | DS32: 0 | DT32: 0 | DU32: 0 | DV32: 0 | DW32: 0 | DX32: 0 | DY32: 0 | DZ32: 0 | EA32: 0 | EB32: 0 | EC32: 0 | ED32: 0 | EE32: 0 | EF32: 0 | EG32: 0 | EH32: 0 | EI32: 0 | EJ32: 0 | EK32: 0 | EL32: 0 | EM32: 0 | EN32: 0 | EO32: 0 | EP32: 0 | EQ32: 0 | ER32: 0 | ES32: 0 | ET32: 0 | EU32: 0 | EV32: 0 | EW32: 0 | EX32: 0 | EY32: 0 | EZ32: 0 | FA32: 0 | FB32: 0 | FC32: 0 | FD32: 0 | FE32: 0 | FF32: 0 | FG32: 0 | FH32: 0 | FI32: 0 | FJ32: 0 | FK32: 0 | FL32: 0 | FM32: 0 | FN32: 0 | FO32: 0 | FP32: 0 | FQ32: 0 | FR32: 0 | FS32: 0 | FT32: 0 | FU32: 0 | FV32: 0 | FW32: 0 | FX32: 0 | FY32: 0 | FZ32: 0 | GA32: 0 | GB32: 0 | GC32: 0 | GD32: 0 | GE32: 0 | GF32: 0 | GG32: 0 | GH32: 0 | GI32: 0 | GJ32: 0 | GK32: 0 | GL32: 0 | GM32: 0
A33: 4 | B33: 1 | C33: 12 | D33: 0 | E33: 0 | F33: 0 | G33: 0 | H33: 0 | I33: 0 | J33: 0 | K33: 0 | L33: 0 | M33: 0 | N33: 0 | O33: 0 | P33: 0 | Q33: 0 | R33: 0 | S33: 0 | T33: 0 | U33: 0 | V33: 0 | W33: 0 | X33: 0 | Y33: 0 | Z33: 0 | AA33: 0 | AB33: 0 | AC33: 0 | AD33: 0 | AE33: 0 | AF33: 0 | AG33: 0 | AH33: 0 | AI33: 0 | AJ33: 0 | AK33: 0 | AL33: 0 | AM33: 0 | AN33: 0 | AO33: 0 | AP33: 0 | AQ33: 0 | AR33: 0 | AS33: 0 | AT33: 0 | AU33: 0 | AV33: 0 | AW33: 0 | AX33: 0 | AY33: 0 | AZ33: 0 | BA33: 0 | BB33: 0 | BC33: 0 | BD33: 0 | BE33: 0 | BF33: 0 | BG33: 0 | BH33: 0 | BI33: 0 | BJ33: 0 | BK33: 0 | BL33: 0 | BM33: 0 | BN33: 0 | BO33: 0 | BP33: 0 | BQ33: 0 | BR33: 0 | BS33: 0 | BT33: 0 | BU33: 0 | BV33: 0 | BW33: 0 | BX33: 0 | BY33: 0 | BZ33: 0 | CA33: 0 | CB33: 0 | CC33: 0 | CD33: 0 | CE33: 0 | CF33: 0 | CG33: 0 | CH33: 0 | CI33: 0 | CJ33: 0 | CK33: 0 | CL33: 0 | CM33: 0 | CN33: 0 | CO33: 0 | CP33: 0 | CQ33: 0 | CR33: 0 | CS33: 0 | CT33: 0 | CU33: 0 | CV33: 0 | CW33: 0 | CX33: 0 | CY33: 0 | CZ33: 0 | DA33: 0 | DB33: 0 | DC33: 0 | DD33: 0 | DE33: 0 | DF33: 0 | DG33: 0 | DH33: 0 | DI33: 0 | DJ33: 0 | DK33: 0 | DL33: 0 | DM33: 0 | DN33: 0 | DO33: 0 | DP33: 0 | DQ33: 0 | DR33: 0 | DS33: 0 | DT33: 0 | DU33: 0 | DV33: 0 | DW33: 0 | DX33: 0 | DY33: 0 | DZ33: 0 | EA33: 0 | EB33: 0 | EC33: 0 | ED33: 0 | EE33: 0 | EF33: 0 | EG33: 0 | EH33: 0 | EI33: 0 | EJ33: 0 | EK33: 0 | EL33: 0 | EM33: 0 | EN33: 0 | EO33: 0 | EP33: 0 | EQ33: 0 | ER33: 0 | ES33: 0 | ET33: 0 | EU33: 0 | EV33: 0 | EW33: 0 | EX33: 0 | EY33: 0 | EZ33: 0 | FA33: 0 | FB33: 0 | FC33: 0 | FD33: 0 | FE33: 0 | FF33: 0 | FG33: 0 | FH33: 0 | FI33: 0 | FJ33: 0 | FK33: 0 | FL33: 0 | FM33: 0 | FN33: 0 | FO33: 0 | FP33: 0 | FQ33: 0 | FR33: 0 | FS33: 0 | FT33: 0 | FU33: 0 | FV33: 0 | FW33: 0 | FX33: 0 | FY33: 0 | FZ33: 0 | GA33: 0 | GB33: 0 | GC33: 0 | GD33: 0 | GE33: 0 | GF33: 0 | GG33: 0 | GH33: 0 | GI33: 0 | GJ33: 0 | GK33: 0 | GL33: 0 | GM33: 0
A34: 1 | B34: 1 | C34: 13 | D34: 4000 | E34: 4000 | F34: 4000 | G34: 4000 | H34: 4000 | I34: 4000 | J34: 4000 | K34: 4000 | L34: 4000 | M34: 4000 | N34: 4000 | O34: 4000 | P34: 5000 | Q34: 5000 | R34: 5000 | S34: 5000 | T34: 5000 | U34: 5000 | V34: 5000 | W34: 5000 | X34: 5000 | Y34: 5000 | Z34: 5000 | AA34: 5000 | AB34: 5000 | AC34: 5000 | AD34: 5000 | AE34: 5000 | AF34: 5000 | AG34: 5000 | AH34: 5000 | AI34: 5000 | AJ34: 5000 | AK34: 5000 | AL34: 5000 | AM34: 5000 | AN34: 5000 | AO34: 5000 | AP34: 5000 | AQ34: 5000 | AR34: 5000 | AS34: 5000 | AT34: 5000 | AU34: 5000 | AV34: 5000 | AW34: 5000 | AX34: 5000 | AY34: 5000 | AZ34: 5000 | BA34: 5000 | BB34: 5000 | BC34: 5000 | BD34: 5000 | BE34: 5000 | BF34: 5000 | BG34: 5000 | BH34: 5000 | BI34: 5000 | BJ34: 5000 | BK34: 5000 | BL34: 5000 | BM34: 5000 | BN34: 5000 | BO34: 5000 | BP34: 5000 | BQ34: 5000 | BR34: 5000 | BS34: 5000 | BT34: 5000 | BU34: 5000 | BV34: 5000 | BW34: 5000 | BX34: 5000 | BY34: 5000 | BZ34: 5000 | CA34: 5000 | CB34: 5000 | CC34: 5000 | CD34: 5000 | CE34: 5000 | CF34: 5000 | CG34: 5000 | CH34: 5000 | CI34: 5000 | CJ34: 5000 | CK34: 5000 | CL34: 5000 | CM34: 5000 | CN34: 5000 | CO34: 5000 | CP34: 5000 | CQ34: 5000 | CR34: 5000 | CS34: 5000 | CT34: 5000 | CU34: 5000 | CV34: 5000 | CW34: 5000 | CX34: 5000 | CY34: 5000 | CZ34: 5000 | DA34: 5000 | DB34: 5000 | DC34: 5000 | DD34: 5000 | DE34: 5000 | DF34: 5000 | DG34: 5000 | DH34: 5000 | DI34: 5000 | DJ34: 5000 | DK34: 5000 | DL34: 5000 | DM34: 5000 | DN34: 5000 | DO34: 5000 | DP34: 5000 | DQ34: 5000 | DR34: 5000 | DS34: 5000 | DT34: 5000 | DU34: 5000 | DV34: 5000 | DW34: 5000 | DX34: 5000 | DY34: 5000 | DZ34: 5000 | EA34: 5000 | EB34: 5000 | EC34: 5000 | ED34: 5000 | EE34: 5000 | EF34: 5000 | EG34: 5000 | EH34: 5000 | EI34: 5000 | EJ34: 5000 | EK34: 5000 | EL34: 5000 | EM34: 5000 | EN34: 5000 | EO34: 5000 | EP34: 5000 | EQ34: 5000 | ER34: 5000 | ES34: 5000 | ET34: 5000 | EU34: 5000 | EV34: 5000 | EW34: 5000 | EX34: 5000 | EY34: 5000 | EZ34: 5000 | FA34: 5000 | FB34: 5000 | FC34: 5000 | FD34: 5000 | FE34: 5000 | FF34: 5000 | FG34: 5000 | FH34: 5000 | FI34: 5000 | FJ34: 5000 | FK34: 5000 | FL34: 5000 | FM34: 5000 | FN34: 5000 | FO34: 5000 | FP34: 5000 | FQ34: 5000 | FR34: 5000 | FS34: 5000 | FT34: 5000 | FU34: 5000 | FV34: 5000 | FW34: 5000 | FX34: 5000 | FY34: 5000 | FZ34: 5000 | GA34: 5000 | GB34: 5000 | GC34: 5000 | GD34: 5000 | GE34: 5000 | GF34: 5000 | GG34: 5000 | GH34: 5000 | GI34: 5000 | GJ34: 5000 | GK34: 5000 | GL34: 5000 | GM34: 5000
A35: 2 | B35: 1 | C35: 13 | D35: 4000 | E35: 4000 | F35: 4000 | G35: 4000 | H35: 4000 | I35: 4000 | J35: 4000 | K35: 4000 | L35: 4000 | M35: 4000 | N35: 4000 | O35: 4000 | P35: 5000 | Q35: 5000 | R35: 5000 | S35: 5000 | T35: 5000 | U35: 5000 | V35: 5000 | W35: 5000 | X35: 5000 | Y35: 5000 | Z35: 5000 | AA35: 5000 | AB35: 5000 | AC35: 5000 | AD35: 5000 | AE35: 5000 | AF35: 5000 | AG35: 5000 | AH35: 5000 | AI35: 5000 | AJ35: 5000 | AK35: 5000 | AL35: 5000 | AM35: 5000 | AN35: 5000 | AO35: 5000 | AP35: 5000 | AQ35: 5000 | AR35: 5000 | AS35: 5000 | AT35: 5000 | AU35: 5000 | AV35: 5000 | AW35: 5000 | AX35: 5000 | AY35: 5000 | AZ35: 5000 | BA35: 5000 | BB35: 5000 | BC35: 5000 | BD35: 5000 | BE35: 5000 | BF35: 5000 | BG35: 5000 | BH35: 5000 | BI35: 5000 | BJ35: 5000 | BK35: 5000 | BL35: 5000 | BM35: 5000 | BN35: 5000 | BO35: 5000 | BP35: 5000 | BQ35: 5000 | BR35: 5000 | BS35: 5000 | BT35: 5000 | BU35: 5000 | BV35: 5000 | BW35: 5000 | BX35: 5000 | BY35: 5000 | BZ35: 5000 | CA35: 5000 | CB35: 5000 | CC35: 5000 | CD35: 5000 | CE35: 5000 | CF35: 5000 | CG35: 5000 | CH35: 5000 | CI35: 5000 | CJ35: 5000 | CK35: 5000 | CL35: 5000 | CM35: 5000 | CN35: 5000 | CO35: 5000 | CP35: 5000 | CQ35: 5000 | CR35: 5000 | CS35: 5000 | CT35: 5000 | CU35: 5000 | CV35: 5000 | CW35: 5000 | CX35: 5000 | CY35: 5000 | CZ35: 5000 | DA35: 5000 | DB35: 5000 | DC35: 5000 | DD35: 5000 | DE35: 5000 | DF35: 5000 | DG35: 5000 | DH35: 5000 | DI35: 5000 | DJ35: 5000 | DK35: 5000 | DL35: 5000 | DM35: 5000 | DN35: 5000 | DO35: 5000 | DP35: 5000 | DQ35: 5000 | DR35: 5000 | DS35: 5000 | DT35: 5000 | DU35: 5000 | DV35: 5000 | DW35: 5000 | DX35: 5000 | DY35: 5000 | DZ35: 5000 | EA35: 5000 | EB35: 5000 | EC35: 5000 | ED35: 5000 | EE35: 5000 | EF35: 5000 | EG35: 5000 | EH35: 5000 | EI35: 5000 | EJ35: 5000 | EK35: 5000 | EL35: 5000 | EM35: 5000 | EN35: 5000 | EO35: 5000 | EP35: 5000 | EQ35: 5000 | ER35: 5000 | ES35: 5000 | ET35: 5000 | EU35: 5000 | EV35: 5000 | EW35: 5000 | EX35: 5000 | EY35: 5000 | EZ35: 5000 | FA35: 5000 | FB35: 5000 | FC35: 5000 | FD35: 5000 | FE35: 5000 | FF35: 5000 | FG35: 5000 | FH35: 5000 | FI35: 5000 | FJ35: 5000 | FK35: 5000 | FL35: 5000 | FM35: 5000 | FN35: 5000 | FO35: 5000 | FP35: 5000 | FQ35: 5000 | FR35: 5000 | FS35: 5000 | FT35: 5000 | FU35: 5000 | FV35: 5000 | FW35: 5000 | FX35: 5000 | FY35: 5000 | FZ35: 5000 | GA35: 5000 | GB35: 5000 | GC35: 5000 | GD35: 5000 | GE35: 5000 | GF35: 5000 | GG35: 5000 | GH35: 5000 | GI35: 5000 | GJ35: 5000 | GK35: 5000 | GL35: 5000 | GM35: 5000
A36: 3 | B36: 1 | C36: 13 | D36: 4000 | E36: 4000 | F36: 4000 | G36: 4000 | H36: 4000 | I36: 4000 | J36: 4000 | K36: 4000 | L36: 4000 | M36: 4000 | N36: 4000 | O36: 4000 | P36: 5000 | Q36: 5000 | R36: 5000 | S36: 5000 | T36: 5000 | U36: 5000 | V36: 5000 | W36: 5000 | X36: 5000 | Y36: 5000 | Z36: 5000 | AA36: 5000 | AB36: 5000 | AC36: 5000 | AD36: 5000 | AE36: 5000 | AF36: 5000 | AG36: 5000 | AH36: 5000 | AI36: 5000 | AJ36: 5000 | AK36: 5000 | AL36: 5000 | AM36: 5000 | AN36: 5000 | AO36: 5000 | AP36: 5000 | AQ36: 5000 | AR36: 5000 | AS36: 5000 | AT36: 5000 | AU36: 5000 | AV36: 5000 | AW36: 5000 | AX36: 5000 | AY36: 5000 | AZ36: 5000 | BA36: 5000 | BB36: 5000 | BC36: 5000 | BD36: 5000 | BE36: 5000 | BF36: 5000 | BG36: 5000 | BH36: 5000 | BI36: 5000 | BJ36: 5000 | BK36: 5000 | BL36: 5000 | BM36: 5000 | BN36: 5000 | BO36: 5000 | BP36: 5000 | BQ36: 5000 | BR36: 5000 | BS36: 5000 | BT36: 5000 | BU36: 5000 | BV36: 5000 | BW36: 5000 | BX36: 5000 | BY36: 5000 | BZ36: 5000 | CA36: 5000 | CB36: 5000 | CC36: 5000 | CD36: 5000 | CE36: 5000 | CF36: 5000 | CG36: 5000 | CH36: 5000 | CI36: 5000 | CJ36: 5000 | CK36: 5000 | CL36: 5000 | CM36: 5000 | CN36: 5000 | CO36: 5000 | CP36: 5000 | CQ36: 5000 | CR36: 5000 | CS36: 5000 | CT36: 5000 | CU36: 5000 | CV36: 5000 | CW36: 5000 | CX36: 5000 | CY36: 5000 | CZ36: 5000 | DA36: 5000 | DB36: 5000 | DC36: 5000 | DD36: 5000 | DE36: 5000 | DF36: 5000 | DG36: 5000 | DH36: 5000 | DI36: 5000 | DJ36: 5000 | DK36: 5000 | DL36: 5000 | DM36: 5000 | DN36: 5000 | DO36: 5000 | DP36: 5000 | DQ36: 5000 | DR36: 5000 | DS36: 5000 | DT36: 5000 | DU36: 5000 | DV36: 5000 | DW36: 5000 | DX36: 5000 | DY36: 5000 | DZ36: 5000 | EA36: 5000 | EB36: 5000 | EC36: 5000 | ED36: 5000 | EE36: 5000 | EF36: 5000 | EG36: 5000 | EH36: 5000 | EI36: 5000 | EJ36: 5000 | EK36: 5000 | EL36: 5000 | EM36: 5000 | EN36: 5000 | EO36: 5000 | EP36: 5000 | EQ36: 5000 | ER36: 5000 | ES36: 5000 | ET36: 5000 | EU36: 5000 | EV36: 5000 | EW36: 5000 | EX36: 5000 | EY36: 5000 | EZ36: 5000 | FA36: 5000 | FB36: 5000 | FC36: 5000 | FD36: 5000 | FE36: 5000 | FF36: 5000 | FG36: 5000 | FH36: 5000 | FI36: 5000 | FJ36: 5000 | FK36: 5000 | FL36: 5000 | FM36: 5000 | FN36: 5000 | FO36: 5000 | FP36: 5000 | FQ36: 5000 | FR36: 5000 | FS36: 5000 | FT36: 5000 | FU36: 5000 | FV36: 5000 | FW36: 5000 | FX36: 5000 | FY36: 5000 | FZ36: 5000 | GA36: 5000 | GB36: 5000 | GC36: 5000 | GD36: 5000 | GE36: 5000 | GF36: 5000 | GG36: 5000 | GH36: 5000 | GI36: 5000 | GJ36: 5000 | GK36: 5000 | GL36: 5000 | GM36: 5000
A37: 4 | B37: 1 | C37: 13 | D37: 4000 | E37: 4000 | F37: 4000 | G37: 4000 | H37: 4000 | I37: 4000 | J37: 4000 | K37: 4000 | L37: 4000 | M37: 4000 | N37: 4000 | O37: 4000 | P37: 5000 | Q37: 5000 | R37: 5000 | S37: 5000 | T37: 5000 | U37: 5000 | V37: 5000 | W37: 5000 | X37: 5000 | Y37: 5000 | Z37: 5000 | AA37: 5000 | AB37: 5000 | AC37: 5000 | AD37: 5000 | AE37: 5000 | AF37: 5000 | AG37: 5000 | AH37: 5000 | AI37: 5000 | AJ37: 5000 | AK37: 5000 | AL37: 5000 | AM37: 5000 | AN37: 5000 | AO37: 5000 | AP37: 5000 | AQ37: 5000 | AR37: 5000 | AS37: 5000 | AT37: 5000 | AU37: 5000 | AV37: 5000 | AW37: 5000 | AX37: 5000 | AY37: 5000 | AZ37: 5000 | BA37: 5000 | BB37: 5000 | BC37: 5000 | BD37: 5000 | BE37: 5000 | BF37: 5000 | BG37: 5000 | BH37: 5000 | BI37: 5000 | BJ37: 5000 | BK37: 5000 | BL37: 5000 | BM37: 5000 | BN37: 5000 | BO37: 5000 | BP37: 5000 | BQ37: 5000 | BR37: 5000 | BS37: 5000 | BT37: 5000 | BU37: 5000 | BV37: 5000 | BW37: 5000 | BX37: 5000 | BY37: 5000 | BZ37: 5000 | CA37: 5000 | CB37: 5000 | CC37: 5000 | CD37: 5000 | CE37: 5000 | CF37: 5000 | CG37: 5000 | CH37: 5000 | CI37: 5000 | CJ37: 5000 | CK37: 5000 | CL37: 5000 | CM37: 5000 | CN37: 5000 | CO37: 5000 | CP37: 5000 | CQ37: 5000 | CR37: 5000 | CS37: 5000 | CT37: 5000 | CU37: 5000 | CV37: 5000 | CW37: 5000 | CX37: 5000 | CY37: 5000 | CZ37: 5000 | DA37: 5000 | DB37: 5000 | DC37: 5000 | DD37: 5000 | DE37: 5000 | DF37: 5000 | DG37: 5000 | DH37: 5000 | DI37: 5000 | DJ37: 5000 | DK37: 5000 | DL37: 5000 | DM37: 5000 | DN37: 5000 | DO37: 5000 | DP37: 5000 | DQ37: 5000 | DR37: 5000 | DS37: 5000 | DT37: 5000 | DU37: 5000 | DV37: 5000 | DW37: 5000 | DX37: 5000 | DY37: 5000 | DZ37: 5000 | EA37: 5000 | EB37: 5000 | EC37: 5000 | ED37: 5000 | EE37: 5000 | EF37: 5000 | EG37: 5000 | EH37: 5000 | EI37: 5000 | EJ37: 5000 | EK37: 5000 | EL37: 5000 | EM37: 5000 | EN37: 5000 | EO37: 5000 | EP37: 5000 | EQ37: 5000 | ER37: 5000 | ES37: 5000 | ET37: 5000 | EU37: 5000 | EV37: 5000 | EW37: 5000 | EX37: 5000 | EY37: 5000 | EZ37: 5000 | FA37: 5000 | FB37: 5000 | FC37: 5000 | FD37: 5000 | FE37: 5000 | FF37: 5000 | FG37: 5000 | FH37: 5000 | FI37: 5000 | FJ37: 5000 | FK37: 5000 | FL37: 5000 | FM37: 5000 | FN37: 5000 | FO37: 5000 | FP37: 5000 | FQ37: 5000 | FR37: 5000 | FS37: 5000 | FT37: 5000 | FU37: 5000 | FV37: 5000 | FW37: 5000 | FX37: 5000 | FY37: 5000 | FZ37: 5000 | GA37: 5000 | GB37: 5000 | GC37: 5000 | GD37: 5000 | GE37: 5000 | GF37: 5000 | GG37: 5000 | GH37: 5000 | GI37: 5000 | GJ37: 5000 | GK37: 5000 | GL37: 5000 | GM37: 5000
A38: 1 | B38: 1 | C38: 14 | D38: 2500 | E38: 2500 | F38: 2500 | G38: 2500 | H38: 2500 | I38: 2500 | J38: 2500 | K38: 2500 | L38: 2500 | M38: 2500 | N38: 2500 | O38: 2500 | P38: 4200 | Q38: 4200 | R38: 4200 | S38: 4200 | T38: 4200 | U38: 4200 | V38: 4200 | W38: 4200 | X38: 4200 | Y38: 4200 | Z38: 4200 | AA38: 4200 | AB38: 4200 | AC38: 4200 | AD38: 4200 | AE38: 4200 | AF38: 4200 | AG38: 4200 | AH38: 4200 | AI38: 4200 | AJ38: 4200 | AK38: 4200 | AL38: 4200 | AM38: 4200 | AN38: 4200 | AO38: 4200 | AP38: 4200 | AQ38: 4200 | AR38: 4200 | AS38: 4200 | AT38: 4200 | AU38: 4200 | AV38: 4200 | AW38: 4200 | AX38: 4200 | AY38: 4200 | AZ38: 4200 | BA38: 4200 | BB38: 4200 | BC38: 4200 | BD38: 4200 | BE38: 4200 | BF38: 4200 | BG38: 4200 | BH38: 4200 | BI38: 4200 | BJ38: 4200 | BK38: 4200 | BL38: 4200 | BM38: 4200 | BN38: 4200 | BO38: 4200 | BP38: 4200 | BQ38: 4200 | BR38: 4200 | BS38: 4200 | BT38: 4200 | BU38: 4200 | BV38: 4200 | BW38: 4200 | BX38: 4200 | BY38: 4200 | BZ38: 4200 | CA38: 4200 | CB38: 4200 | CC38: 4200 | CD38: 4200 | CE38: 4200 | CF38: 4200 | CG38: 4200 | CH38: 4200 | CI38: 4200 | CJ38: 4200 | CK38: 4200 | CL38: 4200 | CM38: 4200 | CN38: 4200 | CO38: 4200 | CP38: 4200 | CQ38: 4200 | CR38: 4200 | CS38: 4200 | CT38: 4200 | CU38: 4200 | CV38: 4200 | CW38: 4200 | CX38: 4200 | CY38: 4200 | CZ38: 4200 | DA38: 4200 | DB38: 4200 | DC38: 4200 | DD38: 4200 | DE38: 4200 | DF38: 4200 | DG38: 4200 | DH38: 4200 | DI38: 4200 | DJ38: 4200 | DK38: 4200 | DL38: 4200 | DM38: 4200 | DN38: 4200 | DO38: 4200 | DP38: 4200 | DQ38: 4200 | DR38: 4200 | DS38: 4200 | DT38: 4200 | DU38: 4200 | DV38: 4200 | DW38: 4200 | DX38: 4200 | DY38: 4200 | DZ38: 4200 | EA38: 4200 | EB38: 4200 | EC38: 4200 | ED38: 4200 | EE38: 4200 | EF38: 4200 | EG38: 4200 | EH38: 4200 | EI38: 4200 | EJ38: 4200 | EK38: 4200 | EL38: 4200 | EM38: 4200 | EN38: 4200 | EO38: 4200 | EP38: 4200 | EQ38: 4200 | ER38: 4200 | ES38: 4200 | ET38: 4200 | EU38: 4200 | EV38: 4200 | EW38: 4200 | EX38: 4200 | EY38: 4200 | EZ38: 4200 | FA38: 4200 | FB38: 4200 | FC38: 4200 | FD38: 4200 | FE38: 4200 | FF38: 4200 | FG38: 4200 | FH38: 4200 | FI38: 4200 | FJ38: 4200 | FK38: 4200 | FL38: 4200 | FM38: 4200 | FN38: 4200 | FO38: 4200 | FP38: 4200 | FQ38: 4200 | FR38: 4200 | FS38: 4200 | FT38: 4200 | FU38: 4200 | FV38: 4200 | FW38: 4200 | FX38: 4200 | FY38: 4200 | FZ38: 4200 | GA38: 4200 | GB38: 4200 | GC38: 4200 | GD38: 4200 | GE38: 4200 | GF38: 4200 | GG38: 4200 | GH38: 4200 | GI38: 4200 | GJ38: 4200 | GK38: 4200 | GL38: 4200 | GM38: 4200
A39: 2 | B39: 1 | C39: 14 | D39: 2500 | E39: 2500 | F39: 2500 | G39: 2500 | H39: 2500 | I39: 2500 | J39: 2500 | K39: 2500 | L39: 2500 | M39: 2500 | N39: 2500 | O39: 2500 | P39: 4200 | Q39: 4200 | R39: 4200 | S39: 4200 | T39: 4200 | U39: 4200 | V39: 4200 | W39: 4200 | X39: 4200 | Y39: 4200 | Z39: 4200 | AA39: 4200 | AB39: 4200 | AC39: 4200 | AD39: 4200 | AE39: 4200 | AF39: 4200 | AG39: 4200 | AH39: 4200 | AI39: 4200 | AJ39: 4200 | AK39: 4200 | AL39: 4200 | AM39: 4200 | AN39: 4200 | AO39: 4200 | AP39: 4200 | AQ39: 4200 | AR39: 4200 | AS39: 4200 | AT39: 4200 | AU39: 4200 | AV39: 4200 | AW39: 4200 | AX39: 4200 | AY39: 4200 | AZ39: 4200 | BA39: 4200 | BB39: 4200 | BC39: 4200 | BD39: 4200 | BE39: 4200 | BF39: 4200 | BG39: 4200 | BH39: 4200 | BI39: 4200 | BJ39: 4200 | BK39: 4200 | BL39: 4200 | BM39: 4200 | BN39: 4200 | BO39: 4200 | BP39: 4200 | BQ39: 4200 | BR39: 4200 | BS39: 4200 | BT39: 4200 | BU39: 4200 | BV39: 4200 | BW39: 4200 | BX39: 4200 | BY39: 4200 | BZ39: 4200 | CA39: 4200 | CB39: 4200 | CC39: 4200 | CD39: 4200 | CE39: 4200 | CF39: 4200 | CG39: 4200 | CH39: 4200 | CI39: 4200 | CJ39: 4200 | CK39: 4200 | CL39: 4200 | CM39: 4200 | CN39: 4200 | CO39: 4200 | CP39: 4200 | CQ39: 4200 | CR39: 4200 | CS39: 4200 | CT39: 4200 | CU39: 4200 | CV39: 4200 | CW39: 4200 | CX39: 4200 | CY39: 4200 | CZ39: 4200 | DA39: 4200 | DB39: 4200 | DC39: 4200 | DD39: 4200 | DE39: 4200 | DF39: 4200 | DG39: 4200 | DH39: 4200 | DI39: 4200 | DJ39: 4200 | DK39: 4200 | DL39: 4200 | DM39: 4200 | DN39: 4200 | DO39: 4200 | DP39: 4200 | DQ39: 4200 | DR39: 4200 | DS39: 4200 | DT39: 4200 | DU39: 4200 | DV39: 4200 | DW39: 4200 | DX39: 4200 | DY39: 4200 | DZ39: 4200 | EA39: 4200 | EB39: 4200 | EC39: 4200 | ED39: 4200 | EE39: 4200 | EF39: 4200 | EG39: 4200 | EH39: 4200 | EI39: 4200 | EJ39: 4200 | EK39: 4200 | EL39: 4200 | EM39: 4200 | EN39: 4200 | EO39: 4200 | EP39: 4200 | EQ39: 4200 | ER39: 4200 | ES39: 4200 | ET39: 4200 | EU39: 4200 | EV39: 4200 | EW39: 4200 | EX39: 4200 | EY39: 4200 | EZ39: 4200 | FA39: 4200 | FB39: 4200 | FC39: 4200 | FD39: 4200 | FE39: 4200 | FF39: 4200 | FG39: 4200 | FH39: 4200 | FI39: 4200 | FJ39: 4200 | FK39: 4200 | FL39: 4200 | FM39: 4200 | FN39: 4200 | FO39: 4200 | FP39: 4200 | FQ39: 4200 | FR39: 4200 | FS39: 4200 | FT39: 4200 | FU39: 4200 | FV39: 4200 | FW39: 4200 | FX39: 4200 | FY39: 4200 | FZ39: 4200 | GA39: 4200 | GB39: 4200 | GC39: 4200 | GD39: 4200 | GE39: 4200 | GF39: 4200 | GG39: 4200 | GH39: 4200 | GI39: 4200 | GJ39: 4200 | GK39: 4200 | GL39: 4200 | GM39: 4200
A40: 3 | B40: 1 | C40: 14 | D40: 2500 | E40: 2500 | F40: 2500 | G40: 2500 | H40: 2500 | I40: 2500 | J40: 2500 | K40: 2500 | L40: 2500 | M40: 2500 | N40: 2500 | O40: 2500 | P40: 4200 | Q40: 4200 | R40: 4200 | S40: 4200 | T40: 4200 | U40: 4200 | V40: 4200 | W40: 4200 | X40: 4200 | Y40: 4200 | Z40: 4200 | AA40: 4200 | AB40: 4200 | AC40: 4200 | AD40: 4200 | AE40: 4200 | AF40: 4200 | AG40: 4200 | AH40: 4200 | AI40: 4200 | AJ40: 4200 | AK40: 4200 | AL40: 4200 | AM40: 4200 | AN40: 4200 | AO40: 4200 | AP40: 4200 | AQ40: 4200 | AR40: 4200 | AS40: 4200 | AT40: 4200 | AU40: 4200 | AV40: 4200 | AW40: 4200 | AX40: 4200 | AY40: 4200 | AZ40: 4200 | BA40: 4200 | BB40: 4200 | BC40: 4200 | BD40: 4200 | BE40: 4200 | BF40: 4200 | BG40: 4200 | BH40: 4200 | BI40: 4200 | BJ40: 4200 | BK40: 4200 | BL40: 4200 | BM40: 4200 | BN40: 4200 | BO40: 4200 | BP40: 4200 | BQ40: 4200 | BR40: 4200 | BS40: 4200 | BT40: 4200 | BU40: 4200 | BV40: 4200 | BW40: 4200 | BX40: 4200 | BY40: 4200 | BZ40: 4200 | CA40: 4200 | CB40: 4200 | CC40: 4200 | CD40: 4200 | CE40: 4200 | CF40: 4200 | CG40: 4200 | CH40: 4200 | CI40: 4200 | CJ40: 4200 | CK40: 4200 | CL40: 4200 | CM40: 4200 | CN40: 4200 | CO40: 4200 | CP40: 4200 | CQ40: 4200 | CR40: 4200 | CS40: 4200 | CT40: 4200 | CU40: 4200 | CV40: 4200 | CW40: 4200 | CX40: 4200 | CY40: 4200 | CZ40: 4200 | DA40: 4200 | DB40: 4200 | DC40: 4200 | DD40: 4200 | DE40: 4200 | DF40: 4200 | DG40: 4200 | DH40: 4200 | DI40: 4200 | DJ40: 4200 | DK40: 4200 | DL40: 4200 | DM40: 4200 | DN40: 4200 | DO40: 4200 | DP40: 4200 | DQ40: 4200 | DR40: 4200 | DS40: 4200 | DT40: 4200 | DU40: 4200 | DV40: 4200 | DW40: 4200 | DX40: 4200 | DY40: 4200 | DZ40: 4200 | EA40: 4200 | EB40: 4200 | EC40: 4200 | ED40: 4200 | EE40: 4200 | EF40: 4200 | EG40: 4200 | EH40: 4200 | EI40: 4200 | EJ40: 4200 | EK40: 4200 | EL40: 4200 | EM40: 4200 | EN40: 4200 | EO40: 4200 | EP40: 4200 | EQ40: 4200 | ER40: 4200 | ES40: 4200 | ET40: 4200 | EU40: 4200 | EV40: 4200 | EW40: 4200 | EX40: 4200 | EY40: 4200 | EZ40: 4200 | FA40: 4200 | FB40: 4200 | FC40: 4200 | FD40: 4200 | FE40: 4200 | FF40: 4200 | FG40: 4200 | FH40: 4200 | FI40: 4200 | FJ40: 4200 | FK40: 4200 | FL40: 4200 | FM40: 4200 | FN40: 4200 | FO40: 4200 | FP40: 4200 | FQ40: 4200 | FR40: 4200 | FS40: 4200 | FT40: 4200 | FU40: 4200 | FV40: 4200 | FW40: 4200 | FX40: 4200 | FY40: 4200 | FZ40: 4200 | GA40: 4200 | GB40: 4200 | GC40: 4200 | GD40: 4200 | GE40: 4200 | GF40: 4200 | GG40: 4200 | GH40: 4200 | GI40: 4200 | GJ40: 4200 | GK40: 4200 | GL40: 4200 | GM40: 4200
A41: 4 | B41: 1 | C41: 14 | D41: 2500 | E41: 2500 | F41: 2500 | G41: 2500 | H41: 2500 | I41: 2500 | J41: 2500 | K41: 2500 | L41: 2500 | M41: 2500 | N41: 2500 | O41: 2500 | P41: 4200 | Q41: 4200 | R41: 4200 | S41: 4200 | T41: 4200 | U41: 4200 | V41: 4200 | W41: 4200 | X41: 4200 | Y41: 4200 | Z41: 4200 | AA41: 4200 | AB41: 4200 | AC41: 4200 | AD41: 4200 | AE41: 4200 | AF41: 4200 | AG41: 4200 | AH41: 4200 | AI41: 4200 | AJ41: 4200 | AK41: 4200 | AL41: 4200 | AM41: 4200 | AN41: 4200 | AO41: 4200 | AP41: 4200 | AQ41: 4200 | AR41: 4200 | AS41: 4200 | AT41: 4200 | AU41: 4200 | AV41: 4200 | AW41: 4200 | AX41: 4200 | AY41: 4200 | AZ41: 4200 | BA41: 4200 | BB41: 4200 | BC41: 4200 | BD41: 4200 | BE41: 4200 | BF41: 4200 | BG41: 4200 | BH41: 4200 | BI41: 4200 | BJ41: 4200 | BK41: 4200 | BL41: 4200 | BM41: 4200 | BN41: 4200 | BO41: 4200 | BP41: 4200 | BQ41: 4200 | BR41: 4200 | BS41: 4200 | BT41: 4200 | BU41: 4200 | BV41: 4200 | BW41: 4200 | BX41: 4200 | BY41: 4200 | BZ41: 4200 | CA41: 4200 | CB41: 4200 | CC41: 4200 | CD41: 4200 | CE41: 4200 | CF41: 4200 | CG41: 4200 | CH41: 4200 | CI41: 4200 | CJ41: 4200 | CK41: 4200 | CL41: 4200 | CM41: 4200 | CN41: 4200 | CO41: 4200 | CP41: 4200 | CQ41: 4200 | CR41: 4200 | CS41: 4200 | CT41: 4200 | CU41: 4200 | CV41: 4200 | CW41: 4200 | CX41: 4200 | CY41: 4200 | CZ41: 4200 | DA41: 4200 | DB41: 4200 | DC41: 4200 | DD41: 4200 | DE41: 4200 | DF41: 4200 | DG41: 4200 | DH41: 4200 | DI41: 4200 | DJ41: 4200 | DK41: 4200 | DL41: 4200 | DM41: 4200 | DN41: 4200 | DO41: 4200 | DP41: 4200 | DQ41: 4200 | DR41: 4200 | DS41: 4200 | DT41: 4200 | DU41: 4200 | DV41: 4200 | DW41: 4200 | DX41: 4200 | DY41: 4200 | DZ41: 4200 | EA41: 4200 | EB41: 4200 | EC41: 4200 | ED41: 4200 | EE41: 4200 | EF41: 4200 | EG41: 4200 | EH41: 4200 | EI41: 4200 | EJ41: 4200 | EK41: 4200 | EL41: 4200 | EM41: 4200 | EN41: 4200 | EO41: 4200 | EP41: 4200 | EQ41: 4200 | ER41: 4200 | ES41: 4200 | ET41: 4200 | EU41: 4200 | EV41: 4200 | EW41: 4200 | EX41: 4200 | EY41: 4200 | EZ41: 4200 | FA41: 4200 | FB41: 4200 | FC41: 4200 | FD41: 4200 | FE41: 4200 | FF41: 4200 | FG41: 4200 | FH41: 4200 | FI41: 4200 | FJ41: 4200 | FK41: 4200 | FL41: 4200 | FM41: 4200 | FN41: 4200 | FO41: 4200 | FP41: 4200 | FQ41: 4200 | FR41: 4200 | FS41: 4200 | FT41: 4200 | FU41: 4200 | FV41: 4200 | FW41: 4200 | FX41: 4200 | FY41: 4200 | FZ41: 4200 | GA41: 4200 | GB41: 4200 | GC41: 4200 | GD41: 4200 | GE41: 4200 | GF41: 4200 | GG41: 4200 | GH41: 4200 | GI41: 4200 | GJ41: 4200 | GK41: 4200 | GL41: 4200 | GM41: 4200
A42: 1 | B42: 2 | C42: 1 | D42: 4500 | E42: 4500 | F42: 4500 | G42: 4500 | H42: 4500 | I42: 4500 | J42: 4500 | K42: 4500 | L42: 4500 | M42: 4500 | N42: 4500 | O42: 4500 | P42: 5700 | Q42: 5700 | R42: 5700 | S42: 5700 | T42: 5700 | U42: 5700 | V42: 5700 | W42: 5700 | X42: 5700 | Y42: 5700 | Z42: 5700 | AA42: 5700 | AB42: 5700 | AC42: 5700 | AD42: 5700 | AE42: 5700 | AF42: 5700 | AG42: 5700 | AH42: 5700 | AI42: 5700 | AJ42: 5700 | AK42: 5700 | AL42: 5700 | AM42: 5700 | AN42: 5700 | AO42: 5700 | AP42: 5700 | AQ42: 5700 | AR42: 5700 | AS42: 5700 | AT42: 5700 | AU42: 5700 | AV42: 5700 | AW42: 5700 | AX42: 5700 | AY42: 5700 | AZ42: 5700 | BA42: 5700 | BB42: 5700 | BC42: 5700 | BD42: 5700 | BE42: 5700 | BF42: 5700 | BG42: 5700 | BH42: 5700 | BI42: 5700 | BJ42: 5700 | BK42: 5700 | BL42: 5700 | BM42: 5700 | BN42: 5700 | BO42: 5700 | BP42: 5700 | BQ42: 5700 | BR42: 5700 | BS42: 5700 | BT42: 5700 | BU42: 5700 | BV42: 5700 | BW42: 5700 | BX42: 7500 | BY42: 7500 | BZ42: 7500 | CA42: 7500 | CB42: 7500 | CC42: 7500 | CD42: 7500 | CE42: 7500 | CF42: 7500 | CG42: 7500 | CH42: 7500 | CI42: 7500 | CJ42: 7500 | CK42: 7500 | CL42: 7500 | CM42: 7500 | CN42: 7500 | CO42: 7500 | CP42: 7500 | CQ42: 7500 | CR42: 7500 | CS42: 7500 | CT42: 7500 | CU42: 7500 | CV42: 7500 | CW42: 7500 | CX42: 7500 | CY42: 7500 | CZ42: 7500 | DA42: 7500 | DB42: 7500 | DC42: 7500 | DD42: 7500 | DE42: 7500 | DF42: 7500 | DG42: 7500 | DH42: 7500 | DI42: 7500 | DJ42: 7500 | DK42: 7500 | DL42: 7500 | DM42: 7500 | DN42: 7500 | DO42: 7500 | DP42: 7500 | DQ42: 7500 | DR42: 7500 | DS42: 7500 | DT42: 7500 | DU42: 7500 | DV42: 7500 | DW42: 7500 | DX42: 7500 | DY42: 7500 | DZ42: 7500 | EA42: 7500 | EB42: 7500 | EC42: 7500 | ED42: 7500 | EE42: 7500 | EF42: 7500 | EG42: 7500 | EH42: 7500 | EI42: 7500 | EJ42: 7500 | EK42: 7500 | EL42: 7500 | EM42: 7500 | EN42: 7500 | EO42: 7500 | EP42: 7500 | EQ42: 7500 | ER42: 7500 | ES42: 7500 | ET42: 7500 | EU42: 7500 | EV42: 7500 | EW42: 7500 | EX42: 7500 | EY42: 7500 | EZ42: 7500 | FA42: 7500 | FB42: 7500 | FC42: 7500 | FD42: 7500 | FE42: 7500 | FF42: 7500 | FG42: 7500 | FH42: 7500 | FI42: 7500 | FJ42: 7500 | FK42: 7500 | FL42: 7500 | FM42: 7500 | FN42: 7500 | FO42: 7500 | FP42: 7500 | FQ42: 7500 | FR42: 7500 | FS42: 7500 | FT42: 7500 | FU42: 7500 | FV42: 7500 | FW42: 7500 | FX42: 7500 | FY42: 7500 | FZ42: 7500 | GA42: 7500 | GB42: 7500 | GC42: 7500 | GD42: 7500 | GE42: 7500 | GF42: 7500 | GG42: 7500 | GH42: 7500 | GI42: 7500 | GJ42: 7500 | GK42: 7500 | GL42: 7500 | GM42: 7500
A43: 2 | B43: 2 | C43: 1 | D43: 4500 | E43: 4500 | F43: 4500 | G43: 4500 | H43: 4500 | I43: 4500 | J43: 4500 | K43: 4500 | L43: 4500 | M43: 4500 | N43: 4500 | O43: 4500 | P43: 5700 | Q43: 5700 | R43: 5700 | S43: 5700 | T43: 5700 | U43: 5700 | V43: 5700 | W43: 5700 | X43: 5700 | Y43: 5700 | Z43: 5700 | AA43: 5700 | AB43: 5700 | AC43: 5700 | AD43: 5700 | AE43: 5700 | AF43: 5700 | AG43: 5700 | AH43: 5700 | AI43: 5700 | AJ43: 5700 | AK43: 5700 | AL43: 5700 | AM43: 5700 | AN43: 5700 | AO43: 5700 | AP43: 5700 | AQ43: 5700 | AR43: 5700 | AS43: 5700 | AT43: 5700 | AU43: 5700 | AV43: 5700 | AW43: 5700 | AX43: 5700 | AY43: 5700 | AZ43: 5700 | BA43: 5700 | BB43: 5700 | BC43: 5700 | BD43: 5700 | BE43: 5700 | BF43: 5700 | BG43: 5700 | BH43: 5700 | BI43: 5700 | BJ43: 5700 | BK43: 5700 | BL43: 5700 | BM43: 5700 | BN43: 5700 | BO43: 5700 | BP43: 5700 | BQ43: 5700 | BR43: 5700 | BS43: 5700 | BT43: 5700 | BU43: 5700 | BV43: 5700 | BW43: 5700 | BX43: 7500 | BY43: 7500 | BZ43: 7500 | CA43: 7500 | CB43: 7500 | CC43: 7500 | CD43: 7500 | CE43: 7500 | CF43: 7500 | CG43: 7500 | CH43: 7500 | CI43: 7500 | CJ43: 7500 | CK43: 7500 | CL43: 7500 | CM43: 7500 | CN43: 7500 | CO43: 7500 | CP43: 7500 | CQ43: 7500 | CR43: 7500 | CS43: 7500 | CT43: 7500 | CU43: 7500 | CV43: 7500 | CW43: 7500 | CX43: 7500 | CY43: 7500 | CZ43: 7500 | DA43: 7500 | DB43: 7500 | DC43: 7500 | DD43: 7500 | DE43: 7500 | DF43: 7500 | DG43: 7500 | DH43: 7500 | DI43: 7500 | DJ43: 7500 | DK43: 7500 | DL43: 7500 | DM43: 7500 | DN43: 7500 | DO43: 7500 | DP43: 7500 | DQ43: 7500 | DR43: 7500 | DS43: 7500 | DT43: 7500 | DU43: 7500 | DV43: 7500 | DW43: 7500 | DX43: 7500 | DY43: 7500 | DZ43: 7500 | EA43: 7500 | EB43: 7500 | EC43: 7500 | ED43: 7500 | EE43: 7500 | EF43: 7500 | EG43: 7500 | EH43: 7500 | EI43: 7500 | EJ43: 7500 | EK43: 7500 | EL43: 7500 | EM43: 7500 | EN43: 7500 | EO43: 7500 | EP43: 7500 | EQ43: 7500 | ER43: 7500 | ES43: 7500 | ET43: 7500 | EU43: 7500 | EV43: 7500 | EW43: 7500 | EX43: 7500 | EY43: 7500 | EZ43: 7500 | FA43: 7500 | FB43: 7500 | FC43: 7500 | FD43: 7500 | FE43: 7500 | FF43: 7500 | FG43: 7500 | FH43: 7500 | FI43: 7500 | FJ43: 7500 | FK43: 7500 | FL43: 7500 | FM43: 7500 | FN43: 7500 | FO43: 7500 | FP43: 7500 | FQ43: 7500 | FR43: 7500 | FS43: 7500 | FT43: 7500 | FU43: 7500 | FV43: 7500 | FW43: 7500 | FX43: 7500 | FY43: 7500 | FZ43: 7500 | GA43: 7500 | GB43: 7500 | GC43: 7500 | GD43: 7500 | GE43: 7500 | GF43: 7500 | GG43: 7500 | GH43: 7500 | GI43: 7500 | GJ43: 7500 | GK43: 7500 | GL43: 7500 | GM43: 7500
A44: 3 | B44: 2 | C44: 1 | D44: 4500 | E44: 4500 | F44: 4500 | G44: 4500 | H44: 4500 | I44: 4500 | J44: 4500 | K44: 4500 | L44: 4500 | M44: 4500 | N44: 4500 | O44: 4500 | P44: 5700 | Q44: 5700 | R44: 5700 | S44: 5700 | T44: 5700 | U44: 5700 | V44: 5700 | W44: 5700 | X44: 5700 | Y44: 5700 | Z44: 5700 | AA44: 5700 | AB44: 5700 | AC44: 5700 | AD44: 5700 | AE44: 5700 | AF44: 5700 | AG44: 5700 | AH44: 5700 | AI44: 5700 | AJ44: 5700 | AK44: 5700 | AL44: 5700 | AM44: 5700 | AN44: 5700 | AO44: 5700 | AP44: 5700 | AQ44: 5700 | AR44: 5700 | AS44: 5700 | AT44: 5700 | AU44: 5700 | AV44: 5700 | AW44: 5700 | AX44: 5700 | AY44: 5700 | AZ44: 5700 | BA44: 5700 | BB44: 5700 | BC44: 5700 | BD44: 5700 | BE44: 5700 | BF44: 5700 | BG44: 5700 | BH44: 5700 | BI44: 5700 | BJ44: 5700 | BK44: 5700 | BL44: 5700 | BM44: 5700 | BN44: 5700 | BO44: 5700 | BP44: 5700 | BQ44: 5700 | BR44: 5700 | BS44: 5700 | BT44: 5700 | BU44: 5700 | BV44: 5700 | BW44: 5700 | BX44: 7500 | BY44: 7500 | BZ44: 7500 | CA44: 7500 | CB44: 7500 | CC44: 7500 | CD44: 7500 | CE44: 7500 | CF44: 7500 | CG44: 7500 | CH44: 7500 | CI44: 7500 | CJ44: 7500 | CK44: 7500 | CL44: 7500 | CM44: 7500 | CN44: 7500 | CO44: 7500 | CP44: 7500 | CQ44: 7500 | CR44: 7500 | CS44: 7500 | CT44: 7500 | CU44: 7500 | CV44: 7500 | CW44: 7500 | CX44: 7500 | CY44: 7500 | CZ44: 7500 | DA44: 7500 | DB44: 7500 | DC44: 7500 | DD44: 7500 | DE44: 7500 | DF44: 7500 | DG44: 7500 | DH44: 7500 | DI44: 7500 | DJ44: 7500 | DK44: 7500 | DL44: 7500 | DM44: 7500 | DN44: 7500 | DO44: 7500 | DP44: 7500 | DQ44: 7500 | DR44: 7500 | DS44: 7500 | DT44: 7500 | DU44: 7500 | DV44: 7500 | DW44: 7500 | DX44: 7500 | DY44: 7500 | DZ44: 7500 | EA44: 7500 | EB44: 7500 | EC44: 7500 | ED44: 7500 | EE44: 7500 | EF44: 7500 | EG44: 7500 | EH44: 7500 | EI44: 7500 | EJ44: 7500 | EK44: 7500 | EL44: 7500 | EM44: 7500 | EN44: 7500 | EO44: 7500 | EP44: 7500 | EQ44: 7500 | ER44: 7500 | ES44: 7500 | ET44: 7500 | EU44: 7500 | EV44: 7500 | EW44: 7500 | EX44: 7500 | EY44: 7500 | EZ44: 7500 | FA44: 7500 | FB44: 7500 | FC44: 7500 | FD44: 7500 | FE44: 7500 | FF44: 7500 | FG44: 7500 | FH44: 7500 | FI44: 7500 | FJ44: 7500 | FK44: 7500 | FL44: 7500 | FM44: 7500 | FN44: 7500 | FO44: 7500 | FP44: 7500 | FQ44: 7500 | FR44: 7500 | FS44: 7500 | FT44: 7500 | FU44: 7500 | FV44: 7500 | FW44: 7500 | FX44: 7500 | FY44: 7500 | FZ44: 7500 | GA44: 7500 | GB44: 7500 | GC44: 7500 | GD44: 7500 | GE44: 7500 | GF44: 7500 | GG44: 7500 | GH44: 7500 | GI44: 7500 | GJ44: 7500 | GK44: 7500 | GL44: 7500 | GM44: 7500
A45: 4 | B45: 2 | C45: 1 | D45: 4400 | E45: 4400 | F45: 4400 | G45: 4400 | H45: 4400 | I45: 4400 | J45: 4400 | K45: 4400 | L45: 4400 | M45: 4400 | N45: 4400 | O45: 4400 | P45: 5600 | Q45: 5600 | R45: 5600 | S45: 5600 | T45: 5600 | U45: 5600 | V45: 5600 | W45: 5600 | X45: 5600 | Y45: 5600 | Z45: 5600 | AA45: 5600 | AB45: 5600 | AC45: 5600 | AD45: 5600 | AE45: 5600 | AF45: 5600 | AG45: 5600 | AH45: 5600 | AI45: 5600 | AJ45: 5600 | AK45: 5600 | AL45: 5600 | AM45: 5600 | AN45: 5600 | AO45: 5600 | AP45: 5600 | AQ45: 5600 | AR45: 5600 | AS45: 5600 | AT45: 5600 | AU45: 5600 | AV45: 5600 | AW45: 5600 | AX45: 5600 | AY45: 5600 | AZ45: 5600 | BA45: 5600 | BB45: 5600 | BC45: 5600 | BD45: 5600 | BE45: 5600 | BF45: 5600 | BG45: 5600 | BH45: 5600 | BI45: 5600 | BJ45: 5600 | BK45: 5600 | BL45: 5600 | BM45: 5600 | BN45: 5600 | BO45: 5600 | BP45: 5600 | BQ45: 5600 | BR45: 5600 | BS45: 5600 | BT45: 5600 | BU45: 5600 | BV45: 5600 | BW45: 5600 | BX45: 7300 | BY45: 7300 | BZ45: 7300 | CA45: 7300 | CB45: 7300 | CC45: 7300 | CD45: 7300 | CE45: 7300 | CF45: 7300 | CG45: 7300 | CH45: 7300 | CI45: 7300 | CJ45: 7300 | CK45: 7300 | CL45: 7300 | CM45: 7300 | CN45: 7300 | CO45: 7300 | CP45: 7300 | CQ45: 7300 | CR45: 7300 | CS45: 7300 | CT45: 7300 | CU45: 7300 | CV45: 7300 | CW45: 7300 | CX45: 7300 | CY45: 7300 | CZ45: 7300 | DA45: 7300 | DB45: 7300 | DC45: 7300 | DD45: 7300 | DE45: 7300 | DF45: 7300 | DG45: 7300 | DH45: 7300 | DI45: 7300 | DJ45: 7300 | DK45: 7300 | DL45: 7300 | DM45: 7300 | DN45: 7300 | DO45: 7300 | DP45: 7300 | DQ45: 7300 | DR45: 7300 | DS45: 7300 | DT45: 7300 | DU45: 7300 | DV45: 7300 | DW45: 7300 | DX45: 7300 | DY45: 7300 | DZ45: 7300 | EA45: 7300 | EB45: 7300 | EC45: 7300 | ED45: 7300 | EE45: 7300 | EF45: 7300 | EG45: 7300 | EH45: 7300 | EI45: 7300 | EJ45: 7300 | EK45: 7300 | EL45: 7300 | EM45: 7300 | EN45: 7300 | EO45: 7300 | EP45: 7300 | EQ45: 7300 | ER45: 7300 | ES45: 7300 | ET45: 7300 | EU45: 7300 | EV45: 7300 | EW45: 7300 | EX45: 7300 | EY45: 7300 | EZ45: 7300 | FA45: 7300 | FB45: 7300 | FC45: 7300 | FD45: 7300 | FE45: 7300 | FF45: 7300 | FG45: 7300 | FH45: 7300 | FI45: 7300 | FJ45: 7300 | FK45: 7300 | FL45: 7300 | FM45: 7300 | FN45: 7300 | FO45: 7300 | FP45: 7300 | FQ45: 7300 | FR45: 7300 | FS45: 7300 | FT45: 7300 | FU45: 7300 | FV45: 7300 | FW45: 7300 | FX45: 7300 | FY45: 7300 | FZ45: 7300 | GA45: 7300 | GB45: 7300 | GC45: 7300 | GD45: 7300 | GE45: 7300 | GF45: 7300 | GG45: 7300 | GH45: 7300 | GI45: 7300 | GJ45: 7300 | GK45: 7300 | GL45: 7300 | GM45: 7300
A46: 1 | B46: 2 | C46: 5 | D46: 300 | E46: 300 | F46: 300 | G46: 300 | H46: 300 | I46: 300 | J46: 300 | K46: 300 | L46: 300 | M46: 300 | N46: 300 | O46: 300 | P46: 300 | Q46: 300 | R46: 300 | S46: 300 | T46: 300 | U46: 500 | V46: 500 | W46: 500 | X46: 500 | Y46: 500 | Z46: 500 | AA46: 500 | AB46: 500 | AC46: 500 | AD46: 500 | AE46: 500 | AF46: 500 | AG46: 500 | AH46: 500 | AI46: 500 | AJ46: 500 | AK46: 500 | AL46: 500 | AM46: 500 | AN46: 500 | AO46: 500 | AP46: 500 | AQ46: 500 | AR46: 500 | AS46: 500 | AT46: 500 | AU46: 500 | AV46: 500 | AW46: 500 | AX46: 500 | AY46: 500 | AZ46: 500 | BA46: 500 | BB46: 500 | BC46: 500 | BD46: 500 | BE46: 500 | BF46: 500 | BG46: 500 | BH46: 500 | BI46: 500 | BJ46: 500 | BK46: 500 | BL46: 500 | BM46: 500 | BN46: 500 | BO46: 500 | BP46: 500 | BQ46: 500 | BR46: 500 | BS46: 500 | BT46: 500 | BU46: 500 | BV46: 500 | BW46: 500 | BX46: 500 | BY46: 500 | BZ46: 500 | CA46: 500 | CB46: 500 | CC46: 500 | CD46: 500 | CE46: 500 | CF46: 500 | CG46: 500 | CH46: 500 | CI46: 500 | CJ46: 500 | CK46: 500 | CL46: 500 | CM46: 500 | CN46: 500 | CO46: 500 | CP46: 500 | CQ46: 500 | CR46: 500 | CS46: 500 | CT46: 500 | CU46: 500 | CV46: 500 | CW46: 500 | CX46: 500 | CY46: 500 | CZ46: 500 | DA46: 500 | DB46: 500 | DC46: 500 | DD46: 500 | DE46: 500 | DF46: 500 | DG46: 500 | DH46: 500 | DI46: 500 | DJ46: 500 | DK46: 500 | DL46: 500 | DM46: 500 | DN46: 500 | DO46: 500 | DP46: 500 | DQ46: 500 | DR46: 500 | DS46: 500 | DT46: 500 | DU46: 500 | DV46: 500 | DW46: 500 | DX46: 500 | DY46: 500 | DZ46: 500 | EA46: 500 | EB46: 500 | EC46: 500 | ED46: 500 | EE46: 500 | EF46: 500 | EG46: 500 | EH46: 500 | EI46: 500 | EJ46: 500 | EK46: 500 | EL46: 500 | EM46: 500 | EN46: 500 | EO46: 500 | EP46: 500 | EQ46: 500 | ER46: 500 | ES46: 500 | ET46: 500 | EU46: 500 | EV46: 500 | EW46: 500 | EX46: 500 | EY46: 500 | EZ46: 500 | FA46: 500 | FB46: 500 | FC46: 500 | FD46: 500 | FE46: 500 | FF46: 500 | FG46: 500 | FH46: 500 | FI46: 500 | FJ46: 500 | FK46: 500 | FL46: 500 | FM46: 500 | FN46: 500 | FO46: 500 | FP46: 500 | FQ46: 500 | FR46: 500 | FS46: 500 | FT46: 500 | FU46: 500 | FV46: 500 | FW46: 500 | FX46: 500 | FY46: 500 | FZ46: 500 | GA46: 500 | GB46: 500 | GC46: 500 | GD46: 500 | GE46: 500 | GF46: 500 | GG46: 500 | GH46: 500 | GI46: 500 | GJ46: 500 | GK46: 500 | GL46: 500 | GM46: 500
A47: 2 | B47: 2 | C47: 5 | D47: 300 | E47: 300 | F47: 300 | G47: 300 | H47: 300 | I47: 300 | J47: 300 | K47: 300 | L47: 300 | M47: 300 | N47: 300 | O47: 300 | P47: 300 | Q47: 300 | R47: 300 | S47: 300 | T47: 300 | U47: 500 | V47: 500 | W47: 500 | X47: 500 | Y47: 500 | Z47: 500 | AA47: 500 | AB47: 500 | AC47: 500 | AD47: 500 | AE47: 500 | AF47: 500 | AG47: 500 | AH47: 500 | AI47: 500 | AJ47: 500 | AK47: 500 | AL47: 500 | AM47: 500 | AN47: 500 | AO47: 500 | AP47: 500 | AQ47: 500 | AR47: 500 | AS47: 500 | AT47: 500 | AU47: 500 | AV47: 500 | AW47: 500 | AX47: 500 | AY47: 500 | AZ47: 500 | BA47: 500 | BB47: 500 | BC47: 500 | BD47: 500 | BE47: 500 | BF47: 500 | BG47: 500 | BH47: 500 | BI47: 500 | BJ47: 500 | BK47: 500 | BL47: 500 | BM47: 500 | BN47: 500 | BO47: 500 | BP47: 500 | BQ47: 500 | BR47: 500 | BS47: 500 | BT47: 500 | BU47: 500 | BV47: 500 | BW47: 500 | BX47: 500 | BY47: 500 | BZ47: 500 | CA47: 500 | CB47: 500 | CC47: 500 | CD47: 500 | CE47: 500 | CF47: 500 | CG47: 500 | CH47: 500 | CI47: 500 | CJ47: 500 | CK47: 500 | CL47: 500 | CM47: 500 | CN47: 500 | CO47: 500 | CP47: 500 | CQ47: 500 | CR47: 500 | CS47: 500 | CT47: 500 | CU47: 500 | CV47: 500 | CW47: 500 | CX47: 500 | CY47: 500 | CZ47: 500 | DA47: 500 | DB47: 500 | DC47: 500 | DD47: 500 | DE47: 500 | DF47: 500 | DG47: 500 | DH47: 500 | DI47: 500 | DJ47: 500 | DK47: 500 | DL47: 500 | DM47: 500 | DN47: 500 | DO47: 500 | DP47: 500 | DQ47: 500 | DR47: 500 | DS47: 500 | DT47: 500 | DU47: 500 | DV47: 500 | DW47: 500 | DX47: 500 | DY47: 500 | DZ47: 500 | EA47: 500 | EB47: 500 | EC47: 500 | ED47: 500 | EE47: 500 | EF47: 500 | EG47: 500 | EH47: 500 | EI47: 500 | EJ47: 500 | EK47: 500 | EL47: 500 | EM47: 500 | EN47: 500 | EO47: 500 | EP47: 500 | EQ47: 500 | ER47: 500 | ES47: 500 | ET47: 500 | EU47: 500 | EV47: 500 | EW47: 500 | EX47: 500 | EY47: 500 | EZ47: 500 | FA47: 500 | FB47: 500 | FC47: 500 | FD47: 500 | FE47: 500 | FF47: 500 | FG47: 500 | FH47: 500 | FI47: 500 | FJ47: 500 | FK47: 500 | FL47: 500 | FM47: 500 | FN47: 500 | FO47: 500 | FP47: 500 | FQ47: 500 | FR47: 500 | FS47: 500 | FT47: 500 | FU47: 500 | FV47: 500 | FW47: 500 | FX47: 500 | FY47: 500 | FZ47: 500 | GA47: 500 | GB47: 500 | GC47: 500 | GD47: 500 | GE47: 500 | GF47: 500 | GG47: 500 | GH47: 500 | GI47: 500 | GJ47: 500 | GK47: 500 | GL47: 500 | GM47: 500
A48: 3 | B48: 2 | C48: 5 | D48: 300 | E48: 300 | F48: 300 | G48: 300 | H48: 300 | I48: 300 | J48: 300 | K48: 300 | L48: 300 | M48: 300 | N48: 300 | O48: 300 | P48: 300 | Q48: 300 | R48: 300 | S48: 300 | T48: 300 | U48: 500 | V48: 500 | W48: 500 | X48: 500 | Y48: 500 | Z48: 500 | AA48: 500 | AB48: 500 | AC48: 500 | AD48: 500 | AE48: 500 | AF48: 500 | AG48: 500 | AH48: 500 | AI48: 500 | AJ48: 500 | AK48: 500 | AL48: 500 | AM48: 500 | AN48: 500 | AO48: 500 | AP48: 500 | AQ48: 500 | AR48: 500 | AS48: 500 | AT48: 500 | AU48: 500 | AV48: 500 | AW48: 500 | AX48: 500 | AY48: 500 | AZ48: 500 | BA48: 500 | BB48: 500 | BC48: 500 | BD48: 500 | BE48: 500 | BF48: 500 | BG48: 500 | BH48: 500 | BI48: 500 | BJ48: 500 | BK48: 500 | BL48: 500 | BM48: 500 | BN48: 500 | BO48: 500 | BP48: 500 | BQ48: 500 | BR48: 500 | BS48: 500 | BT48: 500 | BU48: 500 | BV48: 500 | BW48: 500 | BX48: 500 | BY48: 500 | BZ48: 500 | CA48: 500 | CB48: 500 | CC48: 500 | CD48: 500 | CE48: 500 | CF48: 500 | CG48: 500 | CH48: 500 | CI48: 500 | CJ48: 500 | CK48: 500 | CL48: 500 | CM48: 500 | CN48: 500 | CO48: 500 | CP48: 500 | CQ48: 500 | CR48: 500 | CS48: 500 | CT48: 500 | CU48: 500 | CV48: 500 | CW48: 500 | CX48: 500 | CY48: 500 | CZ48: 500 | DA48: 500 | DB48: 500 | DC48: 500 | DD48: 500 | DE48: 500 | DF48: 500 | DG48: 500 | DH48: 500 | DI48: 500 | DJ48: 500 | DK48: 500 | DL48: 500 | DM48: 500 | DN48: 500 | DO48: 500 | DP48: 500 | DQ48: 500 | DR48: 500 | DS48: 500 | DT48: 500 | DU48: 500 | DV48: 500 | DW48: 500 | DX48: 500 | DY48: 500 | DZ48: 500 | EA48: 500 | EB48: 500 | EC48: 500 | ED48: 500 | EE48: 500 | EF48: 500 | EG48: 500 | EH48: 500 | EI48: 500 | EJ48: 500 | EK48: 500 | EL48: 500 | EM48: 500 | EN48: 500 | EO48: 500 | EP48: 500 | EQ48: 500 | ER48: 500 | ES48: 500 | ET48: 500 | EU48: 500 | EV48: 500 | EW48: 500 | EX48: 500 | EY48: 500 | EZ48: 500 | FA48: 500 | FB48: 500 | FC48: 500 | FD48: 500 | FE48: 500 | FF48: 500 | FG48: 500 | FH48: 500 | FI48: 500 | FJ48: 500 | FK48: 500 | FL48: 500 | FM48: 500 | FN48: 500 | FO48: 500 | FP48: 500 | FQ48: 500 | FR48: 500 | FS48: 500 | FT48: 500 | FU48: 500 | FV48: 500 | FW48: 500 | FX48: 500 | FY48: 500 | FZ48: 500 | GA48: 500 | GB48: 500 | GC48: 500 | GD48: 500 | GE48: 500 | GF48: 500 | GG48: 500 | GH48: 500 | GI48: 500 | GJ48: 500 | GK48: 500 | GL48: 500 | GM48: 500
A49: 4 | B49: 2 | C49: 5 | D49: 300 | E49: 300 | F49: 300 | G49: 300 | H49: 300 | I49: 300 | J49: 300 | K49: 300 | L49: 300 | M49: 300 | N49: 300 | O49: 300 | P49: 300 | Q49: 300 | R49: 300 | S49: 300 | T49: 300 | U49: 400 | V49: 400 | W49: 400 | X49: 400 | Y49: 400 | Z49: 400 | AA49: 400 | AB49: 400 | AC49: 400 | AD49: 400 | AE49: 400 | AF49: 400 | AG49: 400 | AH49: 400 | AI49: 400 | AJ49: 400 | AK49: 400 | AL49: 400 | AM49: 400 | AN49: 400 | AO49: 400 | AP49: 400 | AQ49: 400 | AR49: 400 | AS49: 400 | AT49: 400 | AU49: 400 | AV49: 400 | AW49: 400 | AX49: 400 | AY49: 400 | AZ49: 400 | BA49: 400 | BB49: 400 | BC49: 400 | BD49: 400 | BE49: 400 | BF49: 400 | BG49: 400 | BH49: 400 | BI49: 400 | BJ49: 400 | BK49: 400 | BL49: 400 | BM49: 400 | BN49: 400 | BO49: 400 | BP49: 400 | BQ49: 400 | BR49: 400 | BS49: 400 | BT49: 400 | BU49: 400 | BV49: 400 | BW49: 400 | BX49: 400 | BY49: 400 | BZ49: 400 | CA49: 400 | CB49: 400 | CC49: 400 | CD49: 400 | CE49: 400 | CF49: 400 | CG49: 400 | CH49: 400 | CI49: 400 | CJ49: 400 | CK49: 400 | CL49: 400 | CM49: 400 | CN49: 400 | CO49: 400 | CP49: 400 | CQ49: 400 | CR49: 400 | CS49: 400 | CT49: 400 | CU49: 400 | CV49: 400 | CW49: 400 | CX49: 400 | CY49: 400 | CZ49: 400 | DA49: 400 | DB49: 400 | DC49: 400 | DD49: 400 | DE49: 400 | DF49: 400 | DG49: 400 | DH49: 400 | DI49: 400 | DJ49: 400 | DK49: 400 | DL49: 400 | DM49: 400 | DN49: 400 | DO49: 400 | DP49: 400 | DQ49: 400 | DR49: 400 | DS49: 400 | DT49: 400 | DU49: 400 | DV49: 400 | DW49: 400 | DX49: 400 | DY49: 400 | DZ49: 400 | EA49: 400 | EB49: 400 | EC49: 400 | ED49: 400 | EE49: 400 | EF49: 400 | EG49: 400 | EH49: 400 | EI49: 400 | EJ49: 400 | EK49: 400 | EL49: 400 | EM49: 400 | EN49: 400 | EO49: 400 | EP49: 400 | EQ49: 400 | ER49: 400 | ES49: 400 | ET49: 400 | EU49: 400 | EV49: 400 | EW49: 400 | EX49: 400 | EY49: 400 | EZ49: 400 | FA49: 400 | FB49: 400 | FC49: 400 | FD49: 400 | FE49: 400 | FF49: 400 | FG49: 400 | FH49: 400 | FI49: 400 | FJ49: 400 | FK49: 400 | FL49: 400 | FM49: 400 | FN49: 400 | FO49: 400 | FP49: 400 | FQ49: 400 | FR49: 400 | FS49: 400 | FT49: 400 | FU49: 400 | FV49: 400 | FW49: 400 | FX49: 400 | FY49: 400 | FZ49: 400 | GA49: 400 | GB49: 400 | GC49: 400 | GD49: 400 | GE49: 400 | GF49: 400 | GG49: 400 | GH49: 400 | GI49: 400 | GJ49: 400 | GK49: 400 | GL49: 400 | GM49: 400
A50: 1 | B50: 2 | C50: 12 | D50: 3000 | E50: 3000 | F50: 3000 | G50: 3000 | H50: 3000 | I50: 3000 | J50: 3000 | K50: 3000 | L50: 3000 | M50: 3000 | N50: 3000 | O50: 3000 | P50: 3000 | Q50: 3000 | R50: 3000 | S50: 3000 | T50: 3000 | U50: 3000 | V50: 3000 | W50: 3000 | X50: 3000 | Y50: 3000 | Z50: 3000 | AA50: 3000 | AB50: 3000 | AC50: 3000 | AD50: 3000 | AE50: 3000 | AF50: 3000 | AG50: 3000 | AH50: 3000 | AI50: 3000 | AJ50: 3000 | AK50: 3000 | AL50: 3000 | AM50: 3000 | AN50: 3000 | AO50: 3000 | AP50: 3000 | AQ50: 3000 | AR50: 3000 | AS50: 3000 | AT50: 3000 | AU50: 3000 | AV50: 3000 | AW50: 3000 | AX50: 3000 | AY50: 3000 | AZ50: 3000 | BA50: 3000 | BB50: 3000 | BC50: 3000 | BD50: 3000 | BE50: 3000 | BF50: 3000 | BG50: 3000 | BH50: 3000 | BI50: 3000 | BJ50: 3000 | BK50: 3000 | BL50: 3000 | BM50: 3000 | BN50: 3000 | BO50: 3000 | BP50: 3000 | BQ50: 3000 | BR50: 3000 | BS50: 3000 | BT50: 3000 | BU50: 3000 | BV50: 3000 | BW50: 3000 | BX50: 3000 | BY50: 3000 | BZ50: 3000 | CA50: 3000 | CB50: 3000 | CC50: 3000 | CD50: 3000 | CE50: 3000 | CF50: 3000 | CG50: 3000 | CH50: 3000 | CI50: 3000 | CJ50: 3000 | CK50: 3000 | CL50: 3000 | CM50: 3000 | CN50: 3000 | CO50: 3000 | CP50: 3000 | CQ50: 3000 | CR50: 3000 | CS50: 3000 | CT50: 3000 | CU50: 3000 | CV50: 3000 | CW50: 3000 | CX50: 3000 | CY50: 3000 | CZ50: 3000 | DA50: 3000 | DB50: 3000 | DC50: 3000 | DD50: 3000 | DE50: 3000 | DF50: 3000 | DG50: 3000 | DH50: 3000 | DI50: 3000 | DJ50: 3000 | DK50: 3000 | DL50: 3000 | DM50: 3000 | DN50: 3000 | DO50: 3000 | DP50: 3000 | DQ50: 3000 | DR50: 3000 | DS50: 3000 | DT50: 3000 | DU50: 3000 | DV50: 3000 | DW50: 3000 | DX50: 3000 | DY50: 3000 | DZ50: 3000 | EA50: 3000 | EB50: 3000 | EC50: 3000 | ED50: 3000 | EE50: 3000 | EF50: 3000 | EG50: 3000 | EH50: 3000 | EI50: 3000 | EJ50: 3000 | EK50: 3000 | EL50: 3000 | EM50: 3000 | EN50: 3000 | EO50: 3000 | EP50: 3000 | EQ50: 3000 | ER50: 3000 | ES50: 3000 | ET50: 3000 | EU50: 3000 | EV50: 3000 | EW50: 3000 | EX50: 3000 | EY50: 3000 | EZ50: 3000 | FA50: 3000 | FB50: 3000 | FC50: 3000 | FD50: 3000 | FE50: 3000 | FF50: 3000 | FG50: 3000 | FH50: 3000 | FI50: 3000 | FJ50: 3000 | FK50: 3000 | FL50: 3000 | FM50: 3000 | FN50: 3000 | FO50: 3000 | FP50: 3000 | FQ50: 3000 | FR50: 3000 | FS50: 3000 | FT50: 3000 | FU50: 3000 | FV50: 3000 | FW50: 3000 | FX50: 3000 | FY50: 3000 | FZ50: 3000 | GA50: 3000 | GB50: 3000 | GC50: 3000 | GD50: 3000 | GE50: 3000 | GF50: 3000 | GG50: 3000 | GH50: 3000 | GI50: 3000 | GJ50: 3000 | GK50: 3000 | GL50: 3000 | GM50: 3000
A51: 2 | B51: 2 | C51: 12 | D51: 3000 | E51: 3000 | F51: 3000 | G51: 3000 | H51: 3000 | I51: 3000 | J51: 3000 | K51: 3000 | L51: 3000 | M51: 3000 | N51: 3000 | O51: 3000 | P51: 3000 | Q51: 3000 | R51: 3000 | S51: 3000 | T51: 3000 | U51: 3000 | V51: 3000 | W51: 3000 | X51: 3000 | Y51: 3000 | Z51: 3000 | AA51: 3000 | AB51: 3000 | AC51: 3000 | AD51: 3000 | AE51: 3000 | AF51: 3000 | AG51: 3000 | AH51: 3000 | AI51: 3000 | AJ51: 3000 | AK51: 3000 | AL51: 3000 | AM51: 3000 | AN51: 3000 | AO51: 3000 | AP51: 3000 | AQ51: 3000 | AR51: 3000 | AS51: 3000 | AT51: 3000 | AU51: 3000 | AV51: 3000 | AW51: 3000 | AX51: 3000 | AY51: 3000 | AZ51: 3000 | BA51: 3000 | BB51: 3000 | BC51: 3000 | BD51: 3000 | BE51: 3000 | BF51: 3000 | BG51: 3000 | BH51: 3000 | BI51: 3000 | BJ51: 3000 | BK51: 3000 | BL51: 3000 | BM51: 3000 | BN51: 3000 | BO51: 3000 | BP51: 3000 | BQ51: 3000 | BR51: 3000 | BS51: 3000 | BT51: 3000 | BU51: 3000 | BV51: 3000 | BW51: 3000 | BX51: 3000 | BY51: 3000 | BZ51: 3000 | CA51: 3000 | CB51: 3000 | CC51: 3000 | CD51: 3000 | CE51: 3000 | CF51: 3000 | CG51: 3000 | CH51: 3000 | CI51: 3000 | CJ51: 3000 | CK51: 3000 | CL51: 3000 | CM51: 3000 | CN51: 3000 | CO51: 3000 | CP51: 3000 | CQ51: 3000 | CR51: 3000 | CS51: 3000 | CT51: 3000 | CU51: 3000 | CV51: 3000 | CW51: 3000 | CX51: 3000 | CY51: 3000 | CZ51: 3000 | DA51: 3000 | DB51: 3000 | DC51: 3000 | DD51: 3000 | DE51: 3000 | DF51: 3000 | DG51: 3000 | DH51: 3000 | DI51: 3000 | DJ51: 3000 | DK51: 3000 | DL51: 3000 | DM51: 3000 | DN51: 3000 | DO51: 3000 | DP51: 3000 | DQ51: 3000 | DR51: 3000 | DS51: 3000 | DT51: 3000 | DU51: 3000 | DV51: 3000 | DW51: 3000 | DX51: 3000 | DY51: 3000 | DZ51: 3000 | EA51: 3000 | EB51: 3000 | EC51: 3000 | ED51: 3000 | EE51: 3000 | EF51: 3000 | EG51: 3000 | EH51: 3000 | EI51: 3000 | EJ51: 3000 | EK51: 3000 | EL51: 3000 | EM51: 3000 | EN51: 3000 | EO51: 3000 | EP51: 3000 | EQ51: 3000 | ER51: 3000 | ES51: 3000 | ET51: 3000 | EU51: 3000 | EV51: 3000 | EW51: 3000 | EX51: 3000 | EY51: 3000 | EZ51: 3000 | FA51: 3000 | FB51: 3000 | FC51: 3000 | FD51: 3000 | FE51: 3000 | FF51: 3000 | FG51: 3000 | FH51: 3000 | FI51: 3000 | FJ51: 3000 | FK51: 3000 | FL51: 3000 | FM51: 3000 | FN51: 3000 | FO51: 3000 | FP51: 3000 | FQ51: 3000 | FR51: 3000 | FS51: 3000 | FT51: 3000 | FU51: 3000 | FV51: 3000 | FW51: 3000 | FX51: 3000 | FY51: 3000 | FZ51: 3000 | GA51: 3000 | GB51: 3000 | GC51: 3000 | GD51: 3000 | GE51: 3000 | GF51: 3000 | GG51: 3000 | GH51: 3000 | GI51: 3000 | GJ51: 3000 | GK51: 3000 | GL51: 3000 | GM51: 3000
A52: 3 | B52: 2 | C52: 12 | D52: 3000 | E52: 3000 | F52: 3000 | G52: 3000 | H52: 3000 | I52: 3000 | J52: 3000 | K52: 3000 | L52: 3000 | M52: 3000 | N52: 3000 | O52: 3000 | P52: 3000 | Q52: 3000 | R52: 3000 | S52: 3000 | T52: 3000 | U52: 3000 | V52: 3000 | W52: 3000 | X52: 3000 | Y52: 3000 | Z52: 3000 | AA52: 3000 | AB52: 3000 | AC52: 3000 | AD52: 3000 | AE52: 3000 | AF52: 3000 | AG52: 3000 | AH52: 3000 | AI52: 3000 | AJ52: 3000 | AK52: 3000 | AL52: 3000 | AM52: 3000 | AN52: 3000 | AO52: 3000 | AP52: 3000 | AQ52: 3000 | AR52: 3000 | AS52: 3000 | AT52: 3000 | AU52: 3000 | AV52: 3000 | AW52: 3000 | AX52: 3000 | AY52: 3000 | AZ52: 3000 | BA52: 3000 | BB52: 3000 | BC52: 3000 | BD52: 3000 | BE52: 3000 | BF52: 3000 | BG52: 3000 | BH52: 3000 | BI52: 3000 | BJ52: 3000 | BK52: 3000 | BL52: 3000 | BM52: 3000 | BN52: 3000 | BO52: 3000 | BP52: 3000 | BQ52: 3000 | BR52: 3000 | BS52: 3000 | BT52: 3000 | BU52: 3000 | BV52: 3000 | BW52: 3000 | BX52: 3000 | BY52: 3000 | BZ52: 3000 | CA52: 3000 | CB52: 3000 | CC52: 3000 | CD52: 3000 | CE52: 3000 | CF52: 3000 | CG52: 3000 | CH52: 3000 | CI52: 3000 | CJ52: 3000 | CK52: 3000 | CL52: 3000 | CM52: 3000 | CN52: 3000 | CO52: 3000 | CP52: 3000 | CQ52: 3000 | CR52: 3000 | CS52: 3000 | CT52: 3000 | CU52: 3000 | CV52: 3000 | CW52: 3000 | CX52: 3000 | CY52: 3000 | CZ52: 3000 | DA52: 3000 | DB52: 3000 | DC52: 3000 | DD52: 3000 | DE52: 3000 | DF52: 3000 | DG52: 3000 | DH52: 3000 | DI52: 3000 | DJ52: 3000 | DK52: 3000 | DL52: 3000 | DM52: 3000 | DN52: 3000 | DO52: 3000 | DP52: 3000 | DQ52: 3000 | DR52: 3000 | DS52: 3000 | DT52: 3000 | DU52: 3000 | DV52: 3000 | DW52: 3000 | DX52: 3000 | DY52: 3000 | DZ52: 3000 | EA52: 3000 | EB52: 3000 | EC52: 3000 | ED52: 3000 | EE52: 3000 | EF52: 3000 | EG52: 3000 | EH52: 3000 | EI52: 3000 | EJ52: 3000 | EK52: 3000 | EL52: 3000 | EM52: 3000 | EN52: 3000 | EO52: 3000 | EP52: 3000 | EQ52: 3000 | ER52: 3000 | ES52: 3000 | ET52: 3000 | EU52: 3000 | EV52: 3000 | EW52: 3000 | EX52: 3000 | EY52: 3000 | EZ52: 3000 | FA52: 3000 | FB52: 3000 | FC52: 3000 | FD52: 3000 | FE52: 3000 | FF52: 3000 | FG52: 3000 | FH52: 3000 | FI52: 3000 | FJ52: 3000 | FK52: 3000 | FL52: 3000 | FM52: 3000 | FN52: 3000 | FO52: 3000 | FP52: 3000 | FQ52: 3000 | FR52: 3000 | FS52: 3000 | FT52: 3000 | FU52: 3000 | FV52: 3000 | FW52: 3000 | FX52: 3000 | FY52: 3000 | FZ52: 3000 | GA52: 3000 | GB52: 3000 | GC52: 3000 | GD52: 3000 | GE52: 3000 | GF52: 3000 | GG52: 3000 | GH52: 3000 | GI52: 3000 | GJ52: 3000 | GK52: 3000 | GL52: 3000 | GM52: 3000
A53: 4 | B53: 2 | C53: 12 | D53: 2900 | E53: 2900 | F53: 2900 | G53: 2900 | H53: 2900 | I53: 2900 | J53: 2900 | K53: 2900 | L53: 2900 | M53: 2900 | N53: 2900 | O53: 2900 | P53: 2900 | Q53: 2900 | R53: 2900 | S53: 2900 | T53: 2900 | U53: 2900 | V53: 2900 | W53: 2900 | X53: 2900 | Y53: 2900 | Z53: 2900 | AA53: 2900 | AB53: 2900 | AC53: 2900 | AD53: 2900 | AE53: 2900 | AF53: 2900 | AG53: 2900 | AH53: 2900 | AI53: 2900 | AJ53: 2900 | AK53: 2900 | AL53: 2900 | AM53: 2900 | AN53: 2900 | AO53: 2900 | AP53: 2900 | AQ53: 2900 | AR53: 2900 | AS53: 2900 | AT53: 2900 | AU53: 2900 | AV53: 2900 | AW53: 2900 | AX53: 2900 | AY53: 2900 | AZ53: 2900 | BA53: 2900 | BB53: 2900 | BC53: 2900 | BD53: 2900 | BE53: 2900 | BF53: 2900 | BG53: 2900 | BH53: 2900 | BI53: 2900 | BJ53: 2900 | BK53: 2900 | BL53: 2900 | BM53: 2900 | BN53: 2900 | BO53: 2900 | BP53: 2900 | BQ53: 2900 | BR53: 2900 | BS53: 2900 | BT53: 2900 | BU53: 2900 | BV53: 2900 | BW53: 2900 | BX53: 2900 | BY53: 2900 | BZ53: 2900 | CA53: 2900 | CB53: 2900 | CC53: 2900 | CD53: 2900 | CE53: 2900 | CF53: 2900 | CG53: 2900 | CH53: 2900 | CI53: 2900 | CJ53: 2900 | CK53: 2900 | CL53: 2900 | CM53: 2900 | CN53: 2900 | CO53: 2900 | CP53: 2900 | CQ53: 2900 | CR53: 2900 | CS53: 2900 | CT53: 2900 | CU53: 2900 | CV53: 2900 | CW53: 2900 | CX53: 2900 | CY53: 2900 | CZ53: 2900 | DA53: 2900 | DB53: 2900 | DC53: 2900 | DD53: 2900 | DE53: 2900 | DF53: 2900 | DG53: 2900 | DH53: 2900 | DI53: 2900 | DJ53: 2900 | DK53: 2900 | DL53: 2900 | DM53: 2900 | DN53: 2900 | DO53: 2900 | DP53: 2900 | DQ53: 2900 | DR53: 2900 | DS53: 2900 | DT53: 2900 | DU53: 2900 | DV53: 2900 | DW53: 2900 | DX53: 2900 | DY53: 2900 | DZ53: 2900 | EA53: 2900 | EB53: 2900 | EC53: 2900 | ED53: 2900 | EE53: 2900 | EF53: 2900 | EG53: 2900 | EH53: 2900 | EI53: 2900 | EJ53: 2900 | EK53: 2900 | EL53: 2900 | EM53: 2900 | EN53: 2900 | EO53: 2900 | EP53: 2900 | EQ53: 2900 | ER53: 2900 | ES53: 2900 | ET53: 2900 | EU53: 2900 | EV53: 2900 | EW53: 2900 | EX53: 2900 | EY53: 2900 | EZ53: 2900 | FA53: 2900 | FB53: 2900 | FC53: 2900 | FD53: 2900 | FE53: 2900 | FF53: 2900 | FG53: 2900 | FH53: 2900 | FI53: 2900 | FJ53: 2900 | FK53: 2900 | FL53: 2900 | FM53: 2900 | FN53: 2900 | FO53: 2900 | FP53: 2900 | FQ53: 2900 | FR53: 2900 | FS53: 2900 | FT53: 2900 | FU53: 2900 | FV53: 2900 | FW53: 2900 | FX53: 2900 | FY53: 2900 | FZ53: 2900 | GA53: 2900 | GB53: 2900 | GC53: 2900 | GD53: 2900 | GE53: 2900 | GF53: 2900 | GG53: 2900 | GH53: 2900 | GI53: 2900 | GJ53: 2900 | GK53: 2900 | GL53: 2900 | GM53: 2900
A54: 1 | B54: 3 | C54: 1 | D54: 2300 | E54: 2300 | F54: 2300 | G54: 2300 | H54: 2300 | I54: 3500 | J54: 3500 | K54: 3500 | L54: 4500 | M54: 4500 | N54: 4500 | O54: 5000 | P54: 5300 | Q54: 5300 | R54: 5300 | S54: 5300 | T54: 5300 | U54: 6400 | V54: 6400 | W54: 6400 | X54: 6400 | Y54: 6400 | Z54: 6400 | AA54: 6400 | AB54: 6400 | AC54: 6400 | AD54: 6400 | AE54: 6400 | AF54: 7000 | AG54: 7000 | AH54: 7000 | AI54: 7000 | AJ54: 7000 | AK54: 7700 | AL54: 7700 | AM54: 7700 | AN54: 7700 | AO54: 7700 | AP54: 7700 | AQ54: 7700 | AR54: 7700 | AS54: 7700 | AT54: 7700 | AU54: 7700 | AV54: 7700 | AW54: 7700 | AX54: 7700 | AY54: 7700 | AZ54: 7700 | BA54: 7700 | BB54: 7700 | BC54: 7700 | BD54: 7700 | BE54: 7700 | BF54: 7700 | BG54: 7700 | BH54: 7700 | BI54: 7700 | BJ54: 7700 | BK54: 7700 | BL54: 7700 | BM54: 7700 | BN54: 7700 | BO54: 8800 | BP54: 8800 | BQ54: 8800 | BR54: 8800 | BS54: 8800 | BT54: 8800 | BU54: 8800 | BV54: 8800 | BW54: 8800 | BX54: 8800 | BY54: 8800 | BZ54: 8800 | CA54: 8800 | CB54: 8800 | CC54: 8800 | CD54: 8800 | CE54: 8800 | CF54: 8800 | CG54: 8800 | CH54: 8800 | CI54: 8800 | CJ54: 8800 | CK54: 8800 | CL54: 8800 | CM54: 8800 | CN54: 8800 | CO54: 8800 | CP54: 8800 | CQ54: 8800 | CR54: 8800 | CS54: 8800 | CT54: 8800 | CU54: 8800 | CV54: 8800 | CW54: 8800 | CX54: 8800 | CY54: 8800 | CZ54: 8800 | DA54: 8800 | DB54: 8800 | DC54: 8800 | DD54: 8800 | DE54: 8800 | DF54: 8800 | DG54: 8800 | DH54: 8800 | DI54: 8800 | DJ54: 8800 | DK54: 8800 | DL54: 8800 | DM54: 8800 | DN54: 8800 | DO54: 8800 | DP54: 8800 | DQ54: 8800 | DR54: 8800 | DS54: 8800 | DT54: 8800 | DU54: 8800 | DV54: 8800 | DW54: 8800 | DX54: 8800 | DY54: 8800 | DZ54: 8800 | EA54: 8800 | EB54: 8800 | EC54: 8800 | ED54: 8800 | EE54: 8800 | EF54: 8800 | EG54: 8800 | EH54: 8800 | EI54: 8800 | EJ54: 8800 | EK54: 8800 | EL54: 8800 | EM54: 8800 | EN54: 8800 | EO54: 8800 | EP54: 8800 | EQ54: 8800 | ER54: 8800 | ES54: 8800 | ET54: 8800 | EU54: 8800 | EV54: 8800 | EW54: 8800 | EX54: 8800 | EY54: 8800 | EZ54: 8800 | FA54: 8800 | FB54: 8800 | FC54: 8800 | FD54: 8800 | FE54: 8800 | FF54: 8800 | FG54: 8800 | FH54: 8800 | FI54: 8800 | FJ54: 8800 | FK54: 8800 | FL54: 8800 | FM54: 8800 | FN54: 8800 | FO54: 8800 | FP54: 8800 | FQ54: 8800 | FR54: 8800 | FS54: 8800 | FT54: 8800 | FU54: 8800 | FV54: 8800 | FW54: 8800 | FX54: 8800 | FY54: 8800 | FZ54: 8800 | GA54: 8800 | GB54: 8800 | GC54: 8800 | GD54: 8800 | GE54: 8800 | GF54: 8800 | GG54: 8800 | GH54: 8800 | GI54: 8800 | GJ54: 8800 | GK54: 8800 | GL54: 8800 | GM54: 8800
A55: 2 | B55: 3 | C55: 1 | D55: 2300 | E55: 2300 | F55: 2300 | G55: 2300 | H55: 2300 | I55: 3500 | J55: 3500 | K55: 3500 | L55: 4500 | M55: 4500 | N55: 4500 | O55: 5000 | P55: 5300 | Q55: 5300 | R55: 5300 | S55: 5300 | T55: 5300 | U55: 6400 | V55: 6400 | W55: 6400 | X55: 6400 | Y55: 6400 | Z55: 6400 | AA55: 6400 | AB55: 6400 | AC55: 6400 | AD55: 6400 | AE55: 6400 | AF55: 7000 | AG55: 7000 | AH55: 7000 | AI55: 7000 | AJ55: 7000 | AK55: 7700 | AL55: 7700 | AM55: 7700 | AN55: 7700 | AO55: 7700 | AP55: 7700 | AQ55: 7700 | AR55: 7700 | AS55: 7700 | AT55: 7700 | AU55: 7700 | AV55: 7700 | AW55: 7700 | AX55: 7700 | AY55: 7700 | AZ55: 7700 | BA55: 7700 | BB55: 7700 | BC55: 7700 | BD55: 7700 | BE55: 7700 | BF55: 7700 | BG55: 7700 | BH55: 7700 | BI55: 7700 | BJ55: 7700 | BK55: 7700 | BL55: 7700 | BM55: 7700 | BN55: 7700 | BO55: 8800 | BP55: 8800 | BQ55: 8800 | BR55: 8800 | BS55: 8800 | BT55: 8800 | BU55: 8800 | BV55: 8800 | BW55: 8800 | BX55: 8800 | BY55: 8800 | BZ55: 8800 | CA55: 8800 | CB55: 8800 | CC55: 8800 | CD55: 8800 | CE55: 8800 | CF55: 8800 | CG55: 8800 | CH55: 8800 | CI55: 8800 | CJ55: 8800 | CK55: 8800 | CL55: 8800 | CM55: 8800 | CN55: 8800 | CO55: 8800 | CP55: 8800 | CQ55: 8800 | CR55: 8800 | CS55: 8800 | CT55: 8800 | CU55: 8800 | CV55: 8800 | CW55: 8800 | CX55: 8800 | CY55: 8800 | CZ55: 8800 | DA55: 8800 | DB55: 8800 | DC55: 8800 | DD55: 8800 | DE55: 8800 | DF55: 8800 | DG55: 8800 | DH55: 8800 | DI55: 8800 | DJ55: 8800 | DK55: 8800 | DL55: 8800 | DM55: 8800 | DN55: 8800 | DO55: 8800 | DP55: 8800 | DQ55: 8800 | DR55: 8800 | DS55: 8800 | DT55: 8800 | DU55: 8800 | DV55: 8800 | DW55: 8800 | DX55: 8800 | DY55: 8800 | DZ55: 8800 | EA55: 8800 | EB55: 8800 | EC55: 8800 | ED55: 8800 | EE55: 8800 | EF55: 8800 | EG55: 8800 | EH55: 8800 | EI55: 8800 | EJ55: 8800 | EK55: 8800 | EL55: 8800 | EM55: 8800 | EN55: 8800 | EO55: 8800 | EP55: 8800 | EQ55: 8800 | ER55: 8800 | ES55: 8800 | ET55: 8800 | EU55: 8800 | EV55: 8800 | EW55: 8800 | EX55: 8800 | EY55: 8800 | EZ55: 8800 | FA55: 8800 | FB55: 8800 | FC55: 8800 | FD55: 8800 | FE55: 8800 | FF55: 8800 | FG55: 8800 | FH55: 8800 | FI55: 8800 | FJ55: 8800 | FK55: 8800 | FL55: 8800 | FM55: 8800 | FN55: 8800 | FO55: 8800 | FP55: 8800 | FQ55: 8800 | FR55: 8800 | FS55: 8800 | FT55: 8800 | FU55: 8800 | FV55: 8800 | FW55: 8800 | FX55: 8800 | FY55: 8800 | FZ55: 8800 | GA55: 8800 | GB55: 8800 | GC55: 8800 | GD55: 8800 | GE55: 8800 | GF55: 8800 | GG55: 8800 | GH55: 8800 | GI55: 8800 | GJ55: 8800 | GK55: 8800 | GL55: 8800 | GM55: 8800
A56: 3 | B56: 3 | C56: 1 | D56: 2150 | E56: 2150 | F56: 2150 | G56: 2150 | H56: 2150 | I56: 3500 | J56: 3500 | K56: 3500 | L56: 4500 | M56: 4500 | N56: 4500 | O56: 5000 | P56: 5300 | Q56: 5300 | R56: 5300 | S56: 5300 | T56: 5300 | U56: 6400 | V56: 6400 | W56: 6400 | X56: 6400 | Y56: 6400 | Z56: 6400 | AA56: 6400 | AB56: 6400 | AC56: 6400 | AD56: 6400 | AE56: 6400 | AF56: 7000 | AG56: 7000 | AH56: 7000 | AI56: 7000 | AJ56: 7000 | AK56: 7700 | AL56: 7700 | AM56: 7700 | AN56: 7700 | AO56: 7700 | AP56: 7700 | AQ56: 7700 | AR56: 7700 | AS56: 7700 | AT56: 7700 | AU56: 7700 | AV56: 7700 | AW56: 7700 | AX56: 7700 | AY56: 7700 | AZ56: 7700 | BA56: 7700 | BB56: 7700 | BC56: 7700 | BD56: 7700 | BE56: 7700 | BF56: 7700 | BG56: 7700 | BH56: 7700 | BI56: 7700 | BJ56: 7700 | BK56: 7700 | BL56: 7700 | BM56: 7700 | BN56: 7700 | BO56: 8800 | BP56: 8800 | BQ56: 8800 | BR56: 8800 | BS56: 8800 | BT56: 8800 | BU56: 8800 | BV56: 8800 | BW56: 8800 | BX56: 8800 | BY56: 8800 | BZ56: 8800 | CA56: 8800 | CB56: 8800 | CC56: 8800 | CD56: 8800 | CE56: 8800 | CF56: 8800 | CG56: 8800 | CH56: 8800 | CI56: 8800 | CJ56: 8800 | CK56: 8800 | CL56: 8800 | CM56: 8800 | CN56: 8800 | CO56: 8800 | CP56: 8800 | CQ56: 8800 | CR56: 8800 | CS56: 8800 | CT56: 8800 | CU56: 8800 | CV56: 8800 | CW56: 8800 | CX56: 8800 | CY56: 8800 | CZ56: 8800 | DA56: 8800 | DB56: 8800 | DC56: 8800 | DD56: 8800 | DE56: 8800 | DF56: 8800 | DG56: 8800 | DH56: 8800 | DI56: 8800 | DJ56: 8800 | DK56: 8800 | DL56: 8800 | DM56: 8800 | DN56: 8800 | DO56: 8800 | DP56: 8800 | DQ56: 8800 | DR56: 8800 | DS56: 8800 | DT56: 8800 | DU56: 8800 | DV56: 8800 | DW56: 8800 | DX56: 8800 | DY56: 8800 | DZ56: 8800 | EA56: 8800 | EB56: 8800 | EC56: 8800 | ED56: 8800 | EE56: 8800 | EF56: 8800 | EG56: 8800 | EH56: 8800 | EI56: 8800 | EJ56: 8800 | EK56: 8800 | EL56: 8800 | EM56: 8800 | EN56: 8800 | EO56: 8800 | EP56: 8800 | EQ56: 8800 | ER56: 8800 | ES56: 8800 | ET56: 8800 | EU56: 8800 | EV56: 8800 | EW56: 8800 | EX56: 8800 | EY56: 8800 | EZ56: 8800 | FA56: 8800 | FB56: 8800 | FC56: 8800 | FD56: 8800 | FE56: 8800 | FF56: 8800 | FG56: 8800 | FH56: 8800 | FI56: 8800 | FJ56: 8800 | FK56: 8800 | FL56: 8800 | FM56: 8800 | FN56: 8800 | FO56: 8800 | FP56: 8800 | FQ56: 8800 | FR56: 8800 | FS56: 8800 | FT56: 8800 | FU56: 8800 | FV56: 8800 | FW56: 8800 | FX56: 8800 | FY56: 8800 | FZ56: 8800 | GA56: 8800 | GB56: 8800 | GC56: 8800 | GD56: 8800 | GE56: 8800 | GF56: 8800 | GG56: 8800 | GH56: 8800 | GI56: 8800 | GJ56: 8800 | GK56: 8800 | GL56: 8800 | GM56: 8800
A57: 4 | B57: 3 | C57: 1 | D57: 2000 | E57: 2000 | F57: 2000 | G57: 2000 | H57: 2000 | I57: 3500 | J57: 3500 | K57: 3500 | L57: 4500 | M57: 4500 | N57: 4500 | O57: 5000 | P57: 5300 | Q57: 5300 | R57: 5300 | S57: 5300 | T57: 5300 | U57: 6400 | V57: 6400 | W57: 6400 | X57: 6400 | Y57: 6400 | Z57: 6400 | AA57: 6400 | AB57: 6400 | AC57: 6400 | AD57: 6400 | AE57: 6400 | AF57: 6900 | AG57: 6900 | AH57: 6900 | AI57: 6900 | AJ57: 6900 | AK57: 7200 | AL57: 7200 | AM57: 7200 | AN57: 7200 | AO57: 7200 | AP57: 7200 | AQ57: 7200 | AR57: 7200 | AS57: 7200 | AT57: 7200 | AU57: 7200 | AV57: 7200 | AW57: 7200 | AX57: 7200 | AY57: 7200 | AZ57: 7200 | BA57: 7200 | BB57: 7200 | BC57: 7200 | BD57: 7200 | BE57: 7200 | BF57: 7200 | BG57: 7200 | BH57: 7200 | BI57: 7200 | BJ57: 7200 | BK57: 7200 | BL57: 7200 | BM57: 7200 | BN57: 7200 | BO57: 8200 | BP57: 8200 | BQ57: 8200 | BR57: 8200 | BS57: 8200 | BT57: 8200 | BU57: 8200 | BV57: 8200 | BW57: 8200 | BX57: 8200 | BY57: 8200 | BZ57: 8200 | CA57: 8200 | CB57: 8200 | CC57: 8200 | CD57: 8200 | CE57: 8200 | CF57: 8200 | CG57: 8200 | CH57: 8200 | CI57: 8200 | CJ57: 8200 | CK57: 8200 | CL57: 8200 | CM57: 8200 | CN57: 8200 | CO57: 8200 | CP57: 8200 | CQ57: 8200 | CR57: 8200 | CS57: 8200 | CT57: 8200 | CU57: 8200 | CV57: 8200 | CW57: 8200 | CX57: 8200 | CY57: 8200 | CZ57: 8200 | DA57: 8200 | DB57: 8200 | DC57: 8200 | DD57: 8200 | DE57: 8200 | DF57: 8200 | DG57: 8200 | DH57: 8200 | DI57: 8200 | DJ57: 8200 | DK57: 8200 | DL57: 8200 | DM57: 8200 | DN57: 8200 | DO57: 8200 | DP57: 8200 | DQ57: 8200 | DR57: 8200 | DS57: 8200 | DT57: 8200 | DU57: 8200 | DV57: 8200 | DW57: 8200 | DX57: 8200 | DY57: 8200 | DZ57: 8200 | EA57: 8200 | EB57: 8200 | EC57: 8200 | ED57: 8200 | EE57: 8200 | EF57: 8200 | EG57: 8200 | EH57: 8200 | EI57: 8200 | EJ57: 8200 | EK57: 8200 | EL57: 8200 | EM57: 8200 | EN57: 8200 | EO57: 8200 | EP57: 8200 | EQ57: 8200 | ER57: 8200 | ES57: 8200 | ET57: 8200 | EU57: 8200 | EV57: 8200 | EW57: 8200 | EX57: 8200 | EY57: 8200 | EZ57: 8200 | FA57: 8200 | FB57: 8200 | FC57: 8200 | FD57: 8200 | FE57: 8200 | FF57: 8200 | FG57: 8200 | FH57: 8200 | FI57: 8200 | FJ57: 8200 | FK57: 8200 | FL57: 8200 | FM57: 8200 | FN57: 8200 | FO57: 8200 | FP57: 8200 | FQ57: 8200 | FR57: 8200 | FS57: 8200 | FT57: 8200 | FU57: 8200 | FV57: 8200 | FW57: 8200 | FX57: 8200 | FY57: 8200 | FZ57: 8200 | GA57: 8200 | GB57: 8200 | GC57: 8200 | GD57: 8200 | GE57: 8200 | GF57: 8200 | GG57: 8200 | GH57: 8200 | GI57: 8200 | GJ57: 8200 | GK57: 8200 | GL57: 8200 | GM57: 8200
A58: 1 | B58: 3 | C58: 13 | D58: 4500 | E58: 4500 | F58: 4500 | G58: 4500 | H58: 4500 | I58: 4500 | J58: 4500 | K58: 4500 | L58: 5000 | M58: 5000 | N58: 5000 | O58: 5000 | P58: 6400 | Q58: 6400 | R58: 6400 | S58: 6400 | T58: 6400 | U58: 6400 | V58: 6400 | W58: 6400 | X58: 6400 | Y58: 6400 | Z58: 6400 | AA58: 6400 | AB58: 6400 | AC58: 6400 | AD58: 6400 | AE58: 6400 | AF58: 6900 | AG58: 6900 | AH58: 6900 | AI58: 6900 | AJ58: 6900 | AK58: 6900 | AL58: 6900 | AM58: 6900 | AN58: 6900 | AO58: 6900 | AP58: 6900 | AQ58: 6900 | AR58: 6900 | AS58: 6900 | AT58: 6900 | AU58: 6900 | AV58: 6900 | AW58: 6900 | AX58: 6900 | AY58: 6900 | AZ58: 6900 | BA58: 6900 | BB58: 6900 | BC58: 6900 | BD58: 6900 | BE58: 6900 | BF58: 6900 | BG58: 6900 | BH58: 6900 | BI58: 6900 | BJ58: 6900 | BK58: 6900 | BL58: 6900 | BM58: 6900 | BN58: 6900 | BO58: 6900 | BP58: 6900 | BQ58: 6900 | BR58: 6900 | BS58: 6900 | BT58: 6900 | BU58: 6900 | BV58: 6900 | BW58: 6900 | BX58: 6900 | BY58: 6900 | BZ58: 6900 | CA58: 6900 | CB58: 6900 | CC58: 6900 | CD58: 6900 | CE58: 6900 | CF58: 6900 | CG58: 6900 | CH58: 6900 | CI58: 6900 | CJ58: 6900 | CK58: 6900 | CL58: 6900 | CM58: 6900 | CN58: 6900 | CO58: 6900 | CP58: 6900 | CQ58: 6900 | CR58: 6900 | CS58: 6900 | CT58: 6900 | CU58: 6900 | CV58: 6900 | CW58: 6900 | CX58: 6900 | CY58: 6900 | CZ58: 6900 | DA58: 6900 | DB58: 6900 | DC58: 6900 | DD58: 6900 | DE58: 6900 | DF58: 6900 | DG58: 6900 | DH58: 6900 | DI58: 6900 | DJ58: 6900 | DK58: 6900 | DL58: 6900 | DM58: 6900 | DN58: 6900 | DO58: 6900 | DP58: 6900 | DQ58: 6900 | DR58: 6900 | DS58: 6900 | DT58: 6900 | DU58: 6900 | DV58: 6900 | DW58: 6900 | DX58: 6900 | DY58: 6900 | DZ58: 6900 | EA58: 6900 | EB58: 6900 | EC58: 6900 | ED58: 6900 | EE58: 6900 | EF58: 6900 | EG58: 6900 | EH58: 6900 | EI58: 6900 | EJ58: 6900 | EK58: 6900 | EL58: 6900 | EM58: 6900 | EN58: 6900 | EO58: 6900 | EP58: 6900 | EQ58: 6900 | ER58: 6900 | ES58: 6900 | ET58: 6900 | EU58: 6900 | EV58: 6900 | EW58: 6900 | EX58: 6900 | EY58: 6900 | EZ58: 6900 | FA58: 6900 | FB58: 6900 | FC58: 6900 | FD58: 6900 | FE58: 6900 | FF58: 6900 | FG58: 6900 | FH58: 6900 | FI58: 6900 | FJ58: 6900 | FK58: 6900 | FL58: 6900 | FM58: 6900 | FN58: 6900 | FO58: 6900 | FP58: 6900 | FQ58: 6900 | FR58: 6900 | FS58: 6900 | FT58: 6900 | FU58: 6900 | FV58: 6900 | FW58: 6900 | FX58: 6900 | FY58: 6900 | FZ58: 6900 | GA58: 6900 | GB58: 6900 | GC58: 6900 | GD58: 6900 | GE58: 6900 | GF58: 6900 | GG58: 6900 | GH58: 6900 | GI58: 6900 | GJ58: 6900 | GK58: 6900 | GL58: 6900 | GM58: 6900
A59: 2 | B59: 3 | C59: 13 | D59: 4500 | E59: 4500 | F59: 4500 | G59: 4500 | H59: 4500 | I59: 4500 | J59: 4500 | K59: 4500 | L59: 5000 | M59: 5000 | N59: 5000 | O59: 5000 | P59: 6400 | Q59: 6400 | R59: 6400 | S59: 6400 | T59: 6400 | U59: 6400 | V59: 6400 | W59: 6400 | X59: 6400 | Y59: 6400 | Z59: 6400 | AA59: 6400 | AB59: 6400 | AC59: 6400 | AD59: 6400 | AE59: 6400 | AF59: 6900 | AG59: 6900 | AH59: 6900 | AI59: 6900 | AJ59: 6900 | AK59: 6900 | AL59: 6900 | AM59: 6900 | AN59: 6900 | AO59: 6900 | AP59: 6900 | AQ59: 6900 | AR59: 6900 | AS59: 6900 | AT59: 6900 | AU59: 6900 | AV59: 6900 | AW59: 6900 | AX59: 6900 | AY59: 6900 | AZ59: 6900 | BA59: 6900 | BB59: 6900 | BC59: 6900 | BD59: 6900 | BE59: 6900 | BF59: 6900 | BG59: 6900 | BH59: 6900 | BI59: 6900 | BJ59: 6900 | BK59: 6900 | BL59: 6900 | BM59: 6900 | BN59: 6900 | BO59: 6900 | BP59: 6900 | BQ59: 6900 | BR59: 6900 | BS59: 6900 | BT59: 6900 | BU59: 6900 | BV59: 6900 | BW59: 6900 | BX59: 6900 | BY59: 6900 | BZ59: 6900 | CA59: 6900 | CB59: 6900 | CC59: 6900 | CD59: 6900 | CE59: 6900 | CF59: 6900 | CG59: 6900 | CH59: 6900 | CI59: 6900 | CJ59: 6900 | CK59: 6900 | CL59: 6900 | CM59: 6900 | CN59: 6900 | CO59: 6900 | CP59: 6900 | CQ59: 6900 | CR59: 6900 | CS59: 6900 | CT59: 6900 | CU59: 6900 | CV59: 6900 | CW59: 6900 | CX59: 6900 | CY59: 6900 | CZ59: 6900 | DA59: 6900 | DB59: 6900 | DC59: 6900 | DD59: 6900 | DE59: 6900 | DF59: 6900 | DG59: 6900 | DH59: 6900 | DI59: 6900 | DJ59: 6900 | DK59: 6900 | DL59: 6900 | DM59: 6900 | DN59: 6900 | DO59: 6900 | DP59: 6900 | DQ59: 6900 | DR59: 6900 | DS59: 6900 | DT59: 6900 | DU59: 6900 | DV59: 6900 | DW59: 6900 | DX59: 6900 | DY59: 6900 | DZ59: 6900 | EA59: 6900 | EB59: 6900 | EC59: 6900 | ED59: 6900 | EE59: 6900 | EF59: 6900 | EG59: 6900 | EH59: 6900 | EI59: 6900 | EJ59: 6900 | EK59: 6900 | EL59: 6900 | EM59: 6900 | EN59: 6900 | EO59: 6900 | EP59: 6900 | EQ59: 6900 | ER59: 6900 | ES59: 6900 | ET59: 6900 | EU59: 6900 | EV59: 6900 | EW59: 6900 | EX59: 6900 | EY59: 6900 | EZ59: 6900 | FA59: 6900 | FB59: 6900 | FC59: 6900 | FD59: 6900 | FE59: 6900 | FF59: 6900 | FG59: 6900 | FH59: 6900 | FI59: 6900 | FJ59: 6900 | FK59: 6900 | FL59: 6900 | FM59: 6900 | FN59: 6900 | FO59: 6900 | FP59: 6900 | FQ59: 6900 | FR59: 6900 | FS59: 6900 | FT59: 6900 | FU59: 6900 | FV59: 6900 | FW59: 6900 | FX59: 6900 | FY59: 6900 | FZ59: 6900 | GA59: 6900 | GB59: 6900 | GC59: 6900 | GD59: 6900 | GE59: 6900 | GF59: 6900 | GG59: 6900 | GH59: 6900 | GI59: 6900 | GJ59: 6900 | GK59: 6900 | GL59: 6900 | GM59: 6900
A60: 3 | B60: 3 | C60: 13 | D60: 4500 | E60: 4500 | F60: 4500 | G60: 4500 | H60: 4500 | I60: 4500 | J60: 4500 | K60: 4500 | L60: 5000 | M60: 5000 | N60: 5000 | O60: 5000 | P60: 6400 | Q60: 6400 | R60: 6400 | S60: 6400 | T60: 6400 | U60: 6400 | V60: 6400 | W60: 6400 | X60: 6400 | Y60: 6400 | Z60: 6400 | AA60: 6400 | AB60: 6400 | AC60: 6400 | AD60: 6400 | AE60: 6400 | AF60: 6500 | AG60: 6500 | AH60: 6500 | AI60: 6500 | AJ60: 6500 | AK60: 6700 | AL60: 6700 | AM60: 6700 | AN60: 6700 | AO60: 6700 | AP60: 6700 | AQ60: 6700 | AR60: 6700 | AS60: 6700 | AT60: 6700 | AU60: 6700 | AV60: 6700 | AW60: 6700 | AX60: 6700 | AY60: 6700 | AZ60: 6700 | BA60: 6700 | BB60: 6700 | BC60: 6700 | BD60: 6700 | BE60: 6700 | BF60: 6700 | BG60: 6700 | BH60: 6700 | BI60: 6700 | BJ60: 6700 | BK60: 6700 | BL60: 6700 | BM60: 6700 | BN60: 6700 | BO60: 6700 | BP60: 6700 | BQ60: 6700 | BR60: 6700 | BS60: 6700 | BT60: 6700 | BU60: 6700 | BV60: 6700 | BW60: 6700 | BX60: 6700 | BY60: 6700 | BZ60: 6700 | CA60: 6700 | CB60: 6700 | CC60: 6700 | CD60: 6700 | CE60: 6700 | CF60: 6700 | CG60: 6700 | CH60: 6700 | CI60: 6700 | CJ60: 6700 | CK60: 6700 | CL60: 6700 | CM60: 6700 | CN60: 6700 | CO60: 6700 | CP60: 6700 | CQ60: 6700 | CR60: 6700 | CS60: 6700 | CT60: 6700 | CU60: 6700 | CV60: 6700 | CW60: 6700 | CX60: 6700 | CY60: 6700 | CZ60: 6700 | DA60: 6700 | DB60: 6700 | DC60: 6700 | DD60: 6700 | DE60: 6700 | DF60: 6700 | DG60: 6700 | DH60: 6700 | DI60: 6700 | DJ60: 6700 | DK60: 6700 | DL60: 6700 | DM60: 6700 | DN60: 6700 | DO60: 6700 | DP60: 6700 | DQ60: 6700 | DR60: 6700 | DS60: 6700 | DT60: 6700 | DU60: 6700 | DV60: 6700 | DW60: 6700 | DX60: 6700 | DY60: 6700 | DZ60: 6700 | EA60: 6700 | EB60: 6700 | EC60: 6700 | ED60: 6700 | EE60: 6700 | EF60: 6700 | EG60: 6700 | EH60: 6700 | EI60: 6700 | EJ60: 6700 | EK60: 6700 | EL60: 6700 | EM60: 6700 | EN60: 6700 | EO60: 6700 | EP60: 6700 | EQ60: 6700 | ER60: 6700 | ES60: 6700 | ET60: 6700 | EU60: 6700 | EV60: 6700 | EW60: 6700 | EX60: 6700 | EY60: 6700 | EZ60: 6700 | FA60: 6700 | FB60: 6700 | FC60: 6700 | FD60: 6700 | FE60: 6700 | FF60: 6700 | FG60: 6700 | FH60: 6700 | FI60: 6700 | FJ60: 6700 | FK60: 6700 | FL60: 6700 | FM60: 6700 | FN60: 6700 | FO60: 6700 | FP60: 6700 | FQ60: 6700 | FR60: 6700 | FS60: 6700 | FT60: 6700 | FU60: 6700 | FV60: 6700 | FW60: 6700 | FX60: 6700 | FY60: 6700 | FZ60: 6700 | GA60: 6700 | GB60: 6700 | GC60: 6700 | GD60: 6700 | GE60: 6700 | GF60: 6700 | GG60: 6700 | GH60: 6700 | GI60: 6700 | GJ60: 6700 | GK60: 6700 | GL60: 6700 | GM60: 6700
A61: 4 | B61: 3 | C61: 13 | D61: 4500 | E61: 4500 | F61: 4500 | G61: 4500 | H61: 4500 | I61: 4500 | J61: 4500 | K61: 4500 | L61: 5000 | M61: 5000 | N61: 5000 | O61: 5000 | P61: 6400 | Q61: 6400 | R61: 6400 | S61: 6400 | T61: 6400 | U61: 6400 | V61: 6400 | W61: 6400 | X61: 6400 | Y61: 6400 | Z61: 6400 | AA61: 6400 | AB61: 6400 | AC61: 6400 | AD61: 6400 | AE61: 6400 | AF61: 6500 | AG61: 6500 | AH61: 6500 | AI61: 6500 | AJ61: 6500 | AK61: 6700 | AL61: 6700 | AM61: 6700 | AN61: 6700 | AO61: 6700 | AP61: 6700 | AQ61: 6700 | AR61: 6700 | AS61: 6700 | AT61: 6700 | AU61: 6700 | AV61: 6700 | AW61: 6700 | AX61: 6700 | AY61: 6700 | AZ61: 6700 | BA61: 6700 | BB61: 6700 | BC61: 6700 | BD61: 6700 | BE61: 6700 | BF61: 6700 | BG61: 6700 | BH61: 6700 | BI61: 6700 | BJ61: 6700 | BK61: 6700 | BL61: 6700 | BM61: 6700 | BN61: 6700 | BO61: 6700 | BP61: 6700 | BQ61: 6700 | BR61: 6700 | BS61: 6700 | BT61: 6700 | BU61: 6700 | BV61: 6700 | BW61: 6700 | BX61: 6700 | BY61: 6700 | BZ61: 6700 | CA61: 6700 | CB61: 6700 | CC61: 6700 | CD61: 6700 | CE61: 6700 | CF61: 6700 | CG61: 6700 | CH61: 6700 | CI61: 6700 | CJ61: 6700 | CK61: 6700 | CL61: 6700 | CM61: 6700 | CN61: 6700 | CO61: 6700 | CP61: 6700 | CQ61: 6700 | CR61: 6700 | CS61: 6700 | CT61: 6700 | CU61: 6700 | CV61: 6700 | CW61: 6700 | CX61: 6700 | CY61: 6700 | CZ61: 6700 | DA61: 6700 | DB61: 6700 | DC61: 6700 | DD61: 6700 | DE61: 6700 | DF61: 6700 | DG61: 6700 | DH61: 6700 | DI61: 6700 | DJ61: 6700 | DK61: 6700 | DL61: 6700 | DM61: 6700 | DN61: 6700 | DO61: 6700 | DP61: 6700 | DQ61: 6700 | DR61: 6700 | DS61: 6700 | DT61: 6700 | DU61: 6700 | DV61: 6700 | DW61: 6700 | DX61: 6700 | DY61: 6700 | DZ61: 6700 | EA61: 6700 | EB61: 6700 | EC61: 6700 | ED61: 6700 | EE61: 6700 | EF61: 6700 | EG61: 6700 | EH61: 6700 | EI61: 6700 | EJ61: 6700 | EK61: 6700 | EL61: 6700 | EM61: 6700 | EN61: 6700 | EO61: 6700 | EP61: 6700 | EQ61: 6700 | ER61: 6700 | ES61: 6700 | ET61: 6700 | EU61: 6700 | EV61: 6700 | EW61: 6700 | EX61: 6700 | EY61: 6700 | EZ61: 6700 | FA61: 6700 | FB61: 6700 | FC61: 6700 | FD61: 6700 | FE61: 6700 | FF61: 6700 | FG61: 6700 | FH61: 6700 | FI61: 6700 | FJ61: 6700 | FK61: 6700 | FL61: 6700 | FM61: 6700 | FN61: 6700 | FO61: 6700 | FP61: 6700 | FQ61: 6700 | FR61: 6700 | FS61: 6700 | FT61: 6700 | FU61: 6700 | FV61: 6700 | FW61: 6700 | FX61: 6700 | FY61: 6700 | FZ61: 6700 | GA61: 6700 | GB61: 6700 | GC61: 6700 | GD61: 6700 | GE61: 6700 | GF61: 6700 | GG61: 6700 | GH61: 6700 | GI61: 6700 | GJ61: 6700 | GK61: 6700 | GL61: 6700 | GM61: 6700
A62: 1 | B62: 4 | C62: 13 | D62: 6556 | E62: 6556 | F62: 6556 | G62: 6556 | H62: 6556 | I62: 6556 | J62: 6556 | K62: 6556 | L62: 6556 | M62: 6556 | N62: 6556 | O62: 6556 | P62: 6556 | Q62: 6556 | R62: 6556 | S62: 6556 | T62: 6556 | U62: 6556 | V62: 6556 | W62: 6556 | X62: 7688 | Y62: 7688 | Z62: 7688 | AA62: 7688 | AB62: 7688 | AC62: 7688 | AD62: 7688 | AE62: 7688 | AF62: 7688 | AG62: 7688 | AH62: 7688 | AI62: 7688 | AJ62: 7688 | AK62: 7688 | AL62: 7688 | AM62: 7688 | AN62: 7688 | AO62: 7688 | AP62: 7688 | AQ62: 7688 | AR62: 7688 | AS62: 7688 | AT62: 7688 | AU62: 7688 | AV62: 7688 | AW62: 7688 | AX62: 7688 | AY62: 7688 | AZ62: 7688 | BA62: 7688 | BB62: 7688 | BC62: 7688 | BD62: 7688 | BE62: 7688 | BF62: 7688 | BG62: 7688 | BH62: 7688 | BI62: 7688 | BJ62: 7688 | BK62: 7688 | BL62: 7688 | BM62: 7688 | BN62: 7688 | BO62: 7688 | BP62: 7688 | BQ62: 7688 | BR62: 7688 | BS62: 7688 | BT62: 7688 | BU62: 7688 | BV62: 7688 | BW62: 7688 | BX62: 7688 | BY62: 7688 | BZ62: 7688 | CA62: 7688 | CB62: 7688 | CC62: 7688 | CD62: 7688 | CE62: 7688 | CF62: 7688 | CG62: 7688 | CH62: 7688 | CI62: 7688 | CJ62: 7688 | CK62: 7688 | CL62: 7688 | CM62: 7688 | CN62: 7688 | CO62: 7688 | CP62: 7688 | CQ62: 7688 | CR62: 7688 | CS62: 7688 | CT62: 7688 | CU62: 7688 | CV62: 7688 | CW62: 7688 | CX62: 7688 | CY62: 7688 | CZ62: 7688 | DA62: 7688 | DB62: 7688 | DC62: 7688 | DD62: 7688 | DE62: 7688 | DF62: 7688 | DG62: 7688 | DH62: 7688 | DI62: 7688 | DJ62: 7688 | DK62: 7688 | DL62: 7688 | DM62: 7688 | DN62: 7688 | DO62: 7688 | DP62: 7688 | DQ62: 7688 | DR62: 7688 | DS62: 7688 | DT62: 7688 | DU62: 7688 | DV62: 7688 | DW62: 7688 | DX62: 7688 | DY62: 7688 | DZ62: 7688 | EA62: 7688 | EB62: 7688 | EC62: 7688 | ED62: 7688 | EE62: 7688 | EF62: 7688 | EG62: 7688 | EH62: 7688 | EI62: 7688 | EJ62: 7688 | EK62: 7688 | EL62: 7688 | EM62: 7688 | EN62: 7688 | EO62: 7688 | EP62: 7688 | EQ62: 7688 | ER62: 7688 | ES62: 7688 | ET62: 7688 | EU62: 7688 | EV62: 7688 | EW62: 7688 | EX62: 7688 | EY62: 7688 | EZ62: 7688 | FA62: 7688 | FB62: 7688 | FC62: 7688 | FD62: 7688 | FE62: 7688 | FF62: 7688 | FG62: 7688 | FH62: 7688 | FI62: 7688 | FJ62: 7688 | FK62: 7688 | FL62: 7688 | FM62: 7688 | FN62: 7688 | FO62: 7688 | FP62: 7688 | FQ62: 7688 | FR62: 7688 | FS62: 7688 | FT62: 7688 | FU62: 7688 | FV62: 7688 | FW62: 7688 | FX62: 7688 | FY62: 7688 | FZ62: 7688 | GA62: 7688 | GB62: 7688 | GC62: 7688 | GD62: 7688 | GE62: 7688 | GF62: 7688 | GG62: 7688 | GH62: 7688 | GI62: 7688 | GJ62: 7688 | GK62: 7688 | GL62: 7688 | GM62: 7688
A63: 2 | B63: 4 | C63: 13 | D63: 6556 | E63: 6556 | F63: 6556 | G63: 6556 | H63: 6556 | I63: 6556 | J63: 6556 | K63: 6556 | L63: 6556 | M63: 6556 | N63: 6556 | O63: 6556 | P63: 6556 | Q63: 6556 | R63: 6556 | S63: 6556 | T63: 6556 | U63: 6556 | V63: 6556 | W63: 6556 | X63: 7688 | Y63: 7688 | Z63: 7688 | AA63: 7688 | AB63: 7688 | AC63: 7688 | AD63: 7688 | AE63: 7688 | AF63: 7688 | AG63: 7688 | AH63: 7688 | AI63: 7688 | AJ63: 7688 | AK63: 7688 | AL63: 7688 | AM63: 7688 | AN63: 7688 | AO63: 7688 | AP63: 7688 | AQ63: 7688 | AR63: 7688 | AS63: 7688 | AT63: 7688 | AU63: 7688 | AV63: 7688 | AW63: 7688 | AX63: 7688 | AY63: 7688 | AZ63: 7688 | BA63: 7688 | BB63: 7688 | BC63: 7688 | BD63: 7688 | BE63: 7688 | BF63: 7688 | BG63: 7688 | BH63: 7688 | BI63: 7688 | BJ63: 7688 | BK63: 7688 | BL63: 7688 | BM63: 7688 | BN63: 7688 | BO63: 7688 | BP63: 7688 | BQ63: 7688 | BR63: 7688 | BS63: 7688 | BT63: 7688 | BU63: 7688 | BV63: 7688 | BW63: 7688 | BX63: 7688 | BY63: 7688 | BZ63: 7688 | CA63: 7688 | CB63: 7688 | CC63: 7688 | CD63: 7688 | CE63: 7688 | CF63: 7688 | CG63: 7688 | CH63: 7688 | CI63: 7688 | CJ63: 7688 | CK63: 7688 | CL63: 7688 | CM63: 7688 | CN63: 7688 | CO63: 7688 | CP63: 7688 | CQ63: 7688 | CR63: 7688 | CS63: 7688 | CT63: 7688 | CU63: 7688 | CV63: 7688 | CW63: 7688 | CX63: 7688 | CY63: 7688 | CZ63: 7688 | DA63: 7688 | DB63: 7688 | DC63: 7688 | DD63: 7688 | DE63: 7688 | DF63: 7688 | DG63: 7688 | DH63: 7688 | DI63: 7688 | DJ63: 7688 | DK63: 7688 | DL63: 7688 | DM63: 7688 | DN63: 7688 | DO63: 7688 | DP63: 7688 | DQ63: 7688 | DR63: 7688 | DS63: 7688 | DT63: 7688 | DU63: 7688 | DV63: 7688 | DW63: 7688 | DX63: 7688 | DY63: 7688 | DZ63: 7688 | EA63: 7688 | EB63: 7688 | EC63: 7688 | ED63: 7688 | EE63: 7688 | EF63: 7688 | EG63: 7688 | EH63: 7688 | EI63: 7688 | EJ63: 7688 | EK63: 7688 | EL63: 7688 | EM63: 7688 | EN63: 7688 | EO63: 7688 | EP63: 7688 | EQ63: 7688 | ER63: 7688 | ES63: 7688 | ET63: 7688 | EU63: 7688 | EV63: 7688 | EW63: 7688 | EX63: 7688 | EY63: 7688 | EZ63: 7688 | FA63: 7688 | FB63: 7688 | FC63: 7688 | FD63: 7688 | FE63: 7688 | FF63: 7688 | FG63: 7688 | FH63: 7688 | FI63: 7688 | FJ63: 7688 | FK63: 7688 | FL63: 7688 | FM63: 7688 | FN63: 7688 | FO63: 7688 | FP63: 7688 | FQ63: 7688 | FR63: 7688 | FS63: 7688 | FT63: 7688 | FU63: 7688 | FV63: 7688 | FW63: 7688 | FX63: 7688 | FY63: 7688 | FZ63: 7688 | GA63: 7688 | GB63: 7688 | GC63: 7688 | GD63: 7688 | GE63: 7688 | GF63: 7688 | GG63: 7688 | GH63: 7688 | GI63: 7688 | GJ63: 7688 | GK63: 7688 | GL63: 7688 | GM63: 7688
A64: 3 | B64: 4 | C64: 13 | D64: 6556 | E64: 6556 | F64: 6556 | G64: 6556 | H64: 6556 | I64: 6556 | J64: 6556 | K64: 6556 | L64: 6556 | M64: 6556 | N64: 6556 | O64: 6556 | P64: 6556 | Q64: 6556 | R64: 6556 | S64: 6556 | T64: 6556 | U64: 6556 | V64: 6556 | W64: 6556 | X64: 7688 | Y64: 7688 | Z64: 7688 | AA64: 7688 | AB64: 7688 | AC64: 7688 | AD64: 7688 | AE64: 7688 | AF64: 7688 | AG64: 7688 | AH64: 7688 | AI64: 7688 | AJ64: 7688 | AK64: 7688 | AL64: 7688 | AM64: 7688 | AN64: 7688 | AO64: 7688 | AP64: 7688 | AQ64: 7688 | AR64: 7688 | AS64: 7688 | AT64: 7688 | AU64: 7688 | AV64: 7688 | AW64: 7688 | AX64: 7688 | AY64: 7688 | AZ64: 7688 | BA64: 7688 | BB64: 7688 | BC64: 7688 | BD64: 7688 | BE64: 7688 | BF64: 7688 | BG64: 7688 | BH64: 7688 | BI64: 7688 | BJ64: 7688 | BK64: 7688 | BL64: 7688 | BM64: 7688 | BN64: 7688 | BO64: 7688 | BP64: 7688 | BQ64: 7688 | BR64: 7688 | BS64: 7688 | BT64: 7688 | BU64: 7688 | BV64: 7688 | BW64: 7688 | BX64: 7688 | BY64: 7688 | BZ64: 7688 | CA64: 7688 | CB64: 7688 | CC64: 7688 | CD64: 7688 | CE64: 7688 | CF64: 7688 | CG64: 7688 | CH64: 7688 | CI64: 7688 | CJ64: 7688 | CK64: 7688 | CL64: 7688 | CM64: 7688 | CN64: 7688 | CO64: 7688 | CP64: 7688 | CQ64: 7688 | CR64: 7688 | CS64: 7688 | CT64: 7688 | CU64: 7688 | CV64: 7688 | CW64: 7688 | CX64: 7688 | CY64: 7688 | CZ64: 7688 | DA64: 7688 | DB64: 7688 | DC64: 7688 | DD64: 7688 | DE64: 7688 | DF64: 7688 | DG64: 7688 | DH64: 7688 | DI64: 7688 | DJ64: 7688 | DK64: 7688 | DL64: 7688 | DM64: 7688 | DN64: 7688 | DO64: 7688 | DP64: 7688 | DQ64: 7688 | DR64: 7688 | DS64: 7688 | DT64: 7688 | DU64: 7688 | DV64: 7688 | DW64: 7688 | DX64: 7688 | DY64: 7688 | DZ64: 7688 | EA64: 7688 | EB64: 7688 | EC64: 7688 | ED64: 7688 | EE64: 7688 | EF64: 7688 | EG64: 7688 | EH64: 7688 | EI64: 7688 | EJ64: 7688 | EK64: 7688 | EL64: 7688 | EM64: 7688 | EN64: 7688 | EO64: 7688 | EP64: 7688 | EQ64: 7688 | ER64: 7688 | ES64: 7688 | ET64: 7688 | EU64: 7688 | EV64: 7688 | EW64: 7688 | EX64: 7688 | EY64: 7688 | EZ64: 7688 | FA64: 7688 | FB64: 7688 | FC64: 7688 | FD64: 7688 | FE64: 7688 | FF64: 7688 | FG64: 7688 | FH64: 7688 | FI64: 7688 | FJ64: 7688 | FK64: 7688 | FL64: 7688 | FM64: 7688 | FN64: 7688 | FO64: 7688 | FP64: 7688 | FQ64: 7688 | FR64: 7688 | FS64: 7688 | FT64: 7688 | FU64: 7688 | FV64: 7688 | FW64: 7688 | FX64: 7688 | FY64: 7688 | FZ64: 7688 | GA64: 7688 | GB64: 7688 | GC64: 7688 | GD64: 7688 | GE64: 7688 | GF64: 7688 | GG64: 7688 | GH64: 7688 | GI64: 7688 | GJ64: 7688 | GK64: 7688 | GL64: 7688 | GM64: 7688
A65: 4 | B65: 4 | C65: 13 | D65: 6556 | E65: 6556 | F65: 6556 | G65: 6556 | H65: 6556 | I65: 6556 | J65: 6556 | K65: 6556 | L65: 6556 | M65: 6556 | N65: 6556 | O65: 6556 | P65: 6556 | Q65: 6556 | R65: 6556 | S65: 6556 | T65: 6556 | U65: 6556 | V65: 6556 | W65: 6556 | X65: 7688 | Y65: 7688 | Z65: 7688 | AA65: 7688 | AB65: 7688 | AC65: 7688 | AD65: 7688 | AE65: 7688 | AF65: 7688 | AG65: 7688 | AH65: 7688 | AI65: 7688 | AJ65: 7688 | AK65: 7688 | AL65: 7688 | AM65: 7688 | AN65: 7688 | AO65: 7688 | AP65: 7688 | AQ65: 7688 | AR65: 7688 | AS65: 7688 | AT65: 7688 | AU65: 7688 | AV65: 7688 | AW65: 7688 | AX65: 7688 | AY65: 7688 | AZ65: 7688 | BA65: 7688 | BB65: 7688 | BC65: 7688 | BD65: 7688 | BE65: 7688 | BF65: 7688 | BG65: 7688 | BH65: 7688 | BI65: 7688 | BJ65: 7688 | BK65: 7688 | BL65: 7688 | BM65: 7688 | BN65: 7688 | BO65: 7688 | BP65: 7688 | BQ65: 7688 | BR65: 7688 | BS65: 7688 | BT65: 7688 | BU65: 7688 | BV65: 7688 | BW65: 7688 | BX65: 7688 | BY65: 7688 | BZ65: 7688 | CA65: 7688 | CB65: 7688 | CC65: 7688 | CD65: 7688 | CE65: 7688 | CF65: 7688 | CG65: 7688 | CH65: 7688 | CI65: 7688 | CJ65: 7688 | CK65: 7688 | CL65: 7688 | CM65: 7688 | CN65: 7688 | CO65: 7688 | CP65: 7688 | CQ65: 7688 | CR65: 7688 | CS65: 7688 | CT65: 7688 | CU65: 7688 | CV65: 7688 | CW65: 7688 | CX65: 7688 | CY65: 7688 | CZ65: 7688 | DA65: 7688 | DB65: 7688 | DC65: 7688 | DD65: 7688 | DE65: 7688 | DF65: 7688 | DG65: 7688 | DH65: 7688 | DI65: 7688 | DJ65: 7688 | DK65: 7688 | DL65: 7688 | DM65: 7688 | DN65: 7688 | DO65: 7688 | DP65: 7688 | DQ65: 7688 | DR65: 7688 | DS65: 7688 | DT65: 7688 | DU65: 7688 | DV65: 7688 | DW65: 7688 | DX65: 7688 | DY65: 7688 | DZ65: 7688 | EA65: 7688 | EB65: 7688 | EC65: 7688 | ED65: 7688 | EE65: 7688 | EF65: 7688 | EG65: 7688 | EH65: 7688 | EI65: 7688 | EJ65: 7688 | EK65: 7688 | EL65: 7688 | EM65: 7688 | EN65: 7688 | EO65: 7688 | EP65: 7688 | EQ65: 7688 | ER65: 7688 | ES65: 7688 | ET65: 7688 | EU65: 7688 | EV65: 7688 | EW65: 7688 | EX65: 7688 | EY65: 7688 | EZ65: 7688 | FA65: 7688 | FB65: 7688 | FC65: 7688 | FD65: 7688 | FE65: 7688 | FF65: 7688 | FG65: 7688 | FH65: 7688 | FI65: 7688 | FJ65: 7688 | FK65: 7688 | FL65: 7688 | FM65: 7688 | FN65: 7688 | FO65: 7688 | FP65: 7688 | FQ65: 7688 | FR65: 7688 | FS65: 7688 | FT65: 7688 | FU65: 7688 | FV65: 7688 | FW65: 7688 | FX65: 7688 | FY65: 7688 | FZ65: 7688 | GA65: 7688 | GB65: 7688 | GC65: 7688 | GD65: 7688 | GE65: 7688 | GF65: 7688 | GG65: 7688 | GH65: 7688 | GI65: 7688 | GJ65: 7688 | GK65: 7688 | GL65: 7688 | GM65: 7688
A66: 1 | B66: 4 | C66: 14 | D66: 3000 | E66: 3000 | F66: 3000 | G66: 3000 | H66: 3000 | I66: 3000 | J66: 3000 | K66: 4000 | L66: 4000 | M66: 4000 | N66: 4000 | O66: 3000 | P66: 3000 | Q66: 3000 | R66: 3000 | S66: 3000 | T66: 3000 | U66: 3000 | V66: 3000 | W66: 3000 | X66: 3000 | Y66: 3000 | Z66: 3000 | AA66: 3000 | AB66: 3000 | AC66: 3000 | AD66: 3000 | AE66: 3000 | AF66: 3000 | AG66: 3000 | AH66: 3000 | AI66: 3000 | AJ66: 3000 | AK66: 3000 | AL66: 3000 | AM66: 3000 | AN66: 3000 | AO66: 3000 | AP66: 3000 | AQ66: 3000 | AR66: 3000 | AS66: 3000 | AT66: 3000 | AU66: 3000 | AV66: 3000 | AW66: 3000 | AX66: 3000 | AY66: 3000 | AZ66: 3000 | BA66: 3000 | BB66: 3000 | BC66: 3000 | BD66: 3000 | BE66: 3000 | BF66: 3000 | BG66: 3000 | BH66: 3000 | BI66: 3000 | BJ66: 3000 | BK66: 3000 | BL66: 3000 | BM66: 3000 | BN66: 3000 | BO66: 3000 | BP66: 3000 | BQ66: 3000 | BR66: 3000 | BS66: 3000 | BT66: 3000 | BU66: 3000 | BV66: 3000 | BW66: 3000 | BX66: 3000 | BY66: 3000 | BZ66: 3000 | CA66: 3000 | CB66: 3000 | CC66: 3000 | CD66: 3000 | CE66: 3000 | CF66: 3000 | CG66: 3000 | CH66: 3000 | CI66: 3000 | CJ66: 3000 | CK66: 3000 | CL66: 3000 | CM66: 3000 | CN66: 3000 | CO66: 3000 | CP66: 3000 | CQ66: 3000 | CR66: 3000 | CS66: 3000 | CT66: 3000 | CU66: 3000 | CV66: 3000 | CW66: 3000 | CX66: 3000 | CY66: 3000 | CZ66: 3000 | DA66: 3000 | DB66: 3000 | DC66: 3000 | DD66: 3000 | DE66: 3000 | DF66: 3000 | DG66: 3000 | DH66: 3000 | DI66: 3000 | DJ66: 3000 | DK66: 3000 | DL66: 3000 | DM66: 3000 | DN66: 3000 | DO66: 3000 | DP66: 3000 | DQ66: 3000 | DR66: 3000 | DS66: 3000 | DT66: 3000 | DU66: 3000 | DV66: 3000 | DW66: 3000 | DX66: 3000 | DY66: 3000 | DZ66: 3000 | EA66: 3000 | EB66: 3000 | EC66: 3000 | ED66: 3000 | EE66: 3000 | EF66: 3000 | EG66: 3000 | EH66: 3000 | EI66: 3000 | EJ66: 3000 | EK66: 3000 | EL66: 3000 | EM66: 3000 | EN66: 3000 | EO66: 3000 | EP66: 3000 | EQ66: 3000 | ER66: 3000 | ES66: 3000 | ET66: 3000 | EU66: 3000 | EV66: 3000 | EW66: 3000 | EX66: 3000 | EY66: 3000 | EZ66: 3000 | FA66: 3000 | FB66: 3000 | FC66: 3000 | FD66: 3000 | FE66: 3000 | FF66: 3000 | FG66: 3000 | FH66: 3000 | FI66: 3000 | FJ66: 3000 | FK66: 3000 | FL66: 3000 | FM66: 3000 | FN66: 3000 | FO66: 3000 | FP66: 3000 | FQ66: 3000 | FR66: 3000 | FS66: 3000 | FT66: 3000 | FU66: 3000 | FV66: 3000 | FW66: 3000 | FX66: 3000 | FY66: 3000 | FZ66: 3000 | GA66: 3000 | GB66: 3000 | GC66: 3000 | GD66: 3000 | GE66: 3000 | GF66: 3000 | GG66: 3000 | GH66: 3000 | GI66: 3000 | GJ66: 3000 | GK66: 3000 | GL66: 3000 | GM66: 3000
A67: 2 | B67: 4 | C67: 14 | D67: 3000 | E67: 3000 | F67: 3000 | G67: 3000 | H67: 3000 | I67: 3000 | J67: 3000 | K67: 4000 | L67: 4000 | M67: 4000 | N67: 4000 | O67: 3000 | P67: 3000 | Q67: 3000 | R67: 3000 | S67: 3000 | T67: 3000 | U67: 3000 | V67: 3000 | W67: 3000 | X67: 3000 | Y67: 3000 | Z67: 3000 | AA67: 3000 | AB67: 3000 | AC67: 3000 | AD67: 3000 | AE67: 3000 | AF67: 3000 | AG67: 3000 | AH67: 3000 | AI67: 3000 | AJ67: 3000 | AK67: 3000 | AL67: 3000 | AM67: 3000 | AN67: 3000 | AO67: 3000 | AP67: 3000 | AQ67: 3000 | AR67: 3000 | AS67: 3000 | AT67: 3000 | AU67: 3000 | AV67: 3000 | AW67: 3000 | AX67: 3000 | AY67: 3000 | AZ67: 3000 | BA67: 3000 | BB67: 3000 | BC67: 3000 | BD67: 3000 | BE67: 3000 | BF67: 3000 | BG67: 3000 | BH67: 3000 | BI67: 3000 | BJ67: 3000 | BK67: 3000 | BL67: 3000 | BM67: 3000 | BN67: 3000 | BO67: 3000 | BP67: 3000 | BQ67: 3000 | BR67: 3000 | BS67: 3000 | BT67: 3000 | BU67: 3000 | BV67: 3000 | BW67: 3000 | BX67: 3000 | BY67: 3000 | BZ67: 3000 | CA67: 3000 | CB67: 3000 | CC67: 3000 | CD67: 3000 | CE67: 3000 | CF67: 3000 | CG67: 3000 | CH67: 3000 | CI67: 3000 | CJ67: 3000 | CK67: 3000 | CL67: 3000 | CM67: 3000 | CN67: 3000 | CO67: 3000 | CP67: 3000 | CQ67: 3000 | CR67: 3000 | CS67: 3000 | CT67: 3000 | CU67: 3000 | CV67: 3000 | CW67: 3000 | CX67: 3000 | CY67: 3000 | CZ67: 3000 | DA67: 3000 | DB67: 3000 | DC67: 3000 | DD67: 3000 | DE67: 3000 | DF67: 3000 | DG67: 3000 | DH67: 3000 | DI67: 3000 | DJ67: 3000 | DK67: 3000 | DL67: 3000 | DM67: 3000 | DN67: 3000 | DO67: 3000 | DP67: 3000 | DQ67: 3000 | DR67: 3000 | DS67: 3000 | DT67: 3000 | DU67: 3000 | DV67: 3000 | DW67: 3000 | DX67: 3000 | DY67: 3000 | DZ67: 3000 | EA67: 3000 | EB67: 3000 | EC67: 3000 | ED67: 3000 | EE67: 3000 | EF67: 3000 | EG67: 3000 | EH67: 3000 | EI67: 3000 | EJ67: 3000 | EK67: 3000 | EL67: 3000 | EM67: 3000 | EN67: 3000 | EO67: 3000 | EP67: 3000 | EQ67: 3000 | ER67: 3000 | ES67: 3000 | ET67: 3000 | EU67: 3000 | EV67: 3000 | EW67: 3000 | EX67: 3000 | EY67: 3000 | EZ67: 3000 | FA67: 3000 | FB67: 3000 | FC67: 3000 | FD67: 3000 | FE67: 3000 | FF67: 3000 | FG67: 3000 | FH67: 3000 | FI67: 3000 | FJ67: 3000 | FK67: 3000 | FL67: 3000 | FM67: 3000 | FN67: 3000 | FO67: 3000 | FP67: 3000 | FQ67: 3000 | FR67: 3000 | FS67: 3000 | FT67: 3000 | FU67: 3000 | FV67: 3000 | FW67: 3000 | FX67: 3000 | FY67: 3000 | FZ67: 3000 | GA67: 3000 | GB67: 3000 | GC67: 3000 | GD67: 3000 | GE67: 3000 | GF67: 3000 | GG67: 3000 | GH67: 3000 | GI67: 3000 | GJ67: 3000 | GK67: 3000 | GL67: 3000 | GM67: 3000
A68: 3 | B68: 4 | C68: 14 | D68: 3000 | E68: 3000 | F68: 3000 | G68: 3000 | H68: 3000 | I68: 3000 | J68: 3000 | K68: 4000 | L68: 4000 | M68: 4000 | N68: 4000 | O68: 3000 | P68: 3000 | Q68: 3000 | R68: 3000 | S68: 3000 | T68: 3000 | U68: 3000 | V68: 3000 | W68: 3000 | X68: 3000 | Y68: 3000 | Z68: 3000 | AA68: 3000 | AB68: 3000 | AC68: 3000 | AD68: 3000 | AE68: 3000 | AF68: 3000 | AG68: 3000 | AH68: 3000 | AI68: 3000 | AJ68: 3000 | AK68: 3000 | AL68: 3000 | AM68: 3000 | AN68: 3000 | AO68: 3000 | AP68: 3000 | AQ68: 3000 | AR68: 3000 | AS68: 3000 | AT68: 3000 | AU68: 3000 | AV68: 3000 | AW68: 3000 | AX68: 3000 | AY68: 3000 | AZ68: 3000 | BA68: 3000 | BB68: 3000 | BC68: 3000 | BD68: 3000 | BE68: 3000 | BF68: 3000 | BG68: 3000 | BH68: 3000 | BI68: 3000 | BJ68: 3000 | BK68: 3000 | BL68: 3000 | BM68: 3000 | BN68: 3000 | BO68: 3000 | BP68: 3000 | BQ68: 3000 | BR68: 3000 | BS68: 3000 | BT68: 3000 | BU68: 3000 | BV68: 3000 | BW68: 3000 | BX68: 3000 | BY68: 3000 | BZ68: 3000 | CA68: 3000 | CB68: 3000 | CC68: 3000 | CD68: 3000 | CE68: 3000 | CF68: 3000 | CG68: 3000 | CH68: 3000 | CI68: 3000 | CJ68: 3000 | CK68: 3000 | CL68: 3000 | CM68: 3000 | CN68: 3000 | CO68: 3000 | CP68: 3000 | CQ68: 3000 | CR68: 3000 | CS68: 3000 | CT68: 3000 | CU68: 3000 | CV68: 3000 | CW68: 3000 | CX68: 3000 | CY68: 3000 | CZ68: 3000 | DA68: 3000 | DB68: 3000 | DC68: 3000 | DD68: 3000 | DE68: 3000 | DF68: 3000 | DG68: 3000 | DH68: 3000 | DI68: 3000 | DJ68: 3000 | DK68: 3000 | DL68: 3000 | DM68: 3000 | DN68: 3000 | DO68: 3000 | DP68: 3000 | DQ68: 3000 | DR68: 3000 | DS68: 3000 | DT68: 3000 | DU68: 3000 | DV68: 3000 | DW68: 3000 | DX68: 3000 | DY68: 3000 | DZ68: 3000 | EA68: 3000 | EB68: 3000 | EC68: 3000 | ED68: 3000 | EE68: 3000 | EF68: 3000 | EG68: 3000 | EH68: 3000 | EI68: 3000 | EJ68: 3000 | EK68: 3000 | EL68: 3000 | EM68: 3000 | EN68: 3000 | EO68: 3000 | EP68: 3000 | EQ68: 3000 | ER68: 3000 | ES68: 3000 | ET68: 3000 | EU68: 3000 | EV68: 3000 | EW68: 3000 | EX68: 3000 | EY68: 3000 | EZ68: 3000 | FA68: 3000 | FB68: 3000 | FC68: 3000 | FD68: 3000 | FE68: 3000 | FF68: 3000 | FG68: 3000 | FH68: 3000 | FI68: 3000 | FJ68: 3000 | FK68: 3000 | FL68: 3000 | FM68: 3000 | FN68: 3000 | FO68: 3000 | FP68: 3000 | FQ68: 3000 | FR68: 3000 | FS68: 3000 | FT68: 3000 | FU68: 3000 | FV68: 3000 | FW68: 3000 | FX68: 3000 | FY68: 3000 | FZ68: 3000 | GA68: 3000 | GB68: 3000 | GC68: 3000 | GD68: 3000 | GE68: 3000 | GF68: 3000 | GG68: 3000 | GH68: 3000 | GI68: 3000 | GJ68: 3000 | GK68: 3000 | GL68: 3000 | GM68: 3000
A69: 4 | B69: 4 | C69: 14 | D69: 3000 | E69: 3000 | F69: 3000 | G69: 3000 | H69: 3000 | I69: 3000 | J69: 3000 | K69: 4000 | L69: 4000 | M69: 4000 | N69: 4000 | O69: 3000 | P69: 3000 | Q69: 3000 | R69: 3000 | S69: 3000 | T69: 3000 | U69: 3000 | V69: 3000 | W69: 3000 | X69: 3000 | Y69: 3000 | Z69: 3000 | AA69: 3000 | AB69: 3000 | AC69: 3000 | AD69: 3000 | AE69: 3000 | AF69: 3000 | AG69: 3000 | AH69: 3000 | AI69: 3000 | AJ69: 3000 | AK69: 3000 | AL69: 3000 | AM69: 3000 | AN69: 3000 | AO69: 3000 | AP69: 3000 | AQ69: 3000 | AR69: 3000 | AS69: 3000 | AT69: 3000 | AU69: 3000 | AV69: 3000 | AW69: 3000 | AX69: 3000 | AY69: 3000 | AZ69: 3000 | BA69: 3000 | BB69: 3000 | BC69: 3000 | BD69: 3000 | BE69: 3000 | BF69: 3000 | BG69: 3000 | BH69: 3000 | BI69: 3000 | BJ69: 3000 | BK69: 3000 | BL69: 3000 | BM69: 3000 | BN69: 3000 | BO69: 3000 | BP69: 3000 | BQ69: 3000 | BR69: 3000 | BS69: 3000 | BT69: 3000 | BU69: 3000 | BV69: 3000 | BW69: 3000 | BX69: 3000 | BY69: 3000 | BZ69: 3000 | CA69: 3000 | CB69: 3000 | CC69: 3000 | CD69: 3000 | CE69: 3000 | CF69: 3000 | CG69: 3000 | CH69: 3000 | CI69: 3000 | CJ69: 3000 | CK69: 3000 | CL69: 3000 | CM69: 3000 | CN69: 3000 | CO69: 3000 | CP69: 3000 | CQ69: 3000 | CR69: 3000 | CS69: 3000 | CT69: 3000 | CU69: 3000 | CV69: 3000 | CW69: 3000 | CX69: 3000 | CY69: 3000 | CZ69: 3000 | DA69: 3000 | DB69: 3000 | DC69: 3000 | DD69: 3000 | DE69: 3000 | DF69: 3000 | DG69: 3000 | DH69: 3000 | DI69: 3000 | DJ69: 3000 | DK69: 3000 | DL69: 3000 | DM69: 3000 | DN69: 3000 | DO69: 3000 | DP69: 3000 | DQ69: 3000 | DR69: 3000 | DS69: 3000 | DT69: 3000 | DU69: 3000 | DV69: 3000 | DW69: 3000 | DX69: 3000 | DY69: 3000 | DZ69: 3000 | EA69: 3000 | EB69: 3000 | EC69: 3000 | ED69: 3000 | EE69: 3000 | EF69: 3000 | EG69: 3000 | EH69: 3000 | EI69: 3000 | EJ69: 3000 | EK69: 3000 | EL69: 3000 | EM69: 3000 | EN69: 3000 | EO69: 3000 | EP69: 3000 | EQ69: 3000 | ER69: 3000 | ES69: 3000 | ET69: 3000 | EU69: 3000 | EV69: 3000 | EW69: 3000 | EX69: 3000 | EY69: 3000 | EZ69: 3000 | FA69: 3000 | FB69: 3000 | FC69: 3000 | FD69: 3000 | FE69: 3000 | FF69: 3000 | FG69: 3000 | FH69: 3000 | FI69: 3000 | FJ69: 3000 | FK69: 3000 | FL69: 3000 | FM69: 3000 | FN69: 3000 | FO69: 3000 | FP69: 3000 | FQ69: 3000 | FR69: 3000 | FS69: 3000 | FT69: 3000 | FU69: 3000 | FV69: 3000 | FW69: 3000 | FX69: 3000 | FY69: 3000 | FZ69: 3000 | GA69: 3000 | GB69: 3000 | GC69: 3000 | GD69: 3000 | GE69: 3000 | GF69: 3000 | GG69: 3000 | GH69: 3000 | GI69: 3000 | GJ69: 3000 | GK69: 3000 | GL69: 3000 | GM69: 3000
A70: 1 | B70: 5 | C70: 1 | D70: 4483 | E70: 4269 | F70: 4807 | G70: 5310 | H70: 5265 | I70: 5181 | J70: 5226 | K70: 5155 | L70: 5074 | M70: 5001 | N70: 4902 | O70: 4925 | P70: 4336 | Q70: 4107 | R70: 4665 | S70: 5184 | T70: 5173 | U70: 5084 | V70: 5131 | W70: 5057 | X70: 4972 | Y70: 4895 | Z70: 4792 | AA70: 4815 | AB70: 4197 | AC70: 4066 | AD70: 4542 | AE70: 5087 | AF70: 5075 | AG70: 4981 | AH70: 5031 | AI70: 4953 | AJ70: 4865 | AK70: 4783 | AL70: 4675 | AM70: 4700 | AN70: 4050 | AO70: 3799 | AP70: 4413 | AQ70: 4985 | AR70: 4973 | AS70: 4874 | AT70: 4926 | AU70: 4844 | AV70: 4751 | AW70: 4666 | AX70: 4552 | AY70: 4578 | AZ70: 4050 | BA70: 3799 | BB70: 4413 | BC70: 4985 | BD70: 4973 | BE70: 4874 | BF70: 4926 | BG70: 4844 | BH70: 4751 | BI70: 4666 | BJ70: 4552 | BK70: 4578 | BL70: 3831 | BM70: 3562 | BN70: 4220 | BO70: 4833 | BP70: 4819 | BQ70: 4714 | BR70: 4770 | BS70: 4682 | BT70: 4582 | BU70: 4491 | BV70: 4369 | BW70: 4397 | BX70: 3614 | BY70: 3327 | BZ70: 4028 | CA70: 4682 | CB70: 4667 | CC70: 4555 | CD70: 4615 | CE70: 4520 | CF70: 4415 | CG70: 4317 | CH70: 4187 | CI70: 4217 | CJ70: 3384 | CK70: 3078 | CL70: 3825 | CM70: 4521 | CN70: 4506 | CO70: 4386 | CP70: 4450 | CQ70: 4349 | CR70: 4237 | CS70: 4133 | CT70: 3994 | CU70: 4026 | CV70: 3139 | CW70: 2814 | CX70: 3610 | CY70: 4351 | CZ70: 4335 | DA70: 4208 | DB70: 4275 | DC70: 4168 | DD70: 4048 | DE70: 3938 | DF70: 3790 | DG70: 3824 | DH70: 2881 | DI70: 2534 | DJ70: 3382 | DK70: 4171 | DL70: 4154 | DM70: 4018 | DN70: 4090 | DO70: 3977 | DP70: 3849 | DQ70: 3731 | DR70: 3573 | DS70: 3610 | DT70: 2613 | DU70: 2244 | DV70: 3145 | DW70: 3985 | DX70: 3967 | DY70: 3822 | DZ70: 3899 | EA70: 3778 | EB70: 3642 | EC70: 3517 | ED70: 3349 | EE70: 3388 | EF70: 2329 | EG70: 1938 | EH70: 2895 | EI70: 3788 | EJ70: 3768 | EK70: 3615 | EL70: 3696 | EM70: 3567 | EN70: 3423 | EO70: 3290 | EP70: 3112 | EQ70: 3153 | ER70: 2029 | ES70: 1613 | ET70: 2630 | EU70: 3579 | EV70: 3558 | EW70: 3395 | EX70: 3481 | EY70: 3345 | EZ70: 3191 | FA70: 3050 | FB70: 2861 | FC70: 2904 | FD70: 1711 | FE70: 1269 | FF70: 2350 | FG70: 3357 | FH70: 3335 | FI70: 3162 | FJ70: 3254 | FK70: 3109 | FL70: 2946 | FM70: 2796 | FN70: 2594 | FO70: 2641 | FP70: 1374 | FQ70: 904 | FR70: 2053 | FS70: 3123 | FT70: 3100 | FU70: 2916 | FV70: 3013 | FW70: 2859 | FX70: 2686 | FY70: 2526 | FZ70: 2313 | GA70: 2362 | GB70: 1374 | GC70: 904 | GD70: 2053 | GE70: 3123 | GF70: 3100 | GG70: 2916 | GH70: 3013 | GI70: 2859 | GJ70: 2686 | GK70: 2526 | GL70: 2313 | GM70: 2362
A71: 2 | B71: 5 | C71: 1 | D71: 4483 | E71: 4269 | F71: 4807 | G71: 5310 | H71: 5265 | I71: 5181 | J71: 5226 | K71: 5155 | L71: 5074 | M71: 5001 | N71: 4902 | O71: 4925 | P71: 4336 | Q71: 4107 | R71: 4665 | S71: 5184 | T71: 5173 | U71: 5084 | V71: 5131 | W71: 5057 | X71: 4972 | Y71: 4895 | Z71: 4792 | AA71: 4815 | AB71: 4197 | AC71: 4066 | AD71: 4542 | AE71: 5087 | AF71: 5075 | AG71: 4981 | AH71: 5031 | AI71: 4953 | AJ71: 4865 | AK71: 4783 | AL71: 4675 | AM71: 4700 | AN71: 4050 | AO71: 3799 | AP71: 4413 | AQ71: 4985 | AR71: 4973 | AS71: 4874 | AT71: 4926 | AU71: 4844 | AV71: 4751 | AW71: 4666 | AX71: 4552 | AY71: 4578 | AZ71: 4050 | BA71: 3799 | BB71: 4413 | BC71: 4985 | BD71: 4973 | BE71: 4874 | BF71: 4926 | BG71: 4844 | BH71: 4751 | BI71: 4666 | BJ71: 4552 | BK71: 4578 | BL71: 3831 | BM71: 3562 | BN71: 4220 | BO71: 4833 | BP71: 4819 | BQ71: 4714 | BR71: 4770 | BS71: 4682 | BT71: 4582 | BU71: 4491 | BV71: 4369 | BW71: 4397 | BX71: 3614 | BY71: 3327 | BZ71: 4028 | CA71: 4682 | CB71: 4667 | CC71: 4555 | CD71: 4615 | CE71: 4520 | CF71: 4415 | CG71: 4317 | CH71: 4187 | CI71: 4217 | CJ71: 3384 | CK71: 3078 | CL71: 3825 | CM71: 4521 | CN71: 4506 | CO71: 4386 | CP71: 4450 | CQ71: 4349 | CR71: 4237 | CS71: 4133 | CT71: 3994 | CU71: 4026 | CV71: 3139 | CW71: 2814 | CX71: 3610 | CY71: 4351 | CZ71: 4335 | DA71: 4208 | DB71: 4275 | DC71: 4168 | DD71: 4048 | DE71: 3938 | DF71: 3790 | DG71: 3824 | DH71: 2881 | DI71: 2534 | DJ71: 3382 | DK71: 4171 | DL71: 4154 | DM71: 4018 | DN71: 4090 | DO71: 3977 | DP71: 3849 | DQ71: 3731 | DR71: 3573 | DS71: 3610 | DT71: 2613 | DU71: 2244 | DV71: 3145 | DW71: 3985 | DX71: 3967 | DY71: 3822 | DZ71: 3899 | EA71: 3778 | EB71: 3642 | EC71: 3517 | ED71: 3349 | EE71: 3388 | EF71: 2329 | EG71: 1938 | EH71: 2895 | EI71: 3788 | EJ71: 3768 | EK71: 3615 | EL71: 3696 | EM71: 3567 | EN71: 3423 | EO71: 3290 | EP71: 3112 | EQ71: 3153 | ER71: 2029 | ES71: 1613 | ET71: 2630 | EU71: 3579 | EV71: 3558 | EW71: 3395 | EX71: 3481 | EY71: 3345 | EZ71: 3191 | FA71: 3050 | FB71: 2861 | FC71: 2904 | FD71: 1711 | FE71: 1269 | FF71: 2350 | FG71: 3357 | FH71: 3335 | FI71: 3162 | FJ71: 3254 | FK71: 3109 | FL71: 2946 | FM71: 2796 | FN71: 2594 | FO71: 2641 | FP71: 1374 | FQ71: 904 | FR71: 2053 | FS71: 3123 | FT71: 3100 | FU71: 2916 | FV71: 3013 | FW71: 2859 | FX71: 2686 | FY71: 2526 | FZ71: 2313 | GA71: 2362 | GB71: 1374 | GC71: 904 | GD71: 2053 | GE71: 3123 | GF71: 3100 | GG71: 2916 | GH71: 3013 | GI71: 2859 | GJ71: 2686 | GK71: 2526 | GL71: 2313 | GM71: 2362
A72: 3 | B72: 5 | C72: 1 | D72: 4555 | E72: 4445 | F72: 4915 | G72: 5373 | H72: 5437 | I72: 5339 | J72: 5358 | K72: 5334 | L72: 5169 | M72: 5073 | N72: 5004 | O72: 5044 | P72: 4427 | Q72: 4310 | R72: 4805 | S72: 5286 | T72: 5353 | U72: 5249 | V72: 5268 | W72: 5245 | X72: 5072 | Y72: 4970 | Z72: 4899 | AA72: 4940 | AB72: 4291 | AC72: 4272 | AD72: 4688 | AE72: 5193 | AF72: 5264 | AG72: 5155 | AH72: 5176 | AI72: 5150 | AJ72: 4970 | AK72: 4862 | AL72: 4787 | AM72: 4830 | AN72: 4150 | AO72: 4023 | AP72: 4567 | AQ72: 5097 | AR72: 5172 | AS72: 5057 | AT72: 5078 | AU72: 5051 | AV72: 4861 | AW72: 4749 | AX72: 4670 | AY72: 4715 | AZ72: 4150 | BA72: 4023 | BB72: 4567 | BC72: 5097 | BD72: 5172 | BE72: 5057 | BF72: 5078 | BG72: 5051 | BH72: 4861 | BI72: 4749 | BJ72: 4670 | BK72: 4715 | BL72: 3938 | BM72: 3802 | BN72: 4385 | BO72: 4953 | BP72: 5032 | BQ72: 4910 | BR72: 4933 | BS72: 4903 | BT72: 4700 | BU72: 4580 | BV72: 4495 | BW72: 4544 | BX72: 3728 | BY72: 3582 | BZ72: 4204 | CA72: 4809 | CB72: 4894 | CC72: 4764 | CD72: 4788 | CE72: 4757 | CF72: 4540 | CG72: 4412 | CH72: 4321 | CI72: 4374 | CJ72: 3505 | CK72: 3350 | CL72: 4012 | CM72: 4657 | CN72: 4748 | CO72: 4609 | CP72: 4635 | CQ72: 4602 | CR72: 4371 | CS72: 4234 | CT72: 4137 | CU72: 4193 | CV72: 3269 | CW72: 3104 | CX72: 3809 | CY72: 4496 | CZ72: 4593 | DA72: 4445 | DB72: 4472 | DC72: 4437 | DD72: 4191 | DE72: 4045 | DF72: 3942 | DG72: 4002 | DH72: 3019 | DI72: 2843 | DJ72: 3594 | DK72: 4326 | DL72: 4429 | DM72: 4271 | DN72: 4300 | DO72: 4263 | DP72: 4001 | DQ72: 3846 | DR72: 3736 | DS72: 3799 | DT72: 2759 | DU72: 2572 | DV72: 3371 | DW72: 4149 | DX72: 4259 | DY72: 4091 | DZ72: 4122 | EA72: 4082 | EB72: 3803 | EC72: 3639 | ED72: 3522 | EE72: 3589 | EF72: 2485 | EG72: 2286 | EH72: 3135 | EI72: 3962 | EJ72: 4078 | EK72: 3900 | EL72: 3933 | EM72: 3891 | EN72: 3595 | EO72: 3419 | EP72: 3295 | EQ72: 3367 | ER72: 2194 | ES72: 1983 | ET72: 2885 | EU72: 3764 | EV72: 3888 | EW72: 3698 | EX72: 3733 | EY72: 3688 | EZ72: 3373 | FA72: 3187 | FB72: 3056 | FC72: 3132 | FD72: 1887 | FE72: 1662 | FF72: 2621 | FG72: 3554 | FH72: 3686 | FI72: 3484 | FJ72: 3521 | FK72: 3474 | FL72: 3139 | FM72: 2942 | FN72: 2802 | FO72: 2882 | FP72: 1561 | FQ72: 1323 | FR72: 2341 | FS72: 3332 | FT72: 3472 | FU72: 3257 | FV72: 3297 | FW72: 3246 | FX72: 2891 | FY72: 2681 | FZ72: 2533 | GA72: 2619 | GB72: 1561 | GC72: 1323 | GD72: 2341 | GE72: 3332 | GF72: 3472 | GG72: 3257 | GH72: 3297 | GI72: 3246 | GJ72: 2891 | GK72: 2681 | GL72: 2533 | GM72: 2619
A73: 4 | B73: 5 | C73: 1 | D73: 4969 | E73: 4875 | F73: 5318 | G73: 5701 | H73: 5749 | I73: 5670 | J73: 5683 | K73: 5671 | L73: 5563 | M73: 5455 | N73: 5390 | O73: 5405 | P73: 4862 | Q73: 4762 | R73: 5228 | S73: 5630 | T73: 5680 | U73: 5597 | V73: 5611 | W73: 5599 | X73: 5486 | Y73: 5371 | Z73: 5304 | AA73: 5319 | AB73: 4748 | AC73: 4730 | AD73: 5133 | AE73: 5555 | AF73: 5607 | AG73: 5520 | AH73: 5535 | AI73: 5522 | AJ73: 5404 | AK73: 5283 | AL73: 5213 | AM73: 5228 | AN73: 4629 | AO73: 4521 | AP73: 5033 | AQ73: 5477 | AR73: 5532 | AS73: 5440 | AT73: 5456 | AU73: 5442 | AV73: 5318 | AW73: 5191 | AX73: 5117 | AY73: 5134 | AZ73: 4629 | BA73: 4521 | BB73: 5033 | BC73: 5477 | BD73: 5532 | BE73: 5440 | BF73: 5456 | BG73: 5442 | BH73: 5318 | BI73: 5191 | BJ73: 5117 | BK73: 5134 | BL73: 4452 | BM73: 4335 | BN73: 4885 | BO73: 5359 | BP73: 5418 | BQ73: 5320 | BR73: 5337 | BS73: 5322 | BT73: 5189 | BU73: 5053 | BV73: 4974 | BW73: 4992 | BX73: 4275 | BY73: 4151 | BZ73: 4737 | CA73: 5243 | CB73: 5306 | CC73: 5201 | CD73: 5219 | CE73: 5203 | CF73: 5061 | CG73: 4917 | CH73: 4832 | CI73: 4851 | CJ73: 4088 | CK73: 3956 | CL73: 4580 | CM73: 5119 | CN73: 5186 | CO73: 5075 | CP73: 5094 | CQ73: 5077 | CR73: 4926 | CS73: 4772 | CT73: 4682 | CU73: 4702 | CV73: 3890 | CW73: 3749 | CX73: 4414 | CY73: 4989 | CZ73: 5060 | DA73: 4941 | DB73: 4961 | DC73: 4943 | DD73: 4782 | DE73: 4618 | DF73: 4522 | DG73: 4544 | DH73: 3680 | DI73: 3530 | DJ73: 4238 | DK73: 4850 | DL73: 4926 | DM73: 4800 | DN73: 4821 | DO73: 4802 | DP73: 4630 | DQ73: 4456 | DR73: 4353 | DS73: 4376 | DT73: 3463 | DU73: 3303 | DV73: 4056 | DW73: 4706 | DX73: 4787 | DY73: 4653 | DZ73: 4675 | EA73: 4655 | EB73: 4473 | EC73: 4287 | ED73: 4179 | EE73: 4203 | EF73: 3233 | EG73: 3063 | EH73: 3863 | EI73: 4554 | EJ73: 4640 | EK73: 4497 | EL73: 4521 | EM73: 4500 | EN73: 4306 | EO73: 4109 | EP73: 3993 | EQ73: 4019 | ER73: 2989 | ES73: 2809 | ET73: 3659 | EU73: 4393 | EV73: 4485 | EW73: 4333 | EX73: 4358 | EY73: 4336 | EZ73: 4130 | FA73: 3920 | FB73: 3797 | FC73: 3825 | FD73: 2731 | FE73: 2539 | FF73: 3442 | FG73: 4223 | FH73: 4320 | FI73: 4159 | FJ73: 4186 | FK73: 4161 | FL73: 3943 | FM73: 3720 | FN73: 3589 | FO73: 3619 | FP73: 2457 | FQ73: 2254 | FR73: 3213 | FS73: 4042 | FT73: 4145 | FU73: 3974 | FV73: 4003 | FW73: 3977 | FX73: 3745 | FY73: 3508 | FZ73: 3370 | GA73: 3401 | GB73: 2457 | GC73: 2254 | GD73: 3213 | GE73: 4042 | GF73: 4145 | GG73: 3974 | GH73: 4003 | GI73: 3977 | GJ73: 3745 | GK73: 3508 | GL73: 3370 | GM73: 3401
A74: 1 | B74: 5 | C74: 2 | D74: 2300 | E74: 2300 | F74: 2300 | G74: 2300 | H74: 2300 | I74: 2300 | J74: 2300 | K74: 2300 | L74: 2300 | M74: 2300 | N74: 2300 | O74: 2300 | P74: 2300 | Q74: 2300 | R74: 4000 | S74: 4000 | T74: 4000 | U74: 4000 | V74: 4000 | W74: 4000 | X74: 4000 | Y74: 4000 | Z74: 4000 | AA74: 4000 | AB74: 4000 | AC74: 4000 | AD74: 4000 | AE74: 4000 | AF74: 4000 | AG74: 4000 | AH74: 4000 | AI74: 4000 | AJ74: 4000 | AK74: 4000 | AL74: 4000 | AM74: 4000 | AN74: 4000 | AO74: 4000 | AP74: 4000 | AQ74: 4000 | AR74: 4000 | AS74: 4000 | AT74: 4000 | AU74: 4000 | AV74: 4000 | AW74: 4000 | AX74: 4000 | AY74: 4000 | AZ74: 4000 | BA74: 4000 | BB74: 4000 | BC74: 4000 | BD74: 4000 | BE74: 4000 | BF74: 4000 | BG74: 4000 | BH74: 4000 | BI74: 4000 | BJ74: 4000 | BK74: 4000 | BL74: 4000 | BM74: 4000 | BN74: 4000 | BO74: 4000 | BP74: 4000 | BQ74: 4000 | BR74: 4000 | BS74: 4000 | BT74: 4000 | BU74: 4000 | BV74: 4000 | BW74: 4000 | BX74: 4000 | BY74: 4000 | BZ74: 4000 | CA74: 4000 | CB74: 4000 | CC74: 4000 | CD74: 4000 | CE74: 4000 | CF74: 4000 | CG74: 4000 | CH74: 4000 | CI74: 4000 | CJ74: 4000 | CK74: 4000 | CL74: 4000 | CM74: 4000 | CN74: 4000 | CO74: 4000 | CP74: 4000 | CQ74: 4000 | CR74: 4000 | CS74: 4000 | CT74: 4000 | CU74: 4000 | CV74: 4000 | CW74: 4000 | CX74: 4000 | CY74: 4000 | CZ74: 4000 | DA74: 4000 | DB74: 4000 | DC74: 4000 | DD74: 4000 | DE74: 4000 | DF74: 4000 | DG74: 4000 | DH74: 4000 | DI74: 4000 | DJ74: 4000 | DK74: 4000 | DL74: 4000 | DM74: 4000 | DN74: 4000 | DO74: 4000 | DP74: 4000 | DQ74: 4000 | DR74: 4000 | DS74: 4000 | DT74: 4000 | DU74: 4000 | DV74: 4000 | DW74: 4000 | DX74: 4000 | DY74: 4000 | DZ74: 4000 | EA74: 4000 | EB74: 4000 | EC74: 4000 | ED74: 4000 | EE74: 4000 | EF74: 4000 | EG74: 4000 | EH74: 4000 | EI74: 4000 | EJ74: 4000 | EK74: 4000 | EL74: 4000 | EM74: 4000 | EN74: 4000 | EO74: 4000 | EP74: 4000 | EQ74: 4000 | ER74: 4000 | ES74: 4000 | ET74: 4000 | EU74: 4000 | EV74: 4000 | EW74: 4000 | EX74: 4000 | EY74: 4000 | EZ74: 4000 | FA74: 4000 | FB74: 4000 | FC74: 4000 | FD74: 4000 | FE74: 4000 | FF74: 4000 | FG74: 4000 | FH74: 4000 | FI74: 4000 | FJ74: 4000 | FK74: 4000 | FL74: 4000 | FM74: 4000 | FN74: 4000 | FO74: 4000 | FP74: 4000 | FQ74: 4000 | FR74: 4000 | FS74: 4000 | FT74: 4000 | FU74: 4000 | FV74: 4000 | FW74: 4000 | FX74: 4000 | FY74: 4000 | FZ74: 4000 | GA74: 4000 | GB74: 4000 | GC74: 4000 | GD74: 4000 | GE74: 4000 | GF74: 4000 | GG74: 4000 | GH74: 4000 | GI74: 4000 | GJ74: 4000 | GK74: 4000 | GL74: 4000 | GM74: 4000
A75: 2 | B75: 5 | C75: 2 | D75: 2300 | E75: 2300 | F75: 2300 | G75: 2300 | H75: 2300 | I75: 2300 | J75: 2300 | K75: 2300 | L75: 2300 | M75: 2300 | N75: 2300 | O75: 2300 | P75: 2300 | Q75: 2300 | R75: 4000 | S75: 4000 | T75: 4000 | U75: 4000 | V75: 4000 | W75: 4000 | X75: 4000 | Y75: 4000 | Z75: 4000 | AA75: 4000 | AB75: 4000 | AC75: 4000 | AD75: 4000 | AE75: 4000 | AF75: 4000 | AG75: 4000 | AH75: 4000 | AI75: 4000 | AJ75: 4000 | AK75: 4000 | AL75: 4000 | AM75: 4000 | AN75: 4000 | AO75: 4000 | AP75: 4000 | AQ75: 4000 | AR75: 4000 | AS75: 4000 | AT75: 4000 | AU75: 4000 | AV75: 4000 | AW75: 4000 | AX75: 4000 | AY75: 4000 | AZ75: 4000 | BA75: 4000 | BB75: 4000 | BC75: 4000 | BD75: 4000 | BE75: 4000 | BF75: 4000 | BG75: 4000 | BH75: 4000 | BI75: 4000 | BJ75: 4000 | BK75: 4000 | BL75: 4000 | BM75: 4000 | BN75: 4000 | BO75: 4000 | BP75: 4000 | BQ75: 4000 | BR75: 4000 | BS75: 4000 | BT75: 4000 | BU75: 4000 | BV75: 4000 | BW75: 4000 | BX75: 4000 | BY75: 4000 | BZ75: 4000 | CA75: 4000 | CB75: 4000 | CC75: 4000 | CD75: 4000 | CE75: 4000 | CF75: 4000 | CG75: 4000 | CH75: 4000 | CI75: 4000 | CJ75: 4000 | CK75: 4000 | CL75: 4000 | CM75: 4000 | CN75: 4000 | CO75: 4000 | CP75: 4000 | CQ75: 4000 | CR75: 4000 | CS75: 4000 | CT75: 4000 | CU75: 4000 | CV75: 4000 | CW75: 4000 | CX75: 4000 | CY75: 4000 | CZ75: 4000 | DA75: 4000 | DB75: 4000 | DC75: 4000 | DD75: 4000 | DE75: 4000 | DF75: 4000 | DG75: 4000 | DH75: 4000 | DI75: 4000 | DJ75: 4000 | DK75: 4000 | DL75: 4000 | DM75: 4000 | DN75: 4000 | DO75: 4000 | DP75: 4000 | DQ75: 4000 | DR75: 4000 | DS75: 4000 | DT75: 4000 | DU75: 4000 | DV75: 4000 | DW75: 4000 | DX75: 4000 | DY75: 4000 | DZ75: 4000 | EA75: 4000 | EB75: 4000 | EC75: 4000 | ED75: 4000 | EE75: 4000 | EF75: 4000 | EG75: 4000 | EH75: 4000 | EI75: 4000 | EJ75: 4000 | EK75: 4000 | EL75: 4000 | EM75: 4000 | EN75: 4000 | EO75: 4000 | EP75: 4000 | EQ75: 4000 | ER75: 4000 | ES75: 4000 | ET75: 4000 | EU75: 4000 | EV75: 4000 | EW75: 4000 | EX75: 4000 | EY75: 4000 | EZ75: 4000 | FA75: 4000 | FB75: 4000 | FC75: 4000 | FD75: 4000 | FE75: 4000 | FF75: 4000 | FG75: 4000 | FH75: 4000 | FI75: 4000 | FJ75: 4000 | FK75: 4000 | FL75: 4000 | FM75: 4000 | FN75: 4000 | FO75: 4000 | FP75: 4000 | FQ75: 4000 | FR75: 4000 | FS75: 4000 | FT75: 4000 | FU75: 4000 | FV75: 4000 | FW75: 4000 | FX75: 4000 | FY75: 4000 | FZ75: 4000 | GA75: 4000 | GB75: 4000 | GC75: 4000 | GD75: 4000 | GE75: 4000 | GF75: 4000 | GG75: 4000 | GH75: 4000 | GI75: 4000 | GJ75: 4000 | GK75: 4000 | GL75: 4000 | GM75: 4000
A76: 3 | B76: 5 | C76: 2 | D76: 2300 | E76: 2300 | F76: 2300 | G76: 2300 | H76: 2300 | I76: 2300 | J76: 2300 | K76: 2300 | L76: 2300 | M76: 2300 | N76: 2300 | O76: 2300 | P76: 2300 | Q76: 2300 | R76: 4000 | S76: 4000 | T76: 4000 | U76: 4000 | V76: 4000 | W76: 4000 | X76: 4000 | Y76: 4000 | Z76: 4000 | AA76: 4000 | AB76: 4000 | AC76: 4000 | AD76: 4000 | AE76: 4000 | AF76: 4000 | AG76: 4000 | AH76: 4000 | AI76: 4000 | AJ76: 4000 | AK76: 4000 | AL76: 4000 | AM76: 4000 | AN76: 4000 | AO76: 4000 | AP76: 4000 | AQ76: 4000 | AR76: 4000 | AS76: 4000 | AT76: 4000 | AU76: 4000 | AV76: 4000 | AW76: 4000 | AX76: 4000 | AY76: 4000 | AZ76: 4000 | BA76: 4000 | BB76: 4000 | BC76: 4000 | BD76: 4000 | BE76: 4000 | BF76: 4000 | BG76: 4000 | BH76: 4000 | BI76: 4000 | BJ76: 4000 | BK76: 4000 | BL76: 4000 | BM76: 4000 | BN76: 4000 | BO76: 4000 | BP76: 4000 | BQ76: 4000 | BR76: 4000 | BS76: 4000 | BT76: 4000 | BU76: 4000 | BV76: 4000 | BW76: 4000 | BX76: 4000 | BY76: 4000 | BZ76: 4000 | CA76: 4000 | CB76: 4000 | CC76: 4000 | CD76: 4000 | CE76: 4000 | CF76: 4000 | CG76: 4000 | CH76: 4000 | CI76: 4000 | CJ76: 4000 | CK76: 4000 | CL76: 4000 | CM76: 4000 | CN76: 4000 | CO76: 4000 | CP76: 4000 | CQ76: 4000 | CR76: 4000 | CS76: 4000 | CT76: 4000 | CU76: 4000 | CV76: 4000 | CW76: 4000 | CX76: 4000 | CY76: 4000 | CZ76: 4000 | DA76: 4000 | DB76: 4000 | DC76: 4000 | DD76: 4000 | DE76: 4000 | DF76: 4000 | DG76: 4000 | DH76: 4000 | DI76: 4000 | DJ76: 4000 | DK76: 4000 | DL76: 4000 | DM76: 4000 | DN76: 4000 | DO76: 4000 | DP76: 4000 | DQ76: 4000 | DR76: 4000 | DS76: 4000 | DT76: 4000 | DU76: 4000 | DV76: 4000 | DW76: 4000 | DX76: 4000 | DY76: 4000 | DZ76: 4000 | EA76: 4000 | EB76: 4000 | EC76: 4000 | ED76: 4000 | EE76: 4000 | EF76: 4000 | EG76: 4000 | EH76: 4000 | EI76: 4000 | EJ76: 4000 | EK76: 4000 | EL76: 4000 | EM76: 4000 | EN76: 4000 | EO76: 4000 | EP76: 4000 | EQ76: 4000 | ER76: 4000 | ES76: 4000 | ET76: 4000 | EU76: 4000 | EV76: 4000 | EW76: 4000 | EX76: 4000 | EY76: 4000 | EZ76: 4000 | FA76: 4000 | FB76: 4000 | FC76: 4000 | FD76: 4000 | FE76: 4000 | FF76: 4000 | FG76: 4000 | FH76: 4000 | FI76: 4000 | FJ76: 4000 | FK76: 4000 | FL76: 4000 | FM76: 4000 | FN76: 4000 | FO76: 4000 | FP76: 4000 | FQ76: 4000 | FR76: 4000 | FS76: 4000 | FT76: 4000 | FU76: 4000 | FV76: 4000 | FW76: 4000 | FX76: 4000 | FY76: 4000 | FZ76: 4000 | GA76: 4000 | GB76: 4000 | GC76: 4000 | GD76: 4000 | GE76: 4000 | GF76: 4000 | GG76: 4000 | GH76: 4000 | GI76: 4000 | GJ76: 4000 | GK76: 4000 | GL76: 4000 | GM76: 4000
A77: 4 | B77: 5 | C77: 2 | D77: 2300 | E77: 2300 | F77: 2300 | G77: 2300 | H77: 2300 | I77: 2300 | J77: 2300 | K77: 2300 | L77: 2300 | M77: 2300 | N77: 2300 | O77: 2300 | P77: 2600 | Q77: 2600 | R77: 3700 | S77: 3700 | T77: 3700 | U77: 3700 | V77: 3700 | W77: 3700 | X77: 3700 | Y77: 3700 | Z77: 3700 | AA77: 3700 | AB77: 3700 | AC77: 3700 | AD77: 3700 | AE77: 3700 | AF77: 3700 | AG77: 3700 | AH77: 3700 | AI77: 3700 | AJ77: 3700 | AK77: 3700 | AL77: 3700 | AM77: 3700 | AN77: 3700 | AO77: 3700 | AP77: 3700 | AQ77: 3700 | AR77: 3700 | AS77: 3700 | AT77: 3700 | AU77: 3700 | AV77: 3700 | AW77: 3700 | AX77: 3700 | AY77: 3700 | AZ77: 3700 | BA77: 3700 | BB77: 3700 | BC77: 3700 | BD77: 3700 | BE77: 3700 | BF77: 3700 | BG77: 3700 | BH77: 3700 | BI77: 3700 | BJ77: 3700 | BK77: 3700 | BL77: 3700 | BM77: 3700 | BN77: 3700 | BO77: 3700 | BP77: 3700 | BQ77: 3700 | BR77: 3700 | BS77: 3700 | BT77: 3700 | BU77: 3700 | BV77: 3700 | BW77: 3700 | BX77: 3700 | BY77: 3700 | BZ77: 3700 | CA77: 3700 | CB77: 3700 | CC77: 3700 | CD77: 3700 | CE77: 3700 | CF77: 3700 | CG77: 3700 | CH77: 3700 | CI77: 3700 | CJ77: 3700 | CK77: 3700 | CL77: 3700 | CM77: 3700 | CN77: 3700 | CO77: 3700 | CP77: 3700 | CQ77: 3700 | CR77: 3700 | CS77: 3700 | CT77: 3700 | CU77: 3700 | CV77: 3700 | CW77: 3700 | CX77: 3700 | CY77: 3700 | CZ77: 3700 | DA77: 3700 | DB77: 3700 | DC77: 3700 | DD77: 3700 | DE77: 3700 | DF77: 3700 | DG77: 3700 | DH77: 3700 | DI77: 3700 | DJ77: 3700 | DK77: 3700 | DL77: 3700 | DM77: 3700 | DN77: 3700 | DO77: 3700 | DP77: 3700 | DQ77: 3700 | DR77: 3700 | DS77: 3700 | DT77: 3700 | DU77: 3700 | DV77: 3700 | DW77: 3700 | DX77: 3700 | DY77: 3700 | DZ77: 3700 | EA77: 3700 | EB77: 3700 | EC77: 3700 | ED77: 3700 | EE77: 3700 | EF77: 3700 | EG77: 3700 | EH77: 3700 | EI77: 3700 | EJ77: 3700 | EK77: 3700 | EL77: 3700 | EM77: 3700 | EN77: 3700 | EO77: 3700 | EP77: 3700 | EQ77: 3700 | ER77: 3700 | ES77: 3700 | ET77: 3700 | EU77: 3700 | EV77: 3700 | EW77: 3700 | EX77: 3700 | EY77: 3700 | EZ77: 3700 | FA77: 3700 | FB77: 3700 | FC77: 3700 | FD77: 3700 | FE77: 3700 | FF77: 3700 | FG77: 3700 | FH77: 3700 | FI77: 3700 | FJ77: 3700 | FK77: 3700 | FL77: 3700 | FM77: 3700 | FN77: 3700 | FO77: 3700 | FP77: 3700 | FQ77: 3700 | FR77: 3700 | FS77: 3700 | FT77: 3700 | FU77: 3700 | FV77: 3700 | FW77: 3700 | FX77: 3700 | FY77: 3700 | FZ77: 3700 | GA77: 3700 | GB77: 3700 | GC77: 3700 | GD77: 3700 | GE77: 3700 | GF77: 3700 | GG77: 3700 | GH77: 3700 | GI77: 3700 | GJ77: 3700 | GK77: 3700 | GL77: 3700 | GM77: 3700
A78: 1 | B78: 5 | C78: 12 | D78: 6300 | E78: 6300 | F78: 6300 | G78: 6300 | H78: 6300 | I78: 6300 | J78: 6300 | K78: 6300 | L78: 6300 | M78: 6300 | N78: 6300 | O78: 6300 | P78: 6300 | Q78: 6300 | R78: 6300 | S78: 6300 | T78: 6300 | U78: 6300 | V78: 6300 | W78: 6300 | X78: 6300 | Y78: 6300 | Z78: 6300 | AA78: 6300 | AB78: 6300 | AC78: 6300 | AD78: 6300 | AE78: 6300 | AF78: 6300 | AG78: 6300 | AH78: 6300 | AI78: 6300 | AJ78: 6300 | AK78: 6300 | AL78: 6300 | AM78: 6300 | AN78: 6300 | AO78: 6300 | AP78: 6300 | AQ78: 6300 | AR78: 6300 | AS78: 6300 | AT78: 6300 | AU78: 6300 | AV78: 6300 | AW78: 6300 | AX78: 6300 | AY78: 6300 | AZ78: 6300 | BA78: 6300 | BB78: 6300 | BC78: 6300 | BD78: 6300 | BE78: 6300 | BF78: 6300 | BG78: 6300 | BH78: 6300 | BI78: 6300 | BJ78: 6300 | BK78: 6300 | BL78: 6300 | BM78: 6300 | BN78: 6300 | BO78: 6300 | BP78: 6300 | BQ78: 6300 | BR78: 6300 | BS78: 6300 | BT78: 6300 | BU78: 6300 | BV78: 6300 | BW78: 6300 | BX78: 6300 | BY78: 6300 | BZ78: 6300 | CA78: 6300 | CB78: 6300 | CC78: 6300 | CD78: 6300 | CE78: 6300 | CF78: 6300 | CG78: 6300 | CH78: 6300 | CI78: 6300 | CJ78: 6300 | CK78: 6300 | CL78: 6300 | CM78: 6300 | CN78: 6300 | CO78: 6300 | CP78: 6300 | CQ78: 6300 | CR78: 6300 | CS78: 6300 | CT78: 6300 | CU78: 6300 | CV78: 6300 | CW78: 6300 | CX78: 6300 | CY78: 6300 | CZ78: 6300 | DA78: 6300 | DB78: 6300 | DC78: 6300 | DD78: 6300 | DE78: 6300 | DF78: 6300 | DG78: 6300 | DH78: 6300 | DI78: 6300 | DJ78: 6300 | DK78: 6300 | DL78: 6300 | DM78: 6300 | DN78: 6300 | DO78: 6300 | DP78: 6300 | DQ78: 6300 | DR78: 6300 | DS78: 6300 | DT78: 6300 | DU78: 6300 | DV78: 6300 | DW78: 6300 | DX78: 6300 | DY78: 6300 | DZ78: 6300 | EA78: 6300 | EB78: 6300 | EC78: 6300 | ED78: 6300 | EE78: 6300 | EF78: 6300 | EG78: 6300 | EH78: 6300 | EI78: 6300 | EJ78: 6300 | EK78: 6300 | EL78: 6300 | EM78: 6300 | EN78: 6300 | EO78: 6300 | EP78: 6300 | EQ78: 6300 | ER78: 6300 | ES78: 6300 | ET78: 6300 | EU78: 6300 | EV78: 6300 | EW78: 6300 | EX78: 6300 | EY78: 6300 | EZ78: 6300 | FA78: 6300 | FB78: 6300 | FC78: 6300 | FD78: 6300 | FE78: 6300 | FF78: 6300 | FG78: 6300 | FH78: 6300 | FI78: 6300 | FJ78: 6300 | FK78: 6300 | FL78: 6300 | FM78: 6300 | FN78: 6300 | FO78: 6300 | FP78: 6300 | FQ78: 6300 | FR78: 6300 | FS78: 6300 | FT78: 6300 | FU78: 6300 | FV78: 6300 | FW78: 6300 | FX78: 6300 | FY78: 6300 | FZ78: 6300 | GA78: 6300 | GB78: 6300 | GC78: 6300 | GD78: 6300 | GE78: 6300 | GF78: 6300 | GG78: 6300 | GH78: 6300 | GI78: 6300 | GJ78: 6300 | GK78: 6300 | GL78: 6300 | GM78: 6300
A79: 2 | B79: 5 | C79: 12 | D79: 6300 | E79: 6300 | F79: 6300 | G79: 6300 | H79: 6300 | I79: 6300 | J79: 6300 | K79: 6300 | L79: 6300 | M79: 6300 | N79: 6300 | O79: 6300 | P79: 6300 | Q79: 6300 | R79: 6300 | S79: 6300 | T79: 6300 | U79: 6300 | V79: 6300 | W79: 6300 | X79: 6300 | Y79: 6300 | Z79: 6300 | AA79: 6300 | AB79: 6300 | AC79: 6300 | AD79: 6300 | AE79: 6300 | AF79: 6300 | AG79: 6300 | AH79: 6300 | AI79: 6300 | AJ79: 6300 | AK79: 6300 | AL79: 6300 | AM79: 6300 | AN79: 6300 | AO79: 6300 | AP79: 6300 | AQ79: 6300 | AR79: 6300 | AS79: 6300 | AT79: 6300 | AU79: 6300 | AV79: 6300 | AW79: 6300 | AX79: 6300 | AY79: 6300 | AZ79: 6300 | BA79: 6300 | BB79: 6300 | BC79: 6300 | BD79: 6300 | BE79: 6300 | BF79: 6300 | BG79: 6300 | BH79: 6300 | BI79: 6300 | BJ79: 6300 | BK79: 6300 | BL79: 6300 | BM79: 6300 | BN79: 6300 | BO79: 6300 | BP79: 6300 | BQ79: 6300 | BR79: 6300 | BS79: 6300 | BT79: 6300 | BU79: 6300 | BV79: 6300 | BW79: 6300 | BX79: 6300 | BY79: 6300 | BZ79: 6300 | CA79: 6300 | CB79: 6300 | CC79: 6300 | CD79: 6300 | CE79: 6300 | CF79: 6300 | CG79: 6300 | CH79: 6300 | CI79: 6300 | CJ79: 6300 | CK79: 6300 | CL79: 6300 | CM79: 6300 | CN79: 6300 | CO79: 6300 | CP79: 6300 | CQ79: 6300 | CR79: 6300 | CS79: 6300 | CT79: 6300 | CU79: 6300 | CV79: 6300 | CW79: 6300 | CX79: 6300 | CY79: 6300 | CZ79: 6300 | DA79: 6300 | DB79: 6300 | DC79: 6300 | DD79: 6300 | DE79: 6300 | DF79: 6300 | DG79: 6300 | DH79: 6300 | DI79: 6300 | DJ79: 6300 | DK79: 6300 | DL79: 6300 | DM79: 6300 | DN79: 6300 | DO79: 6300 | DP79: 6300 | DQ79: 6300 | DR79: 6300 | DS79: 6300 | DT79: 6300 | DU79: 6300 | DV79: 6300 | DW79: 6300 | DX79: 6300 | DY79: 6300 | DZ79: 6300 | EA79: 6300 | EB79: 6300 | EC79: 6300 | ED79: 6300 | EE79: 6300 | EF79: 6300 | EG79: 6300 | EH79: 6300 | EI79: 6300 | EJ79: 6300 | EK79: 6300 | EL79: 6300 | EM79: 6300 | EN79: 6300 | EO79: 6300 | EP79: 6300 | EQ79: 6300 | ER79: 6300 | ES79: 6300 | ET79: 6300 | EU79: 6300 | EV79: 6300 | EW79: 6300 | EX79: 6300 | EY79: 6300 | EZ79: 6300 | FA79: 6300 | FB79: 6300 | FC79: 6300 | FD79: 6300 | FE79: 6300 | FF79: 6300 | FG79: 6300 | FH79: 6300 | FI79: 6300 | FJ79: 6300 | FK79: 6300 | FL79: 6300 | FM79: 6300 | FN79: 6300 | FO79: 6300 | FP79: 6300 | FQ79: 6300 | FR79: 6300 | FS79: 6300 | FT79: 6300 | FU79: 6300 | FV79: 6300 | FW79: 6300 | FX79: 6300 | FY79: 6300 | FZ79: 6300 | GA79: 6300 | GB79: 6300 | GC79: 6300 | GD79: 6300 | GE79: 6300 | GF79: 6300 | GG79: 6300 | GH79: 6300 | GI79: 6300 | GJ79: 6300 | GK79: 6300 | GL79: 6300 | GM79: 6300
A80: 3 | B80: 5 | C80: 12 | D80: 6300 | E80: 6300 | F80: 6300 | G80: 6300 | H80: 6300 | I80: 6300 | J80: 6300 | K80: 6300 | L80: 6300 | M80: 6300 | N80: 6300 | O80: 6300 | P80: 6300 | Q80: 6300 | R80: 6300 | S80: 6300 | T80: 6300 | U80: 6300 | V80: 6300 | W80: 6300 | X80: 6300 | Y80: 6300 | Z80: 6300 | AA80: 6300 | AB80: 6300 | AC80: 6300 | AD80: 6300 | AE80: 6300 | AF80: 6300 | AG80: 6300 | AH80: 6300 | AI80: 6300 | AJ80: 6300 | AK80: 6300 | AL80: 6300 | AM80: 6300 | AN80: 6300 | AO80: 6300 | AP80: 6300 | AQ80: 6300 | AR80: 6300 | AS80: 6300 | AT80: 6300 | AU80: 6300 | AV80: 6300 | AW80: 6300 | AX80: 6300 | AY80: 6300 | AZ80: 6300 | BA80: 6300 | BB80: 6300 | BC80: 6300 | BD80: 6300 | BE80: 6300 | BF80: 6300 | BG80: 6300 | BH80: 6300 | BI80: 6300 | BJ80: 6300 | BK80: 6300 | BL80: 6300 | BM80: 6300 | BN80: 6300 | BO80: 6300 | BP80: 6300 | BQ80: 6300 | BR80: 6300 | BS80: 6300 | BT80: 6300 | BU80: 6300 | BV80: 6300 | BW80: 6300 | BX80: 6300 | BY80: 6300 | BZ80: 6300 | CA80: 6300 | CB80: 6300 | CC80: 6300 | CD80: 6300 | CE80: 6300 | CF80: 6300 | CG80: 6300 | CH80: 6300 | CI80: 6300 | CJ80: 6300 | CK80: 6300 | CL80: 6300 | CM80: 6300 | CN80: 6300 | CO80: 6300 | CP80: 6300 | CQ80: 6300 | CR80: 6300 | CS80: 6300 | CT80: 6300 | CU80: 6300 | CV80: 6300 | CW80: 6300 | CX80: 6300 | CY80: 6300 | CZ80: 6300 | DA80: 6300 | DB80: 6300 | DC80: 6300 | DD80: 6300 | DE80: 6300 | DF80: 6300 | DG80: 6300 | DH80: 6300 | DI80: 6300 | DJ80: 6300 | DK80: 6300 | DL80: 6300 | DM80: 6300 | DN80: 6300 | DO80: 6300 | DP80: 6300 | DQ80: 6300 | DR80: 6300 | DS80: 6300 | DT80: 6300 | DU80: 6300 | DV80: 6300 | DW80: 6300 | DX80: 6300 | DY80: 6300 | DZ80: 6300 | EA80: 6300 | EB80: 6300 | EC80: 6300 | ED80: 6300 | EE80: 6300 | EF80: 6300 | EG80: 6300 | EH80: 6300 | EI80: 6300 | EJ80: 6300 | EK80: 6300 | EL80: 6300 | EM80: 6300 | EN80: 6300 | EO80: 6300 | EP80: 6300 | EQ80: 6300 | ER80: 6300 | ES80: 6300 | ET80: 6300 | EU80: 6300 | EV80: 6300 | EW80: 6300 | EX80: 6300 | EY80: 6300 | EZ80: 6300 | FA80: 6300 | FB80: 6300 | FC80: 6300 | FD80: 6300 | FE80: 6300 | FF80: 6300 | FG80: 6300 | FH80: 6300 | FI80: 6300 | FJ80: 6300 | FK80: 6300 | FL80: 6300 | FM80: 6300 | FN80: 6300 | FO80: 6300 | FP80: 6300 | FQ80: 6300 | FR80: 6300 | FS80: 6300 | FT80: 6300 | FU80: 6300 | FV80: 6300 | FW80: 6300 | FX80: 6300 | FY80: 6300 | FZ80: 6300 | GA80: 6300 | GB80: 6300 | GC80: 6300 | GD80: 6300 | GE80: 6300 | GF80: 6300 | GG80: 6300 | GH80: 6300 | GI80: 6300 | GJ80: 6300 | GK80: 6300 | GL80: 6300 | GM80: 6300
A81: 4 | B81: 5 | C81: 12 | D81: 6300 | E81: 6300 | F81: 6300 | G81: 6300 | H81: 6300 | I81: 6300 | J81: 6300 | K81: 6300 | L81: 6300 | M81: 6300 | N81: 6300 | O81: 6300 | P81: 6300 | Q81: 6300 | R81: 6300 | S81: 6300 | T81: 6300 | U81: 6300 | V81: 6300 | W81: 6300 | X81: 6300 | Y81: 6300 | Z81: 6300 | AA81: 6300 | AB81: 6300 | AC81: 6300 | AD81: 6300 | AE81: 6300 | AF81: 6300 | AG81: 6300 | AH81: 6300 | AI81: 6300 | AJ81: 6300 | AK81: 6300 | AL81: 6300 | AM81: 6300 | AN81: 6300 | AO81: 6300 | AP81: 6300 | AQ81: 6300 | AR81: 6300 | AS81: 6300 | AT81: 6300 | AU81: 6300 | AV81: 6300 | AW81: 6300 | AX81: 6300 | AY81: 6300 | AZ81: 6300 | BA81: 6300 | BB81: 6300 | BC81: 6300 | BD81: 6300 | BE81: 6300 | BF81: 6300 | BG81: 6300 | BH81: 6300 | BI81: 6300 | BJ81: 6300 | BK81: 6300 | BL81: 6300 | BM81: 6300 | BN81: 6300 | BO81: 6300 | BP81: 6300 | BQ81: 6300 | BR81: 6300 | BS81: 6300 | BT81: 6300 | BU81: 6300 | BV81: 6300 | BW81: 6300 | BX81: 6300 | BY81: 6300 | BZ81: 6300 | CA81: 6300 | CB81: 6300 | CC81: 6300 | CD81: 6300 | CE81: 6300 | CF81: 6300 | CG81: 6300 | CH81: 6300 | CI81: 6300 | CJ81: 6300 | CK81: 6300 | CL81: 6300 | CM81: 6300 | CN81: 6300 | CO81: 6300 | CP81: 6300 | CQ81: 6300 | CR81: 6300 | CS81: 6300 | CT81: 6300 | CU81: 6300 | CV81: 6300 | CW81: 6300 | CX81: 6300 | CY81: 6300 | CZ81: 6300 | DA81: 6300 | DB81: 6300 | DC81: 6300 | DD81: 6300 | DE81: 6300 | DF81: 6300 | DG81: 6300 | DH81: 6300 | DI81: 6300 | DJ81: 6300 | DK81: 6300 | DL81: 6300 | DM81: 6300 | DN81: 6300 | DO81: 6300 | DP81: 6300 | DQ81: 6300 | DR81: 6300 | DS81: 6300 | DT81: 6300 | DU81: 6300 | DV81: 6300 | DW81: 6300 | DX81: 6300 | DY81: 6300 | DZ81: 6300 | EA81: 6300 | EB81: 6300 | EC81: 6300 | ED81: 6300 | EE81: 6300 | EF81: 6300 | EG81: 6300 | EH81: 6300 | EI81: 6300 | EJ81: 6300 | EK81: 6300 | EL81: 6300 | EM81: 6300 | EN81: 6300 | EO81: 6300 | EP81: 6300 | EQ81: 6300 | ER81: 6300 | ES81: 6300 | ET81: 6300 | EU81: 6300 | EV81: 6300 | EW81: 6300 | EX81: 6300 | EY81: 6300 | EZ81: 6300 | FA81: 6300 | FB81: 6300 | FC81: 6300 | FD81: 6300 | FE81: 6300 | FF81: 6300 | FG81: 6300 | FH81: 6300 | FI81: 6300 | FJ81: 6300 | FK81: 6300 | FL81: 6300 | FM81: 6300 | FN81: 6300 | FO81: 6300 | FP81: 6300 | FQ81: 6300 | FR81: 6300 | FS81: 6300 | FT81: 6300 | FU81: 6300 | FV81: 6300 | FW81: 6300 | FX81: 6300 | FY81: 6300 | FZ81: 6300 | GA81: 6300 | GB81: 6300 | GC81: 6300 | GD81: 6300 | GE81: 6300 | GF81: 6300 | GG81: 6300 | GH81: 6300 | GI81: 6300 | GJ81: 6300 | GK81: 6300 | GL81: 6300 | GM81: 6300
A82: 1 | B82: 6 | C82: 1 | D82: 6750 | E82: 6750 | F82: 6750 | G82: 6750 | H82: 6750 | I82: 6750 | J82: 6750 | K82: 6750 | L82: 6750 | M82: 6750 | N82: 6750 | O82: 6750 | P82: 6750 | Q82: 6750 | R82: 6750 | S82: 6750 | T82: 6750 | U82: 6750 | V82: 6750 | W82: 6750 | X82: 6750 | Y82: 6750 | Z82: 6750 | AA82: 6750 | AB82: 6750 | AC82: 6750 | AD82: 6750 | AE82: 6750 | AF82: 6750 | AG82: 6750 | AH82: 6750 | AI82: 6750 | AJ82: 6750 | AK82: 6750 | AL82: 6750 | AM82: 6750 | AN82: 6750 | AO82: 6750 | AP82: 6750 | AQ82: 6750 | AR82: 6750 | AS82: 6750 | AT82: 6750 | AU82: 6750 | AV82: 6750 | AW82: 6750 | AX82: 6750 | AY82: 6750 | AZ82: 6750 | BA82: 6750 | BB82: 6750 | BC82: 6750 | BD82: 6750 | BE82: 6750 | BF82: 6750 | BG82: 6750 | BH82: 6750 | BI82: 6750 | BJ82: 6750 | BK82: 6750 | BL82: 6750 | BM82: 6750 | BN82: 6750 | BO82: 6750 | BP82: 6750 | BQ82: 6750 | BR82: 6750 | BS82: 6750 | BT82: 6750 | BU82: 6750 | BV82: 6750 | BW82: 6750 | BX82: 6750 | BY82: 6750 | BZ82: 6750 | CA82: 6750 | CB82: 6750 | CC82: 6750 | CD82: 6750 | CE82: 6750 | CF82: 6750 | CG82: 6750 | CH82: 6750 | CI82: 6750 | CJ82: 6750 | CK82: 6750 | CL82: 6750 | CM82: 6750 | CN82: 6750 | CO82: 6750 | CP82: 6750 | CQ82: 6750 | CR82: 6750 | CS82: 6750 | CT82: 6750 | CU82: 6750 | CV82: 6750 | CW82: 6750 | CX82: 6750 | CY82: 6750 | CZ82: 6750 | DA82: 6750 | DB82: 6750 | DC82: 6750 | DD82: 6750 | DE82: 6750 | DF82: 6750 | DG82: 6750 | DH82: 6750 | DI82: 6750 | DJ82: 6750 | DK82: 6750 | DL82: 6750 | DM82: 6750 | DN82: 6750 | DO82: 6750 | DP82: 6750 | DQ82: 6750 | DR82: 6750 | DS82: 6750 | DT82: 6750 | DU82: 6750 | DV82: 6750 | DW82: 6750 | DX82: 6750 | DY82: 6750 | DZ82: 6750 | EA82: 6750 | EB82: 6750 | EC82: 6750 | ED82: 6750 | EE82: 6750 | EF82: 6750 | EG82: 6750 | EH82: 6750 | EI82: 6750 | EJ82: 6750 | EK82: 6750 | EL82: 6750 | EM82: 6750 | EN82: 6750 | EO82: 6750 | EP82: 6750 | EQ82: 6750 | ER82: 6750 | ES82: 6750 | ET82: 6750 | EU82: 6750 | EV82: 6750 | EW82: 6750 | EX82: 6750 | EY82: 6750 | EZ82: 6750 | FA82: 6750 | FB82: 6750 | FC82: 6750 | FD82: 6750 | FE82: 6750 | FF82: 6750 | FG82: 6750 | FH82: 6750 | FI82: 6750 | FJ82: 6750 | FK82: 6750 | FL82: 6750 | FM82: 6750 | FN82: 6750 | FO82: 6750 | FP82: 6750 | FQ82: 6750 | FR82: 6750 | FS82: 6750 | FT82: 6750 | FU82: 6750 | FV82: 6750 | FW82: 6750 | FX82: 6750 | FY82: 6750 | FZ82: 6750 | GA82: 6750 | GB82: 6750 | GC82: 6750 | GD82: 6750 | GE82: 6750 | GF82: 6750 | GG82: 6750 | GH82: 6750 | GI82: 6750 | GJ82: 6750 | GK82: 6750 | GL82: 6750 | GM82: 6750
A83: 2 | B83: 6 | C83: 1 | D83: 6750 | E83: 6750 | F83: 6750 | G83: 6750 | H83: 6750 | I83: 6750 | J83: 6750 | K83: 6750 | L83: 6750 | M83: 6750 | N83: 6750 | O83: 6750 | P83: 6750 | Q83: 6750 | R83: 6750 | S83: 6750 | T83: 6750 | U83: 6750 | V83: 6750 | W83: 6750 | X83: 6750 | Y83: 6750 | Z83: 6750 | AA83: 6750 | AB83: 6750 | AC83: 6750 | AD83: 6750 | AE83: 6750 | AF83: 6750 | AG83: 6750 | AH83: 6750 | AI83: 6750 | AJ83: 6750 | AK83: 6750 | AL83: 6750 | AM83: 6750 | AN83: 6750 | AO83: 6750 | AP83: 6750 | AQ83: 6750 | AR83: 6750 | AS83: 6750 | AT83: 6750 | AU83: 6750 | AV83: 6750 | AW83: 6750 | AX83: 6750 | AY83: 6750 | AZ83: 6750 | BA83: 6750 | BB83: 6750 | BC83: 6750 | BD83: 6750 | BE83: 6750 | BF83: 6750 | BG83: 6750 | BH83: 6750 | BI83: 6750 | BJ83: 6750 | BK83: 6750 | BL83: 6750 | BM83: 6750 | BN83: 6750 | BO83: 6750 | BP83: 6750 | BQ83: 6750 | BR83: 6750 | BS83: 6750 | BT83: 6750 | BU83: 6750 | BV83: 6750 | BW83: 6750 | BX83: 6750 | BY83: 6750 | BZ83: 6750 | CA83: 6750 | CB83: 6750 | CC83: 6750 | CD83: 6750 | CE83: 6750 | CF83: 6750 | CG83: 6750 | CH83: 6750 | CI83: 6750 | CJ83: 6750 | CK83: 6750 | CL83: 6750 | CM83: 6750 | CN83: 6750 | CO83: 6750 | CP83: 6750 | CQ83: 6750 | CR83: 6750 | CS83: 6750 | CT83: 6750 | CU83: 6750 | CV83: 6750 | CW83: 6750 | CX83: 6750 | CY83: 6750 | CZ83: 6750 | DA83: 6750 | DB83: 6750 | DC83: 6750 | DD83: 6750 | DE83: 6750 | DF83: 6750 | DG83: 6750 | DH83: 6750 | DI83: 6750 | DJ83: 6750 | DK83: 6750 | DL83: 6750 | DM83: 6750 | DN83: 6750 | DO83: 6750 | DP83: 6750 | DQ83: 6750 | DR83: 6750 | DS83: 6750 | DT83: 6750 | DU83: 6750 | DV83: 6750 | DW83: 6750 | DX83: 6750 | DY83: 6750 | DZ83: 6750 | EA83: 6750 | EB83: 6750 | EC83: 6750 | ED83: 6750 | EE83: 6750 | EF83: 6750 | EG83: 6750 | EH83: 6750 | EI83: 6750 | EJ83: 6750 | EK83: 6750 | EL83: 6750 | EM83: 6750 | EN83: 6750 | EO83: 6750 | EP83: 6750 | EQ83: 6750 | ER83: 6750 | ES83: 6750 | ET83: 6750 | EU83: 6750 | EV83: 6750 | EW83: 6750 | EX83: 6750 | EY83: 6750 | EZ83: 6750 | FA83: 6750 | FB83: 6750 | FC83: 6750 | FD83: 6750 | FE83: 6750 | FF83: 6750 | FG83: 6750 | FH83: 6750 | FI83: 6750 | FJ83: 6750 | FK83: 6750 | FL83: 6750 | FM83: 6750 | FN83: 6750 | FO83: 6750 | FP83: 6750 | FQ83: 6750 | FR83: 6750 | FS83: 6750 | FT83: 6750 | FU83: 6750 | FV83: 6750 | FW83: 6750 | FX83: 6750 | FY83: 6750 | FZ83: 6750 | GA83: 6750 | GB83: 6750 | GC83: 6750 | GD83: 6750 | GE83: 6750 | GF83: 6750 | GG83: 6750 | GH83: 6750 | GI83: 6750 | GJ83: 6750 | GK83: 6750 | GL83: 6750 | GM83: 6750
A84: 3 | B84: 6 | C84: 1 | D84: 6750 | E84: 6750 | F84: 6750 | G84: 6750 | H84: 6750 | I84: 6750 | J84: 6750 | K84: 6750 | L84: 6750 | M84: 6750 | N84: 6750 | O84: 6750 | P84: 6750 | Q84: 6750 | R84: 6750 | S84: 6750 | T84: 6750 | U84: 6750 | V84: 6750 | W84: 6750 | X84: 6750 | Y84: 6750 | Z84: 6750 | AA84: 6750 | AB84: 6750 | AC84: 6750 | AD84: 6750 | AE84: 6750 | AF84: 6750 | AG84: 6750 | AH84: 6750 | AI84: 6750 | AJ84: 6750 | AK84: 6750 | AL84: 6750 | AM84: 6750 | AN84: 6750 | AO84: 6750 | AP84: 6750 | AQ84: 6750 | AR84: 6750 | AS84: 6750 | AT84: 6750 | AU84: 6750 | AV84: 6750 | AW84: 6750 | AX84: 6750 | AY84: 6750 | AZ84: 6750 | BA84: 6750 | BB84: 6750 | BC84: 6750 | BD84: 6750 | BE84: 6750 | BF84: 6750 | BG84: 6750 | BH84: 6750 | BI84: 6750 | BJ84: 6750 | BK84: 6750 | BL84: 6750 | BM84: 6750 | BN84: 6750 | BO84: 6750 | BP84: 6750 | BQ84: 6750 | BR84: 6750 | BS84: 6750 | BT84: 6750 | BU84: 6750 | BV84: 6750 | BW84: 6750 | BX84: 6750 | BY84: 6750 | BZ84: 6750 | CA84: 6750 | CB84: 6750 | CC84: 6750 | CD84: 6750 | CE84: 6750 | CF84: 6750 | CG84: 6750 | CH84: 6750 | CI84: 6750 | CJ84: 6750 | CK84: 6750 | CL84: 6750 | CM84: 6750 | CN84: 6750 | CO84: 6750 | CP84: 6750 | CQ84: 6750 | CR84: 6750 | CS84: 6750 | CT84: 6750 | CU84: 6750 | CV84: 6750 | CW84: 6750 | CX84: 6750 | CY84: 6750 | CZ84: 6750 | DA84: 6750 | DB84: 6750 | DC84: 6750 | DD84: 6750 | DE84: 6750 | DF84: 6750 | DG84: 6750 | DH84: 6750 | DI84: 6750 | DJ84: 6750 | DK84: 6750 | DL84: 6750 | DM84: 6750 | DN84: 6750 | DO84: 6750 | DP84: 6750 | DQ84: 6750 | DR84: 6750 | DS84: 6750 | DT84: 6750 | DU84: 6750 | DV84: 6750 | DW84: 6750 | DX84: 6750 | DY84: 6750 | DZ84: 6750 | EA84: 6750 | EB84: 6750 | EC84: 6750 | ED84: 6750 | EE84: 6750 | EF84: 6750 | EG84: 6750 | EH84: 6750 | EI84: 6750 | EJ84: 6750 | EK84: 6750 | EL84: 6750 | EM84: 6750 | EN84: 6750 | EO84: 6750 | EP84: 6750 | EQ84: 6750 | ER84: 6750 | ES84: 6750 | ET84: 6750 | EU84: 6750 | EV84: 6750 | EW84: 6750 | EX84: 6750 | EY84: 6750 | EZ84: 6750 | FA84: 6750 | FB84: 6750 | FC84: 6750 | FD84: 6750 | FE84: 6750 | FF84: 6750 | FG84: 6750 | FH84: 6750 | FI84: 6750 | FJ84: 6750 | FK84: 6750 | FL84: 6750 | FM84: 6750 | FN84: 6750 | FO84: 6750 | FP84: 6750 | FQ84: 6750 | FR84: 6750 | FS84: 6750 | FT84: 6750 | FU84: 6750 | FV84: 6750 | FW84: 6750 | FX84: 6750 | FY84: 6750 | FZ84: 6750 | GA84: 6750 | GB84: 6750 | GC84: 6750 | GD84: 6750 | GE84: 6750 | GF84: 6750 | GG84: 6750 | GH84: 6750 | GI84: 6750 | GJ84: 6750 | GK84: 6750 | GL84: 6750 | GM84: 6750
A85: 4 | B85: 6 | C85: 1 | D85: 6750 | E85: 6750 | F85: 6750 | G85: 6750 | H85: 6750 | I85: 6750 | J85: 6750 | K85: 6750 | L85: 6750 | M85: 6750 | N85: 6750 | O85: 6750 | P85: 6750 | Q85: 6750 | R85: 6750 | S85: 6750 | T85: 6750 | U85: 6750 | V85: 6750 | W85: 6750 | X85: 6750 | Y85: 6750 | Z85: 6750 | AA85: 6750 | AB85: 6750 | AC85: 6750 | AD85: 6750 | AE85: 6750 | AF85: 6750 | AG85: 6750 | AH85: 6750 | AI85: 6750 | AJ85: 6750 | AK85: 6750 | AL85: 6750 | AM85: 6750 | AN85: 6750 | AO85: 6750 | AP85: 6750 | AQ85: 6750 | AR85: 6750 | AS85: 6750 | AT85: 6750 | AU85: 6750 | AV85: 6750 | AW85: 6750 | AX85: 6750 | AY85: 6750 | AZ85: 6750 | BA85: 6750 | BB85: 6750 | BC85: 6750 | BD85: 6750 | BE85: 6750 | BF85: 6750 | BG85: 6750 | BH85: 6750 | BI85: 6750 | BJ85: 6750 | BK85: 6750 | BL85: 6750 | BM85: 6750 | BN85: 6750 | BO85: 6750 | BP85: 6750 | BQ85: 6750 | BR85: 6750 | BS85: 6750 | BT85: 6750 | BU85: 6750 | BV85: 6750 | BW85: 6750 | BX85: 6750 | BY85: 6750 | BZ85: 6750 | CA85: 6750 | CB85: 6750 | CC85: 6750 | CD85: 6750 | CE85: 6750 | CF85: 6750 | CG85: 6750 | CH85: 6750 | CI85: 6750 | CJ85: 6750 | CK85: 6750 | CL85: 6750 | CM85: 6750 | CN85: 6750 | CO85: 6750 | CP85: 6750 | CQ85: 6750 | CR85: 6750 | CS85: 6750 | CT85: 6750 | CU85: 6750 | CV85: 6750 | CW85: 6750 | CX85: 6750 | CY85: 6750 | CZ85: 6750 | DA85: 6750 | DB85: 6750 | DC85: 6750 | DD85: 6750 | DE85: 6750 | DF85: 6750 | DG85: 6750 | DH85: 6750 | DI85: 6750 | DJ85: 6750 | DK85: 6750 | DL85: 6750 | DM85: 6750 | DN85: 6750 | DO85: 6750 | DP85: 6750 | DQ85: 6750 | DR85: 6750 | DS85: 6750 | DT85: 6750 | DU85: 6750 | DV85: 6750 | DW85: 6750 | DX85: 6750 | DY85: 6750 | DZ85: 6750 | EA85: 6750 | EB85: 6750 | EC85: 6750 | ED85: 6750 | EE85: 6750 | EF85: 6750 | EG85: 6750 | EH85: 6750 | EI85: 6750 | EJ85: 6750 | EK85: 6750 | EL85: 6750 | EM85: 6750 | EN85: 6750 | EO85: 6750 | EP85: 6750 | EQ85: 6750 | ER85: 6750 | ES85: 6750 | ET85: 6750 | EU85: 6750 | EV85: 6750 | EW85: 6750 | EX85: 6750 | EY85: 6750 | EZ85: 6750 | FA85: 6750 | FB85: 6750 | FC85: 6750 | FD85: 6750 | FE85: 6750 | FF85: 6750 | FG85: 6750 | FH85: 6750 | FI85: 6750 | FJ85: 6750 | FK85: 6750 | FL85: 6750 | FM85: 6750 | FN85: 6750 | FO85: 6750 | FP85: 6750 | FQ85: 6750 | FR85: 6750 | FS85: 6750 | FT85: 6750 | FU85: 6750 | FV85: 6750 | FW85: 6750 | FX85: 6750 | FY85: 6750 | FZ85: 6750 | GA85: 6750 | GB85: 6750 | GC85: 6750 | GD85: 6750 | GE85: 6750 | GF85: 6750 | GG85: 6750 | GH85: 6750 | GI85: 6750 | GJ85: 6750 | GK85: 6750 | GL85: 6750 | GM85: 6750
A86: 1 | B86: 7 | C86: 14 | D86: 1000 | E86: 1000 | F86: 1000 | G86: 1000 | H86: 1000 | I86: 1000 | J86: 1000 | K86: 1000 | L86: 1000 | M86: 1000 | N86: 1000 | O86: 1000 | P86: 1000 | Q86: 1000 | R86: 1000 | S86: 1000 | T86: 1000 | U86: 1000 | V86: 1000 | W86: 1000 | X86: 1000 | Y86: 1000 | Z86: 1000 | AA86: 1000 | AB86: 1000 | AC86: 1000 | AD86: 1000 | AE86: 1000 | AF86: 1000 | AG86: 1000 | AH86: 1000 | AI86: 1000 | AJ86: 1000 | AK86: 1000 | AL86: 1000 | AM86: 1000 | AN86: 1000 | AO86: 1000 | AP86: 1000 | AQ86: 1000 | AR86: 1000 | AS86: 1000 | AT86: 1000 | AU86: 1000 | AV86: 1000 | AW86: 1000 | AX86: 1000 | AY86: 1000 | AZ86: 1000 | BA86: 1000 | BB86: 1000 | BC86: 1000 | BD86: 1000 | BE86: 1000 | BF86: 1000 | BG86: 1000 | BH86: 1000 | BI86: 1000 | BJ86: 1000 | BK86: 1000 | BL86: 1000 | BM86: 1000 | BN86: 1000 | BO86: 1000 | BP86: 1000 | BQ86: 1000 | BR86: 1000 | BS86: 1000 | BT86: 1000 | BU86: 1000 | BV86: 1000 | BW86: 1000 | BX86: 1000 | BY86: 1000 | BZ86: 1000 | CA86: 1000 | CB86: 1000 | CC86: 1000 | CD86: 1000 | CE86: 1000 | CF86: 1000 | CG86: 1000 | CH86: 1000 | CI86: 1000 | CJ86: 1000 | CK86: 1000 | CL86: 1000 | CM86: 1000 | CN86: 1000 | CO86: 1000 | CP86: 1000 | CQ86: 1000 | CR86: 1000 | CS86: 1000 | CT86: 1000 | CU86: 1000 | CV86: 1000 | CW86: 1000 | CX86: 1000 | CY86: 1000 | CZ86: 1000 | DA86: 1000 | DB86: 1000 | DC86: 1000 | DD86: 1000 | DE86: 1000 | DF86: 1000 | DG86: 1000 | DH86: 1000 | DI86: 1000 | DJ86: 1000 | DK86: 1000 | DL86: 1000 | DM86: 1000 | DN86: 1000 | DO86: 1000 | DP86: 1000 | DQ86: 1000 | DR86: 1000 | DS86: 1000 | DT86: 1000 | DU86: 1000 | DV86: 1000 | DW86: 1000 | DX86: 1000 | DY86: 1000 | DZ86: 1000 | EA86: 1000 | EB86: 1000 | EC86: 1000 | ED86: 1000 | EE86: 1000 | EF86: 1000 | EG86: 1000 | EH86: 1000 | EI86: 1000 | EJ86: 1000 | EK86: 1000 | EL86: 1000 | EM86: 1000 | EN86: 1000 | EO86: 1000 | EP86: 1000 | EQ86: 1000 | ER86: 1000 | ES86: 1000 | ET86: 1000 | EU86: 1000 | EV86: 1000 | EW86: 1000 | EX86: 1000 | EY86: 1000 | EZ86: 1000 | FA86: 1000 | FB86: 1000 | FC86: 1000 | FD86: 1000 | FE86: 1000 | FF86: 1000 | FG86: 1000 | FH86: 1000 | FI86: 1000 | FJ86: 1000 | FK86: 1000 | FL86: 1000 | FM86: 1000 | FN86: 1000 | FO86: 1000 | FP86: 1000 | FQ86: 1000 | FR86: 1000 | FS86: 1000 | FT86: 1000 | FU86: 1000 | FV86: 1000 | FW86: 1000 | FX86: 1000 | FY86: 1000 | FZ86: 1000 | GA86: 1000 | GB86: 1000 | GC86: 1000 | GD86: 1000 | GE86: 1000 | GF86: 1000 | GG86: 1000 | GH86: 1000 | GI86: 1000 | GJ86: 1000 | GK86: 1000 | GL86: 1000 | GM86: 1000
A87: 2 | B87: 7 | C87: 14 | D87: 1000 | E87: 1000 | F87: 1000 | G87: 1000 | H87: 1000 | I87: 1000 | J87: 1000 | K87: 1000 | L87: 1000 | M87: 1000 | N87: 1000 | O87: 1000 | P87: 1000 | Q87: 1000 | R87: 1000 | S87: 1000 | T87: 1000 | U87: 1000 | V87: 1000 | W87: 1000 | X87: 1000 | Y87: 1000 | Z87: 1000 | AA87: 1000 | AB87: 1000 | AC87: 1000 | AD87: 1000 | AE87: 1000 | AF87: 1000 | AG87: 1000 | AH87: 1000 | AI87: 1000 | AJ87: 1000 | AK87: 1000 | AL87: 1000 | AM87: 1000 | AN87: 1000 | AO87: 1000 | AP87: 1000 | AQ87: 1000 | AR87: 1000 | AS87: 1000 | AT87: 1000 | AU87: 1000 | AV87: 1000 | AW87: 1000 | AX87: 1000 | AY87: 1000 | AZ87: 1000 | BA87: 1000 | BB87: 1000 | BC87: 1000 | BD87: 1000 | BE87: 1000 | BF87: 1000 | BG87: 1000 | BH87: 1000 | BI87: 1000 | BJ87: 1000 | BK87: 1000 | BL87: 1000 | BM87: 1000 | BN87: 1000 | BO87: 1000 | BP87: 1000 | BQ87: 1000 | BR87: 1000 | BS87: 1000 | BT87: 1000 | BU87: 1000 | BV87: 1000 | BW87: 1000 | BX87: 1000 | BY87: 1000 | BZ87: 1000 | CA87: 1000 | CB87: 1000 | CC87: 1000 | CD87: 1000 | CE87: 1000 | CF87: 1000 | CG87: 1000 | CH87: 1000 | CI87: 1000 | CJ87: 1000 | CK87: 1000 | CL87: 1000 | CM87: 1000 | CN87: 1000 | CO87: 1000 | CP87: 1000 | CQ87: 1000 | CR87: 1000 | CS87: 1000 | CT87: 1000 | CU87: 1000 | CV87: 1000 | CW87: 1000 | CX87: 1000 | CY87: 1000 | CZ87: 1000 | DA87: 1000 | DB87: 1000 | DC87: 1000 | DD87: 1000 | DE87: 1000 | DF87: 1000 | DG87: 1000 | DH87: 1000 | DI87: 1000 | DJ87: 1000 | DK87: 1000 | DL87: 1000 | DM87: 1000 | DN87: 1000 | DO87: 1000 | DP87: 1000 | DQ87: 1000 | DR87: 1000 | DS87: 1000 | DT87: 1000 | DU87: 1000 | DV87: 1000 | DW87: 1000 | DX87: 1000 | DY87: 1000 | DZ87: 1000 | EA87: 1000 | EB87: 1000 | EC87: 1000 | ED87: 1000 | EE87: 1000 | EF87: 1000 | EG87: 1000 | EH87: 1000 | EI87: 1000 | EJ87: 1000 | EK87: 1000 | EL87: 1000 | EM87: 1000 | EN87: 1000 | EO87: 1000 | EP87: 1000 | EQ87: 1000 | ER87: 1000 | ES87: 1000 | ET87: 1000 | EU87: 1000 | EV87: 1000 | EW87: 1000 | EX87: 1000 | EY87: 1000 | EZ87: 1000 | FA87: 1000 | FB87: 1000 | FC87: 1000 | FD87: 1000 | FE87: 1000 | FF87: 1000 | FG87: 1000 | FH87: 1000 | FI87: 1000 | FJ87: 1000 | FK87: 1000 | FL87: 1000 | FM87: 1000 | FN87: 1000 | FO87: 1000 | FP87: 1000 | FQ87: 1000 | FR87: 1000 | FS87: 1000 | FT87: 1000 | FU87: 1000 | FV87: 1000 | FW87: 1000 | FX87: 1000 | FY87: 1000 | FZ87: 1000 | GA87: 1000 | GB87: 1000 | GC87: 1000 | GD87: 1000 | GE87: 1000 | GF87: 1000 | GG87: 1000 | GH87: 1000 | GI87: 1000 | GJ87: 1000 | GK87: 1000 | GL87: 1000 | GM87: 1000
A88: 3 | B88: 7 | C88: 14 | D88: 1000 | E88: 1000 | F88: 1000 | G88: 1000 | H88: 1000 | I88: 1000 | J88: 1000 | K88: 1000 | L88: 1000 | M88: 1000 | N88: 1000 | O88: 1000 | P88: 1000 | Q88: 1000 | R88: 1000 | S88: 1000 | T88: 1000 | U88: 1000 | V88: 1000 | W88: 1000 | X88: 1000 | Y88: 1000 | Z88: 1000 | AA88: 1000 | AB88: 1000 | AC88: 1000 | AD88: 1000 | AE88: 1000 | AF88: 1000 | AG88: 1000 | AH88: 1000 | AI88: 1000 | AJ88: 1000 | AK88: 1000 | AL88: 1000 | AM88: 1000 | AN88: 1000 | AO88: 1000 | AP88: 1000 | AQ88: 1000 | AR88: 1000 | AS88: 1000 | AT88: 1000 | AU88: 1000 | AV88: 1000 | AW88: 1000 | AX88: 1000 | AY88: 1000 | AZ88: 1000 | BA88: 1000 | BB88: 1000 | BC88: 1000 | BD88: 1000 | BE88: 1000 | BF88: 1000 | BG88: 1000 | BH88: 1000 | BI88: 1000 | BJ88: 1000 | BK88: 1000 | BL88: 1000 | BM88: 1000 | BN88: 1000 | BO88: 1000 | BP88: 1000 | BQ88: 1000 | BR88: 1000 | BS88: 1000 | BT88: 1000 | BU88: 1000 | BV88: 1000 | BW88: 1000 | BX88: 1000 | BY88: 1000 | BZ88: 1000 | CA88: 1000 | CB88: 1000 | CC88: 1000 | CD88: 1000 | CE88: 1000 | CF88: 1000 | CG88: 1000 | CH88: 1000 | CI88: 1000 | CJ88: 1000 | CK88: 1000 | CL88: 1000 | CM88: 1000 | CN88: 1000 | CO88: 1000 | CP88: 1000 | CQ88: 1000 | CR88: 1000 | CS88: 1000 | CT88: 1000 | CU88: 1000 | CV88: 1000 | CW88: 1000 | CX88: 1000 | CY88: 1000 | CZ88: 1000 | DA88: 1000 | DB88: 1000 | DC88: 1000 | DD88: 1000 | DE88: 1000 | DF88: 1000 | DG88: 1000 | DH88: 1000 | DI88: 1000 | DJ88: 1000 | DK88: 1000 | DL88: 1000 | DM88: 1000 | DN88: 1000 | DO88: 1000 | DP88: 1000 | DQ88: 1000 | DR88: 1000 | DS88: 1000 | DT88: 1000 | DU88: 1000 | DV88: 1000 | DW88: 1000 | DX88: 1000 | DY88: 1000 | DZ88: 1000 | EA88: 1000 | EB88: 1000 | EC88: 1000 | ED88: 1000 | EE88: 1000 | EF88: 1000 | EG88: 1000 | EH88: 1000 | EI88: 1000 | EJ88: 1000 | EK88: 1000 | EL88: 1000 | EM88: 1000 | EN88: 1000 | EO88: 1000 | EP88: 1000 | EQ88: 1000 | ER88: 1000 | ES88: 1000 | ET88: 1000 | EU88: 1000 | EV88: 1000 | EW88: 1000 | EX88: 1000 | EY88: 1000 | EZ88: 1000 | FA88: 1000 | FB88: 1000 | FC88: 1000 | FD88: 1000 | FE88: 1000 | FF88: 1000 | FG88: 1000 | FH88: 1000 | FI88: 1000 | FJ88: 1000 | FK88: 1000 | FL88: 1000 | FM88: 1000 | FN88: 1000 | FO88: 1000 | FP88: 1000 | FQ88: 1000 | FR88: 1000 | FS88: 1000 | FT88: 1000 | FU88: 1000 | FV88: 1000 | FW88: 1000 | FX88: 1000 | FY88: 1000 | FZ88: 1000 | GA88: 1000 | GB88: 1000 | GC88: 1000 | GD88: 1000 | GE88: 1000 | GF88: 1000 | GG88: 1000 | GH88: 1000 | GI88: 1000 | GJ88: 1000 | GK88: 1000 | GL88: 1000 | GM88: 1000
A89: 4 | B89: 7 | C89: 14 | D89: 1000 | E89: 1000 | F89: 1000 | G89: 1000 | H89: 1000 | I89: 1000 | J89: 1000 | K89: 1000 | L89: 1000 | M89: 1000 | N89: 1000 | O89: 1000 | P89: 1000 | Q89: 1000 | R89: 1000 | S89: 1000 | T89: 1000 | U89: 1000 | V89: 1000 | W89: 1000 | X89: 1000 | Y89: 1000 | Z89: 1000 | AA89: 1000 | AB89: 1000 | AC89: 1000 | AD89: 1000 | AE89: 1000 | AF89: 1000 | AG89: 1000 | AH89: 1000 | AI89: 1000 | AJ89: 1000 | AK89: 1000 | AL89: 1000 | AM89: 1000 | AN89: 1000 | AO89: 1000 | AP89: 1000 | AQ89: 1000 | AR89: 1000 | AS89: 1000 | AT89: 1000 | AU89: 1000 | AV89: 1000 | AW89: 1000 | AX89: 1000 | AY89: 1000 | AZ89: 1000 | BA89: 1000 | BB89: 1000 | BC89: 1000 | BD89: 1000 | BE89: 1000 | BF89: 1000 | BG89: 1000 | BH89: 1000 | BI89: 1000 | BJ89: 1000 | BK89: 1000 | BL89: 1000 | BM89: 1000 | BN89: 1000 | BO89: 1000 | BP89: 1000 | BQ89: 1000 | BR89: 1000 | BS89: 1000 | BT89: 1000 | BU89: 1000 | BV89: 1000 | BW89: 1000 | BX89: 1000 | BY89: 1000 | BZ89: 1000 | CA89: 1000 | CB89: 1000 | CC89: 1000 | CD89: 1000 | CE89: 1000 | CF89: 1000 | CG89: 1000 | CH89: 1000 | CI89: 1000 | CJ89: 1000 | CK89: 1000 | CL89: 1000 | CM89: 1000 | CN89: 1000 | CO89: 1000 | CP89: 1000 | CQ89: 1000 | CR89: 1000 | CS89: 1000 | CT89: 1000 | CU89: 1000 | CV89: 1000 | CW89: 1000 | CX89: 1000 | CY89: 1000 | CZ89: 1000 | DA89: 1000 | DB89: 1000 | DC89: 1000 | DD89: 1000 | DE89: 1000 | DF89: 1000 | DG89: 1000 | DH89: 1000 | DI89: 1000 | DJ89: 1000 | DK89: 1000 | DL89: 1000 | DM89: 1000 | DN89: 1000 | DO89: 1000 | DP89: 1000 | DQ89: 1000 | DR89: 1000 | DS89: 1000 | DT89: 1000 | DU89: 1000 | DV89: 1000 | DW89: 1000 | DX89: 1000 | DY89: 1000 | DZ89: 1000 | EA89: 1000 | EB89: 1000 | EC89: 1000 | ED89: 1000 | EE89: 1000 | EF89: 1000 | EG89: 1000 | EH89: 1000 | EI89: 1000 | EJ89: 1000 | EK89: 1000 | EL89: 1000 | EM89: 1000 | EN89: 1000 | EO89: 1000 | EP89: 1000 | EQ89: 1000 | ER89: 1000 | ES89: 1000 | ET89: 1000 | EU89: 1000 | EV89: 1000 | EW89: 1000 | EX89: 1000 | EY89: 1000 | EZ89: 1000 | FA89: 1000 | FB89: 1000 | FC89: 1000 | FD89: 1000 | FE89: 1000 | FF89: 1000 | FG89: 1000 | FH89: 1000 | FI89: 1000 | FJ89: 1000 | FK89: 1000 | FL89: 1000 | FM89: 1000 | FN89: 1000 | FO89: 1000 | FP89: 1000 | FQ89: 1000 | FR89: 1000 | FS89: 1000 | FT89: 1000 | FU89: 1000 | FV89: 1000 | FW89: 1000 | FX89: 1000 | FY89: 1000 | FZ89: 1000 | GA89: 1000 | GB89: 1000 | GC89: 1000 | GD89: 1000 | GE89: 1000 | GF89: 1000 | GG89: 1000 | GH89: 1000 | GI89: 1000 | GJ89: 1000 | GK89: 1000 | GL89: 1000 | GM89: 1000
A90: 1 | B90: 8 | C90: 14 | D90: 11000 | E90: 11000 | F90: 11000 | G90: 11000 | H90: 11000 | I90: 11000 | J90: 11000 | K90: 11000 | L90: 11000 | M90: 11000 | N90: 11000 | O90: 11000 | P90: 11000 | Q90: 11000 | R90: 11000 | S90: 11000 | T90: 11000 | U90: 11000 | V90: 11000 | W90: 11000 | X90: 11000 | Y90: 11000 | Z90: 11000 | AA90: 11000 | AB90: 11000 | AC90: 11000 | AD90: 11000 | AE90: 11000 | AF90: 11000 | AG90: 11000 | AH90: 11000 | AI90: 11000 | AJ90: 11000 | AK90: 11000 | AL90: 11000 | AM90: 11000 | AN90: 11000 | AO90: 11000 | AP90: 11000 | AQ90: 11000 | AR90: 11000 | AS90: 11000 | AT90: 11000 | AU90: 11000 | AV90: 11000 | AW90: 11000 | AX90: 11000 | AY90: 11000 | AZ90: 11000 | BA90: 11000 | BB90: 11000 | BC90: 11000 | BD90: 11000 | BE90: 11000 | BF90: 11000 | BG90: 11000 | BH90: 11000 | BI90: 11000 | BJ90: 11000 | BK90: 11000 | BL90: 11000 | BM90: 11000 | BN90: 11000 | BO90: 11000 | BP90: 11000 | BQ90: 11000 | BR90: 11000 | BS90: 11000 | BT90: 11000 | BU90: 11000 | BV90: 11000 | BW90: 11000 | BX90: 11000 | BY90: 11000 | BZ90: 11000 | CA90: 11000 | CB90: 11000 | CC90: 11000 | CD90: 11000 | CE90: 11000 | CF90: 11000 | CG90: 11000 | CH90: 11000 | CI90: 11000 | CJ90: 11000 | CK90: 11000 | CL90: 11000 | CM90: 11000 | CN90: 11000 | CO90: 11000 | CP90: 11000 | CQ90: 11000 | CR90: 11000 | CS90: 11000 | CT90: 11000 | CU90: 11000 | CV90: 11000 | CW90: 11000 | CX90: 11000 | CY90: 11000 | CZ90: 11000 | DA90: 11000 | DB90: 11000 | DC90: 11000 | DD90: 11000 | DE90: 11000 | DF90: 11000 | DG90: 11000 | DH90: 11000 | DI90: 11000 | DJ90: 11000 | DK90: 11000 | DL90: 11000 | DM90: 11000 | DN90: 11000 | DO90: 11000 | DP90: 11000 | DQ90: 11000 | DR90: 11000 | DS90: 11000 | DT90: 11000 | DU90: 11000 | DV90: 11000 | DW90: 11000 | DX90: 11000 | DY90: 11000 | DZ90: 11000 | EA90: 11000 | EB90: 11000 | EC90: 11000 | ED90: 11000 | EE90: 11000 | EF90: 11000 | EG90: 11000 | EH90: 11000 | EI90: 11000 | EJ90: 11000 | EK90: 11000 | EL90: 11000 | EM90: 11000 | EN90: 11000 | EO90: 11000 | EP90: 11000 | EQ90: 11000 | ER90: 11000 | ES90: 11000 | ET90: 11000 | EU90: 11000 | EV90: 11000 | EW90: 11000 | EX90: 11000 | EY90: 11000 | EZ90: 11000 | FA90: 11000 | FB90: 11000 | FC90: 11000 | FD90: 11000 | FE90: 11000 | FF90: 11000 | FG90: 11000 | FH90: 11000 | FI90: 11000 | FJ90: 11000 | FK90: 11000 | FL90: 11000 | FM90: 11000 | FN90: 11000 | FO90: 11000 | FP90: 11000 | FQ90: 11000 | FR90: 11000 | FS90: 11000 | FT90: 11000 | FU90: 11000 | FV90: 11000 | FW90: 11000 | FX90: 11000 | FY90: 11000 | FZ90: 11000 | GA90: 11000 | GB90: 11000 | GC90: 11000 | GD90: 11000 | GE90: 11000 | GF90: 11000 | GG90: 11000 | GH90: 11000 | GI90: 11000 | GJ90: 11000 | GK90: 11000 | GL90: 11000 | GM90: 11000
A91: 2 | B91: 8 | C91: 14 | D91: 11000 | E91: 11000 | F91: 11000 | G91: 11000 | H91: 11000 | I91: 11000 | J91: 11000 | K91: 11000 | L91: 11000 | M91: 11000 | N91: 11000 | O91: 11000 | P91: 11000 | Q91: 11000 | R91: 11000 | S91: 11000 | T91: 11000 | U91: 11000 | V91: 11000 | W91: 11000 | X91: 11000 | Y91: 11000 | Z91: 11000 | AA91: 11000 | AB91: 11000 | AC91: 11000 | AD91: 11000 | AE91: 11000 | AF91: 11000 | AG91: 11000 | AH91: 11000 | AI91: 11000 | AJ91: 11000 | AK91: 11000 | AL91: 11000 | AM91: 11000 | AN91: 11000 | AO91: 11000 | AP91: 11000 | AQ91: 11000 | AR91: 11000 | AS91: 11000 | AT91: 11000 | AU91: 11000 | AV91: 11000 | AW91: 11000 | AX91: 11000 | AY91: 11000 | AZ91: 11000 | BA91: 11000 | BB91: 11000 | BC91: 11000 | BD91: 11000 | BE91: 11000 | BF91: 11000 | BG91: 11000 | BH91: 11000 | BI91: 11000 | BJ91: 11000 | BK91: 11000 | BL91: 11000 | BM91: 11000 | BN91: 11000 | BO91: 11000 | BP91: 11000 | BQ91: 11000 | BR91: 11000 | BS91: 11000 | BT91: 11000 | BU91: 11000 | BV91: 11000 | BW91: 11000 | BX91: 11000 | BY91: 11000 | BZ91: 11000 | CA91: 11000 | CB91: 11000 | CC91: 11000 | CD91: 11000 | CE91: 11000 | CF91: 11000 | CG91: 11000 | CH91: 11000 | CI91: 11000 | CJ91: 11000 | CK91: 11000 | CL91: 11000 | CM91: 11000 | CN91: 11000 | CO91: 11000 | CP91: 11000 | CQ91: 11000 | CR91: 11000 | CS91: 11000 | CT91: 11000 | CU91: 11000 | CV91: 11000 | CW91: 11000 | CX91: 11000 | CY91: 11000 | CZ91: 11000 | DA91: 11000 | DB91: 11000 | DC91: 11000 | DD91: 11000 | DE91: 11000 | DF91: 11000 | DG91: 11000 | DH91: 11000 | DI91: 11000 | DJ91: 11000 | DK91: 11000 | DL91: 11000 | DM91: 11000 | DN91: 11000 | DO91: 11000 | DP91: 11000 | DQ91: 11000 | DR91: 11000 | DS91: 11000 | DT91: 11000 | DU91: 11000 | DV91: 11000 | DW91: 11000 | DX91: 11000 | DY91: 11000 | DZ91: 11000 | EA91: 11000 | EB91: 11000 | EC91: 11000 | ED91: 11000 | EE91: 11000 | EF91: 11000 | EG91: 11000 | EH91: 11000 | EI91: 11000 | EJ91: 11000 | EK91: 11000 | EL91: 11000 | EM91: 11000 | EN91: 11000 | EO91: 11000 | EP91: 11000 | EQ91: 11000 | ER91: 11000 | ES91: 11000 | ET91: 11000 | EU91: 11000 | EV91: 11000 | EW91: 11000 | EX91: 11000 | EY91: 11000 | EZ91: 11000 | FA91: 11000 | FB91: 11000 | FC91: 11000 | FD91: 11000 | FE91: 11000 | FF91: 11000 | FG91: 11000 | FH91: 11000 | FI91: 11000 | FJ91: 11000 | FK91: 11000 | FL91: 11000 | FM91: 11000 | FN91: 11000 | FO91: 11000 | FP91: 11000 | FQ91: 11000 | FR91: 11000 | FS91: 11000 | FT91: 11000 | FU91: 11000 | FV91: 11000 | FW91: 11000 | FX91: 11000 | FY91: 11000 | FZ91: 11000 | GA91: 11000 | GB91: 11000 | GC91: 11000 | GD91: 11000 | GE91: 11000 | GF91: 11000 | GG91: 11000 | GH91: 11000 | GI91: 11000 | GJ91: 11000 | GK91: 11000 | GL91: 11000 | GM91: 11000
A92: 3 | B92: 8 | C92: 14 | D92: 11000 | E92: 11000 | F92: 11000 | G92: 11000 | H92: 11000 | I92: 11000 | J92: 11000 | K92: 11000 | L92: 11000 | M92: 11000 | N92: 11000 | O92: 11000 | P92: 11000 | Q92: 11000 | R92: 11000 | S92: 11000 | T92: 11000 | U92: 11000 | V92: 11000 | W92: 11000 | X92: 11000 | Y92: 11000 | Z92: 11000 | AA92: 11000 | AB92: 11000 | AC92: 11000 | AD92: 11000 | AE92: 11000 | AF92: 11000 | AG92: 11000 | AH92: 11000 | AI92: 11000 | AJ92: 11000 | AK92: 11000 | AL92: 11000 | AM92: 11000 | AN92: 11000 | AO92: 11000 | AP92: 11000 | AQ92: 11000 | AR92: 11000 | AS92: 11000 | AT92: 11000 | AU92: 11000 | AV92: 11000 | AW92: 11000 | AX92: 11000 | AY92: 11000 | AZ92: 11000 | BA92: 11000 | BB92: 11000 | BC92: 11000 | BD92: 11000 | BE92: 11000 | BF92: 11000 | BG92: 11000 | BH92: 11000 | BI92: 11000 | BJ92: 11000 | BK92: 11000 | BL92: 11000 | BM92: 11000 | BN92: 11000 | BO92: 11000 | BP92: 11000 | BQ92: 11000 | BR92: 11000 | BS92: 11000 | BT92: 11000 | BU92: 11000 | BV92: 11000 | BW92: 11000 | BX92: 11000 | BY92: 11000 | BZ92: 11000 | CA92: 11000 | CB92: 11000 | CC92: 11000 | CD92: 11000 | CE92: 11000 | CF92: 11000 | CG92: 11000 | CH92: 11000 | CI92: 11000 | CJ92: 11000 | CK92: 11000 | CL92: 11000 | CM92: 11000 | CN92: 11000 | CO92: 11000 | CP92: 11000 | CQ92: 11000 | CR92: 11000 | CS92: 11000 | CT92: 11000 | CU92: 11000 | CV92: 11000 | CW92: 11000 | CX92: 11000 | CY92: 11000 | CZ92: 11000 | DA92: 11000 | DB92: 11000 | DC92: 11000 | DD92: 11000 | DE92: 11000 | DF92: 11000 | DG92: 11000 | DH92: 11000 | DI92: 11000 | DJ92: 11000 | DK92: 11000 | DL92: 11000 | DM92: 11000 | DN92: 11000 | DO92: 11000 | DP92: 11000 | DQ92: 11000 | DR92: 11000 | DS92: 11000 | DT92: 11000 | DU92: 11000 | DV92: 11000 | DW92: 11000 | DX92: 11000 | DY92: 11000 | DZ92: 11000 | EA92: 11000 | EB92: 11000 | EC92: 11000 | ED92: 11000 | EE92: 11000 | EF92: 11000 | EG92: 11000 | EH92: 11000 | EI92: 11000 | EJ92: 11000 | EK92: 11000 | EL92: 11000 | EM92: 11000 | EN92: 11000 | EO92: 11000 | EP92: 11000 | EQ92: 11000 | ER92: 11000 | ES92: 11000 | ET92: 11000 | EU92: 11000 | EV92: 11000 | EW92: 11000 | EX92: 11000 | EY92: 11000 | EZ92: 11000 | FA92: 11000 | FB92: 11000 | FC92: 11000 | FD92: 11000 | FE92: 11000 | FF92: 11000 | FG92: 11000 | FH92: 11000 | FI92: 11000 | FJ92: 11000 | FK92: 11000 | FL92: 11000 | FM92: 11000 | FN92: 11000 | FO92: 11000 | FP92: 11000 | FQ92: 11000 | FR92: 11000 | FS92: 11000 | FT92: 11000 | FU92: 11000 | FV92: 11000 | FW92: 11000 | FX92: 11000 | FY92: 11000 | FZ92: 11000 | GA92: 11000 | GB92: 11000 | GC92: 11000 | GD92: 11000 | GE92: 11000 | GF92: 11000 | GG92: 11000 | GH92: 11000 | GI92: 11000 | GJ92: 11000 | GK92: 11000 | GL92: 11000 | GM92: 11000
A93: 4 | B93: 8 | C93: 14 | D93: 11000 | E93: 11000 | F93: 11000 | G93: 11000 | H93: 11000 | I93: 11000 | J93: 11000 | K93: 11000 | L93: 11000 | M93: 11000 | N93: 11000 | O93: 11000 | P93: 11000 | Q93: 11000 | R93: 11000 | S93: 11000 | T93: 11000 | U93: 11000 | V93: 11000 | W93: 11000 | X93: 11000 | Y93: 11000 | Z93: 11000 | AA93: 11000 | AB93: 11000 | AC93: 11000 | AD93: 11000 | AE93: 11000 | AF93: 11000 | AG93: 11000 | AH93: 11000 | AI93: 11000 | AJ93: 11000 | AK93: 11000 | AL93: 11000 | AM93: 11000 | AN93: 11000 | AO93: 11000 | AP93: 11000 | AQ93: 11000 | AR93: 11000 | AS93: 11000 | AT93: 11000 | AU93: 11000 | AV93: 11000 | AW93: 11000 | AX93: 11000 | AY93: 11000 | AZ93: 11000 | BA93: 11000 | BB93: 11000 | BC93: 11000 | BD93: 11000 | BE93: 11000 | BF93: 11000 | BG93: 11000 | BH93: 11000 | BI93: 11000 | BJ93: 11000 | BK93: 11000 | BL93: 11000 | BM93: 11000 | BN93: 11000 | BO93: 11000 | BP93: 11000 | BQ93: 11000 | BR93: 11000 | BS93: 11000 | BT93: 11000 | BU93: 11000 | BV93: 11000 | BW93: 11000 | BX93: 11000 | BY93: 11000 | BZ93: 11000 | CA93: 11000 | CB93: 11000 | CC93: 11000 | CD93: 11000 | CE93: 11000 | CF93: 11000 | CG93: 11000 | CH93: 11000 | CI93: 11000 | CJ93: 11000 | CK93: 11000 | CL93: 11000 | CM93: 11000 | CN93: 11000 | CO93: 11000 | CP93: 11000 | CQ93: 11000 | CR93: 11000 | CS93: 11000 | CT93: 11000 | CU93: 11000 | CV93: 11000 | CW93: 11000 | CX93: 11000 | CY93: 11000 | CZ93: 11000 | DA93: 11000 | DB93: 11000 | DC93: 11000 | DD93: 11000 | DE93: 11000 | DF93: 11000 | DG93: 11000 | DH93: 11000 | DI93: 11000 | DJ93: 11000 | DK93: 11000 | DL93: 11000 | DM93: 11000 | DN93: 11000 | DO93: 11000 | DP93: 11000 | DQ93: 11000 | DR93: 11000 | DS93: 11000 | DT93: 11000 | DU93: 11000 | DV93: 11000 | DW93: 11000 | DX93: 11000 | DY93: 11000 | DZ93: 11000 | EA93: 11000 | EB93: 11000 | EC93: 11000 | ED93: 11000 | EE93: 11000 | EF93: 11000 | EG93: 11000 | EH93: 11000 | EI93: 11000 | EJ93: 11000 | EK93: 11000 | EL93: 11000 | EM93: 11000 | EN93: 11000 | EO93: 11000 | EP93: 11000 | EQ93: 11000 | ER93: 11000 | ES93: 11000 | ET93: 11000 | EU93: 11000 | EV93: 11000 | EW93: 11000 | EX93: 11000 | EY93: 11000 | EZ93: 11000 | FA93: 11000 | FB93: 11000 | FC93: 11000 | FD93: 11000 | FE93: 11000 | FF93: 11000 | FG93: 11000 | FH93: 11000 | FI93: 11000 | FJ93: 11000 | FK93: 11000 | FL93: 11000 | FM93: 11000 | FN93: 11000 | FO93: 11000 | FP93: 11000 | FQ93: 11000 | FR93: 11000 | FS93: 11000 | FT93: 11000 | FU93: 11000 | FV93: 11000 | FW93: 11000 | FX93: 11000 | FY93: 11000 | FZ93: 11000 | GA93: 11000 | GB93: 11000 | GC93: 11000 | GD93: 11000 | GE93: 11000 | GF93: 11000 | GG93: 11000 | GH93: 11000 | GI93: 11000 | GJ93: 11000 | GK93: 11000 | GL93: 11000 | GM93: 11000
A94: 1 | B94: 9 | C94: 1 | D94: 3600 | E94: 3600 | F94: 3600 | G94: 3600 | H94: 3600 | I94: 3600 | J94: 3600 | K94: 3600 | L94: 3600 | M94: 3600 | N94: 3600 | O94: 3600 | P94: 3600 | Q94: 3600 | R94: 3600 | S94: 3600 | T94: 3600 | U94: 3600 | V94: 3600 | W94: 3600 | X94: 3600 | Y94: 3600 | Z94: 3600 | AA94: 3600 | AB94: 3600 | AC94: 3600 | AD94: 3600 | AE94: 3600 | AF94: 3600 | AG94: 3600 | AH94: 3600 | AI94: 3600 | AJ94: 3600 | AK94: 3600 | AL94: 3600 | AM94: 3600 | AN94: 3600 | AO94: 3600 | AP94: 3600 | AQ94: 3600 | AR94: 3600 | AS94: 3600 | AT94: 3600 | AU94: 3600 | AV94: 3600 | AW94: 3600 | AX94: 3600 | AY94: 3600 | AZ94: 3600 | BA94: 3600 | BB94: 3600 | BC94: 3600 | BD94: 3600 | BE94: 3600 | BF94: 3600 | BG94: 3600 | BH94: 3600 | BI94: 3600 | BJ94: 3600 | BK94: 3600 | BL94: 3600 | BM94: 3600 | BN94: 3600 | BO94: 3600 | BP94: 3600 | BQ94: 3600 | BR94: 3600 | BS94: 3600 | BT94: 3600 | BU94: 3600 | BV94: 3600 | BW94: 3600 | BX94: 3600 | BY94: 3600 | BZ94: 3600 | CA94: 3600 | CB94: 3600 | CC94: 3600 | CD94: 3600 | CE94: 3600 | CF94: 3600 | CG94: 3600 | CH94: 3600 | CI94: 3600 | CJ94: 3600 | CK94: 3600 | CL94: 3600 | CM94: 3600 | CN94: 3600 | CO94: 3600 | CP94: 3600 | CQ94: 3600 | CR94: 3600 | CS94: 3600 | CT94: 3600 | CU94: 3600 | CV94: 3600 | CW94: 3600 | CX94: 3600 | CY94: 3600 | CZ94: 3600 | DA94: 3600 | DB94: 3600 | DC94: 3600 | DD94: 3600 | DE94: 3600 | DF94: 3600 | DG94: 3600 | DH94: 3600 | DI94: 3600 | DJ94: 3600 | DK94: 3600 | DL94: 3600 | DM94: 3600 | DN94: 3600 | DO94: 3600 | DP94: 3600 | DQ94: 3600 | DR94: 3600 | DS94: 3600 | DT94: 3600 | DU94: 3600 | DV94: 3600 | DW94: 3600 | DX94: 3600 | DY94: 3600 | DZ94: 3600 | EA94: 3600 | EB94: 3600 | EC94: 3600 | ED94: 3600 | EE94: 3600 | EF94: 3600 | EG94: 3600 | EH94: 3600 | EI94: 3600 | EJ94: 3600 | EK94: 3600 | EL94: 3600 | EM94: 3600 | EN94: 3600 | EO94: 3600 | EP94: 3600 | EQ94: 3600 | ER94: 3600 | ES94: 3600 | ET94: 3600 | EU94: 3600 | EV94: 3600 | EW94: 3600 | EX94: 3600 | EY94: 3600 | EZ94: 3600 | FA94: 3600 | FB94: 3600 | FC94: 3600 | FD94: 3600 | FE94: 3600 | FF94: 3600 | FG94: 3600 | FH94: 3600 | FI94: 3600 | FJ94: 3600 | FK94: 3600 | FL94: 3600 | FM94: 3600 | FN94: 3600 | FO94: 3600 | FP94: 3600 | FQ94: 3600 | FR94: 3600 | FS94: 3600 | FT94: 3600 | FU94: 3600 | FV94: 3600 | FW94: 3600 | FX94: 3600 | FY94: 3600 | FZ94: 3600 | GA94: 3600 | GB94: 3600 | GC94: 3600 | GD94: 3600 | GE94: 3600 | GF94: 3600 | GG94: 3600 | GH94: 3600 | GI94: 3600 | GJ94: 3600 | GK94: 3600 | GL94: 3600 | GM94: 3600
A95: 2 | B95: 9 | C95: 1 | D95: 3600 | E95: 3600 | F95: 3600 | G95: 3600 | H95: 3600 | I95: 3600 | J95: 3600 | K95: 3600 | L95: 3600 | M95: 3600 | N95: 3600 | O95: 3600 | P95: 3600 | Q95: 3600 | R95: 3600 | S95: 3600 | T95: 3600 | U95: 3600 | V95: 3600 | W95: 3600 | X95: 3600 | Y95: 3600 | Z95: 3600 | AA95: 3600 | AB95: 3600 | AC95: 3600 | AD95: 3600 | AE95: 3600 | AF95: 3600 | AG95: 3600 | AH95: 3600 | AI95: 3600 | AJ95: 3600 | AK95: 3600 | AL95: 3600 | AM95: 3600 | AN95: 3600 | AO95: 3600 | AP95: 3600 | AQ95: 3600 | AR95: 3600 | AS95: 3600 | AT95: 3600 | AU95: 3600 | AV95: 3600 | AW95: 3600 | AX95: 3600 | AY95: 3600 | AZ95: 3600 | BA95: 3600 | BB95: 3600 | BC95: 3600 | BD95: 3600 | BE95: 3600 | BF95: 3600 | BG95: 3600 | BH95: 3600 | BI95: 3600 | BJ95: 3600 | BK95: 3600 | BL95: 3600 | BM95: 3600 | BN95: 3600 | BO95: 3600 | BP95: 3600 | BQ95: 3600 | BR95: 3600 | BS95: 3600 | BT95: 3600 | BU95: 3600 | BV95: 3600 | BW95: 3600 | BX95: 3600 | BY95: 3600 | BZ95: 3600 | CA95: 3600 | CB95: 3600 | CC95: 3600 | CD95: 3600 | CE95: 3600 | CF95: 3600 | CG95: 3600 | CH95: 3600 | CI95: 3600 | CJ95: 3600 | CK95: 3600 | CL95: 3600 | CM95: 3600 | CN95: 3600 | CO95: 3600 | CP95: 3600 | CQ95: 3600 | CR95: 3600 | CS95: 3600 | CT95: 3600 | CU95: 3600 | CV95: 3600 | CW95: 3600 | CX95: 3600 | CY95: 3600 | CZ95: 3600 | DA95: 3600 | DB95: 3600 | DC95: 3600 | DD95: 3600 | DE95: 3600 | DF95: 3600 | DG95: 3600 | DH95: 3600 | DI95: 3600 | DJ95: 3600 | DK95: 3600 | DL95: 3600 | DM95: 3600 | DN95: 3600 | DO95: 3600 | DP95: 3600 | DQ95: 3600 | DR95: 3600 | DS95: 3600 | DT95: 3600 | DU95: 3600 | DV95: 3600 | DW95: 3600 | DX95: 3600 | DY95: 3600 | DZ95: 3600 | EA95: 3600 | EB95: 3600 | EC95: 3600 | ED95: 3600 | EE95: 3600 | EF95: 3600 | EG95: 3600 | EH95: 3600 | EI95: 3600 | EJ95: 3600 | EK95: 3600 | EL95: 3600 | EM95: 3600 | EN95: 3600 | EO95: 3600 | EP95: 3600 | EQ95: 3600 | ER95: 3600 | ES95: 3600 | ET95: 3600 | EU95: 3600 | EV95: 3600 | EW95: 3600 | EX95: 3600 | EY95: 3600 | EZ95: 3600 | FA95: 3600 | FB95: 3600 | FC95: 3600 | FD95: 3600 | FE95: 3600 | FF95: 3600 | FG95: 3600 | FH95: 3600 | FI95: 3600 | FJ95: 3600 | FK95: 3600 | FL95: 3600 | FM95: 3600 | FN95: 3600 | FO95: 3600 | FP95: 3600 | FQ95: 3600 | FR95: 3600 | FS95: 3600 | FT95: 3600 | FU95: 3600 | FV95: 3600 | FW95: 3600 | FX95: 3600 | FY95: 3600 | FZ95: 3600 | GA95: 3600 | GB95: 3600 | GC95: 3600 | GD95: 3600 | GE95: 3600 | GF95: 3600 | GG95: 3600 | GH95: 3600 | GI95: 3600 | GJ95: 3600 | GK95: 3600 | GL95: 3600 | GM95: 3600
A96: 3 | B96: 9 | C96: 1 | D96: 3600 | E96: 3600 | F96: 3600 | G96: 3600 | H96: 3600 | I96: 3600 | J96: 3600 | K96: 3600 | L96: 3600 | M96: 3600 | N96: 3600 | O96: 3600 | P96: 3600 | Q96: 3600 | R96: 3600 | S96: 3600 | T96: 3600 | U96: 3600 | V96: 3600 | W96: 3600 | X96: 3600 | Y96: 3600 | Z96: 3600 | AA96: 3600 | AB96: 3600 | AC96: 3600 | AD96: 3600 | AE96: 3600 | AF96: 3600 | AG96: 3600 | AH96: 3600 | AI96: 3600 | AJ96: 3600 | AK96: 3600 | AL96: 3600 | AM96: 3600 | AN96: 3600 | AO96: 3600 | AP96: 3600 | AQ96: 3600 | AR96: 3600 | AS96: 3600 | AT96: 3600 | AU96: 3600 | AV96: 3600 | AW96: 3600 | AX96: 3600 | AY96: 3600 | AZ96: 3600 | BA96: 3600 | BB96: 3600 | BC96: 3600 | BD96: 3600 | BE96: 3600 | BF96: 3600 | BG96: 3600 | BH96: 3600 | BI96: 3600 | BJ96: 3600 | BK96: 3600 | BL96: 3600 | BM96: 3600 | BN96: 3600 | BO96: 3600 | BP96: 3600 | BQ96: 3600 | BR96: 3600 | BS96: 3600 | BT96: 3600 | BU96: 3600 | BV96: 3600 | BW96: 3600 | BX96: 3600 | BY96: 3600 | BZ96: 3600 | CA96: 3600 | CB96: 3600 | CC96: 3600 | CD96: 3600 | CE96: 3600 | CF96: 3600 | CG96: 3600 | CH96: 3600 | CI96: 3600 | CJ96: 3600 | CK96: 3600 | CL96: 3600 | CM96: 3600 | CN96: 3600 | CO96: 3600 | CP96: 3600 | CQ96: 3600 | CR96: 3600 | CS96: 3600 | CT96: 3600 | CU96: 3600 | CV96: 3600 | CW96: 3600 | CX96: 3600 | CY96: 3600 | CZ96: 3600 | DA96: 3600 | DB96: 3600 | DC96: 3600 | DD96: 3600 | DE96: 3600 | DF96: 3600 | DG96: 3600 | DH96: 3600 | DI96: 3600 | DJ96: 3600 | DK96: 3600 | DL96: 3600 | DM96: 3600 | DN96: 3600 | DO96: 3600 | DP96: 3600 | DQ96: 3600 | DR96: 3600 | DS96: 3600 | DT96: 3600 | DU96: 3600 | DV96: 3600 | DW96: 3600 | DX96: 3600 | DY96: 3600 | DZ96: 3600 | EA96: 3600 | EB96: 3600 | EC96: 3600 | ED96: 3600 | EE96: 3600 | EF96: 3600 | EG96: 3600 | EH96: 3600 | EI96: 3600 | EJ96: 3600 | EK96: 3600 | EL96: 3600 | EM96: 3600 | EN96: 3600 | EO96: 3600 | EP96: 3600 | EQ96: 3600 | ER96: 3600 | ES96: 3600 | ET96: 3600 | EU96: 3600 | EV96: 3600 | EW96: 3600 | EX96: 3600 | EY96: 3600 | EZ96: 3600 | FA96: 3600 | FB96: 3600 | FC96: 3600 | FD96: 3600 | FE96: 3600 | FF96: 3600 | FG96: 3600 | FH96: 3600 | FI96: 3600 | FJ96: 3600 | FK96: 3600 | FL96: 3600 | FM96: 3600 | FN96: 3600 | FO96: 3600 | FP96: 3600 | FQ96: 3600 | FR96: 3600 | FS96: 3600 | FT96: 3600 | FU96: 3600 | FV96: 3600 | FW96: 3600 | FX96: 3600 | FY96: 3600 | FZ96: 3600 | GA96: 3600 | GB96: 3600 | GC96: 3600 | GD96: 3600 | GE96: 3600 | GF96: 3600 | GG96: 3600 | GH96: 3600 | GI96: 3600 | GJ96: 3600 | GK96: 3600 | GL96: 3600 | GM96: 3600
A97: 4 | B97: 9 | C97: 1 | D97: 3600 | E97: 3600 | F97: 3600 | G97: 3600 | H97: 3600 | I97: 3600 | J97: 3600 | K97: 3600 | L97: 3600 | M97: 3600 | N97: 3600 | O97: 3600 | P97: 3600 | Q97: 3600 | R97: 3600 | S97: 3600 | T97: 3600 | U97: 3600 | V97: 3600 | W97: 3600 | X97: 3600 | Y97: 3600 | Z97: 3600 | AA97: 3600 | AB97: 3600 | AC97: 3600 | AD97: 3600 | AE97: 3600 | AF97: 3600 | AG97: 3600 | AH97: 3600 | AI97: 3600 | AJ97: 3600 | AK97: 3600 | AL97: 3600 | AM97: 3600 | AN97: 3600 | AO97: 3600 | AP97: 3600 | AQ97: 3600 | AR97: 3600 | AS97: 3600 | AT97: 3600 | AU97: 3600 | AV97: 3600 | AW97: 3600 | AX97: 3600 | AY97: 3600 | AZ97: 3600 | BA97: 3600 | BB97: 3600 | BC97: 3600 | BD97: 3600 | BE97: 3600 | BF97: 3600 | BG97: 3600 | BH97: 3600 | BI97: 3600 | BJ97: 3600 | BK97: 3600 | BL97: 3600 | BM97: 3600 | BN97: 3600 | BO97: 3600 | BP97: 3600 | BQ97: 3600 | BR97: 3600 | BS97: 3600 | BT97: 3600 | BU97: 3600 | BV97: 3600 | BW97: 3600 | BX97: 3600 | BY97: 3600 | BZ97: 3600 | CA97: 3600 | CB97: 3600 | CC97: 3600 | CD97: 3600 | CE97: 3600 | CF97: 3600 | CG97: 3600 | CH97: 3600 | CI97: 3600 | CJ97: 3600 | CK97: 3600 | CL97: 3600 | CM97: 3600 | CN97: 3600 | CO97: 3600 | CP97: 3600 | CQ97: 3600 | CR97: 3600 | CS97: 3600 | CT97: 3600 | CU97: 3600 | CV97: 3600 | CW97: 3600 | CX97: 3600 | CY97: 3600 | CZ97: 3600 | DA97: 3600 | DB97: 3600 | DC97: 3600 | DD97: 3600 | DE97: 3600 | DF97: 3600 | DG97: 3600 | DH97: 3600 | DI97: 3600 | DJ97: 3600 | DK97: 3600 | DL97: 3600 | DM97: 3600 | DN97: 3600 | DO97: 3600 | DP97: 3600 | DQ97: 3600 | DR97: 3600 | DS97: 3600 | DT97: 3600 | DU97: 3600 | DV97: 3600 | DW97: 3600 | DX97: 3600 | DY97: 3600 | DZ97: 3600 | EA97: 3600 | EB97: 3600 | EC97: 3600 | ED97: 3600 | EE97: 3600 | EF97: 3600 | EG97: 3600 | EH97: 3600 | EI97: 3600 | EJ97: 3600 | EK97: 3600 | EL97: 3600 | EM97: 3600 | EN97: 3600 | EO97: 3600 | EP97: 3600 | EQ97: 3600 | ER97: 3600 | ES97: 3600 | ET97: 3600 | EU97: 3600 | EV97: 3600 | EW97: 3600 | EX97: 3600 | EY97: 3600 | EZ97: 3600 | FA97: 3600 | FB97: 3600 | FC97: 3600 | FD97: 3600 | FE97: 3600 | FF97: 3600 | FG97: 3600 | FH97: 3600 | FI97: 3600 | FJ97: 3600 | FK97: 3600 | FL97: 3600 | FM97: 3600 | FN97: 3600 | FO97: 3600 | FP97: 3600 | FQ97: 3600 | FR97: 3600 | FS97: 3600 | FT97: 3600 | FU97: 3600 | FV97: 3600 | FW97: 3600 | FX97: 3600 | FY97: 3600 | FZ97: 3600 | GA97: 3600 | GB97: 3600 | GC97: 3600 | GD97: 3600 | GE97: 3600 | GF97: 3600 | GG97: 3600 | GH97: 3600 | GI97: 3600 | GJ97: 3600 | GK97: 3600 | GL97: 3600 | GM97: 3600
A98: 1 | B98: 10 | C98: 1 | D98: 99999 | E98: 99999 | F98: 99999 | G98: 99999 | H98: 99999 | I98: 99999 | J98: 99999 | K98: 99999 | L98: 99999 | M98: 99999 | N98: 99999 | O98: 99999 | P98: 99999 | Q98: 99999 | R98: 99999 | S98: 99999 | T98: 99999 | U98: 99999 | V98: 99999 | W98: 99999 | X98: 99999 | Y98: 99999 | Z98: 99999 | AA98: 99999 | AB98: 99999 | AC98: 99999 | AD98: 99999 | AE98: 99999 | AF98: 99999 | AG98: 99999 | AH98: 99999 | AI98: 99999 | AJ98: 99999 | AK98: 99999 | AL98: 99999 | AM98: 99999 | AN98: 99999 | AO98: 99999 | AP98: 99999 | AQ98: 99999 | AR98: 99999 | AS98: 99999 | AT98: 99999 | AU98: 99999 | AV98: 99999 | AW98: 99999 | AX98: 99999 | AY98: 99999 | AZ98: 99999 | BA98: 99999 | BB98: 99999 | BC98: 99999 | BD98: 99999 | BE98: 99999 | BF98: 99999 | BG98: 99999 | BH98: 99999 | BI98: 99999 | BJ98: 99999 | BK98: 99999 | BL98: 99999 | BM98: 99999 | BN98: 99999 | BO98: 99999 | BP98: 99999 | BQ98: 99999 | BR98: 99999 | BS98: 99999 | BT98: 99999 | BU98: 99999 | BV98: 99999 | BW98: 99999 | BX98: 99999 | BY98: 99999 | BZ98: 99999 | CA98: 99999 | CB98: 99999 | CC98: 99999 | CD98: 99999 | CE98: 99999 | CF98: 99999 | CG98: 99999 | CH98: 99999 | CI98: 99999 | CJ98: 99999 | CK98: 99999 | CL98: 99999 | CM98: 99999 | CN98: 99999 | CO98: 99999 | CP98: 99999 | CQ98: 99999 | CR98: 99999 | CS98: 99999 | CT98: 99999 | CU98: 99999 | CV98: 99999 | CW98: 99999 | CX98: 99999 | CY98: 99999 | CZ98: 99999 | DA98: 99999 | DB98: 99999 | DC98: 99999 | DD98: 99999 | DE98: 99999 | DF98: 99999 | DG98: 99999 | DH98: 99999 | DI98: 99999 | DJ98: 99999 | DK98: 99999 | DL98: 99999 | DM98: 99999 | DN98: 99999 | DO98: 99999 | DP98: 99999 | DQ98: 99999 | DR98: 99999 | DS98: 99999 | DT98: 99999 | DU98: 99999 | DV98: 99999 | DW98: 99999 | DX98: 99999 | DY98: 99999 | DZ98: 99999 | EA98: 99999 | EB98: 99999 | EC98: 99999 | ED98: 99999 | EE98: 99999 | EF98: 99999 | EG98: 99999 | EH98: 99999 | EI98: 99999 | EJ98: 99999 | EK98: 99999 | EL98: 99999 | EM98: 99999 | EN98: 99999 | EO98: 99999 | EP98: 99999 | EQ98: 99999 | ER98: 99999 | ES98: 99999 | ET98: 99999 | EU98: 99999 | EV98: 99999 | EW98: 99999 | EX98: 99999 | EY98: 99999 | EZ98: 99999 | FA98: 99999 | FB98: 99999 | FC98: 99999 | FD98: 99999 | FE98: 99999 | FF98: 99999 | FG98: 99999 | FH98: 99999 | FI98: 99999 | FJ98: 99999 | FK98: 99999 | FL98: 99999 | FM98: 99999 | FN98: 99999 | FO98: 99999 | FP98: 99999 | FQ98: 99999 | FR98: 99999 | FS98: 99999 | FT98: 99999 | FU98: 99999 | FV98: 99999 | FW98: 99999 | FX98: 99999 | FY98: 99999 | FZ98: 99999 | GA98: 99999 | GB98: 99999 | GC98: 99999 | GD98: 99999 | GE98: 99999 | GF98: 99999 | GG98: 99999 | GH98: 99999 | GI98: 99999 | GJ98: 99999 | GK98: 99999 | GL98: 99999 | GM98: 99999
A99: 2 | B99: 10 | C99: 1 | D99: 99999 | E99: 99999 | F99: 99999 | G99: 99999 | H99: 99999 | I99: 99999 | J99: 99999 | K99: 99999 | L99: 99999 | M99: 99999 | N99: 99999 | O99: 99999 | P99: 99999 | Q99: 99999 | R99: 99999 | S99: 99999 | T99: 99999 | U99: 99999 | V99: 99999 | W99: 99999 | X99: 99999 | Y99: 99999 | Z99: 99999 | AA99: 99999 | AB99: 99999 | AC99: 99999 | AD99: 99999 | AE99: 99999 | AF99: 99999 | AG99: 99999 | AH99: 99999 | AI99: 99999 | AJ99: 99999 | AK99: 99999 | AL99: 99999 | AM99: 99999 | AN99: 99999 | AO99: 99999 | AP99: 99999 | AQ99: 99999 | AR99: 99999 | AS99: 99999 | AT99: 99999 | AU99: 99999 | AV99: 99999 | AW99: 99999 | AX99: 99999 | AY99: 99999 | AZ99: 99999 | BA99: 99999 | BB99: 99999 | BC99: 99999 | BD99: 99999 | BE99: 99999 | BF99: 99999 | BG99: 99999 | BH99: 99999 | BI99: 99999 | BJ99: 99999 | BK99: 99999 | BL99: 99999 | BM99: 99999 | BN99: 99999 | BO99: 99999 | BP99: 99999 | BQ99: 99999 | BR99: 99999 | BS99: 99999 | BT99: 99999 | BU99: 99999 | BV99: 99999 | BW99: 99999 | BX99: 99999 | BY99: 99999 | BZ99: 99999 | CA99: 99999 | CB99: 99999 | CC99: 99999 | CD99: 99999 | CE99: 99999 | CF99: 99999 | CG99: 99999 | CH99: 99999 | CI99: 99999 | CJ99: 99999 | CK99: 99999 | CL99: 99999 | CM99: 99999 | CN99: 99999 | CO99: 99999 | CP99: 99999 | CQ99: 99999 | CR99: 99999 | CS99: 99999 | CT99: 99999 | CU99: 99999 | CV99: 99999 | CW99: 99999 | CX99: 99999 | CY99: 99999 | CZ99: 99999 | DA99: 99999 | DB99: 99999 | DC99: 99999 | DD99: 99999 | DE99: 99999 | DF99: 99999 | DG99: 99999 | DH99: 99999 | DI99: 99999 | DJ99: 99999 | DK99: 99999 | DL99: 99999 | DM99: 99999 | DN99: 99999 | DO99: 99999 | DP99: 99999 | DQ99: 99999 | DR99: 99999 | DS99: 99999 | DT99: 99999 | DU99: 99999 | DV99: 99999 | DW99: 99999 | DX99: 99999 | DY99: 99999 | DZ99: 99999 | EA99: 99999 | EB99: 99999 | EC99: 99999 | ED99: 99999 | EE99: 99999 | EF99: 99999 | EG99: 99999 | EH99: 99999 | EI99: 99999 | EJ99: 99999 | EK99: 99999 | EL99: 99999 | EM99: 99999 | EN99: 99999 | EO99: 99999 | EP99: 99999 | EQ99: 99999 | ER99: 99999 | ES99: 99999 | ET99: 99999 | EU99: 99999 | EV99: 99999 | EW99: 99999 | EX99: 99999 | EY99: 99999 | EZ99: 99999 | FA99: 99999 | FB99: 99999 | FC99: 99999 | FD99: 99999 | FE99: 99999 | FF99: 99999 | FG99: 99999 | FH99: 99999 | FI99: 99999 | FJ99: 99999 | FK99: 99999 | FL99: 99999 | FM99: 99999 | FN99: 99999 | FO99: 99999 | FP99: 99999 | FQ99: 99999 | FR99: 99999 | FS99: 99999 | FT99: 99999 | FU99: 99999 | FV99: 99999 | FW99: 99999 | FX99: 99999 | FY99: 99999 | FZ99: 99999 | GA99: 99999 | GB99: 99999 | GC99: 99999 | GD99: 99999 | GE99: 99999 | GF99: 99999 | GG99: 99999 | GH99: 99999 | GI99: 99999 | GJ99: 99999 | GK99: 99999 | GL99: 99999 | GM99: 99999
A100: 3 | B100: 10 | C100: 1 | D100: 99999 | E100: 99999 | F100: 99999 | G100: 99999 | H100: 99999 | I100: 99999 | J100: 99999 | K100: 99999 | L100: 99999 | M100: 99999 | N100: 99999 | O100: 99999 | P100: 99999 | Q100: 99999 | R100: 99999 | S100: 99999 | T100: 99999 | U100: 99999 | V100: 99999 | W100: 99999 | X100: 99999 | Y100: 99999 | Z100: 99999 | AA100: 99999 | AB100: 99999 | AC100: 99999 | AD100: 99999 | AE100: 99999 | AF100: 99999 | AG100: 99999 | AH100: 99999 | AI100: 99999 | AJ100: 99999 | AK100: 99999 | AL100: 99999 | AM100: 99999 | AN100: 99999 | AO100: 99999 | AP100: 99999 | AQ100: 99999 | AR100: 99999 | AS100: 99999 | AT100: 99999 | AU100: 99999 | AV100: 99999 | AW100: 99999 | AX100: 99999 | AY100: 99999 | AZ100: 99999 | BA100: 99999 | BB100: 99999 | BC100: 99999 | BD100: 99999 | BE100: 99999 | BF100: 99999 | BG100: 99999 | BH100: 99999 | BI100: 99999 | BJ100: 99999 | BK100: 99999 | BL100: 99999 | BM100: 99999 | BN100: 99999 | BO100: 99999 | BP100: 99999 | BQ100: 99999 | BR100: 99999 | BS100: 99999 | BT100: 99999 | BU100: 99999 | BV100: 99999 | BW100: 99999 | BX100: 99999 | BY100: 99999 | BZ100: 99999 | CA100: 99999 | CB100: 99999 | CC100: 99999 | CD100: 99999 | CE100: 99999 | CF100: 99999 | CG100: 99999 | CH100: 99999 | CI100: 99999 | CJ100: 99999 | CK100: 99999 | CL100: 99999 | CM100: 99999 | CN100: 99999 | CO100: 99999 | CP100: 99999 | CQ100: 99999 | CR100: 99999 | CS100: 99999 | CT100: 99999 | CU100: 99999 | CV100: 99999 | CW100: 99999 | CX100: 99999 | CY100: 99999 | CZ100: 99999 | DA100: 99999 | DB100: 99999 | DC100: 99999 | DD100: 99999 | DE100: 99999 | DF100: 99999 | DG100: 99999 | DH100: 99999 | DI100: 99999 | DJ100: 99999 | DK100: 99999 | DL100: 99999 | DM100: 99999 | DN100: 99999 | DO100: 99999 | DP100: 99999 | DQ100: 99999 | DR100: 99999 | DS100: 99999 | DT100: 99999 | DU100: 99999 | DV100: 99999 | DW100: 99999 | DX100: 99999 | DY100: 99999 | DZ100: 99999 | EA100: 99999 | EB100: 99999 | EC100: 99999 | ED100: 99999 | EE100: 99999 | EF100: 99999 | EG100: 99999 | EH100: 99999 | EI100: 99999 | EJ100: 99999 | EK100: 99999 | EL100: 99999 | EM100: 99999 | EN100: 99999 | EO100: 99999 | EP100: 99999 | EQ100: 99999 | ER100: 99999 | ES100: 99999 | ET100: 99999 | EU100: 99999 | EV100: 99999 | EW100: 99999 | EX100: 99999 | EY100: 99999 | EZ100: 99999 | FA100: 99999 | FB100: 99999 | FC100: 99999 | FD100: 99999 | FE100: 99999 | FF100: 99999 | FG100: 99999 | FH100: 99999 | FI100: 99999 | FJ100: 99999 | FK100: 99999 | FL100: 99999 | FM100: 99999 | FN100: 99999 | FO100: 99999 | FP100: 99999 | FQ100: 99999 | FR100: 99999 | FS100: 99999 | FT100: 99999 | FU100: 99999 | FV100: 99999 | FW100: 99999 | FX100: 99999 | FY100: 99999 | FZ100: 99999 | GA100: 99999 | GB100: 99999 | GC100: 99999 | GD100: 99999 | GE100: 99999 | GF100: 99999 | GG100: 99999 | GH100: 99999 | GI100: 99999 | GJ100: 99999 | GK100: 99999 | GL100: 99999 | GM100: 99999
A101: 4 | B101: 10 | C101: 1 | D101: 99999 | E101: 99999 | F101: 99999 | G101: 99999 | H101: 99999 | I101: 99999 | J101: 99999 | K101: 99999 | L101: 99999 | M101: 99999 | N101: 99999 | O101: 99999 | P101: 99999 | Q101: 99999 | R101: 99999 | S101: 99999 | T101: 99999 | U101: 99999 | V101: 99999 | W101: 99999 | X101: 99999 | Y101: 99999 | Z101: 99999 | AA101: 99999 | AB101: 99999 | AC101: 99999 | AD101: 99999 | AE101: 99999 | AF101: 99999 | AG101: 99999 | AH101: 99999 | AI101: 99999 | AJ101: 99999 | AK101: 99999 | AL101: 99999 | AM101: 99999 | AN101: 99999 | AO101: 99999 | AP101: 99999 | AQ101: 99999 | AR101: 99999 | AS101: 99999 | AT101: 99999 | AU101: 99999 | AV101: 99999 | AW101: 99999 | AX101: 99999 | AY101: 99999 | AZ101: 99999 | BA101: 99999 | BB101: 99999 | BC101: 99999 | BD101: 99999 | BE101: 99999 | BF101: 99999 | BG101: 99999 | BH101: 99999 | BI101: 99999 | BJ101: 99999 | BK101: 99999 | BL101: 99999 | BM101: 99999 | BN101: 99999 | BO101: 99999 | BP101: 99999 | BQ101: 99999 | BR101: 99999 | BS101: 99999 | BT101: 99999 | BU101: 99999 | BV101: 99999 | BW101: 99999 | BX101: 99999 | BY101: 99999 | BZ101: 99999 | CA101: 99999 | CB101: 99999 | CC101: 99999 | CD101: 99999 | CE101: 99999 | CF101: 99999 | CG101: 99999 | CH101: 99999 | CI101: 99999 | CJ101: 99999 | CK101: 99999 | CL101: 99999 | CM101: 99999 | CN101: 99999 | CO101: 99999 | CP101: 99999 | CQ101: 99999 | CR101: 99999 | CS101: 99999 | CT101: 99999 | CU101: 99999 | CV101: 99999 | CW101: 99999 | CX101: 99999 | CY101: 99999 | CZ101: 99999 | DA101: 99999 | DB101: 99999 | DC101: 99999 | DD101: 99999 | DE101: 99999 | DF101: 99999 | DG101: 99999 | DH101: 99999 | DI101: 99999 | DJ101: 99999 | DK101: 99999 | DL101: 99999 | DM101: 99999 | DN101: 99999 | DO101: 99999 | DP101: 99999 | DQ101: 99999 | DR101: 99999 | DS101: 99999 | DT101: 99999 | DU101: 99999 | DV101: 99999 | DW101: 99999 | DX101: 99999 | DY101: 99999 | DZ101: 99999 | EA101: 99999 | EB101: 99999 | EC101: 99999 | ED101: 99999 | EE101: 99999 | EF101: 99999 | EG101: 99999 | EH101: 99999 | EI101: 99999 | EJ101: 99999 | EK101: 99999 | EL101: 99999 | EM101: 99999 | EN101: 99999 | EO101: 99999 | EP101: 99999 | EQ101: 99999 | ER101: 99999 | ES101: 99999 | ET101: 99999 | EU101: 99999 | EV101: 99999 | EW101: 99999 | EX101: 99999 | EY101: 99999 | EZ101: 99999 | FA101: 99999 | FB101: 99999 | FC101: 99999 | FD101: 99999 | FE101: 99999 | FF101: 99999 | FG101: 99999 | FH101: 99999 | FI101: 99999 | FJ101: 99999 | FK101: 99999 | FL101: 99999 | FM101: 99999 | FN101: 99999 | FO101: 99999 | FP101: 99999 | FQ101: 99999 | FR101: 99999 | FS101: 99999 | FT101: 99999 | FU101: 99999 | FV101: 99999 | FW101: 99999 | FX101: 99999 | FY101: 99999 | FZ101: 99999 | GA101: 99999 | GB101: 99999 | GC101: 99999 | GD101: 99999 | GE101: 99999 | GF101: 99999 | GG101: 99999 | GH101: 99999 | GI101: 99999 | GJ101: 99999 | GK101: 99999 | GL101: 99999 | GM101: 99999
A102: 1 | B102: 11 | C102: 1 | D102: 0 | E102: 0 | F102: 0 | G102: 0 | H102: 0 | I102: 0 | J102: 0 | K102: 0 | L102: 0 | M102: 0 | N102: 0 | O102: 0 | P102: 0 | Q102: 0 | R102: 0 | S102: 0 | T102: 0 | U102: 0 | V102: 0 | W102: 0 | X102: 0 | Y102: 0 | Z102: 0 | AA102: 0 | AB102: 0 | AC102: 0 | AD102: 0 | AE102: 0 | AF102: 0 | AG102: 0 | AH102: 0 | AI102: 0 | AJ102: 0 | AK102: 0 | AL102: 0 | AM102: 0 | AN102: 0 | AO102: 0 | AP102: 0 | AQ102: 0 | AR102: 0 | AS102: 0 | AT102: 0 | AU102: 0 | AV102: 0 | AW102: 0 | AX102: 0 | AY102: 0 | AZ102: 0 | BA102: 0 | BB102: 0 | BC102: 0 | BD102: 0 | BE102: 0 | BF102: 0 | BG102: 0 | BH102: 0 | BI102: 0 | BJ102: 0 | BK102: 0 | BL102: 0 | BM102: 0 | BN102: 0 | BO102: 0 | BP102: 0 | BQ102: 0 | BR102: 0 | BS102: 0 | BT102: 0 | BU102: 0 | BV102: 0 | BW102: 0 | BX102: 0 | BY102: 0 | BZ102: 0 | CA102: 0 | CB102: 0 | CC102: 0 | CD102: 0 | CE102: 0 | CF102: 0 | CG102: 0 | CH102: 0 | CI102: 0 | CJ102: 0 | CK102: 0 | CL102: 0 | CM102: 0 | CN102: 0 | CO102: 0 | CP102: 0 | CQ102: 0 | CR102: 0 | CS102: 0 | CT102: 0 | CU102: 0 | CV102: 0 | CW102: 0 | CX102: 0 | CY102: 0 | CZ102: 0 | DA102: 0 | DB102: 0 | DC102: 0 | DD102: 0 | DE102: 0 | DF102: 0 | DG102: 0 | DH102: 0 | DI102: 0 | DJ102: 0 | DK102: 0 | DL102: 0 | DM102: 0 | DN102: 0 | DO102: 0 | DP102: 0 | DQ102: 0 | DR102: 0 | DS102: 0 | DT102: 0 | DU102: 0 | DV102: 0 | DW102: 0 | DX102: 0 | DY102: 0 | DZ102: 0 | EA102: 0 | EB102: 0 | EC102: 0 | ED102: 0 | EE102: 0 | EF102: 0 | EG102: 0 | EH102: 0 | EI102: 0 | EJ102: 0 | EK102: 0 | EL102: 0 | EM102: 0 | EN102: 0 | EO102: 0 | EP102: 0 | EQ102: 0 | ER102: 0 | ES102: 0 | ET102: 0 | EU102: 0 | EV102: 0 | EW102: 0 | EX102: 0 | EY102: 0 | EZ102: 0 | FA102: 0 | FB102: 0 | FC102: 0 | FD102: 0 | FE102: 0 | FF102: 0 | FG102: 0 | FH102: 0 | FI102: 0 | FJ102: 0 | FK102: 0 | FL102: 0 | FM102: 0 | FN102: 0 | FO102: 0 | FP102: 0 | FQ102: 0 | FR102: 0 | FS102: 0 | FT102: 0 | FU102: 0 | FV102: 0 | FW102: 0 | FX102: 0 | FY102: 0 | FZ102: 0 | GA102: 0 | GB102: 0 | GC102: 0 | GD102: 0 | GE102: 0 | GF102: 0 | GG102: 0 | GH102: 0 | GI102: 0 | GJ102: 0 | GK102: 0 | GL102: 0 | GM102: 0
A103: 2 | B103: 11 | C103: 1 | D103: 0 | E103: 0 | F103: 0 | G103: 0 | H103: 0 | I103: 0 | J103: 0 | K103: 0 | L103: 0 | M103: 0 | N103: 0 | O103: 0 | P103: 0 | Q103: 0 | R103: 0 | S103: 0 | T103: 0 | U103: 0 | V103: 0 | W103: 0 | X103: 0 | Y103: 0 | Z103: 0 | AA103: 0 | AB103: 0 | AC103: 0 | AD103: 0 | AE103: 0 | AF103: 0 | AG103: 0 | AH103: 0 | AI103: 0 | AJ103: 0 | AK103: 0 | AL103: 0 | AM103: 0 | AN103: 0 | AO103: 0 | AP103: 0 | AQ103: 0 | AR103: 0 | AS103: 0 | AT103: 0 | AU103: 0 | AV103: 0 | AW103: 0 | AX103: 0 | AY103: 0 | AZ103: 0 | BA103: 0 | BB103: 0 | BC103: 0 | BD103: 0 | BE103: 0 | BF103: 0 | BG103: 0 | BH103: 0 | BI103: 0 | BJ103: 0 | BK103: 0 | BL103: 0 | BM103: 0 | BN103: 0 | BO103: 0 | BP103: 0 | BQ103: 0 | BR103: 0 | BS103: 0 | BT103: 0 | BU103: 0 | BV103: 0 | BW103: 0 | BX103: 0 | BY103: 0 | BZ103: 0 | CA103: 0 | CB103: 0 | CC103: 0 | CD103: 0 | CE103: 0 | CF103: 0 | CG103: 0 | CH103: 0 | CI103: 0 | CJ103: 0 | CK103: 0 | CL103: 0 | CM103: 0 | CN103: 0 | CO103: 0 | CP103: 0 | CQ103: 0 | CR103: 0 | CS103: 0 | CT103: 0 | CU103: 0 | CV103: 0 | CW103: 0 | CX103: 0 | CY103: 0 | CZ103: 0 | DA103: 0 | DB103: 0 | DC103: 0 | DD103: 0 | DE103: 0 | DF103: 0 | DG103: 0 | DH103: 0 | DI103: 0 | DJ103: 0 | DK103: 0 | DL103: 0 | DM103: 0 | DN103: 0 | DO103: 0 | DP103: 0 | DQ103: 0 | DR103: 0 | DS103: 0 | DT103: 0 | DU103: 0 | DV103: 0 | DW103: 0 | DX103: 0 | DY103: 0 | DZ103: 0 | EA103: 0 | EB103: 0 | EC103: 0 | ED103: 0 | EE103: 0 | EF103: 0 | EG103: 0 | EH103: 0 | EI103: 0 | EJ103: 0 | EK103: 0 | EL103: 0 | EM103: 0 | EN103: 0 | EO103: 0 | EP103: 0 | EQ103: 0 | ER103: 0 | ES103: 0 | ET103: 0 | EU103: 0 | EV103: 0 | EW103: 0 | EX103: 0 | EY103: 0 | EZ103: 0 | FA103: 0 | FB103: 0 | FC103: 0 | FD103: 0 | FE103: 0 | FF103: 0 | FG103: 0 | FH103: 0 | FI103: 0 | FJ103: 0 | FK103: 0 | FL103: 0 | FM103: 0 | FN103: 0 | FO103: 0 | FP103: 0 | FQ103: 0 | FR103: 0 | FS103: 0 | FT103: 0 | FU103: 0 | FV103: 0 | FW103: 0 | FX103: 0 | FY103: 0 | FZ103: 0 | GA103: 0 | GB103: 0 | GC103: 0 | GD103: 0 | GE103: 0 | GF103: 0 | GG103: 0 | GH103: 0 | GI103: 0 | GJ103: 0 | GK103: 0 | GL103: 0 | GM103: 0
A104: 3 | B104: 11 | C104: 1 | D104: 0 | E104: 0 | F104: 0 | G104: 0 | H104: 0 | I104: 0 | J104: 0 | K104: 0 | L104: 0 | M104: 0 | N104: 0 | O104: 0 | P104: 0 | Q104: 0 | R104: 0 | S104: 0 | T104: 0 | U104: 0 | V104: 0 | W104: 0 | X104: 0 | Y104: 0 | Z104: 0 | AA104: 0 | AB104: 0 | AC104: 0 | AD104: 0 | AE104: 0 | AF104: 0 | AG104: 0 | AH104: 0 | AI104: 0 | AJ104: 0 | AK104: 0 | AL104: 0 | AM104: 0 | AN104: 0 | AO104: 0 | AP104: 0 | AQ104: 0 | AR104: 0 | AS104: 0 | AT104: 0 | AU104: 0 | AV104: 0 | AW104: 0 | AX104: 0 | AY104: 0 | AZ104: 0 | BA104: 0 | BB104: 0 | BC104: 0 | BD104: 0 | BE104: 0 | BF104: 0 | BG104: 0 | BH104: 0 | BI104: 0 | BJ104: 0 | BK104: 0 | BL104: 0 | BM104: 0 | BN104: 0 | BO104: 0 | BP104: 0 | BQ104: 0 | BR104: 0 | BS104: 0 | BT104: 0 | BU104: 0 | BV104: 0 | BW104: 0 | BX104: 0 | BY104: 0 | BZ104: 0 | CA104: 0 | CB104: 0 | CC104: 0 | CD104: 0 | CE104: 0 | CF104: 0 | CG104: 0 | CH104: 0 | CI104: 0 | CJ104: 0 | CK104: 0 | CL104: 0 | CM104: 0 | CN104: 0 | CO104: 0 | CP104: 0 | CQ104: 0 | CR104: 0 | CS104: 0 | CT104: 0 | CU104: 0 | CV104: 0 | CW104: 0 | CX104: 0 | CY104: 0 | CZ104: 0 | DA104: 0 | DB104: 0 | DC104: 0 | DD104: 0 | DE104: 0 | DF104: 0 | DG104: 0 | DH104: 0 | DI104: 0 | DJ104: 0 | DK104: 0 | DL104: 0 | DM104: 0 | DN104: 0 | DO104: 0 | DP104: 0 | DQ104: 0 | DR104: 0 | DS104: 0 | DT104: 0 | DU104: 0 | DV104: 0 | DW104: 0 | DX104: 0 | DY104: 0 | DZ104: 0 | EA104: 0 | EB104: 0 | EC104: 0 | ED104: 0 | EE104: 0 | EF104: 0 | EG104: 0 | EH104: 0 | EI104: 0 | EJ104: 0 | EK104: 0 | EL104: 0 | EM104: 0 | EN104: 0 | EO104: 0 | EP104: 0 | EQ104: 0 | ER104: 0 | ES104: 0 | ET104: 0 | EU104: 0 | EV104: 0 | EW104: 0 | EX104: 0 | EY104: 0 | EZ104: 0 | FA104: 0 | FB104: 0 | FC104: 0 | FD104: 0 | FE104: 0 | FF104: 0 | FG104: 0 | FH104: 0 | FI104: 0 | FJ104: 0 | FK104: 0 | FL104: 0 | FM104: 0 | FN104: 0 | FO104: 0 | FP104: 0 | FQ104: 0 | FR104: 0 | FS104: 0 | FT104: 0 | FU104: 0 | FV104: 0 | FW104: 0 | FX104: 0 | FY104: 0 | FZ104: 0 | GA104: 0 | GB104: 0 | GC104: 0 | GD104: 0 | GE104: 0 | GF104: 0 | GG104: 0 | GH104: 0 | GI104: 0 | GJ104: 0 | GK104: 0 | GL104: 0 | GM104: 0
A105: 4 | B105: 11 | C105: 1 | D105: 0 | E105: 0 | F105: 0 | G105: 0 | H105: 0 | I105: 0 | J105: 0 | K105: 0 | L105: 0 | M105: 0 | N105: 0 | O105: 0 | P105: 0 | Q105: 0 | R105: 0 | S105: 0 | T105: 0 | U105: 0 | V105: 0 | W105: 0 | X105: 0 | Y105: 0 | Z105: 0 | AA105: 0 | AB105: 0 | AC105: 0 | AD105: 0 | AE105: 0 | AF105: 0 | AG105: 0 | AH105: 0 | AI105: 0 | AJ105: 0 | AK105: 0 | AL105: 0 | AM105: 0 | AN105: 0 | AO105: 0 | AP105: 0 | AQ105: 0 | AR105: 0 | AS105: 0 | AT105: 0 | AU105: 0 | AV105: 0 | AW105: 0 | AX105: 0 | AY105: 0 | AZ105: 0 | BA105: 0 | BB105: 0 | BC105: 0 | BD105: 0 | BE105: 0 | BF105: 0 | BG105: 0 | BH105: 0 | BI105: 0 | BJ105: 0 | BK105: 0 | BL105: 0 | BM105: 0 | BN105: 0 | BO105: 0 | BP105: 0 | BQ105: 0 | BR105: 0 | BS105: 0 | BT105: 0 | BU105: 0 | BV105: 0 | BW105: 0 | BX105: 0 | BY105: 0 | BZ105: 0 | CA105: 0 | CB105: 0 | CC105: 0 | CD105: 0 | CE105: 0 | CF105: 0 | CG105: 0 | CH105: 0 | CI105: 0 | CJ105: 0 | CK105: 0 | CL105: 0 | CM105: 0 | CN105: 0 | CO105: 0 | CP105: 0 | CQ105: 0 | CR105: 0 | CS105: 0 | CT105: 0 | CU105: 0 | CV105: 0 | CW105: 0 | CX105: 0 | CY105: 0 | CZ105: 0 | DA105: 0 | DB105: 0 | DC105: 0 | DD105: 0 | DE105: 0 | DF105: 0 | DG105: 0 | DH105: 0 | DI105: 0 | DJ105: 0 | DK105: 0 | DL105: 0 | DM105: 0 | DN105: 0 | DO105: 0 | DP105: 0 | DQ105: 0 | DR105: 0 | DS105: 0 | DT105: 0 | DU105: 0 | DV105: 0 | DW105: 0 | DX105: 0 | DY105: 0 | DZ105: 0 | EA105: 0 | EB105: 0 | EC105: 0 | ED105: 0 | EE105: 0 | EF105: 0 | EG105: 0 | EH105: 0 | EI105: 0 | EJ105: 0 | EK105: 0 | EL105: 0 | EM105: 0 | EN105: 0 | EO105: 0 | EP105: 0 | EQ105: 0 | ER105: 0 | ES105: 0 | ET105: 0 | EU105: 0 | EV105: 0 | EW105: 0 | EX105: 0 | EY105: 0 | EZ105: 0 | FA105: 0 | FB105: 0 | FC105: 0 | FD105: 0 | FE105: 0 | FF105: 0 | FG105: 0 | FH105: 0 | FI105: 0 | FJ105: 0 | FK105: 0 | FL105: 0 | FM105: 0 | FN105: 0 | FO105: 0 | FP105: 0 | FQ105: 0 | FR105: 0 | FS105: 0 | FT105: 0 | FU105: 0 | FV105: 0 | FW105: 0 | FX105: 0 | FY105: 0 | FZ105: 0 | GA105: 0 | GB105: 0 | GC105: 0 | GD105: 0 | GE105: 0 | GF105: 0 | GG105: 0 | GH105: 0 | GI105: 0 | GJ105: 0 | GK105: 0 | GL105: 0 | GM105: 0
A106: 1 | B106: 11 | C106: 14 | D106: 0 | E106: 0 | F106: 0 | G106: 0 | H106: 0 | I106: 0 | J106: 0 | K106: 0 | L106: 0 | M106: 0 | N106: 0 | O106: 0 | P106: 0 | Q106: 0 | R106: 0 | S106: 0 | T106: 0 | U106: 0 | V106: 0 | W106: 0 | X106: 0 | Y106: 0 | Z106: 0 | AA106: 0 | AB106: 0 | AC106: 0 | AD106: 0 | AE106: 0 | AF106: 0 | AG106: 0 | AH106: 0 | AI106: 0 | AJ106: 0 | AK106: 0 | AL106: 0 | AM106: 0 | AN106: 0 | AO106: 0 | AP106: 0 | AQ106: 0 | AR106: 0 | AS106: 0 | AT106: 0 | AU106: 0 | AV106: 0 | AW106: 0 | AX106: 0 | AY106: 0 | AZ106: 0 | BA106: 0 | BB106: 0 | BC106: 0 | BD106: 0 | BE106: 0 | BF106: 0 | BG106: 0 | BH106: 0 | BI106: 0 | BJ106: 0 | BK106: 0 | BL106: 0 | BM106: 0 | BN106: 0 | BO106: 0 | BP106: 0 | BQ106: 0 | BR106: 0 | BS106: 0 | BT106: 0 | BU106: 0 | BV106: 0 | BW106: 0 | BX106: 0 | BY106: 0 | BZ106: 0 | CA106: 0 | CB106: 0 | CC106: 0 | CD106: 0 | CE106: 0 | CF106: 0 | CG106: 0 | CH106: 0 | CI106: 0 | CJ106: 0 | CK106: 0 | CL106: 0 | CM106: 0 | CN106: 0 | CO106: 0 | CP106: 0 | CQ106: 0 | CR106: 0 | CS106: 0 | CT106: 0 | CU106: 0 | CV106: 0 | CW106: 0 | CX106: 0 | CY106: 0 | CZ106: 0 | DA106: 0 | DB106: 0 | DC106: 0 | DD106: 0 | DE106: 0 | DF106: 0 | DG106: 0 | DH106: 0 | DI106: 0 | DJ106: 0 | DK106: 0 | DL106: 0 | DM106: 0 | DN106: 0 | DO106: 0 | DP106: 0 | DQ106: 0 | DR106: 0 | DS106: 0 | DT106: 0 | DU106: 0 | DV106: 0 | DW106: 0 | DX106: 0 | DY106: 0 | DZ106: 0 | EA106: 0 | EB106: 0 | EC106: 0 | ED106: 0 | EE106: 0 | EF106: 0 | EG106: 0 | EH106: 0 | EI106: 0 | EJ106: 0 | EK106: 0 | EL106: 0 | EM106: 0 | EN106: 0 | EO106: 0 | EP106: 0 | EQ106: 0 | ER106: 0 | ES106: 0 | ET106: 0 | EU106: 0 | EV106: 0 | EW106: 0 | EX106: 0 | EY106: 0 | EZ106: 0 | FA106: 0 | FB106: 0 | FC106: 0 | FD106: 0 | FE106: 0 | FF106: 0 | FG106: 0 | FH106: 0 | FI106: 0 | FJ106: 0 | FK106: 0 | FL106: 0 | FM106: 0 | FN106: 0 | FO106: 0 | FP106: 0 | FQ106: 0 | FR106: 0 | FS106: 0 | FT106: 0 | FU106: 0 | FV106: 0 | FW106: 0 | FX106: 0 | FY106: 0 | FZ106: 0 | GA106: 0 | GB106: 0 | GC106: 0 | GD106: 0 | GE106: 0 | GF106: 0 | GG106: 0 | GH106: 0 | GI106: 0 | GJ106: 0 | GK106: 0 | GL106: 0 | GM106: 0
A107: 2 | B107: 11 | C107: 14 | D107: 0 | E107: 0 | F107: 0 | G107: 0 | H107: 0 | I107: 0 | J107: 0 | K107: 0 | L107: 0 | M107: 0 | N107: 0 | O107: 0 | P107: 0 | Q107: 0 | R107: 0 | S107: 0 | T107: 0 | U107: 0 | V107: 0 | W107: 0 | X107: 0 | Y107: 0 | Z107: 0 | AA107: 0 | AB107: 0 | AC107: 0 | AD107: 0 | AE107: 0 | AF107: 0 | AG107: 0 | AH107: 0 | AI107: 0 | AJ107: 0 | AK107: 0 | AL107: 0 | AM107: 0 | AN107: 0 | AO107: 0 | AP107: 0 | AQ107: 0 | AR107: 0 | AS107: 0 | AT107: 0 | AU107: 0 | AV107: 0 | AW107: 0 | AX107: 0 | AY107: 0 | AZ107: 0 | BA107: 0 | BB107: 0 | BC107: 0 | BD107: 0 | BE107: 0 | BF107: 0 | BG107: 0 | BH107: 0 | BI107: 0 | BJ107: 0 | BK107: 0 | BL107: 0 | BM107: 0 | BN107: 0 | BO107: 0 | BP107: 0 | BQ107: 0 | BR107: 0 | BS107: 0 | BT107: 0 | BU107: 0 | BV107: 0 | BW107: 0 | BX107: 0 | BY107: 0 | BZ107: 0 | CA107: 0 | CB107: 0 | CC107: 0 | CD107: 0 | CE107: 0 | CF107: 0 | CG107: 0 | CH107: 0 | CI107: 0 | CJ107: 0 | CK107: 0 | CL107: 0 | CM107: 0 | CN107: 0 | CO107: 0 | CP107: 0 | CQ107: 0 | CR107: 0 | CS107: 0 | CT107: 0 | CU107: 0 | CV107: 0 | CW107: 0 | CX107: 0 | CY107: 0 | CZ107: 0 | DA107: 0 | DB107: 0 | DC107: 0 | DD107: 0 | DE107: 0 | DF107: 0 | DG107: 0 | DH107: 0 | DI107: 0 | DJ107: 0 | DK107: 0 | DL107: 0 | DM107: 0 | DN107: 0 | DO107: 0 | DP107: 0 | DQ107: 0 | DR107: 0 | DS107: 0 | DT107: 0 | DU107: 0 | DV107: 0 | DW107: 0 | DX107: 0 | DY107: 0 | DZ107: 0 | EA107: 0 | EB107: 0 | EC107: 0 | ED107: 0 | EE107: 0 | EF107: 0 | EG107: 0 | EH107: 0 | EI107: 0 | EJ107: 0 | EK107: 0 | EL107: 0 | EM107: 0 | EN107: 0 | EO107: 0 | EP107: 0 | EQ107: 0 | ER107: 0 | ES107: 0 | ET107: 0 | EU107: 0 | EV107: 0 | EW107: 0 | EX107: 0 | EY107: 0 | EZ107: 0 | FA107: 0 | FB107: 0 | FC107: 0 | FD107: 0 | FE107: 0 | FF107: 0 | FG107: 0 | FH107: 0 | FI107: 0 | FJ107: 0 | FK107: 0 | FL107: 0 | FM107: 0 | FN107: 0 | FO107: 0 | FP107: 0 | FQ107: 0 | FR107: 0 | FS107: 0 | FT107: 0 | FU107: 0 | FV107: 0 | FW107: 0 | FX107: 0 | FY107: 0 | FZ107: 0 | GA107: 0 | GB107: 0 | GC107: 0 | GD107: 0 | GE107: 0 | GF107: 0 | GG107: 0 | GH107: 0 | GI107: 0 | GJ107: 0 | GK107: 0 | GL107: 0 | GM107: 0
A108: 3 | B108: 11 | C108: 14 | D108: 0 | E108: 0 | F108: 0 | G108: 0 | H108: 0 | I108: 0 | J108: 0 | K108: 0 | L108: 0 | M108: 0 | N108: 0 | O108: 0 | P108: 0 | Q108: 0 | R108: 0 | S108: 0 | T108: 0 | U108: 0 | V108: 0 | W108: 0 | X108: 0 | Y108: 0 | Z108: 0 | AA108: 0 | AB108: 0 | AC108: 0 | AD108: 0 | AE108: 0 | AF108: 0 | AG108: 0 | AH108: 0 | AI108: 0 | AJ108: 0 | AK108: 0 | AL108: 0 | AM108: 0 | AN108: 0 | AO108: 0 | AP108: 0 | AQ108: 0 | AR108: 0 | AS108: 0 | AT108: 0 | AU108: 0 | AV108: 0 | AW108: 0 | AX108: 0 | AY108: 0 | AZ108: 0 | BA108: 0 | BB108: 0 | BC108: 0 | BD108: 0 | BE108: 0 | BF108: 0 | BG108: 0 | BH108: 0 | BI108: 0 | BJ108: 0 | BK108: 0 | BL108: 0 | BM108: 0 | BN108: 0 | BO108: 0 | BP108: 0 | BQ108: 0 | BR108: 0 | BS108: 0 | BT108: 0 | BU108: 0 | BV108: 0 | BW108: 0 | BX108: 0 | BY108: 0 | BZ108: 0 | CA108: 0 | CB108: 0 | CC108: 0 | CD108: 0 | CE108: 0 | CF108: 0 | CG108: 0 | CH108: 0 | CI108: 0 | CJ108: 0 | CK108: 0 | CL108: 0 | CM108: 0 | CN108: 0 | CO108: 0 | CP108: 0 | CQ108: 0 | CR108: 0 | CS108: 0 | CT108: 0 | CU108: 0 | CV108: 0 | CW108: 0 | CX108: 0 | CY108: 0 | CZ108: 0 | DA108: 0 | DB108: 0 | DC108: 0 | DD108: 0 | DE108: 0 | DF108: 0 | DG108: 0 | DH108: 0 | DI108: 0 | DJ108: 0 | DK108: 0 | DL108: 0 | DM108: 0 | DN108: 0 | DO108: 0 | DP108: 0 | DQ108: 0 | DR108: 0 | DS108: 0 | DT108: 0 | DU108: 0 | DV108: 0 | DW108: 0 | DX108: 0 | DY108: 0 | DZ108: 0 | EA108: 0 | EB108: 0 | EC108: 0 | ED108: 0 | EE108: 0 | EF108: 0 | EG108: 0 | EH108: 0 | EI108: 0 | EJ108: 0 | EK108: 0 | EL108: 0 | EM108: 0 | EN108: 0 | EO108: 0 | EP108: 0 | EQ108: 0 | ER108: 0 | ES108: 0 | ET108: 0 | EU108: 0 | EV108: 0 | EW108: 0 | EX108: 0 | EY108: 0 | EZ108: 0 | FA108: 0 | FB108: 0 | FC108: 0 | FD108: 0 | FE108: 0 | FF108: 0 | FG108: 0 | FH108: 0 | FI108: 0 | FJ108: 0 | FK108: 0 | FL108: 0 | FM108: 0 | FN108: 0 | FO108: 0 | FP108: 0 | FQ108: 0 | FR108: 0 | FS108: 0 | FT108: 0 | FU108: 0 | FV108: 0 | FW108: 0 | FX108: 0 | FY108: 0 | FZ108: 0 | GA108: 0 | GB108: 0 | GC108: 0 | GD108: 0 | GE108: 0 | GF108: 0 | GG108: 0 | GH108: 0 | GI108: 0 | GJ108: 0 | GK108: 0 | GL108: 0 | GM108: 0
A109: 4 | B109: 11 | C109: 14 | D109: 0 | E109: 0 | F109: 0 | G109: 0 | H109: 0 | I109: 0 | J109: 0 | K109: 0 | L109: 0 | M109: 0 | N109: 0 | O109: 0 | P109: 0 | Q109: 0 | R109: 0 | S109: 0 | T109: 0 | U109: 0 | V109: 0 | W109: 0 | X109: 0 | Y109: 0 | Z109: 0 | AA109: 0 | AB109: 0 | AC109: 0 | AD109: 0 | AE109: 0 | AF109: 0 | AG109: 0 | AH109: 0 | AI109: 0 | AJ109: 0 | AK109: 0 | AL109: 0 | AM109: 0 | AN109: 0 | AO109: 0 | AP109: 0 | AQ109: 0 | AR109: 0 | AS109: 0 | AT109: 0 | AU109: 0 | AV109: 0 | AW109: 0 | AX109: 0 | AY109: 0 | AZ109: 0 | BA109: 0 | BB109: 0 | BC109: 0 | BD109: 0 | BE109: 0 | BF109: 0 | BG109: 0 | BH109: 0 | BI109: 0 | BJ109: 0 | BK109: 0 | BL109: 0 | BM109: 0 | BN109: 0 | BO109: 0 | BP109: 0 | BQ109: 0 | BR109: 0 | BS109: 0 | BT109: 0 | BU109: 0 | BV109: 0 | BW109: 0 | BX109: 0 | BY109: 0 | BZ109: 0 | CA109: 0 | CB109: 0 | CC109: 0 | CD109: 0 | CE109: 0 | CF109: 0 | CG109: 0 | CH109: 0 | CI109: 0 | CJ109: 0 | CK109: 0 | CL109: 0 | CM109: 0 | CN109: 0 | CO109: 0 | CP109: 0 | CQ109: 0 | CR109: 0 | CS109: 0 | CT109: 0 | CU109: 0 | CV109: 0 | CW109: 0 | CX109: 0 | CY109: 0 | CZ109: 0 | DA109: 0 | DB109: 0 | DC109: 0 | DD109: 0 | DE109: 0 | DF109: 0 | DG109: 0 | DH109: 0 | DI109: 0 | DJ109: 0 | DK109: 0 | DL109: 0 | DM109: 0 | DN109: 0 | DO109: 0 | DP109: 0 | DQ109: 0 | DR109: 0 | DS109: 0 | DT109: 0 | DU109: 0 | DV109: 0 | DW109: 0 | DX109: 0 | DY109: 0 | DZ109: 0 | EA109: 0 | EB109: 0 | EC109: 0 | ED109: 0 | EE109: 0 | EF109: 0 | EG109: 0 | EH109: 0 | EI109: 0 | EJ109: 0 | EK109: 0 | EL109: 0 | EM109: 0 | EN109: 0 | EO109: 0 | EP109: 0 | EQ109: 0 | ER109: 0 | ES109: 0 | ET109: 0 | EU109: 0 | EV109: 0 | EW109: 0 | EX109: 0 | EY109: 0 | EZ109: 0 | FA109: 0 | FB109: 0 | FC109: 0 | FD109: 0 | FE109: 0 | FF109: 0 | FG109: 0 | FH109: 0 | FI109: 0 | FJ109: 0 | FK109: 0 | FL109: 0 | FM109: 0 | FN109: 0 | FO109: 0 | FP109: 0 | FQ109: 0 | FR109: 0 | FS109: 0 | FT109: 0 | FU109: 0 | FV109: 0 | FW109: 0 | FX109: 0 | FY109: 0 | FZ109: 0 | GA109: 0 | GB109: 0 | GC109: 0 | GD109: 0 | GE109: 0 | GF109: 0 | GG109: 0 | GH109: 0 | GI109: 0 | GJ109: 0 | GK109: 0 | GL109: 0 | GM109: 0
A110: 1 | B110: 12 | C110: 1 | D110: 7300 | E110: 7300 | F110: 7300 | G110: 7300 | H110: 7300 | I110: 7300 | J110: 7300 | K110: 7300 | L110: 7300 | M110: 7300 | N110: 7300 | O110: 7300 | P110: 7300 | Q110: 7300 | R110: 7300 | S110: 7300 | T110: 7300 | U110: 7300 | V110: 7300 | W110: 7300 | X110: 7300 | Y110: 7300 | Z110: 7300 | AA110: 7300 | AB110: 7300 | AC110: 7300 | AD110: 7300 | AE110: 7300 | AF110: 7300 | AG110: 7300 | AH110: 7300 | AI110: 7300 | AJ110: 7300 | AK110: 7300 | AL110: 7300 | AM110: 7300 | AN110: 7300 | AO110: 7300 | AP110: 7300 | AQ110: 7300 | AR110: 7300 | AS110: 7300 | AT110: 7300 | AU110: 7300 | AV110: 7300 | AW110: 7300 | AX110: 7300 | AY110: 7300 | AZ110: 7300 | BA110: 7300 | BB110: 7300 | BC110: 7300 | BD110: 7300 | BE110: 7300 | BF110: 7300 | BG110: 7300 | BH110: 7300 | BI110: 7300 | BJ110: 7300 | BK110: 7300 | BL110: 7300 | BM110: 7300 | BN110: 7300 | BO110: 7300 | BP110: 7300 | BQ110: 7300 | BR110: 7300 | BS110: 7300 | BT110: 7300 | BU110: 7300 | BV110: 7300 | BW110: 7300 | BX110: 7300 | BY110: 7300 | BZ110: 7300 | CA110: 7300 | CB110: 7300 | CC110: 7300 | CD110: 7300 | CE110: 7300 | CF110: 7300 | CG110: 7300 | CH110: 7300 | CI110: 7300 | CJ110: 7300 | CK110: 7300 | CL110: 7300 | CM110: 7300 | CN110: 7300 | CO110: 7300 | CP110: 7300 | CQ110: 7300 | CR110: 7300 | CS110: 7300 | CT110: 7300 | CU110: 7300 | CV110: 7300 | CW110: 7300 | CX110: 7300 | CY110: 7300 | CZ110: 7300 | DA110: 7300 | DB110: 7300 | DC110: 7300 | DD110: 7300 | DE110: 7300 | DF110: 7300 | DG110: 7300 | DH110: 7300 | DI110: 7300 | DJ110: 7300 | DK110: 7300 | DL110: 7300 | DM110: 7300 | DN110: 7300 | DO110: 7300 | DP110: 7300 | DQ110: 7300 | DR110: 7300 | DS110: 7300 | DT110: 7300 | DU110: 7300 | DV110: 7300 | DW110: 7300 | DX110: 7300 | DY110: 7300 | DZ110: 7300 | EA110: 7300 | EB110: 7300 | EC110: 7300 | ED110: 7300 | EE110: 7300 | EF110: 7300 | EG110: 7300 | EH110: 7300 | EI110: 7300 | EJ110: 7300 | EK110: 7300 | EL110: 7300 | EM110: 7300 | EN110: 7300 | EO110: 7300 | EP110: 7300 | EQ110: 7300 | ER110: 7300 | ES110: 7300 | ET110: 7300 | EU110: 7300 | EV110: 7300 | EW110: 7300 | EX110: 7300 | EY110: 7300 | EZ110: 7300 | FA110: 7300 | FB110: 7300 | FC110: 7300 | FD110: 7300 | FE110: 7300 | FF110: 7300 | FG110: 7300 | FH110: 7300 | FI110: 7300 | FJ110: 7300 | FK110: 7300 | FL110: 7300 | FM110: 7300 | FN110: 7300 | FO110: 7300 | FP110: 7300 | FQ110: 7300 | FR110: 7300 | FS110: 7300 | FT110: 7300 | FU110: 7300 | FV110: 7300 | FW110: 7300 | FX110: 7300 | FY110: 7300 | FZ110: 7300 | GA110: 7300 | GB110: 7300 | GC110: 7300 | GD110: 7300 | GE110: 7300 | GF110: 7300 | GG110: 7300 | GH110: 7300 | GI110: 7300 | GJ110: 7300 | GK110: 7300 | GL110: 7300 | GM110: 7300
A111: 2 | B111: 12 | C111: 1 | D111: 7300 | E111: 7300 | F111: 7300 | G111: 7300 | H111: 7300 | I111: 7300 | J111: 7300 | K111: 7300 | L111: 7300 | M111: 7300 | N111: 7300 | O111: 7300 | P111: 7300 | Q111: 7300 | R111: 7300 | S111: 7300 | T111: 7300 | U111: 7300 | V111: 7300 | W111: 7300 | X111: 7300 | Y111: 7300 | Z111: 7300 | AA111: 7300 | AB111: 7300 | AC111: 7300 | AD111: 7300 | AE111: 7300 | AF111: 7300 | AG111: 7300 | AH111: 7300 | AI111: 7300 | AJ111: 7300 | AK111: 7300 | AL111: 7300 | AM111: 7300 | AN111: 7300 | AO111: 7300 | AP111: 7300 | AQ111: 7300 | AR111: 7300 | AS111: 7300 | AT111: 7300 | AU111: 7300 | AV111: 7300 | AW111: 7300 | AX111: 7300 | AY111: 7300 | AZ111: 7300 | BA111: 7300 | BB111: 7300 | BC111: 7300 | BD111: 7300 | BE111: 7300 | BF111: 7300 | BG111: 7300 | BH111: 7300 | BI111: 7300 | BJ111: 7300 | BK111: 7300 | BL111: 7300 | BM111: 7300 | BN111: 7300 | BO111: 7300 | BP111: 7300 | BQ111: 7300 | BR111: 7300 | BS111: 7300 | BT111: 7300 | BU111: 7300 | BV111: 7300 | BW111: 7300 | BX111: 7300 | BY111: 7300 | BZ111: 7300 | CA111: 7300 | CB111: 7300 | CC111: 7300 | CD111: 7300 | CE111: 7300 | CF111: 7300 | CG111: 7300 | CH111: 7300 | CI111: 7300 | CJ111: 7300 | CK111: 7300 | CL111: 7300 | CM111: 7300 | CN111: 7300 | CO111: 7300 | CP111: 7300 | CQ111: 7300 | CR111: 7300 | CS111: 7300 | CT111: 7300 | CU111: 7300 | CV111: 7300 | CW111: 7300 | CX111: 7300 | CY111: 7300 | CZ111: 7300 | DA111: 7300 | DB111: 7300 | DC111: 7300 | DD111: 7300 | DE111: 7300 | DF111: 7300 | DG111: 7300 | DH111: 7300 | DI111: 7300 | DJ111: 7300 | DK111: 7300 | DL111: 7300 | DM111: 7300 | DN111: 7300 | DO111: 7300 | DP111: 7300 | DQ111: 7300 | DR111: 7300 | DS111: 7300 | DT111: 7300 | DU111: 7300 | DV111: 7300 | DW111: 7300 | DX111: 7300 | DY111: 7300 | DZ111: 7300 | EA111: 7300 | EB111: 7300 | EC111: 7300 | ED111: 7300 | EE111: 7300 | EF111: 7300 | EG111: 7300 | EH111: 7300 | EI111: 7300 | EJ111: 7300 | EK111: 7300 | EL111: 7300 | EM111: 7300 | EN111: 7300 | EO111: 7300 | EP111: 7300 | EQ111: 7300 | ER111: 7300 | ES111: 7300 | ET111: 7300 | EU111: 7300 | EV111: 7300 | EW111: 7300 | EX111: 7300 | EY111: 7300 | EZ111: 7300 | FA111: 7300 | FB111: 7300 | FC111: 7300 | FD111: 7300 | FE111: 7300 | FF111: 7300 | FG111: 7300 | FH111: 7300 | FI111: 7300 | FJ111: 7300 | FK111: 7300 | FL111: 7300 | FM111: 7300 | FN111: 7300 | FO111: 7300 | FP111: 7300 | FQ111: 7300 | FR111: 7300 | FS111: 7300 | FT111: 7300 | FU111: 7300 | FV111: 7300 | FW111: 7300 | FX111: 7300 | FY111: 7300 | FZ111: 7300 | GA111: 7300 | GB111: 7300 | GC111: 7300 | GD111: 7300 | GE111: 7300 | GF111: 7300 | GG111: 7300 | GH111: 7300 | GI111: 7300 | GJ111: 7300 | GK111: 7300 | GL111: 7300 | GM111: 7300
A112: 3 | B112: 12 | C112: 1 | D112: 7300 | E112: 7300 | F112: 7300 | G112: 7300 | H112: 7300 | I112: 7300 | J112: 7300 | K112: 7300 | L112: 7300 | M112: 7300 | N112: 7300 | O112: 7300 | P112: 7300 | Q112: 7300 | R112: 7300 | S112: 7300 | T112: 7300 | U112: 7300 | V112: 7300 | W112: 7300 | X112: 7300 | Y112: 7300 | Z112: 7300 | AA112: 7300 | AB112: 7300 | AC112: 7300 | AD112: 7300 | AE112: 7300 | AF112: 7300 | AG112: 7300 | AH112: 7300 | AI112: 7300 | AJ112: 7300 | AK112: 7300 | AL112: 7300 | AM112: 7300 | AN112: 7300 | AO112: 7300 | AP112: 7300 | AQ112: 7300 | AR112: 7300 | AS112: 7300 | AT112: 7300 | AU112: 7300 | AV112: 7300 | AW112: 7300 | AX112: 7300 | AY112: 7300 | AZ112: 7300 | BA112: 7300 | BB112: 7300 | BC112: 7300 | BD112: 7300 | BE112: 7300 | BF112: 7300 | BG112: 7300 | BH112: 7300 | BI112: 7300 | BJ112: 7300 | BK112: 7300 | BL112: 7300 | BM112: 7300 | BN112: 7300 | BO112: 7300 | BP112: 7300 | BQ112: 7300 | BR112: 7300 | BS112: 7300 | BT112: 7300 | BU112: 7300 | BV112: 7300 | BW112: 7300 | BX112: 7300 | BY112: 7300 | BZ112: 7300 | CA112: 7300 | CB112: 7300 | CC112: 7300 | CD112: 7300 | CE112: 7300 | CF112: 7300 | CG112: 7300 | CH112: 7300 | CI112: 7300 | CJ112: 7300 | CK112: 7300 | CL112: 7300 | CM112: 7300 | CN112: 7300 | CO112: 7300 | CP112: 7300 | CQ112: 7300 | CR112: 7300 | CS112: 7300 | CT112: 7300 | CU112: 7300 | CV112: 7300 | CW112: 7300 | CX112: 7300 | CY112: 7300 | CZ112: 7300 | DA112: 7300 | DB112: 7300 | DC112: 7300 | DD112: 7300 | DE112: 7300 | DF112: 7300 | DG112: 7300 | DH112: 7300 | DI112: 7300 | DJ112: 7300 | DK112: 7300 | DL112: 7300 | DM112: 7300 | DN112: 7300 | DO112: 7300 | DP112: 7300 | DQ112: 7300 | DR112: 7300 | DS112: 7300 | DT112: 7300 | DU112: 7300 | DV112: 7300 | DW112: 7300 | DX112: 7300 | DY112: 7300 | DZ112: 7300 | EA112: 7300 | EB112: 7300 | EC112: 7300 | ED112: 7300 | EE112: 7300 | EF112: 7300 | EG112: 7300 | EH112: 7300 | EI112: 7300 | EJ112: 7300 | EK112: 7300 | EL112: 7300 | EM112: 7300 | EN112: 7300 | EO112: 7300 | EP112: 7300 | EQ112: 7300 | ER112: 7300 | ES112: 7300 | ET112: 7300 | EU112: 7300 | EV112: 7300 | EW112: 7300 | EX112: 7300 | EY112: 7300 | EZ112: 7300 | FA112: 7300 | FB112: 7300 | FC112: 7300 | FD112: 7300 | FE112: 7300 | FF112: 7300 | FG112: 7300 | FH112: 7300 | FI112: 7300 | FJ112: 7300 | FK112: 7300 | FL112: 7300 | FM112: 7300 | FN112: 7300 | FO112: 7300 | FP112: 7300 | FQ112: 7300 | FR112: 7300 | FS112: 7300 | FT112: 7300 | FU112: 7300 | FV112: 7300 | FW112: 7300 | FX112: 7300 | FY112: 7300 | FZ112: 7300 | GA112: 7300 | GB112: 7300 | GC112: 7300 | GD112: 7300 | GE112: 7300 | GF112: 7300 | GG112: 7300 | GH112: 7300 | GI112: 7300 | GJ112: 7300 | GK112: 7300 | GL112: 7300 | GM112: 7300
A113: 4 | B113: 12 | C113: 1 | D113: 7300 | E113: 7300 | F113: 7300 | G113: 7300 | H113: 7300 | I113: 7300 | J113: 7300 | K113: 7300 | L113: 7300 | M113: 7300 | N113: 7300 | O113: 7300 | P113: 7300 | Q113: 7300 | R113: 7300 | S113: 7300 | T113: 7300 | U113: 7300 | V113: 7300 | W113: 7300 | X113: 7300 | Y113: 7300 | Z113: 7300 | AA113: 7300 | AB113: 7300 | AC113: 7300 | AD113: 7300 | AE113: 7300 | AF113: 7300 | AG113: 7300 | AH113: 7300 | AI113: 7300 | AJ113: 7300 | AK113: 7300 | AL113: 7300 | AM113: 7300 | AN113: 7300 | AO113: 7300 | AP113: 7300 | AQ113: 7300 | AR113: 7300 | AS113: 7300 | AT113: 7300 | AU113: 7300 | AV113: 7300 | AW113: 7300 | AX113: 7300 | AY113: 7300 | AZ113: 7300 | BA113: 7300 | BB113: 7300 | BC113: 7300 | BD113: 7300 | BE113: 7300 | BF113: 7300 | BG113: 7300 | BH113: 7300 | BI113: 7300 | BJ113: 7300 | BK113: 7300 | BL113: 7300 | BM113: 7300 | BN113: 7300 | BO113: 7300 | BP113: 7300 | BQ113: 7300 | BR113: 7300 | BS113: 7300 | BT113: 7300 | BU113: 7300 | BV113: 7300 | BW113: 7300 | BX113: 7300 | BY113: 7300 | BZ113: 7300 | CA113: 7300 | CB113: 7300 | CC113: 7300 | CD113: 7300 | CE113: 7300 | CF113: 7300 | CG113: 7300 | CH113: 7300 | CI113: 7300 | CJ113: 7300 | CK113: 7300 | CL113: 7300 | CM113: 7300 | CN113: 7300 | CO113: 7300 | CP113: 7300 | CQ113: 7300 | CR113: 7300 | CS113: 7300 | CT113: 7300 | CU113: 7300 | CV113: 7300 | CW113: 7300 | CX113: 7300 | CY113: 7300 | CZ113: 7300 | DA113: 7300 | DB113: 7300 | DC113: 7300 | DD113: 7300 | DE113: 7300 | DF113: 7300 | DG113: 7300 | DH113: 7300 | DI113: 7300 | DJ113: 7300 | DK113: 7300 | DL113: 7300 | DM113: 7300 | DN113: 7300 | DO113: 7300 | DP113: 7300 | DQ113: 7300 | DR113: 7300 | DS113: 7300 | DT113: 7300 | DU113: 7300 | DV113: 7300 | DW113: 7300 | DX113: 7300 | DY113: 7300 | DZ113: 7300 | EA113: 7300 | EB113: 7300 | EC113: 7300 | ED113: 7300 | EE113: 7300 | EF113: 7300 | EG113: 7300 | EH113: 7300 | EI113: 7300 | EJ113: 7300 | EK113: 7300 | EL113: 7300 | EM113: 7300 | EN113: 7300 | EO113: 7300 | EP113: 7300 | EQ113: 7300 | ER113: 7300 | ES113: 7300 | ET113: 7300 | EU113: 7300 | EV113: 7300 | EW113: 7300 | EX113: 7300 | EY113: 7300 | EZ113: 7300 | FA113: 7300 | FB113: 7300 | FC113: 7300 | FD113: 7300 | FE113: 7300 | FF113: 7300 | FG113: 7300 | FH113: 7300 | FI113: 7300 | FJ113: 7300 | FK113: 7300 | FL113: 7300 | FM113: 7300 | FN113: 7300 | FO113: 7300 | FP113: 7300 | FQ113: 7300 | FR113: 7300 | FS113: 7300 | FT113: 7300 | FU113: 7300 | FV113: 7300 | FW113: 7300 | FX113: 7300 | FY113: 7300 | FZ113: 7300 | GA113: 7300 | GB113: 7300 | GC113: 7300 | GD113: 7300 | GE113: 7300 | GF113: 7300 | GG113: 7300 | GH113: 7300 | GI113: 7300 | GJ113: 7300 | GK113: 7300 | GL113: 7300 | GM113: 7300
A114: 1 | B114: 12 | C114: 2 | D114: 2800 | E114: 2800 | F114: 2800 | G114: 2800 | H114: 2800 | I114: 2800 | J114: 2800 | K114: 2800 | L114: 2800 | M114: 2800 | N114: 2800 | O114: 2800 | P114: 3500 | Q114: 3500 | R114: 3500 | S114: 3500 | T114: 3500 | U114: 3500 | V114: 3500 | W114: 3500 | X114: 3500 | Y114: 3500 | Z114: 3500 | AA114: 3500 | AB114: 3500 | AC114: 3500 | AD114: 3500 | AE114: 3500 | AF114: 3500 | AG114: 3500 | AH114: 3500 | AI114: 3500 | AJ114: 3500 | AK114: 3500 | AL114: 3500 | AM114: 3500 | AN114: 3500 | AO114: 3500 | AP114: 3500 | AQ114: 3500 | AR114: 3500 | AS114: 3500 | AT114: 3500 | AU114: 3500 | AV114: 3500 | AW114: 3500 | AX114: 3500 | AY114: 3500 | AZ114: 3500 | BA114: 3500 | BB114: 3500 | BC114: 3500 | BD114: 3500 | BE114: 3500 | BF114: 3500 | BG114: 3500 | BH114: 3500 | BI114: 3500 | BJ114: 3500 | BK114: 3500 | BL114: 3500 | BM114: 3500 | BN114: 3500 | BO114: 3500 | BP114: 3500 | BQ114: 3500 | BR114: 3500 | BS114: 3500 | BT114: 3500 | BU114: 3500 | BV114: 3500 | BW114: 3500 | BX114: 3500 | BY114: 3500 | BZ114: 3500 | CA114: 3500 | CB114: 3500 | CC114: 3500 | CD114: 3500 | CE114: 3500 | CF114: 3500 | CG114: 3500 | CH114: 3500 | CI114: 3500 | CJ114: 3500 | CK114: 3500 | CL114: 3500 | CM114: 3500 | CN114: 3500 | CO114: 3500 | CP114: 3500 | CQ114: 3500 | CR114: 3500 | CS114: 3500 | CT114: 3500 | CU114: 3500 | CV114: 3500 | CW114: 3500 | CX114: 3500 | CY114: 3500 | CZ114: 3500 | DA114: 3500 | DB114: 3500 | DC114: 3500 | DD114: 3500 | DE114: 3500 | DF114: 3500 | DG114: 3500 | DH114: 3500 | DI114: 3500 | DJ114: 3500 | DK114: 3500 | DL114: 3500 | DM114: 3500 | DN114: 3500 | DO114: 3500 | DP114: 3500 | DQ114: 3500 | DR114: 3500 | DS114: 3500 | DT114: 3500 | DU114: 3500 | DV114: 3500 | DW114: 3500 | DX114: 3500 | DY114: 3500 | DZ114: 3500 | EA114: 3500 | EB114: 3500 | EC114: 3500 | ED114: 3500 | EE114: 3500 | EF114: 3500 | EG114: 3500 | EH114: 3500 | EI114: 3500 | EJ114: 3500 | EK114: 3500 | EL114: 3500 | EM114: 3500 | EN114: 3500 | EO114: 3500 | EP114: 3500 | EQ114: 3500 | ER114: 3500 | ES114: 3500 | ET114: 3500 | EU114: 3500 | EV114: 3500 | EW114: 3500 | EX114: 3500 | EY114: 3500 | EZ114: 3500 | FA114: 3500 | FB114: 3500 | FC114: 3500 | FD114: 3500 | FE114: 3500 | FF114: 3500 | FG114: 3500 | FH114: 3500 | FI114: 3500 | FJ114: 3500 | FK114: 3500 | FL114: 3500 | FM114: 3500 | FN114: 3500 | FO114: 3500 | FP114: 3500 | FQ114: 3500 | FR114: 3500 | FS114: 3500 | FT114: 3500 | FU114: 3500 | FV114: 3500 | FW114: 3500 | FX114: 3500 | FY114: 3500 | FZ114: 3500 | GA114: 3500 | GB114: 3500 | GC114: 3500 | GD114: 3500 | GE114: 3500 | GF114: 3500 | GG114: 3500 | GH114: 3500 | GI114: 3500 | GJ114: 3500 | GK114: 3500 | GL114: 3500 | GM114: 3500
A115: 2 | B115: 12 | C115: 2 | D115: 2800 | E115: 2800 | F115: 2800 | G115: 2800 | H115: 2800 | I115: 2800 | J115: 2800 | K115: 2800 | L115: 2800 | M115: 2800 | N115: 2800 | O115: 2800 | P115: 3500 | Q115: 3500 | R115: 3500 | S115: 3500 | T115: 3500 | U115: 3500 | V115: 3500 | W115: 3500 | X115: 3500 | Y115: 3500 | Z115: 3500 | AA115: 3500 | AB115: 3500 | AC115: 3500 | AD115: 3500 | AE115: 3500 | AF115: 3500 | AG115: 3500 | AH115: 3500 | AI115: 3500 | AJ115: 3500 | AK115: 3500 | AL115: 3500 | AM115: 3500 | AN115: 3500 | AO115: 3500 | AP115: 3500 | AQ115: 3500 | AR115: 3500 | AS115: 3500 | AT115: 3500 | AU115: 3500 | AV115: 3500 | AW115: 3500 | AX115: 3500 | AY115: 3500 | AZ115: 3500 | BA115: 3500 | BB115: 3500 | BC115: 3500 | BD115: 3500 | BE115: 3500 | BF115: 3500 | BG115: 3500 | BH115: 3500 | BI115: 3500 | BJ115: 3500 | BK115: 3500 | BL115: 3500 | BM115: 3500 | BN115: 3500 | BO115: 3500 | BP115: 3500 | BQ115: 3500 | BR115: 3500 | BS115: 3500 | BT115: 3500 | BU115: 3500 | BV115: 3500 | BW115: 3500 | BX115: 3500 | BY115: 3500 | BZ115: 3500 | CA115: 3500 | CB115: 3500 | CC115: 3500 | CD115: 3500 | CE115: 3500 | CF115: 3500 | CG115: 3500 | CH115: 3500 | CI115: 3500 | CJ115: 3500 | CK115: 3500 | CL115: 3500 | CM115: 3500 | CN115: 3500 | CO115: 3500 | CP115: 3500 | CQ115: 3500 | CR115: 3500 | CS115: 3500 | CT115: 3500 | CU115: 3500 | CV115: 3500 | CW115: 3500 | CX115: 3500 | CY115: 3500 | CZ115: 3500 | DA115: 3500 | DB115: 3500 | DC115: 3500 | DD115: 3500 | DE115: 3500 | DF115: 3500 | DG115: 3500 | DH115: 3500 | DI115: 3500 | DJ115: 3500 | DK115: 3500 | DL115: 3500 | DM115: 3500 | DN115: 3500 | DO115: 3500 | DP115: 3500 | DQ115: 3500 | DR115: 3500 | DS115: 3500 | DT115: 3500 | DU115: 3500 | DV115: 3500 | DW115: 3500 | DX115: 3500 | DY115: 3500 | DZ115: 3500 | EA115: 3500 | EB115: 3500 | EC115: 3500 | ED115: 3500 | EE115: 3500 | EF115: 3500 | EG115: 3500 | EH115: 3500 | EI115: 3500 | EJ115: 3500 | EK115: 3500 | EL115: 3500 | EM115: 3500 | EN115: 3500 | EO115: 3500 | EP115: 3500 | EQ115: 3500 | ER115: 3500 | ES115: 3500 | ET115: 3500 | EU115: 3500 | EV115: 3500 | EW115: 3500 | EX115: 3500 | EY115: 3500 | EZ115: 3500 | FA115: 3500 | FB115: 3500 | FC115: 3500 | FD115: 3500 | FE115: 3500 | FF115: 3500 | FG115: 3500 | FH115: 3500 | FI115: 3500 | FJ115: 3500 | FK115: 3500 | FL115: 3500 | FM115: 3500 | FN115: 3500 | FO115: 3500 | FP115: 3500 | FQ115: 3500 | FR115: 3500 | FS115: 3500 | FT115: 3500 | FU115: 3500 | FV115: 3500 | FW115: 3500 | FX115: 3500 | FY115: 3500 | FZ115: 3500 | GA115: 3500 | GB115: 3500 | GC115: 3500 | GD115: 3500 | GE115: 3500 | GF115: 3500 | GG115: 3500 | GH115: 3500 | GI115: 3500 | GJ115: 3500 | GK115: 3500 | GL115: 3500 | GM115: 3500
A116: 3 | B116: 12 | C116: 2 | D116: 2800 | E116: 2800 | F116: 2800 | G116: 2800 | H116: 2800 | I116: 2800 | J116: 2800 | K116: 2800 | L116: 2800 | M116: 2800 | N116: 2800 | O116: 2800 | P116: 3500 | Q116: 3500 | R116: 3500 | S116: 3500 | T116: 3500 | U116: 3500 | V116: 3500 | W116: 3500 | X116: 3500 | Y116: 3500 | Z116: 3500 | AA116: 3500 | AB116: 3500 | AC116: 3500 | AD116: 3500 | AE116: 3500 | AF116: 3500 | AG116: 3500 | AH116: 3500 | AI116: 3500 | AJ116: 3500 | AK116: 3500 | AL116: 3500 | AM116: 3500 | AN116: 3500 | AO116: 3500 | AP116: 3500 | AQ116: 3500 | AR116: 3500 | AS116: 3500 | AT116: 3500 | AU116: 3500 | AV116: 3500 | AW116: 3500 | AX116: 3500 | AY116: 3500 | AZ116: 3500 | BA116: 3500 | BB116: 3500 | BC116: 3500 | BD116: 3500 | BE116: 3500 | BF116: 3500 | BG116: 3500 | BH116: 3500 | BI116: 3500 | BJ116: 3500 | BK116: 3500 | BL116: 3500 | BM116: 3500 | BN116: 3500 | BO116: 3500 | BP116: 3500 | BQ116: 3500 | BR116: 3500 | BS116: 3500 | BT116: 3500 | BU116: 3500 | BV116: 3500 | BW116: 3500 | BX116: 3500 | BY116: 3500 | BZ116: 3500 | CA116: 3500 | CB116: 3500 | CC116: 3500 | CD116: 3500 | CE116: 3500 | CF116: 3500 | CG116: 3500 | CH116: 3500 | CI116: 3500 | CJ116: 3500 | CK116: 3500 | CL116: 3500 | CM116: 3500 | CN116: 3500 | CO116: 3500 | CP116: 3500 | CQ116: 3500 | CR116: 3500 | CS116: 3500 | CT116: 3500 | CU116: 3500 | CV116: 3500 | CW116: 3500 | CX116: 3500 | CY116: 3500 | CZ116: 3500 | DA116: 3500 | DB116: 3500 | DC116: 3500 | DD116: 3500 | DE116: 3500 | DF116: 3500 | DG116: 3500 | DH116: 3500 | DI116: 3500 | DJ116: 3500 | DK116: 3500 | DL116: 3500 | DM116: 3500 | DN116: 3500 | DO116: 3500 | DP116: 3500 | DQ116: 3500 | DR116: 3500 | DS116: 3500 | DT116: 3500 | DU116: 3500 | DV116: 3500 | DW116: 3500 | DX116: 3500 | DY116: 3500 | DZ116: 3500 | EA116: 3500 | EB116: 3500 | EC116: 3500 | ED116: 3500 | EE116: 3500 | EF116: 3500 | EG116: 3500 | EH116: 3500 | EI116: 3500 | EJ116: 3500 | EK116: 3500 | EL116: 3500 | EM116: 3500 | EN116: 3500 | EO116: 3500 | EP116: 3500 | EQ116: 3500 | ER116: 3500 | ES116: 3500 | ET116: 3500 | EU116: 3500 | EV116: 3500 | EW116: 3500 | EX116: 3500 | EY116: 3500 | EZ116: 3500 | FA116: 3500 | FB116: 3500 | FC116: 3500 | FD116: 3500 | FE116: 3500 | FF116: 3500 | FG116: 3500 | FH116: 3500 | FI116: 3500 | FJ116: 3500 | FK116: 3500 | FL116: 3500 | FM116: 3500 | FN116: 3500 | FO116: 3500 | FP116: 3500 | FQ116: 3500 | FR116: 3500 | FS116: 3500 | FT116: 3500 | FU116: 3500 | FV116: 3500 | FW116: 3500 | FX116: 3500 | FY116: 3500 | FZ116: 3500 | GA116: 3500 | GB116: 3500 | GC116: 3500 | GD116: 3500 | GE116: 3500 | GF116: 3500 | GG116: 3500 | GH116: 3500 | GI116: 3500 | GJ116: 3500 | GK116: 3500 | GL116: 3500 | GM116: 3500
A117: 4 | B117: 12 | C117: 2 | D117: 2800 | E117: 2800 | F117: 2800 | G117: 2800 | H117: 2800 | I117: 2800 | J117: 2800 | K117: 2800 | L117: 2800 | M117: 2800 | N117: 2800 | O117: 2800 | P117: 3000 | Q117: 3000 | R117: 3000 | S117: 3000 | T117: 3000 | U117: 3000 | V117: 3000 | W117: 3000 | X117: 3000 | Y117: 3000 | Z117: 3000 | AA117: 3000 | AB117: 3000 | AC117: 3000 | AD117: 3000 | AE117: 3000 | AF117: 3000 | AG117: 3000 | AH117: 3000 | AI117: 3000 | AJ117: 3000 | AK117: 3000 | AL117: 3000 | AM117: 3000 | AN117: 3000 | AO117: 3000 | AP117: 3000 | AQ117: 3000 | AR117: 3000 | AS117: 3000 | AT117: 3000 | AU117: 3000 | AV117: 3000 | AW117: 3000 | AX117: 3000 | AY117: 3000 | AZ117: 3000 | BA117: 3000 | BB117: 3000 | BC117: 3000 | BD117: 3000 | BE117: 3000 | BF117: 3000 | BG117: 3000 | BH117: 3000 | BI117: 3000 | BJ117: 3000 | BK117: 3000 | BL117: 3000 | BM117: 3000 | BN117: 3000 | BO117: 3000 | BP117: 3000 | BQ117: 3000 | BR117: 3000 | BS117: 3000 | BT117: 3000 | BU117: 3000 | BV117: 3000 | BW117: 3000 | BX117: 3000 | BY117: 3000 | BZ117: 3000 | CA117: 3000 | CB117: 3000 | CC117: 3000 | CD117: 3000 | CE117: 3000 | CF117: 3000 | CG117: 3000 | CH117: 3000 | CI117: 3000 | CJ117: 3000 | CK117: 3000 | CL117: 3000 | CM117: 3000 | CN117: 3000 | CO117: 3000 | CP117: 3000 | CQ117: 3000 | CR117: 3000 | CS117: 3000 | CT117: 3000 | CU117: 3000 | CV117: 3000 | CW117: 3000 | CX117: 3000 | CY117: 3000 | CZ117: 3000 | DA117: 3000 | DB117: 3000 | DC117: 3000 | DD117: 3000 | DE117: 3000 | DF117: 3000 | DG117: 3000 | DH117: 3000 | DI117: 3000 | DJ117: 3000 | DK117: 3000 | DL117: 3000 | DM117: 3000 | DN117: 3000 | DO117: 3000 | DP117: 3000 | DQ117: 3000 | DR117: 3000 | DS117: 3000 | DT117: 3000 | DU117: 3000 | DV117: 3000 | DW117: 3000 | DX117: 3000 | DY117: 3000 | DZ117: 3000 | EA117: 3000 | EB117: 3000 | EC117: 3000 | ED117: 3000 | EE117: 3000 | EF117: 3000 | EG117: 3000 | EH117: 3000 | EI117: 3000 | EJ117: 3000 | EK117: 3000 | EL117: 3000 | EM117: 3000 | EN117: 3000 | EO117: 3000 | EP117: 3000 | EQ117: 3000 | ER117: 3000 | ES117: 3000 | ET117: 3000 | EU117: 3000 | EV117: 3000 | EW117: 3000 | EX117: 3000 | EY117: 3000 | EZ117: 3000 | FA117: 3000 | FB117: 3000 | FC117: 3000 | FD117: 3000 | FE117: 3000 | FF117: 3000 | FG117: 3000 | FH117: 3000 | FI117: 3000 | FJ117: 3000 | FK117: 3000 | FL117: 3000 | FM117: 3000 | FN117: 3000 | FO117: 3000 | FP117: 3000 | FQ117: 3000 | FR117: 3000 | FS117: 3000 | FT117: 3000 | FU117: 3000 | FV117: 3000 | FW117: 3000 | FX117: 3000 | FY117: 3000 | FZ117: 3000 | GA117: 3000 | GB117: 3000 | GC117: 3000 | GD117: 3000 | GE117: 3000 | GF117: 3000 | GG117: 3000 | GH117: 3000 | GI117: 3000 | GJ117: 3000 | GK117: 3000 | GL117: 3000 | GM117: 3000
A118: 1 | B118: 12 | C118: 5 | D118: 0 | E118: 0 | F118: 0 | G118: 0 | H118: 0 | I118: 0 | J118: 0 | K118: 0 | L118: 0 | M118: 0 | N118: 0 | O118: 0 | P118: 0 | Q118: 0 | R118: 0 | S118: 0 | T118: 0 | U118: 0 | V118: 0 | W118: 0 | X118: 0 | Y118: 0 | Z118: 0 | AA118: 0 | AB118: 0 | AC118: 0 | AD118: 0 | AE118: 0 | AF118: 0 | AG118: 0 | AH118: 0 | AI118: 0 | AJ118: 0 | AK118: 0 | AL118: 0 | AM118: 0 | AN118: 0 | AO118: 0 | AP118: 0 | AQ118: 0 | AR118: 0 | AS118: 0 | AT118: 0 | AU118: 0 | AV118: 0 | AW118: 0 | AX118: 0 | AY118: 0 | AZ118: 0 | BA118: 0 | BB118: 0 | BC118: 0 | BD118: 0 | BE118: 0 | BF118: 0 | BG118: 0 | BH118: 0 | BI118: 0 | BJ118: 0 | BK118: 0 | BL118: 0 | BM118: 0 | BN118: 0 | BO118: 0 | BP118: 0 | BQ118: 0 | BR118: 0 | BS118: 0 | BT118: 0 | BU118: 0 | BV118: 0 | BW118: 0 | BX118: 0 | BY118: 0 | BZ118: 0 | CA118: 0 | CB118: 0 | CC118: 0 | CD118: 0 | CE118: 0 | CF118: 0 | CG118: 0 | CH118: 0 | CI118: 0 | CJ118: 0 | CK118: 0 | CL118: 0 | CM118: 0 | CN118: 0 | CO118: 0 | CP118: 0 | CQ118: 0 | CR118: 0 | CS118: 0 | CT118: 0 | CU118: 0 | CV118: 0 | CW118: 0 | CX118: 0 | CY118: 0 | CZ118: 0 | DA118: 0 | DB118: 0 | DC118: 0 | DD118: 0 | DE118: 0 | DF118: 0 | DG118: 0 | DH118: 0 | DI118: 0 | DJ118: 0 | DK118: 0 | DL118: 0 | DM118: 0 | DN118: 0 | DO118: 0 | DP118: 0 | DQ118: 0 | DR118: 0 | DS118: 0 | DT118: 0 | DU118: 0 | DV118: 0 | DW118: 0 | DX118: 0 | DY118: 0 | DZ118: 0 | EA118: 0 | EB118: 0 | EC118: 0 | ED118: 0 | EE118: 0 | EF118: 0 | EG118: 0 | EH118: 0 | EI118: 0 | EJ118: 0 | EK118: 0 | EL118: 0 | EM118: 0 | EN118: 0 | EO118: 0 | EP118: 0 | EQ118: 0 | ER118: 0 | ES118: 0 | ET118: 0 | EU118: 0 | EV118: 0 | EW118: 0 | EX118: 0 | EY118: 0 | EZ118: 0 | FA118: 0 | FB118: 0 | FC118: 0 | FD118: 0 | FE118: 0 | FF118: 0 | FG118: 0 | FH118: 0 | FI118: 0 | FJ118: 0 | FK118: 0 | FL118: 0 | FM118: 0 | FN118: 0 | FO118: 0 | FP118: 0 | FQ118: 0 | FR118: 0 | FS118: 0 | FT118: 0 | FU118: 0 | FV118: 0 | FW118: 0 | FX118: 0 | FY118: 0 | FZ118: 0 | GA118: 0 | GB118: 0 | GC118: 0 | GD118: 0 | GE118: 0 | GF118: 0 | GG118: 0 | GH118: 0 | GI118: 0 | GJ118: 0 | GK118: 0 | GL118: 0 | GM118: 0
A119: 2 | B119: 12 | C119: 5 | D119: 0 | E119: 0 | F119: 0 | G119: 0 | H119: 0 | I119: 0 | J119: 0 | K119: 0 | L119: 0 | M119: 0 | N119: 0 | O119: 0 | P119: 0 | Q119: 0 | R119: 0 | S119: 0 | T119: 0 | U119: 0 | V119: 0 | W119: 0 | X119: 0 | Y119: 0 | Z119: 0 | AA119: 0 | AB119: 0 | AC119: 0 | AD119: 0 | AE119: 0 | AF119: 0 | AG119: 0 | AH119: 0 | AI119: 0 | AJ119: 0 | AK119: 0 | AL119: 0 | AM119: 0 | AN119: 0 | AO119: 0 | AP119: 0 | AQ119: 0 | AR119: 0 | AS119: 0 | AT119: 0 | AU119: 0 | AV119: 0 | AW119: 0 | AX119: 0 | AY119: 0 | AZ119: 0 | BA119: 0 | BB119: 0 | BC119: 0 | BD119: 0 | BE119: 0 | BF119: 0 | BG119: 0 | BH119: 0 | BI119: 0 | BJ119: 0 | BK119: 0 | BL119: 0 | BM119: 0 | BN119: 0 | BO119: 0 | BP119: 0 | BQ119: 0 | BR119: 0 | BS119: 0 | BT119: 0 | BU119: 0 | BV119: 0 | BW119: 0 | BX119: 0 | BY119: 0 | BZ119: 0 | CA119: 0 | CB119: 0 | CC119: 0 | CD119: 0 | CE119: 0 | CF119: 0 | CG119: 0 | CH119: 0 | CI119: 0 | CJ119: 0 | CK119: 0 | CL119: 0 | CM119: 0 | CN119: 0 | CO119: 0 | CP119: 0 | CQ119: 0 | CR119: 0 | CS119: 0 | CT119: 0 | CU119: 0 | CV119: 0 | CW119: 0 | CX119: 0 | CY119: 0 | CZ119: 0 | DA119: 0 | DB119: 0 | DC119: 0 | DD119: 0 | DE119: 0 | DF119: 0 | DG119: 0 | DH119: 0 | DI119: 0 | DJ119: 0 | DK119: 0 | DL119: 0 | DM119: 0 | DN119: 0 | DO119: 0 | DP119: 0 | DQ119: 0 | DR119: 0 | DS119: 0 | DT119: 0 | DU119: 0 | DV119: 0 | DW119: 0 | DX119: 0 | DY119: 0 | DZ119: 0 | EA119: 0 | EB119: 0 | EC119: 0 | ED119: 0 | EE119: 0 | EF119: 0 | EG119: 0 | EH119: 0 | EI119: 0 | EJ119: 0 | EK119: 0 | EL119: 0 | EM119: 0 | EN119: 0 | EO119: 0 | EP119: 0 | EQ119: 0 | ER119: 0 | ES119: 0 | ET119: 0 | EU119: 0 | EV119: 0 | EW119: 0 | EX119: 0 | EY119: 0 | EZ119: 0 | FA119: 0 | FB119: 0 | FC119: 0 | FD119: 0 | FE119: 0 | FF119: 0 | FG119: 0 | FH119: 0 | FI119: 0 | FJ119: 0 | FK119: 0 | FL119: 0 | FM119: 0 | FN119: 0 | FO119: 0 | FP119: 0 | FQ119: 0 | FR119: 0 | FS119: 0 | FT119: 0 | FU119: 0 | FV119: 0 | FW119: 0 | FX119: 0 | FY119: 0 | FZ119: 0 | GA119: 0 | GB119: 0 | GC119: 0 | GD119: 0 | GE119: 0 | GF119: 0 | GG119: 0 | GH119: 0 | GI119: 0 | GJ119: 0 | GK119: 0 | GL119: 0 | GM119: 0
A120: 3 | B120: 12 | C120: 5 | D120: 0 | E120: 0 | F120: 0 | G120: 0 | H120: 0 | I120: 0 | J120: 0 | K120: 0 | L120: 0 | M120: 0 | N120: 0 | O120: 0 | P120: 0 | Q120: 0 | R120: 0 | S120: 0 | T120: 0 | U120: 0 | V120: 0 | W120: 0 | X120: 0 | Y120: 0 | Z120: 0 | AA120: 0 | AB120: 0 | AC120: 0 | AD120: 0 | AE120: 0 | AF120: 0 | AG120: 0 | AH120: 0 | AI120: 0 | AJ120: 0 | AK120: 0 | AL120: 0 | AM120: 0 | AN120: 0 | AO120: 0 | AP120: 0 | AQ120: 0 | AR120: 0 | AS120: 0 | AT120: 0 | AU120: 0 | AV120: 0 | AW120: 0 | AX120: 0 | AY120: 0 | AZ120: 0 | BA120: 0 | BB120: 0 | BC120: 0 | BD120: 0 | BE120: 0 | BF120: 0 | BG120: 0 | BH120: 0 | BI120: 0 | BJ120: 0 | BK120: 0 | BL120: 0 | BM120: 0 | BN120: 0 | BO120: 0 | BP120: 0 | BQ120: 0 | BR120: 0 | BS120: 0 | BT120: 0 | BU120: 0 | BV120: 0 | BW120: 0 | BX120: 0 | BY120: 0 | BZ120: 0 | CA120: 0 | CB120: 0 | CC120: 0 | CD120: 0 | CE120: 0 | CF120: 0 | CG120: 0 | CH120: 0 | CI120: 0 | CJ120: 0 | CK120: 0 | CL120: 0 | CM120: 0 | CN120: 0 | CO120: 0 | CP120: 0 | CQ120: 0 | CR120: 0 | CS120: 0 | CT120: 0 | CU120: 0 | CV120: 0 | CW120: 0 | CX120: 0 | CY120: 0 | CZ120: 0 | DA120: 0 | DB120: 0 | DC120: 0 | DD120: 0 | DE120: 0 | DF120: 0 | DG120: 0 | DH120: 0 | DI120: 0 | DJ120: 0 | DK120: 0 | DL120: 0 | DM120: 0 | DN120: 0 | DO120: 0 | DP120: 0 | DQ120: 0 | DR120: 0 | DS120: 0 | DT120: 0 | DU120: 0 | DV120: 0 | DW120: 0 | DX120: 0 | DY120: 0 | DZ120: 0 | EA120: 0 | EB120: 0 | EC120: 0 | ED120: 0 | EE120: 0 | EF120: 0 | EG120: 0 | EH120: 0 | EI120: 0 | EJ120: 0 | EK120: 0 | EL120: 0 | EM120: 0 | EN120: 0 | EO120: 0 | EP120: 0 | EQ120: 0 | ER120: 0 | ES120: 0 | ET120: 0 | EU120: 0 | EV120: 0 | EW120: 0 | EX120: 0 | EY120: 0 | EZ120: 0 | FA120: 0 | FB120: 0 | FC120: 0 | FD120: 0 | FE120: 0 | FF120: 0 | FG120: 0 | FH120: 0 | FI120: 0 | FJ120: 0 | FK120: 0 | FL120: 0 | FM120: 0 | FN120: 0 | FO120: 0 | FP120: 0 | FQ120: 0 | FR120: 0 | FS120: 0 | FT120: 0 | FU120: 0 | FV120: 0 | FW120: 0 | FX120: 0 | FY120: 0 | FZ120: 0 | GA120: 0 | GB120: 0 | GC120: 0 | GD120: 0 | GE120: 0 | GF120: 0 | GG120: 0 | GH120: 0 | GI120: 0 | GJ120: 0 | GK120: 0 | GL120: 0 | GM120: 0
